Workbook

Sheet Info
C7: File name | D7: LIOP_front_end.xlsm
C8: Author | D8: Cambridge Econometrics
C9: Client | D9: Romanian Ministry of Regional Development
C10: Project | D10: Developing a forecast tool
C12: Version | D12: 1
C13: Authorised for release by
C14: Last revised | D14: 2020-07-16
C15: Status | D15: Completed
C16: Source | D16: SMIS
C18: Purpose | D18: To provide forecasts on indicators relating to the Large Infrastructure Operational Programme.
C22: Sheets in this file:
D24: Info | F24: This documentation sheet
D25: Projections | F25: Summary projection results
D26: Achievement_finalised | F26: Results for finalised projects in SMIS
D27: Achievement_to_date_ongoing | F27: Results for ongoing projects in SMIS
D28: Achievement_forecast_ongoing | F28: Forecasts for ongoing projects
D29: Project_characteristics | F29: Project characteristics and project pipline
D30: Achievement_forecast_future | F30: Forecasts for future projects

Sheet Projections
H2: As percentage of target (%) | L2: Total | P2: Finalised | T2: Ongoing | X2: New
C3: PA | D3: PI | E3: Indicator | F3: Region | G3: Target | H3: 2020 | I3: =+H3+1 -> 2021 | J3: =+I3+1 -> 2022 | K3: 2023 | L3: 2020 | M3: =+L3+1 -> 2021 | N3: =+M3+1 -> 2022 | O3: 2023 | P3: 2020 | Q3: =+P3+1 -> 2021 | R3: =+Q3+1 -> 2022 | S3: 2023 | T3: 2020 | U3: =+T3+1 -> 2021 | V3: =+U3+1 -> 2022 | W3: 2023 | X3: 2020 | Y3: =+X3+1 -> 2021 | Z3: =+Y3+1 -> 2022 | AA3: 2023
C4: 1 | D4: All | E4: CO12a | F4: All | G4: 140 | H4: =L4/$G4*100 -> 0 | I4: =M4/$G4*100 -> 0 | J4: =N4/$G4*100 -> 57.72619777 | K4: 125.2202022 | L4: =P4+T4+X4 -> 0 | M4: =Q4+U4+Y4 -> 0 | N4: =R4+V4+Z4 -> 80.81667688 | O4: =S4+W4+AA4 -> 175.3082831 | P4: =SUMIFS(Achievement_finalised!G:G,Achievement_finalised!$D:$D,Projections!$E4,Achievement_finalised!$E:$E,Projections!$F4,Achievement_finalised!$B:$B,Projections!$C4) -> 0 | Q4: =$P4 -> 0 | R4: =$P4 -> 0 | S4: 0 | T4: =SUMIFS(Achievement_forecast_ongoing!G:G,Achievement_forecast_ongoing!$E:$E,Projections!$E4,Achievement_forecast_ongoing!$F:$F,Projections!$F4,Achievement_forecast_ongoing!$C:$C,Projections!$C4) -> 0 | U4: =SUMIFS(Achievement_forecast_ongoing!H:H,Achievement_forecast_ongoing!$E:$E,Projections!$E4,Achievement_forecast_ongoing!$F:$F,Projections!$F4,Achievement_forecast_ongoing!$C:$C,Projections!$C4) -> 0 | V4: =SUMIFS(Achievement_forecast_ongoing!I:I,Achievement_forecast_ongoing!$E:$E,Projections!$E4,Achievement_forecast_ongoing!$F:$F,Projections!$F4,Achievement_forecast_ongoing!$C:$C,Projections!$C4) -> 80.81667688 | W4: =SUMIFS(Achievement_forecast_ongoing!J:J,Achievement_forecast_ongoing!$E:$E,Projections!$E4,Achievement_forecast_ongoing!$F:$F,Projections!$F4,Achievement_forecast_ongoing!$C:$C,Projections!$C4) -> 175.3082831 | X4: =SUMIFS(Achievement_forecasts_future!G:G,Achievement_forecasts_future!$B:$B,Projections!$C4,Achievement_forecasts_future!$D:$D,Projections!$E4,Achievement_forecasts_future!$E:$E,Projections!$F4) -> 0 | Y4: =SUMIFS(Achievement_forecasts_future!H:H,Achievement_forecasts_future!$B:$B,Projections!$C4,Achievement_forecasts_future!$D:$D,Projections!$E4,Achievement_forecasts_future!$E:$E,Projections!$F4) -> 0 | Z4: =SUMIFS(Achievement_forecasts_future!I:I,Achievement_forecasts_future!$B:$B,Projections!$C4,Achievement_forecasts_future!$D:$D,Projections!$E4,Achievement_forecasts_future!$E:$E,Projections!$F4) -> 0 | AA4: =SUMIFS(Achievement_forecasts_future!J:J,Achievement_forecasts_future!$B:$B,Projections!$C4,Achievement_forecasts_future!$D:$D,Projections!$E4,Achievement_forecasts_future!$E:$E,Projections!$F4) -> 0
C5: 1 | D5: All | E5: CO13a | F5: All | G5: 200 | H5: =L5/$G5*100 -> 0 | I5: 28.61283993 | J5: 32.99192519 | K5: 32.99192519 | L5: 0 | M5: 57.22567987 | N5: 65.98385038 | O5: 65.98385038 | P5: =SUMIFS(Achievement_finalised!G:G,Achievement_finalised!$D:$D,Projections!$E5,Achievement_finalised!$E:$E,Projections!$F5,Achievement_finalised!$B:$B,Projections!$C5) -> 0 | Q5: =$P5 -> 0 | R5: 0 | S5: 0 | T5: =SUMIFS(Achievement_forecast_ongoing!G:G,Achievement_forecast_ongoing!$E:$E,Projections!$E5,Achievement_forecast_ongoing!$F:$F,Projections!$F5,Achievement_forecast_ongoing!$C:$C,Projections!$C5) -> 0 | U5: =SUMIFS(Achievement_forecast_ongoing!H:H,Achievement_forecast_ongoing!$E:$E,Projections!$E5,Achievement_forecast_ongoing!$F:$F,Projections!$F5,Achievement_forecast_ongoing!$C:$C,Projections!$C5) -> 57.22567987 | V5: =SUMIFS(Achievement_forecast_ongoing!I:I,Achievement_forecast_ongoing!$E:$E,Projections!$E5,Achievement_forecast_ongoing!$F:$F,Projections!$F5,Achievement_forecast_ongoing!$C:$C,Projections!$C5) -> 65.98385038 | W5: =SUMIFS(Achievement_forecast_ongoing!J:J,Achievement_forecast_ongoing!$E:$E,Projections!$E5,Achievement_forecast_ongoing!$F:$F,Projections!$F5,Achievement_forecast_ongoing!$C:$C,Projections!$C5) -> 65.98385038 | X5: =SUMIFS(Achievement_forecasts_future!G:G,Achievement_forecasts_future!$B:$B,Projections!$C5,Achievement_forecasts_future!$D:$D,Projections!$E5,Achievement_forecasts_future!$E:$E,Projections!$F5) -> 0 | Y5: =SUMIFS(Achievement_forecasts_future!H:H,Achievement_forecasts_future!$B:$B,Projections!$C5,Achievement_forecasts_future!$D:$D,Projections!$E5,Achievement_forecasts_future!$E:$E,Projections!$F5) -> 0 | Z5: =SUMIFS(Achievement_forecasts_future!I:I,Achievement_forecasts_future!$B:$B,Projections!$C5,Achievement_forecasts_future!$D:$D,Projections!$E5,Achievement_forecasts_future!$E:$E,Projections!$F5) -> 0 | AA5: =SUMIFS(Achievement_forecasts_future!J:J,Achievement_forecasts_future!$B:$B,Projections!$C5,Achievement_forecasts_future!$D:$D,Projections!$E5,Achievement_forecasts_future!$E:$E,Projections!$F5) -> 0
C6: 1 | D6: All | E6: F | F6: All | G6: =4005006259*G43 -> 1.935138924e+10 | H6: 77.82116285 | I6: 78.03368212 | J6: 77.25563694 | K6: 80.92287467 | L6: 1.505947614e+10 | M6: 1.510060157e+10 | N6: 1.495003902e+10 | O6: 1.565970046e+10 | P6: =SUMIFS(Achievement_finalised!G:G,Achievement_finalised!$D:$D,Projections!$E6,Achievement_finalised!$E:$E,Projections!$F6,Achievement_finalised!$B:$B,Projections!$C6) -> 109580905 | Q6: 109580905 | R6: 109580905 | S6: 109580905 | T6: =SUMIFS(Achievement_forecast_ongoing!G:G,Achievement_forecast_ongoing!$E:$E,Projections!$E6,Achievement_forecast_ongoing!$F:$F,Projections!$F6,Achievement_forecast_ongoing!$C:$C,Projections!$C6) -> 1.494563214e+10 | U6: =SUMIFS(Achievement_forecast_ongoing!H:H,Achievement_forecast_ongoing!$E:$E,Projections!$E6,Achievement_forecast_ongoing!$F:$F,Projections!$F6,Achievement_forecast_ongoing!$C:$C,Projections!$C6) -> 1.496769853e+10 | V6: =SUMIFS(Achievement_forecast_ongoing!I:I,Achievement_forecast_ongoing!$E:$E,Projections!$E6,Achievement_forecast_ongoing!$F:$F,Projections!$F6,Achievement_forecast_ongoing!$C:$C,Projections!$C6) -> 1.47963449e+10 | W6: =SUMIFS(Achievement_forecast_ongoing!J:J,Achievement_forecast_ongoing!$E:$E,Projections!$E6,Achievement_forecast_ongoing!$F:$F,Projections!$F6,Achievement_forecast_ongoing!$C:$C,Projections!$C6) -> 1.546965872e+10 | X6: =SUMIFS(Achievement_forecasts_future!G:G,Achievement_forecasts_future!$B:$B,Projections!$C6,Achievement_forecasts_future!$D:$D,Projections!$E6,Achievement_forecasts_future!$E:$E,Projections!$F6) -> 4263086.203 | Y6: =SUMIFS(Achievement_forecasts_future!H:H,Achievement_forecasts_future!$B:$B,Projections!$C6,Achievement_forecasts_future!$D:$D,Projections!$E6,Achievement_forecasts_future!$E:$E,Projections!$F6) -> 23322131.38 | Z6: =SUMIFS(Achievement_forecasts_future!I:I,Achievement_forecasts_future!$B:$B,Projections!$C6,Achievement_forecasts_future!$D:$D,Projections!$E6,Achievement_forecasts_future!$E:$E,Projections!$F6) -> 44113209.18 | AA6: =SUMIFS(Achievement_forecasts_future!J:J,Achievement_forecasts_future!$B:$B,Projections!$C6,Achievement_forecasts_future!$D:$D,Projections!$E6,Achievement_forecasts_future!$E:$E,Projections!$F6) -> 80460833.96
C7: 1 | D7: All | E7: 2S10 | F7: All | G7: 140 | H7: 0 | I7: 0 | J7: 0 | K7: 0 | L7: 0 | M7: 0 | N7: 0 | O7: 0 | P7: =SUMIFS(Achievement_finalised!G:G,Achievement_finalised!$D:$D,Projections!$E7,Achievement_finalised!$E:$E,Projections!$F7,Achievement_finalised!$B:$B,Projections!$C7) -> 0 | Q7: 0 | R7: 0 | S7: 0 | T7: =SUMIFS(Achievement_forecast_ongoing!G:G,Achievement_forecast_ongoing!$E:$E,Projections!$E7,Achievement_forecast_ongoing!$F:$F,Projections!$F7,Achievement_forecast_ongoing!$C:$C,Projections!$C7) -> 0 | U7: =SUMIFS(Achievement_forecast_ongoing!H:H,Achievement_forecast_ongoing!$E:$E,Projections!$E7,Achievement_forecast_ongoing!$F:$F,Projections!$F7,Achievement_forecast_ongoing!$C:$C,Projections!$C7) -> 0 | V7: =SUMIFS(Achievement_forecast_ongoing!I:I,Achievement_forecast_ongoing!$E:$E,Projections!$E7,Achievement_forecast_ongoing!$F:$F,Projections!$F7,Achievement_forecast_ongoing!$C:$C,Projections!$C7) -> 0 | W7: =SUMIFS(Achievement_forecast_ongoing!J:J,Achievement_forecast_ongoing!$E:$E,Projections!$E7,Achievement_forecast_ongoing!$F:$F,Projections!$F7,Achievement_forecast_ongoing!$C:$C,Projections!$C7) -> 0 | X7: =SUMIFS(Achievement_forecasts_future!G:G,Achievement_forecasts_future!$B:$B,Projections!$C7,Achievement_forecasts_future!$D:$D,Projections!$E7,Achievement_forecasts_future!$E:$E,Projections!$F7) -> 0 | Y7: =SUMIFS(Achievement_forecasts_future!H:H,Achievement_forecasts_future!$B:$B,Projections!$C7,Achievement_forecasts_future!$D:$D,Projections!$E7,Achievement_forecasts_future!$E:$E,Projections!$F7) -> 0 | Z7: =SUMIFS(Achievement_forecasts_future!I:I,Achievement_forecasts_future!$B:$B,Projections!$C7,Achievement_forecasts_future!$D:$D,Projections!$E7,Achievement_forecasts_future!$E:$E,Projections!$F7) -> 0 | AA7: =SUMIFS(Achievement_forecasts_future!J:J,Achievement_forecasts_future!$B:$B,Projections!$C7,Achievement_forecasts_future!$D:$D,Projections!$E7,Achievement_forecasts_future!$E:$E,Projections!$F7) -> 0
C8: 1 | D8: All | E8: 2S9 | F8: All | G8: 200 | H8: 0 | I8: 0 | J8: 0 | K8: 0 | L8: 0 | M8: 0 | N8: 0 | O8: 0 | P8: =SUMIFS(Achievement_finalised!G:G,Achievement_finalised!$D:$D,Projections!$E8,Achievement_finalised!$E:$E,Projections!$F8,Achievement_finalised!$B:$B,Projections!$C8) -> 0 | Q8: 0 | R8: 0 | S8: 0 | T8: =SUMIFS(Achievement_forecast_ongoing!G:G,Achievement_forecast_ongoing!$E:$E,Projections!$E8,Achievement_forecast_ongoing!$F:$F,Projections!$F8,Achievement_forecast_ongoing!$C:$C,Projections!$C8) -> 0 | U8: =SUMIFS(Achievement_forecast_ongoing!H:H,Achievement_forecast_ongoing!$E:$E,Projections!$E8,Achievement_forecast_ongoing!$F:$F,Projections!$F8,Achievement_forecast_ongoing!$C:$C,Projections!$C8) -> 0 | V8: =SUMIFS(Achievement_forecast_ongoing!I:I,Achievement_forecast_ongoing!$E:$E,Projections!$E8,Achievement_forecast_ongoing!$F:$F,Projections!$F8,Achievement_forecast_ongoing!$C:$C,Projections!$C8) -> 0 | W8: =SUMIFS(Achievement_forecast_ongoing!J:J,Achievement_forecast_ongoing!$E:$E,Projections!$E8,Achievement_forecast_ongoing!$F:$F,Projections!$F8,Achievement_forecast_ongoing!$C:$C,Projections!$C8) -> 0 | X8: =SUMIFS(Achievement_forecasts_future!G:G,Achievement_forecasts_future!$B:$B,Projections!$C8,Achievement_forecasts_future!$D:$D,Projections!$E8,Achievement_forecasts_future!$E:$E,Projections!$F8) -> 0 | Y8: =SUMIFS(Achievement_forecasts_future!H:H,Achievement_forecasts_future!$B:$B,Projections!$C8,Achievement_forecasts_future!$D:$D,Projections!$E8,Achievement_forecasts_future!$E:$E,Projections!$F8) -> 0 | Z8: =SUMIFS(Achievement_forecasts_future!I:I,Achievement_forecasts_future!$B:$B,Projections!$C8,Achievement_forecasts_future!$D:$D,Projections!$E8,Achievement_forecasts_future!$E:$E,Projections!$F8) -> 0 | AA8: =SUMIFS(Achievement_forecasts_future!J:J,Achievement_forecasts_future!$B:$B,Projections!$C8,Achievement_forecasts_future!$D:$D,Projections!$E8,Achievement_forecasts_future!$E:$E,Projections!$F8) -> 0
C9: 2 | D9: All | E9: CO13a | F9: Less developed | G9: 179 | H9: 4.810834413 | I9: 96.72369649 | J9: 96.72369649 | K9: 121.7548222 | L9: =P9+T9+X9 -> 8.611393599 | M9: =Q9+U9+Y9 -> 173.1354167 | N9: =R9+V9+Z9 -> 173.1354167 | O9: =S9+W9+AA9 -> 217.9411317 | P9: =SUMIFS(Achievement_finalised!G:G,Achievement_finalised!$D:$D,Projections!$E9,Achievement_finalised!$E:$E,Projections!$F9,Achievement_finalised!$B:$B,Projections!$C9) -> 4.924 | Q9: 4.924 | R9: 4.924 | S9: 4.924 | T9: =SUMIFS(Achievement_forecast_ongoing!G:G,Achievement_forecast_ongoing!$E:$E,Projections!$E9,Achievement_forecast_ongoing!$F:$F,Projections!$F9,Achievement_forecast_ongoing!$C:$C,Projections!$C9) -> 3.687393599 | U9: =SUMIFS(Achievement_forecast_ongoing!H:H,Achievement_forecast_ongoing!$E:$E,Projections!$E9,Achievement_forecast_ongoing!$F:$F,Projections!$F9,Achievement_forecast_ongoing!$C:$C,Projections!$C9) -> 168.2114167 | V9: =SUMIFS(Achievement_forecast_ongoing!I:I,Achievement_forecast_ongoing!$E:$E,Projections!$E9,Achievement_forecast_ongoing!$F:$F,Projections!$F9,Achievement_forecast_ongoing!$C:$C,Projections!$C9) -> 168.2114167 | W9: =SUMIFS(Achievement_forecast_ongoing!J:J,Achievement_forecast_ongoing!$E:$E,Projections!$E9,Achievement_forecast_ongoing!$F:$F,Projections!$F9,Achievement_forecast_ongoing!$C:$C,Projections!$C9) -> 213.0171317 | X9: =SUMIFS(Achievement_forecasts_future!G:G,Achievement_forecasts_future!$B:$B,Projections!$C9,Achievement_forecasts_future!$D:$D,Projections!$E9,Achievement_forecasts_future!$E:$E,Projections!$F9) -> 0 | Y9: =SUMIFS(Achievement_forecasts_future!H:H,Achievement_forecasts_future!$B:$B,Projections!$C9,Achievement_forecasts_future!$D:$D,Projections!$E9,Achievement_forecasts_future!$E:$E,Projections!$F9) -> 0 | Z9: =SUMIFS(Achievement_forecasts_future!I:I,Achievement_forecasts_future!$B:$B,Projections!$C9,Achievement_forecasts_future!$D:$D,Projections!$E9,Achievement_forecasts_future!$E:$E,Projections!$F9) -> 0 | AA9: =SUMIFS(Achievement_forecasts_future!J:J,Achievement_forecasts_future!$B:$B,Projections!$C9,Achievement_forecasts_future!$D:$D,Projections!$E9,Achievement_forecasts_future!$E:$E,Projections!$F9) -> 0
C10: 2 | D10: All | E10: F | F10: Less developed | G10: =1297335242*G43 -> 6268464422 | H10: 62.70670052 | I10: 69.44891616 | J10: 71.42218215 | K10: 71.92489788 | L10: 3930747212 | M10: 4353380601 | N10: 4477074078 | O10: 4508586635 | P10: =SUMIFS(Achievement_finalised!G:G,Achievement_finalised!$D:$D,Projections!$E10,Achievement_finalised!$E:$E,Projections!$F10,Achievement_finalised!$B:$B,Projections!$C10) -> 194726381.4 | Q10: 194726381.4 | R10: 194726381.4 | S10: 194726381.4 | T10: =SUMIFS(Achievement_forecast_ongoing!G:G,Achievement_forecast_ongoing!$E:$E,Projections!$E10,Achievement_forecast_ongoing!$F:$F,Projections!$F10,Achievement_forecast_ongoing!$C:$C,Projections!$C10) -> 3736020831 | U10: =SUMIFS(Achievement_forecast_ongoing!H:H,Achievement_forecast_ongoing!$E:$E,Projections!$E10,Achievement_forecast_ongoing!$F:$F,Projections!$F10,Achievement_forecast_ongoing!$C:$C,Projections!$C10) -> 4158654219 | V10: =SUMIFS(Achievement_forecast_ongoing!I:I,Achievement_forecast_ongoing!$E:$E,Projections!$E10,Achievement_forecast_ongoing!$F:$F,Projections!$F10,Achievement_forecast_ongoing!$C:$C,Projections!$C10) -> 4282347696 | W10: =SUMIFS(Achievement_forecast_ongoing!J:J,Achievement_forecast_ongoing!$E:$E,Projections!$E10,Achievement_forecast_ongoing!$F:$F,Projections!$F10,Achievement_forecast_ongoing!$C:$C,Projections!$C10) -> 4313860253 | X10: =SUMIFS(Achievement_forecasts_future!G:G,Achievement_forecasts_future!$B:$B,Projections!$C10,Achievement_forecasts_future!$D:$D,Projections!$E10,Achievement_forecasts_future!$E:$E,Projections!$F10) -> 0 | Y10: =SUMIFS(Achievement_forecasts_future!H:H,Achievement_forecasts_future!$B:$B,Projections!$C10,Achievement_forecasts_future!$D:$D,Projections!$E10,Achievement_forecasts_future!$E:$E,Projections!$F10) -> 0 | Z10: =SUMIFS(Achievement_forecasts_future!I:I,Achievement_forecasts_future!$B:$B,Projections!$C10,Achievement_forecasts_future!$D:$D,Projections!$E10,Achievement_forecasts_future!$E:$E,Projections!$F10) -> 0 | AA10: =SUMIFS(Achievement_forecasts_future!J:J,Achievement_forecasts_future!$B:$B,Projections!$C10,Achievement_forecasts_future!$D:$D,Projections!$E10,Achievement_forecasts_future!$E:$E,Projections!$F10) -> 0
C11: 2 | D11: All | E11: 2S9 | F11: Less developed | G11: 140 | H11: 0 | I11: 0 | J11: 0 | K11: 0 | L11: 0 | M11: 0 | N11: 0 | O11: 0 | P11: =SUMIFS(Achievement_finalised!G:G,Achievement_finalised!$D:$D,Projections!$E11,Achievement_finalised!$E:$E,Projections!$F11,Achievement_finalised!$B:$B,Projections!$C11) -> 0 | Q11: 0 | R11: 0 | S11: 0 | T11: =SUMIFS(Achievement_forecast_ongoing!G:G,Achievement_forecast_ongoing!$E:$E,Projections!$E11,Achievement_forecast_ongoing!$F:$F,Projections!$F11,Achievement_forecast_ongoing!$C:$C,Projections!$C11) -> 0 | U11: =SUMIFS(Achievement_forecast_ongoing!H:H,Achievement_forecast_ongoing!$E:$E,Projections!$E11,Achievement_forecast_ongoing!$F:$F,Projections!$F11,Achievement_forecast_ongoing!$C:$C,Projections!$C11) -> 0 | V11: =SUMIFS(Achievement_forecast_ongoing!I:I,Achievement_forecast_ongoing!$E:$E,Projections!$E11,Achievement_forecast_ongoing!$F:$F,Projections!$F11,Achievement_forecast_ongoing!$C:$C,Projections!$C11) -> 0 | W11: =SUMIFS(Achievement_forecast_ongoing!J:J,Achievement_forecast_ongoing!$E:$E,Projections!$E11,Achievement_forecast_ongoing!$F:$F,Projections!$F11,Achievement_forecast_ongoing!$C:$C,Projections!$C11) -> 0 | X11: =SUMIFS(Achievement_forecasts_future!G:G,Achievement_forecasts_future!$B:$B,Projections!$C11,Achievement_forecasts_future!$D:$D,Projections!$E11,Achievement_forecasts_future!$E:$E,Projections!$F11) -> 0 | Y11: =SUMIFS(Achievement_forecasts_future!H:H,Achievement_forecasts_future!$B:$B,Projections!$C11,Achievement_forecasts_future!$D:$D,Projections!$E11,Achievement_forecasts_future!$E:$E,Projections!$F11) -> 0 | Z11: =SUMIFS(Achievement_forecasts_future!I:I,Achievement_forecasts_future!$B:$B,Projections!$C11,Achievement_forecasts_future!$D:$D,Projections!$E11,Achievement_forecasts_future!$E:$E,Projections!$F11) -> 0 | AA11: =SUMIFS(Achievement_forecasts_future!J:J,Achievement_forecasts_future!$B:$B,Projections!$C11,Achievement_forecasts_future!$D:$D,Projections!$E11,Achievement_forecasts_future!$E:$E,Projections!$F11) -> 0
C12: 3 | D12: All | E12: CO17 | F12: All | G12: 1300000 | H12: 7.915115557 | I12: 13.35213109 | J12: 13.35213109 | K12: 17.5883421 | L12: 102896.5022 | M12: 173577.7042 | N12: 173577.7042 | O12: 228648.4473 | P12: =SUMIFS(Achievement_finalised!G:G,Achievement_finalised!$D:$D,Projections!$E12,Achievement_finalised!$E:$E,Projections!$F12,Achievement_finalised!$B:$B,Projections!$C12) -> 88025 | Q12: 88025 | R12: 88025 | S12: 88025 | T12: =SUMIFS(Achievement_forecast_ongoing!G:G,Achievement_forecast_ongoing!$E:$E,Projections!$E12,Achievement_forecast_ongoing!$F:$F,Projections!$F12,Achievement_forecast_ongoing!$C:$C,Projections!$C12) -> 14871.50224 | U12: =SUMIFS(Achievement_forecast_ongoing!H:H,Achievement_forecast_ongoing!$E:$E,Projections!$E12,Achievement_forecast_ongoing!$F:$F,Projections!$F12,Achievement_forecast_ongoing!$C:$C,Projections!$C12) -> 85552.70418 | V12: =SUMIFS(Achievement_forecast_ongoing!I:I,Achievement_forecast_ongoing!$E:$E,Projections!$E12,Achievement_forecast_ongoing!$F:$F,Projections!$F12,Achievement_forecast_ongoing!$C:$C,Projections!$C12) -> 85552.70418 | W12: =SUMIFS(Achievement_forecast_ongoing!J:J,Achievement_forecast_ongoing!$E:$E,Projections!$E12,Achievement_forecast_ongoing!$F:$F,Projections!$F12,Achievement_forecast_ongoing!$C:$C,Projections!$C12) -> 140623.4473 | X12: =SUMIFS(Achievement_forecasts_future!G:G,Achievement_forecasts_future!$B:$B,Projections!$C12,Achievement_forecasts_future!$D:$D,Projections!$E12,Achievement_forecasts_future!$E:$E,Projections!$F12) -> 0 | Y12: =SUMIFS(Achievement_forecasts_future!H:H,Achievement_forecasts_future!$B:$B,Projections!$C12,Achievement_forecasts_future!$D:$D,Projections!$E12,Achievement_forecasts_future!$E:$E,Projections!$F12) -> 0 | Z12: =SUMIFS(Achievement_forecasts_future!I:I,Achievement_forecasts_future!$B:$B,Projections!$C12,Achievement_forecasts_future!$D:$D,Projections!$E12,Achievement_forecasts_future!$E:$E,Projections!$F12) -> 0 | AA12: =SUMIFS(Achievement_forecasts_future!J:J,Achievement_forecasts_future!$B:$B,Projections!$C12,Achievement_forecasts_future!$D:$D,Projections!$E12,Achievement_forecasts_future!$E:$E,Projections!$F12) -> 0
C13: 3 | D13: All | E13: CO18 | F13: All | G13: 2851330 | H13: 7.448909807 | I13: 8.547756881 | J13: 9.276300382 | K13: 10.03456329 | L13: 212393 | M13: 243724.7563 | N13: 264497.9357 | O13: 286118.5136 | P13: =SUMIFS(Achievement_finalised!G:G,Achievement_finalised!$D:$D,Projections!$E13,Achievement_finalised!$E:$E,Projections!$F13,Achievement_finalised!$B:$B,Projections!$C13) -> 212393 | Q13: 212393 | R13: 212393 | S13: 212393 | T13: =SUMIFS(Achievement_forecast_ongoing!G:G,Achievement_forecast_ongoing!$E:$E,Projections!$E13,Achievement_forecast_ongoing!$F:$F,Projections!$F13,Achievement_forecast_ongoing!$C:$C,Projections!$C13) -> 0 | U13: =SUMIFS(Achievement_forecast_ongoing!H:H,Achievement_forecast_ongoing!$E:$E,Projections!$E13,Achievement_forecast_ongoing!$F:$F,Projections!$F13,Achievement_forecast_ongoing!$C:$C,Projections!$C13) -> 31331.75629 | V13: =SUMIFS(Achievement_forecast_ongoing!I:I,Achievement_forecast_ongoing!$E:$E,Projections!$E13,Achievement_forecast_ongoing!$F:$F,Projections!$F13,Achievement_forecast_ongoing!$C:$C,Projections!$C13) -> 52104.93567 | W13: =SUMIFS(Achievement_forecast_ongoing!J:J,Achievement_forecast_ongoing!$E:$E,Projections!$E13,Achievement_forecast_ongoing!$F:$F,Projections!$F13,Achievement_forecast_ongoing!$C:$C,Projections!$C13) -> 73725.51358 | X13: =SUMIFS(Achievement_forecasts_future!G:G,Achievement_forecasts_future!$B:$B,Projections!$C13,Achievement_forecasts_future!$D:$D,Projections!$E13,Achievement_forecasts_future!$E:$E,Projections!$F13) -> 0 | Y13: =SUMIFS(Achievement_forecasts_future!H:H,Achievement_forecasts_future!$B:$B,Projections!$C13,Achievement_forecasts_future!$D:$D,Projections!$E13,Achievement_forecasts_future!$E:$E,Projections!$F13) -> 0 | Z13: =SUMIFS(Achievement_forecasts_future!I:I,Achievement_forecasts_future!$B:$B,Projections!$C13,Achievement_forecasts_future!$D:$D,Projections!$E13,Achievement_forecasts_future!$E:$E,Projections!$F13) -> 0 | AA13: =SUMIFS(Achievement_forecasts_future!J:J,Achievement_forecasts_future!$B:$B,Projections!$C13,Achievement_forecasts_future!$D:$D,Projections!$E13,Achievement_forecasts_future!$E:$E,Projections!$F13) -> 0
C14: 3 | D14: All | E14: CO19 | F14: All | G14: 1938904 | H14: 14.49788128 | I14: 16.49935146 | J14: 17.73799405 | K14: 19.58602019 | L14: 281100 | M14: 319906.5855 | N14: 343922.6761 | O14: 379754.129 | P14: =SUMIFS(Achievement_finalised!G:G,Achievement_finalised!$D:$D,Projections!$E14,Achievement_finalised!$E:$E,Projections!$F14,Achievement_finalised!$B:$B,Projections!$C14) -> 281100 | Q14: 281100 | R14: 281100 | S14: 281100 | T14: =SUMIFS(Achievement_forecast_ongoing!G:G,Achievement_forecast_ongoing!$E:$E,Projections!$E14,Achievement_forecast_ongoing!$F:$F,Projections!$F14,Achievement_forecast_ongoing!$C:$C,Projections!$C14) -> 0 | U14: =SUMIFS(Achievement_forecast_ongoing!H:H,Achievement_forecast_ongoing!$E:$E,Projections!$E14,Achievement_forecast_ongoing!$F:$F,Projections!$F14,Achievement_forecast_ongoing!$C:$C,Projections!$C14) -> 38806.58551 | V14: =SUMIFS(Achievement_forecast_ongoing!I:I,Achievement_forecast_ongoing!$E:$E,Projections!$E14,Achievement_forecast_ongoing!$F:$F,Projections!$F14,Achievement_forecast_ongoing!$C:$C,Projections!$C14) -> 62822.67609 | W14: =SUMIFS(Achievement_forecast_ongoing!J:J,Achievement_forecast_ongoing!$E:$E,Projections!$E14,Achievement_forecast_ongoing!$F:$F,Projections!$F14,Achievement_forecast_ongoing!$C:$C,Projections!$C14) -> 98654.129 | X14: =SUMIFS(Achievement_forecasts_future!G:G,Achievement_forecasts_future!$B:$B,Projections!$C14,Achievement_forecasts_future!$D:$D,Projections!$E14,Achievement_forecasts_future!$E:$E,Projections!$F14) -> 0 | Y14: =SUMIFS(Achievement_forecasts_future!H:H,Achievement_forecasts_future!$B:$B,Projections!$C14,Achievement_forecasts_future!$D:$D,Projections!$E14,Achievement_forecasts_future!$E:$E,Projections!$F14) -> 0 | Z14: =SUMIFS(Achievement_forecasts_future!I:I,Achievement_forecasts_future!$B:$B,Projections!$C14,Achievement_forecasts_future!$D:$D,Projections!$E14,Achievement_forecasts_future!$E:$E,Projections!$F14) -> 0 | AA14: =SUMIFS(Achievement_forecasts_future!J:J,Achievement_forecasts_future!$B:$B,Projections!$C14,Achievement_forecasts_future!$D:$D,Projections!$E14,Achievement_forecasts_future!$E:$E,Projections!$F14) -> 0
C15: 3 | D15: All | E15: F | F15: All | G15: =2991110336*G43 -> 1.445244692e+10 | H15: 44.24977512 | I15: 48.44496252 | J15: 55.53900909 | K15: 62.94098791 | L15: 6395175263 | M15: 7001482494 | N15: 8026745809 | O15: 9096512870 | P15: =SUMIFS(Achievement_finalised!G:G,Achievement_finalised!$D:$D,Projections!$E15,Achievement_finalised!$E:$E,Projections!$F15,Achievement_finalised!$B:$B,Projections!$C15) -> 1133393462 | Q15: 1133393462 | R15: 1133393462 | S15: 1133393462 | T15: =SUMIFS(Achievement_forecast_ongoing!G:G,Achievement_forecast_ongoing!$E:$E,Projections!$E15,Achievement_forecast_ongoing!$F:$F,Projections!$F15,Achievement_forecast_ongoing!$C:$C,Projections!$C15) -> 5260945934 | U15: =SUMIFS(Achievement_forecast_ongoing!H:H,Achievement_forecast_ongoing!$E:$E,Projections!$E15,Achievement_forecast_ongoing!$F:$F,Projections!$F15,Achievement_forecast_ongoing!$C:$C,Projections!$C15) -> 5845695496 | V15: =SUMIFS(Achievement_forecast_ongoing!I:I,Achievement_forecast_ongoing!$E:$E,Projections!$E15,Achievement_forecast_ongoing!$F:$F,Projections!$F15,Achievement_forecast_ongoing!$C:$C,Projections!$C15) -> 6848139713 | W15: =SUMIFS(Achievement_forecast_ongoing!J:J,Achievement_forecast_ongoing!$E:$E,Projections!$E15,Achievement_forecast_ongoing!$F:$F,Projections!$F15,Achievement_forecast_ongoing!$C:$C,Projections!$C15) -> 7869130097 | X15: =SUMIFS(Achievement_forecasts_future!G:G,Achievement_forecasts_future!$B:$B,Projections!$C15,Achievement_forecasts_future!$D:$D,Projections!$E15,Achievement_forecasts_future!$E:$E,Projections!$F15) -> 835866.421 | Y15: =SUMIFS(Achievement_forecasts_future!H:H,Achievement_forecasts_future!$B:$B,Projections!$C15,Achievement_forecasts_future!$D:$D,Projections!$E15,Achievement_forecasts_future!$E:$E,Projections!$F15) -> 22393535.95 | Z15: =SUMIFS(Achievement_forecasts_future!I:I,Achievement_forecasts_future!$B:$B,Projections!$C15,Achievement_forecasts_future!$D:$D,Projections!$E15,Achievement_forecasts_future!$E:$E,Projections!$F15) -> 45212633.77 | AA15: =SUMIFS(Achievement_forecasts_future!J:J,Achievement_forecasts_future!$B:$B,Projections!$C15,Achievement_forecasts_future!$D:$D,Projections!$E15,Achievement_forecasts_future!$E:$E,Projections!$F15) -> 93989310.39
C16: 3 | D16: All | E16: 2S34 | F16: All | G16: 1870000 | H16: =L16/$G16*100 -> 0 | I16: =M16/$G16*100 -> 0 | J16: =N16/$G16*100 -> 0 | K16: =O16/$G16*100 -> 0 | L16: 0 | M16: 0 | N16: 0 | O16: 0 | P16: =SUMIFS(Achievement_finalised!G:G,Achievement_finalised!$D:$D,Projections!$E16,Achievement_finalised!$E:$E,Projections!$F16,Achievement_finalised!$B:$B,Projections!$C16) -> 0 | Q16: 0 | R16: 0 | S16: 0 | T16: =SUMIFS(Achievement_forecast_ongoing!G:G,Achievement_forecast_ongoing!$E:$E,Projections!$E16,Achievement_forecast_ongoing!$F:$F,Projections!$F16,Achievement_forecast_ongoing!$C:$C,Projections!$C16) -> 0 | U16: =SUMIFS(Achievement_forecast_ongoing!H:H,Achievement_forecast_ongoing!$E:$E,Projections!$E16,Achievement_forecast_ongoing!$F:$F,Projections!$F16,Achievement_forecast_ongoing!$C:$C,Projections!$C16) -> 0 | V16: =SUMIFS(Achievement_forecast_ongoing!I:I,Achievement_forecast_ongoing!$E:$E,Projections!$E16,Achievement_forecast_ongoing!$F:$F,Projections!$F16,Achievement_forecast_ongoing!$C:$C,Projections!$C16) -> 0 | W16: =SUMIFS(Achievement_forecast_ongoing!J:J,Achievement_forecast_ongoing!$E:$E,Projections!$E16,Achievement_forecast_ongoing!$F:$F,Projections!$F16,Achievement_forecast_ongoing!$C:$C,Projections!$C16) -> 0 | X16: =SUMIFS(Achievement_forecasts_future!G:G,Achievement_forecasts_future!$B:$B,Projections!$C16,Achievement_forecasts_future!$D:$D,Projections!$E16,Achievement_forecasts_future!$E:$E,Projections!$F16) -> 0 | Y16: =SUMIFS(Achievement_forecasts_future!H:H,Achievement_forecasts_future!$B:$B,Projections!$C16,Achievement_forecasts_future!$D:$D,Projections!$E16,Achievement_forecasts_future!$E:$E,Projections!$F16) -> 0 | Z16: =SUMIFS(Achievement_forecasts_future!I:I,Achievement_forecasts_future!$B:$B,Projections!$C16,Achievement_forecasts_future!$D:$D,Projections!$E16,Achievement_forecasts_future!$E:$E,Projections!$F16) -> 0 | AA16: =SUMIFS(Achievement_forecasts_future!J:J,Achievement_forecasts_future!$B:$B,Projections!$C16,Achievement_forecasts_future!$D:$D,Projections!$E16,Achievement_forecasts_future!$E:$E,Projections!$F16) -> 0
C17: 3 | D17: All | E17: 2S35 | F17: All | G17: 3300000 | H17: 0 | I17: 0 | J17: 0 | K17: 0 | L17: 0 | M17: 0 | N17: 0 | O17: 0 | P17: =SUMIFS(Achievement_finalised!G:G,Achievement_finalised!$D:$D,Projections!$E17,Achievement_finalised!$E:$E,Projections!$F17,Achievement_finalised!$B:$B,Projections!$C17) -> 0 | Q17: 0 | R17: 0 | S17: 0 | T17: =SUMIFS(Achievement_forecast_ongoing!G:G,Achievement_forecast_ongoing!$E:$E,Projections!$E17,Achievement_forecast_ongoing!$F:$F,Projections!$F17,Achievement_forecast_ongoing!$C:$C,Projections!$C17) -> 0 | U17: =SUMIFS(Achievement_forecast_ongoing!H:H,Achievement_forecast_ongoing!$E:$E,Projections!$E17,Achievement_forecast_ongoing!$F:$F,Projections!$F17,Achievement_forecast_ongoing!$C:$C,Projections!$C17) -> 0 | V17: =SUMIFS(Achievement_forecast_ongoing!I:I,Achievement_forecast_ongoing!$E:$E,Projections!$E17,Achievement_forecast_ongoing!$F:$F,Projections!$F17,Achievement_forecast_ongoing!$C:$C,Projections!$C17) -> 0 | W17: =SUMIFS(Achievement_forecast_ongoing!J:J,Achievement_forecast_ongoing!$E:$E,Projections!$E17,Achievement_forecast_ongoing!$F:$F,Projections!$F17,Achievement_forecast_ongoing!$C:$C,Projections!$C17) -> 0 | X17: =SUMIFS(Achievement_forecasts_future!G:G,Achievement_forecasts_future!$B:$B,Projections!$C17,Achievement_forecasts_future!$D:$D,Projections!$E17,Achievement_forecasts_future!$E:$E,Projections!$F17) -> 0 | Y17: =SUMIFS(Achievement_forecasts_future!H:H,Achievement_forecasts_future!$B:$B,Projections!$C17,Achievement_forecasts_future!$D:$D,Projections!$E17,Achievement_forecasts_future!$E:$E,Projections!$F17) -> 0 | Z17: =SUMIFS(Achievement_forecasts_future!I:I,Achievement_forecasts_future!$B:$B,Projections!$C17,Achievement_forecasts_future!$D:$D,Projections!$E17,Achievement_forecasts_future!$E:$E,Projections!$F17) -> 0 | AA17: =SUMIFS(Achievement_forecasts_future!J:J,Achievement_forecasts_future!$B:$B,Projections!$C17,Achievement_forecasts_future!$D:$D,Projections!$E17,Achievement_forecasts_future!$E:$E,Projections!$F17) -> 0
C18: 4 | D18: All | E18: CO23 | F18: Less developed | G18: 48686 | H18: 0.3756557669 | I18: 4.146253096 | J18: 4.146253096 | K18: 54.60820341 | L18: 182.8917667 | M18: 2018.644782 | N18: 2018.644782 | O18: 26586.54991 | P18: =SUMIFS(Achievement_finalised!G:G,Achievement_finalised!$D:$D,Projections!$E18,Achievement_finalised!$E:$E,Projections!$F18,Achievement_finalised!$B:$B,Projections!$C18) -> 0 | Q18: 0 | R18: 0 | S18: 0 | T18: =SUMIFS(Achievement_forecast_ongoing!G:G,Achievement_forecast_ongoing!$E:$E,Projections!$E18,Achievement_forecast_ongoing!$F:$F,Projections!$F18,Achievement_forecast_ongoing!$C:$C,Projections!$C18) -> 182.8917667 | U18: =SUMIFS(Achievement_forecast_ongoing!H:H,Achievement_forecast_ongoing!$E:$E,Projections!$E18,Achievement_forecast_ongoing!$F:$F,Projections!$F18,Achievement_forecast_ongoing!$C:$C,Projections!$C18) -> 2018.644782 | V18: =SUMIFS(Achievement_forecast_ongoing!I:I,Achievement_forecast_ongoing!$E:$E,Projections!$E18,Achievement_forecast_ongoing!$F:$F,Projections!$F18,Achievement_forecast_ongoing!$C:$C,Projections!$C18) -> 2018.644782 | W18: =SUMIFS(Achievement_forecast_ongoing!J:J,Achievement_forecast_ongoing!$E:$E,Projections!$E18,Achievement_forecast_ongoing!$F:$F,Projections!$F18,Achievement_forecast_ongoing!$C:$C,Projections!$C18) -> 20019.80017 | X18: =SUMIFS(Achievement_forecasts_future!G:G,Achievement_forecasts_future!$B:$B,Projections!$C18,Achievement_forecasts_future!$D:$D,Projections!$E18,Achievement_forecasts_future!$E:$E,Projections!$F18) -> 0 | Y18: =SUMIFS(Achievement_forecasts_future!H:H,Achievement_forecasts_future!$B:$B,Projections!$C18,Achievement_forecasts_future!$D:$D,Projections!$E18,Achievement_forecasts_future!$E:$E,Projections!$F18) -> 0 | Z18: =SUMIFS(Achievement_forecasts_future!I:I,Achievement_forecasts_future!$B:$B,Projections!$C18,Achievement_forecasts_future!$D:$D,Projections!$E18,Achievement_forecasts_future!$E:$E,Projections!$F18) -> 0 | AA18: =SUMIFS(Achievement_forecasts_future!J:J,Achievement_forecasts_future!$B:$B,Projections!$C18,Achievement_forecasts_future!$D:$D,Projections!$E18,Achievement_forecasts_future!$E:$E,Projections!$F18) -> 6566.749741
C19: 4 | D19: All | E19: F | F19: Less developed | G19: =297346684*G43 -> 1436719708 | H19: 24.44069944 | I19: 33.32285849 | J19: 37.51448528 | K19: 37.69719401 | L19: 351144345.6 | M19: 478756075 | N19: 538978003.3 | O19: 541603015.6 | P19: =SUMIFS(Achievement_finalised!G:G,Achievement_finalised!$D:$D,Projections!$E19,Achievement_finalised!$E:$E,Projections!$F19,Achievement_finalised!$B:$B,Projections!$C19) -> 83421106.67 | Q19: 83421106.67 | R19: 83421106.67 | S19: 83421106.67 | T19: =SUMIFS(Achievement_forecast_ongoing!G:G,Achievement_forecast_ongoing!$E:$E,Projections!$E19,Achievement_forecast_ongoing!$F:$F,Projections!$F19,Achievement_forecast_ongoing!$C:$C,Projections!$C19) -> 267723238.9 | U19: =SUMIFS(Achievement_forecast_ongoing!H:H,Achievement_forecast_ongoing!$E:$E,Projections!$E19,Achievement_forecast_ongoing!$F:$F,Projections!$F19,Achievement_forecast_ongoing!$C:$C,Projections!$C19) -> 395334968.4 | V19: =SUMIFS(Achievement_forecast_ongoing!I:I,Achievement_forecast_ongoing!$E:$E,Projections!$E19,Achievement_forecast_ongoing!$F:$F,Projections!$F19,Achievement_forecast_ongoing!$C:$C,Projections!$C19) -> 455556896.6 | W19: =SUMIFS(Achievement_forecast_ongoing!J:J,Achievement_forecast_ongoing!$E:$E,Projections!$E19,Achievement_forecast_ongoing!$F:$F,Projections!$F19,Achievement_forecast_ongoing!$C:$C,Projections!$C19) -> 458181908.9 | X19: =SUMIFS(Achievement_forecasts_future!G:G,Achievement_forecasts_future!$B:$B,Projections!$C19,Achievement_forecasts_future!$D:$D,Projections!$E19,Achievement_forecasts_future!$E:$E,Projections!$F19) -> 0 | Y19: =SUMIFS(Achievement_forecasts_future!H:H,Achievement_forecasts_future!$B:$B,Projections!$C19,Achievement_forecasts_future!$D:$D,Projections!$E19,Achievement_forecasts_future!$E:$E,Projections!$F19) -> 0 | Z19: =SUMIFS(Achievement_forecasts_future!I:I,Achievement_forecasts_future!$B:$B,Projections!$C19,Achievement_forecasts_future!$D:$D,Projections!$E19,Achievement_forecasts_future!$E:$E,Projections!$F19) -> 0 | AA19: =SUMIFS(Achievement_forecasts_future!J:J,Achievement_forecasts_future!$B:$B,Projections!$C19,Achievement_forecasts_future!$D:$D,Projections!$E19,Achievement_forecasts_future!$E:$E,Projections!$F19) -> 0
C20: 4 | D20: All | E20: 2S45 | F20: Less developed | G20: 70 | H20: 0 | I20: 0 | J20: 0 | K20: 0 | L20: 0 | M20: 0 | N20: 0 | O20: 0 | P20: =SUMIFS(Achievement_finalised!G:G,Achievement_finalised!$D:$D,Projections!$E20,Achievement_finalised!$E:$E,Projections!$F20,Achievement_finalised!$B:$B,Projections!$C20) -> 0 | Q20: 0 | R20: 0 | S20: 0 | T20: =SUMIFS(Achievement_forecast_ongoing!G:G,Achievement_forecast_ongoing!$E:$E,Projections!$E20,Achievement_forecast_ongoing!$F:$F,Projections!$F20,Achievement_forecast_ongoing!$C:$C,Projections!$C20) -> 0 | U20: =SUMIFS(Achievement_forecast_ongoing!H:H,Achievement_forecast_ongoing!$E:$E,Projections!$E20,Achievement_forecast_ongoing!$F:$F,Projections!$F20,Achievement_forecast_ongoing!$C:$C,Projections!$C20) -> 0 | V20: =SUMIFS(Achievement_forecast_ongoing!I:I,Achievement_forecast_ongoing!$E:$E,Projections!$E20,Achievement_forecast_ongoing!$F:$F,Projections!$F20,Achievement_forecast_ongoing!$C:$C,Projections!$C20) -> 0 | W20: =SUMIFS(Achievement_forecast_ongoing!J:J,Achievement_forecast_ongoing!$E:$E,Projections!$E20,Achievement_forecast_ongoing!$F:$F,Projections!$F20,Achievement_forecast_ongoing!$C:$C,Projections!$C20) -> 0 | X20: =SUMIFS(Achievement_forecasts_future!G:G,Achievement_forecasts_future!$B:$B,Projections!$C20,Achievement_forecasts_future!$D:$D,Projections!$E20,Achievement_forecasts_future!$E:$E,Projections!$F20) -> 0 | Y20: =SUMIFS(Achievement_forecasts_future!H:H,Achievement_forecasts_future!$B:$B,Projections!$C20,Achievement_forecasts_future!$D:$D,Projections!$E20,Achievement_forecasts_future!$E:$E,Projections!$F20) -> 0 | Z20: =SUMIFS(Achievement_forecasts_future!I:I,Achievement_forecasts_future!$B:$B,Projections!$C20,Achievement_forecasts_future!$D:$D,Projections!$E20,Achievement_forecasts_future!$E:$E,Projections!$F20) -> 0 | AA20: =SUMIFS(Achievement_forecasts_future!J:J,Achievement_forecasts_future!$B:$B,Projections!$C20,Achievement_forecasts_future!$D:$D,Projections!$E20,Achievement_forecasts_future!$E:$E,Projections!$F20) -> 0
C21: 4 | D21: All | E21: 2S46 | F21: Less developed | G21: 60000 | H21: 0 | I21: 0 | J21: 0 | K21: 0 | L21: 0 | M21: 0 | N21: 0 | O21: 0 | P21: =SUMIFS(Achievement_finalised!G:G,Achievement_finalised!$D:$D,Projections!$E21,Achievement_finalised!$E:$E,Projections!$F21,Achievement_finalised!$B:$B,Projections!$C21) -> 0 | Q21: 0 | R21: 0 | S21: 0 | T21: =SUMIFS(Achievement_forecast_ongoing!G:G,Achievement_forecast_ongoing!$E:$E,Projections!$E21,Achievement_forecast_ongoing!$F:$F,Projections!$F21,Achievement_forecast_ongoing!$C:$C,Projections!$C21) -> 0 | U21: =SUMIFS(Achievement_forecast_ongoing!H:H,Achievement_forecast_ongoing!$E:$E,Projections!$E21,Achievement_forecast_ongoing!$F:$F,Projections!$F21,Achievement_forecast_ongoing!$C:$C,Projections!$C21) -> 0 | V21: =SUMIFS(Achievement_forecast_ongoing!I:I,Achievement_forecast_ongoing!$E:$E,Projections!$E21,Achievement_forecast_ongoing!$F:$F,Projections!$F21,Achievement_forecast_ongoing!$C:$C,Projections!$C21) -> 0 | W21: =SUMIFS(Achievement_forecast_ongoing!J:J,Achievement_forecast_ongoing!$E:$E,Projections!$E21,Achievement_forecast_ongoing!$F:$F,Projections!$F21,Achievement_forecast_ongoing!$C:$C,Projections!$C21) -> 0 | X21: =SUMIFS(Achievement_forecasts_future!G:G,Achievement_forecasts_future!$B:$B,Projections!$C21,Achievement_forecasts_future!$D:$D,Projections!$E21,Achievement_forecasts_future!$E:$E,Projections!$F21) -> 0 | Y21: =SUMIFS(Achievement_forecasts_future!H:H,Achievement_forecasts_future!$B:$B,Projections!$C21,Achievement_forecasts_future!$D:$D,Projections!$E21,Achievement_forecasts_future!$E:$E,Projections!$F21) -> 0 | Z21: =SUMIFS(Achievement_forecasts_future!I:I,Achievement_forecasts_future!$B:$B,Projections!$C21,Achievement_forecasts_future!$D:$D,Projections!$E21,Achievement_forecasts_future!$E:$E,Projections!$F21) -> 0 | AA21: =SUMIFS(Achievement_forecasts_future!J:J,Achievement_forecasts_future!$B:$B,Projections!$C21,Achievement_forecasts_future!$D:$D,Projections!$E21,Achievement_forecasts_future!$E:$E,Projections!$F21) -> 0
C22: 4 | D22: All | E22: 2S38 | F22: Less developed | G22: 57 | H22: =L22/$G22*100 -> 4.213349223 | I22: 9.074906019 | J22: 9.723113592 | K22: 12.90522349 | L22: 2.401609057 | M22: 5.172696431 | N22: 5.542174747 | O22: 7.355977392 | P22: =SUMIFS(Achievement_finalised!G:G,Achievement_finalised!$D:$D,Projections!$E22,Achievement_finalised!$E:$E,Projections!$F22,Achievement_finalised!$B:$B,Projections!$C22) -> 0 | Q22: 0 | R22: 0 | S22: 0 | T22: =SUMIFS(Achievement_forecast_ongoing!G:G,Achievement_forecast_ongoing!$E:$E,Projections!$E22,Achievement_forecast_ongoing!$F:$F,Projections!$F22,Achievement_forecast_ongoing!$C:$C,Projections!$C22) -> 2.401609057 | U22: =SUMIFS(Achievement_forecast_ongoing!H:H,Achievement_forecast_ongoing!$E:$E,Projections!$E22,Achievement_forecast_ongoing!$F:$F,Projections!$F22,Achievement_forecast_ongoing!$C:$C,Projections!$C22) -> 5.172696431 | V22: =SUMIFS(Achievement_forecast_ongoing!I:I,Achievement_forecast_ongoing!$E:$E,Projections!$E22,Achievement_forecast_ongoing!$F:$F,Projections!$F22,Achievement_forecast_ongoing!$C:$C,Projections!$C22) -> 5.542174747 | W22: =SUMIFS(Achievement_forecast_ongoing!J:J,Achievement_forecast_ongoing!$E:$E,Projections!$E22,Achievement_forecast_ongoing!$F:$F,Projections!$F22,Achievement_forecast_ongoing!$C:$C,Projections!$C22) -> 5.542174747 | X22: =SUMIFS(Achievement_forecasts_future!G:G,Achievement_forecasts_future!$B:$B,Projections!$C22,Achievement_forecasts_future!$D:$D,Projections!$E22,Achievement_forecasts_future!$E:$E,Projections!$F22) -> 0 | Y22: =SUMIFS(Achievement_forecasts_future!H:H,Achievement_forecasts_future!$B:$B,Projections!$C22,Achievement_forecasts_future!$D:$D,Projections!$E22,Achievement_forecasts_future!$E:$E,Projections!$F22) -> 0 | Z22: =SUMIFS(Achievement_forecasts_future!I:I,Achievement_forecasts_future!$B:$B,Projections!$C22,Achievement_forecasts_future!$D:$D,Projections!$E22,Achievement_forecasts_future!$E:$E,Projections!$F22) -> 0 | AA22: =SUMIFS(Achievement_forecasts_future!J:J,Achievement_forecasts_future!$B:$B,Projections!$C22,Achievement_forecasts_future!$D:$D,Projections!$E22,Achievement_forecasts_future!$E:$E,Projections!$F22) -> 1.813802645
C23: 5 | D23: All | E23: CO20 | F23: All | G23: 4200000 | H23: =L23/$G23*100 -> 0 | I23: 0 | J23: 0 | K23: 0 | L23: =P23+T23+X23 -> 0 | M23: =Q23+U23+Y23 -> 0 | N23: =R23+V23+Z23 -> 0 | O23: =S23+W23+AA23 -> 0 | P23: =SUMIFS(Achievement_finalised!G:G,Achievement_finalised!$D:$D,Projections!$E23,Achievement_finalised!$E:$E,Projections!$F23,Achievement_finalised!$B:$B,Projections!$C23) -> 0 | Q23: 0 | R23: 0 | S23: 0 | T23: =SUMIFS(Achievement_forecast_ongoing!G:G,Achievement_forecast_ongoing!$E:$E,Projections!$E23,Achievement_forecast_ongoing!$F:$F,Projections!$F23,Achievement_forecast_ongoing!$C:$C,Projections!$C23) -> 0 | U23: =SUMIFS(Achievement_forecast_ongoing!H:H,Achievement_forecast_ongoing!$E:$E,Projections!$E23,Achievement_forecast_ongoing!$F:$F,Projections!$F23,Achievement_forecast_ongoing!$C:$C,Projections!$C23) -> 0 | V23: =SUMIFS(Achievement_forecast_ongoing!I:I,Achievement_forecast_ongoing!$E:$E,Projections!$E23,Achievement_forecast_ongoing!$F:$F,Projections!$F23,Achievement_forecast_ongoing!$C:$C,Projections!$C23) -> 0 | W23: =SUMIFS(Achievement_forecast_ongoing!J:J,Achievement_forecast_ongoing!$E:$E,Projections!$E23,Achievement_forecast_ongoing!$F:$F,Projections!$F23,Achievement_forecast_ongoing!$C:$C,Projections!$C23) -> 0 | X23: =SUMIFS(Achievement_forecasts_future!G:G,Achievement_forecasts_future!$B:$B,Projections!$C23,Achievement_forecasts_future!$D:$D,Projections!$E23,Achievement_forecasts_future!$E:$E,Projections!$F23) -> 0 | Y23: =SUMIFS(Achievement_forecasts_future!H:H,Achievement_forecasts_future!$B:$B,Projections!$C23,Achievement_forecasts_future!$D:$D,Projections!$E23,Achievement_forecasts_future!$E:$E,Projections!$F23) -> 0 | Z23: =SUMIFS(Achievement_forecasts_future!I:I,Achievement_forecasts_future!$B:$B,Projections!$C23,Achievement_forecasts_future!$D:$D,Projections!$E23,Achievement_forecasts_future!$E:$E,Projections!$F23) -> 0 | AA23: =SUMIFS(Achievement_forecasts_future!J:J,Achievement_forecasts_future!$B:$B,Projections!$C23,Achievement_forecasts_future!$D:$D,Projections!$E23,Achievement_forecasts_future!$E:$E,Projections!$F23) -> 0
C24: 5 | D24: All | E24: F | F24: All | G24: =574468085*G43 -> 2775714893 | H24: 50.50675543 | I24: 52.49232651 | J24: 52.49359039 | K24: 86.5904749 | L24: 1401923533 | M24: 1457037325 | N24: 1457072406 | O24: 2403504708 | P24: =SUMIFS(Achievement_finalised!G:G,Achievement_finalised!$D:$D,Projections!$E24,Achievement_finalised!$E:$E,Projections!$F24,Achievement_finalised!$B:$B,Projections!$C24) -> 3102434.8 | Q24: 3102434.8 | R24: 3102434.8 | S24: 3102434.8 | T24: =SUMIFS(Achievement_forecast_ongoing!G:G,Achievement_forecast_ongoing!$E:$E,Projections!$E24,Achievement_forecast_ongoing!$F:$F,Projections!$F24,Achievement_forecast_ongoing!$C:$C,Projections!$C24) -> 1398815558 | U24: =SUMIFS(Achievement_forecast_ongoing!H:H,Achievement_forecast_ongoing!$E:$E,Projections!$E24,Achievement_forecast_ongoing!$F:$F,Projections!$F24,Achievement_forecast_ongoing!$C:$C,Projections!$C24) -> 1453901044 | V24: =SUMIFS(Achievement_forecast_ongoing!I:I,Achievement_forecast_ongoing!$E:$E,Projections!$E24,Achievement_forecast_ongoing!$F:$F,Projections!$F24,Achievement_forecast_ongoing!$C:$C,Projections!$C24) -> 1453901044 | W24: =SUMIFS(Achievement_forecast_ongoing!J:J,Achievement_forecast_ongoing!$E:$E,Projections!$E24,Achievement_forecast_ongoing!$F:$F,Projections!$F24,Achievement_forecast_ongoing!$C:$C,Projections!$C24) -> 2400261900 | X24: =SUMIFS(Achievement_forecasts_future!G:G,Achievement_forecasts_future!$B:$B,Projections!$C24,Achievement_forecasts_future!$D:$D,Projections!$E24,Achievement_forecasts_future!$E:$E,Projections!$F24) -> 5539.762532 | Y24: =SUMIFS(Achievement_forecasts_future!H:H,Achievement_forecasts_future!$B:$B,Projections!$C24,Achievement_forecasts_future!$D:$D,Projections!$E24,Achievement_forecasts_future!$E:$E,Projections!$F24) -> 33845.63109 | Z24: =SUMIFS(Achievement_forecasts_future!I:I,Achievement_forecasts_future!$B:$B,Projections!$C24,Achievement_forecasts_future!$D:$D,Projections!$E24,Achievement_forecasts_future!$E:$E,Projections!$F24) -> 68927.54802 | AA24: =SUMIFS(Achievement_forecasts_future!J:J,Achievement_forecasts_future!$B:$B,Projections!$C24,Achievement_forecasts_future!$D:$D,Projections!$E24,Achievement_forecasts_future!$E:$E,Projections!$F24) -> 140372.8258
C25: 5 | D25: All | E25: 2S51 | F25: All | G25: 120000 | H25: 0 | I25: 0 | J25: 0 | K25: 0 | L25: 0 | M25: 0 | N25: 0 | O25: 0 | P25: =SUMIFS(Achievement_finalised!G:G,Achievement_finalised!$D:$D,Projections!$E25,Achievement_finalised!$E:$E,Projections!$F25,Achievement_finalised!$B:$B,Projections!$C25) -> 0 | Q25: 0 | R25: 0 | S25: 0 | T25: =SUMIFS(Achievement_forecast_ongoing!G:G,Achievement_forecast_ongoing!$E:$E,Projections!$E25,Achievement_forecast_ongoing!$F:$F,Projections!$F25,Achievement_forecast_ongoing!$C:$C,Projections!$C25) -> 0 | U25: =SUMIFS(Achievement_forecast_ongoing!H:H,Achievement_forecast_ongoing!$E:$E,Projections!$E25,Achievement_forecast_ongoing!$F:$F,Projections!$F25,Achievement_forecast_ongoing!$C:$C,Projections!$C25) -> 0 | V25: =SUMIFS(Achievement_forecast_ongoing!I:I,Achievement_forecast_ongoing!$E:$E,Projections!$E25,Achievement_forecast_ongoing!$F:$F,Projections!$F25,Achievement_forecast_ongoing!$C:$C,Projections!$C25) -> 0 | W25: =SUMIFS(Achievement_forecast_ongoing!J:J,Achievement_forecast_ongoing!$E:$E,Projections!$E25,Achievement_forecast_ongoing!$F:$F,Projections!$F25,Achievement_forecast_ongoing!$C:$C,Projections!$C25) -> 0 | X25: =SUMIFS(Achievement_forecasts_future!G:G,Achievement_forecasts_future!$B:$B,Projections!$C25,Achievement_forecasts_future!$D:$D,Projections!$E25,Achievement_forecasts_future!$E:$E,Projections!$F25) -> 0 | Y25: =SUMIFS(Achievement_forecasts_future!H:H,Achievement_forecasts_future!$B:$B,Projections!$C25,Achievement_forecasts_future!$D:$D,Projections!$E25,Achievement_forecasts_future!$E:$E,Projections!$F25) -> 0 | Z25: =SUMIFS(Achievement_forecasts_future!I:I,Achievement_forecasts_future!$B:$B,Projections!$C25,Achievement_forecasts_future!$D:$D,Projections!$E25,Achievement_forecasts_future!$E:$E,Projections!$F25) -> 0 | AA25: =SUMIFS(Achievement_forecasts_future!J:J,Achievement_forecasts_future!$B:$B,Projections!$C25,Achievement_forecasts_future!$D:$D,Projections!$E25,Achievement_forecasts_future!$E:$E,Projections!$F25) -> 0
C26: 5 | D26: All | E26: 2S52 | F26: All | G26: 20 | H26: 0 | I26: 0 | J26: 0 | K26: 0 | L26: 0 | M26: 0 | N26: 0 | O26: 0 | P26: =SUMIFS(Achievement_finalised!G:G,Achievement_finalised!$D:$D,Projections!$E26,Achievement_finalised!$E:$E,Projections!$F26,Achievement_finalised!$B:$B,Projections!$C26) -> 0 | Q26: 0 | R26: 0 | S26: 0 | T26: =SUMIFS(Achievement_forecast_ongoing!G:G,Achievement_forecast_ongoing!$E:$E,Projections!$E26,Achievement_forecast_ongoing!$F:$F,Projections!$F26,Achievement_forecast_ongoing!$C:$C,Projections!$C26) -> 0 | U26: =SUMIFS(Achievement_forecast_ongoing!H:H,Achievement_forecast_ongoing!$E:$E,Projections!$E26,Achievement_forecast_ongoing!$F:$F,Projections!$F26,Achievement_forecast_ongoing!$C:$C,Projections!$C26) -> 0 | V26: =SUMIFS(Achievement_forecast_ongoing!I:I,Achievement_forecast_ongoing!$E:$E,Projections!$E26,Achievement_forecast_ongoing!$F:$F,Projections!$F26,Achievement_forecast_ongoing!$C:$C,Projections!$C26) -> 0 | W26: =SUMIFS(Achievement_forecast_ongoing!J:J,Achievement_forecast_ongoing!$E:$E,Projections!$E26,Achievement_forecast_ongoing!$F:$F,Projections!$F26,Achievement_forecast_ongoing!$C:$C,Projections!$C26) -> 0 | X26: =SUMIFS(Achievement_forecasts_future!G:G,Achievement_forecasts_future!$B:$B,Projections!$C26,Achievement_forecasts_future!$D:$D,Projections!$E26,Achievement_forecasts_future!$E:$E,Projections!$F26) -> 0 | Y26: =SUMIFS(Achievement_forecasts_future!H:H,Achievement_forecasts_future!$B:$B,Projections!$C26,Achievement_forecasts_future!$D:$D,Projections!$E26,Achievement_forecasts_future!$E:$E,Projections!$F26) -> 0 | Z26: =SUMIFS(Achievement_forecasts_future!I:I,Achievement_forecasts_future!$B:$B,Projections!$C26,Achievement_forecasts_future!$D:$D,Projections!$E26,Achievement_forecasts_future!$E:$E,Projections!$F26) -> 0 | AA26: =SUMIFS(Achievement_forecasts_future!J:J,Achievement_forecasts_future!$B:$B,Projections!$C26,Achievement_forecasts_future!$D:$D,Projections!$E26,Achievement_forecasts_future!$E:$E,Projections!$F26) -> 0
C27: 5 | D27: All | E27: 2S48 | F27: All | G27: 20 | H27: 0 | I27: 0 | J27: 0 | K27: 28.20966946 | L27: 0 | M27: 0 | N27: 0 | O27: 5.641933893 | P27: =SUMIFS(Achievement_finalised!G:G,Achievement_finalised!$D:$D,Projections!$E27,Achievement_finalised!$E:$E,Projections!$F27,Achievement_finalised!$B:$B,Projections!$C27) -> 0 | Q27: 0 | R27: 0 | S27: 0 | T27: =SUMIFS(Achievement_forecast_ongoing!G:G,Achievement_forecast_ongoing!$E:$E,Projections!$E27,Achievement_forecast_ongoing!$F:$F,Projections!$F27,Achievement_forecast_ongoing!$C:$C,Projections!$C27) -> 0 | U27: =SUMIFS(Achievement_forecast_ongoing!H:H,Achievement_forecast_ongoing!$E:$E,Projections!$E27,Achievement_forecast_ongoing!$F:$F,Projections!$F27,Achievement_forecast_ongoing!$C:$C,Projections!$C27) -> 0 | V27: =SUMIFS(Achievement_forecast_ongoing!I:I,Achievement_forecast_ongoing!$E:$E,Projections!$E27,Achievement_forecast_ongoing!$F:$F,Projections!$F27,Achievement_forecast_ongoing!$C:$C,Projections!$C27) -> 0 | W27: =SUMIFS(Achievement_forecast_ongoing!J:J,Achievement_forecast_ongoing!$E:$E,Projections!$E27,Achievement_forecast_ongoing!$F:$F,Projections!$F27,Achievement_forecast_ongoing!$C:$C,Projections!$C27) -> 5.641933893 | X27: =SUMIFS(Achievement_forecasts_future!G:G,Achievement_forecasts_future!$B:$B,Projections!$C27,Achievement_forecasts_future!$D:$D,Projections!$E27,Achievement_forecasts_future!$E:$E,Projections!$F27) -> 0 | Y27: =SUMIFS(Achievement_forecasts_future!H:H,Achievement_forecasts_future!$B:$B,Projections!$C27,Achievement_forecasts_future!$D:$D,Projections!$E27,Achievement_forecasts_future!$E:$E,Projections!$F27) -> 0 | Z27: =SUMIFS(Achievement_forecasts_future!I:I,Achievement_forecasts_future!$B:$B,Projections!$C27,Achievement_forecasts_future!$D:$D,Projections!$E27,Achievement_forecasts_future!$E:$E,Projections!$F27) -> 0 | AA27: =SUMIFS(Achievement_forecasts_future!J:J,Achievement_forecasts_future!$B:$B,Projections!$C27,Achievement_forecasts_future!$D:$D,Projections!$E27,Achievement_forecasts_future!$E:$E,Projections!$F27) -> 0
C28: 6 | D28: All | E28: CO30 | F28: Less developed | G28: 60 | H28: 0 | I28: 0 | J28: 0 | K28: 0 | L28: 0 | M28: 0 | N28: 0 | O28: 0 | P28: =SUMIFS(Achievement_finalised!G:G,Achievement_finalised!$D:$D,Projections!$E28,Achievement_finalised!$E:$E,Projections!$F28,Achievement_finalised!$B:$B,Projections!$C28) -> 0 | Q28: 0 | R28: 0 | S28: 0 | T28: =SUMIFS(Achievement_forecast_ongoing!G:G,Achievement_forecast_ongoing!$E:$E,Projections!$E28,Achievement_forecast_ongoing!$F:$F,Projections!$F28,Achievement_forecast_ongoing!$C:$C,Projections!$C28) -> 0 | U28: =SUMIFS(Achievement_forecast_ongoing!H:H,Achievement_forecast_ongoing!$E:$E,Projections!$E28,Achievement_forecast_ongoing!$F:$F,Projections!$F28,Achievement_forecast_ongoing!$C:$C,Projections!$C28) -> 0 | V28: =SUMIFS(Achievement_forecast_ongoing!I:I,Achievement_forecast_ongoing!$E:$E,Projections!$E28,Achievement_forecast_ongoing!$F:$F,Projections!$F28,Achievement_forecast_ongoing!$C:$C,Projections!$C28) -> 0 | W28: =SUMIFS(Achievement_forecast_ongoing!J:J,Achievement_forecast_ongoing!$E:$E,Projections!$E28,Achievement_forecast_ongoing!$F:$F,Projections!$F28,Achievement_forecast_ongoing!$C:$C,Projections!$C28) -> 0 | X28: =SUMIFS(Achievement_forecasts_future!G:G,Achievement_forecasts_future!$B:$B,Projections!$C28,Achievement_forecasts_future!$D:$D,Projections!$E28,Achievement_forecasts_future!$E:$E,Projections!$F28) -> 0 | Y28: =SUMIFS(Achievement_forecasts_future!H:H,Achievement_forecasts_future!$B:$B,Projections!$C28,Achievement_forecasts_future!$D:$D,Projections!$E28,Achievement_forecasts_future!$E:$E,Projections!$F28) -> 0 | Z28: =SUMIFS(Achievement_forecasts_future!I:I,Achievement_forecasts_future!$B:$B,Projections!$C28,Achievement_forecasts_future!$D:$D,Projections!$E28,Achievement_forecasts_future!$E:$E,Projections!$F28) -> 0 | AA28: =SUMIFS(Achievement_forecasts_future!J:J,Achievement_forecasts_future!$B:$B,Projections!$C28,Achievement_forecasts_future!$D:$D,Projections!$E28,Achievement_forecasts_future!$E:$E,Projections!$F28) -> 0
C29: 6 | D29: All | E29: F | F29: Less developed | G29: =124105883*G43 -> 599654805.5 | H29: 5.406878953 | I29: 7.276982775 | J29: 7.931535405 | K29: 7.931535405 | L29: 32422609.47 | M29: 43636776.91 | N29: 47561833.2 | O29: 47561833.2 | P29: =SUMIFS(Achievement_finalised!G:G,Achievement_finalised!$D:$D,Projections!$E29,Achievement_finalised!$E:$E,Projections!$F29,Achievement_finalised!$B:$B,Projections!$C29) -> 8661840.375 | Q29: 8661840.375 | R29: 8661840.375 | S29: 8661840.375 | T29: =SUMIFS(Achievement_forecast_ongoing!G:G,Achievement_forecast_ongoing!$E:$E,Projections!$E29,Achievement_forecast_ongoing!$F:$F,Projections!$F29,Achievement_forecast_ongoing!$C:$C,Projections!$C29) -> 23760769.09 | U29: =SUMIFS(Achievement_forecast_ongoing!H:H,Achievement_forecast_ongoing!$E:$E,Projections!$E29,Achievement_forecast_ongoing!$F:$F,Projections!$F29,Achievement_forecast_ongoing!$C:$C,Projections!$C29) -> 34974936.53 | V29: =SUMIFS(Achievement_forecast_ongoing!I:I,Achievement_forecast_ongoing!$E:$E,Projections!$E29,Achievement_forecast_ongoing!$F:$F,Projections!$F29,Achievement_forecast_ongoing!$C:$C,Projections!$C29) -> 38899992.83 | W29: =SUMIFS(Achievement_forecast_ongoing!J:J,Achievement_forecast_ongoing!$E:$E,Projections!$E29,Achievement_forecast_ongoing!$F:$F,Projections!$F29,Achievement_forecast_ongoing!$C:$C,Projections!$C29) -> 38899992.83 | X29: =SUMIFS(Achievement_forecasts_future!G:G,Achievement_forecasts_future!$B:$B,Projections!$C29,Achievement_forecasts_future!$D:$D,Projections!$E29,Achievement_forecasts_future!$E:$E,Projections!$F29) -> 0 | Y29: =SUMIFS(Achievement_forecasts_future!H:H,Achievement_forecasts_future!$B:$B,Projections!$C29,Achievement_forecasts_future!$D:$D,Projections!$E29,Achievement_forecasts_future!$E:$E,Projections!$F29) -> 0 | Z29: =SUMIFS(Achievement_forecasts_future!I:I,Achievement_forecasts_future!$B:$B,Projections!$C29,Achievement_forecasts_future!$D:$D,Projections!$E29,Achievement_forecasts_future!$E:$E,Projections!$F29) -> 0 | AA29: =SUMIFS(Achievement_forecasts_future!J:J,Achievement_forecasts_future!$B:$B,Projections!$C29,Achievement_forecasts_future!$D:$D,Projections!$E29,Achievement_forecasts_future!$E:$E,Projections!$F29) -> 0
C30: 6 | D30: All | E30: 2S58 | F30: Less developed | G30: 60 | H30: 0 | I30: 0 | J30: 0 | K30: 0 | L30: 0 | M30: 0 | N30: 0 | O30: 0 | P30: =SUMIFS(Achievement_finalised!G:G,Achievement_finalised!$D:$D,Projections!$E30,Achievement_finalised!$E:$E,Projections!$F30,Achievement_finalised!$B:$B,Projections!$C30) -> 0 | Q30: 0 | R30: 0 | S30: 0 | T30: =SUMIFS(Achievement_forecast_ongoing!G:G,Achievement_forecast_ongoing!$E:$E,Projections!$E30,Achievement_forecast_ongoing!$F:$F,Projections!$F30,Achievement_forecast_ongoing!$C:$C,Projections!$C30) -> 0 | U30: =SUMIFS(Achievement_forecast_ongoing!H:H,Achievement_forecast_ongoing!$E:$E,Projections!$E30,Achievement_forecast_ongoing!$F:$F,Projections!$F30,Achievement_forecast_ongoing!$C:$C,Projections!$C30) -> 0 | V30: =SUMIFS(Achievement_forecast_ongoing!I:I,Achievement_forecast_ongoing!$E:$E,Projections!$E30,Achievement_forecast_ongoing!$F:$F,Projections!$F30,Achievement_forecast_ongoing!$C:$C,Projections!$C30) -> 0 | W30: =SUMIFS(Achievement_forecast_ongoing!J:J,Achievement_forecast_ongoing!$E:$E,Projections!$E30,Achievement_forecast_ongoing!$F:$F,Projections!$F30,Achievement_forecast_ongoing!$C:$C,Projections!$C30) -> 0 | X30: =SUMIFS(Achievement_forecasts_future!G:G,Achievement_forecasts_future!$B:$B,Projections!$C30,Achievement_forecasts_future!$D:$D,Projections!$E30,Achievement_forecasts_future!$E:$E,Projections!$F30) -> 0 | Y30: =SUMIFS(Achievement_forecasts_future!H:H,Achievement_forecasts_future!$B:$B,Projections!$C30,Achievement_forecasts_future!$D:$D,Projections!$E30,Achievement_forecasts_future!$E:$E,Projections!$F30) -> 0 | Z30: =SUMIFS(Achievement_forecasts_future!I:I,Achievement_forecasts_future!$B:$B,Projections!$C30,Achievement_forecasts_future!$D:$D,Projections!$E30,Achievement_forecasts_future!$E:$E,Projections!$F30) -> 0 | AA30: =SUMIFS(Achievement_forecasts_future!J:J,Achievement_forecasts_future!$B:$B,Projections!$C30,Achievement_forecasts_future!$D:$D,Projections!$E30,Achievement_forecasts_future!$E:$E,Projections!$F30) -> 0
C31: 6 | D31: All | E31: 2S59 | F31: Less developed | G31: 50 | H31: 0 | I31: 0 | J31: 0 | K31: 0 | L31: 0 | M31: 0 | N31: 0 | O31: 0 | P31: =SUMIFS(Achievement_finalised!G:G,Achievement_finalised!$D:$D,Projections!$E31,Achievement_finalised!$E:$E,Projections!$F31,Achievement_finalised!$B:$B,Projections!$C31) -> 0 | Q31: 0 | R31: 0 | S31: 0 | T31: =SUMIFS(Achievement_forecast_ongoing!G:G,Achievement_forecast_ongoing!$E:$E,Projections!$E31,Achievement_forecast_ongoing!$F:$F,Projections!$F31,Achievement_forecast_ongoing!$C:$C,Projections!$C31) -> 0 | U31: =SUMIFS(Achievement_forecast_ongoing!H:H,Achievement_forecast_ongoing!$E:$E,Projections!$E31,Achievement_forecast_ongoing!$F:$F,Projections!$F31,Achievement_forecast_ongoing!$C:$C,Projections!$C31) -> 0 | V31: =SUMIFS(Achievement_forecast_ongoing!I:I,Achievement_forecast_ongoing!$E:$E,Projections!$E31,Achievement_forecast_ongoing!$F:$F,Projections!$F31,Achievement_forecast_ongoing!$C:$C,Projections!$C31) -> 0 | W31: =SUMIFS(Achievement_forecast_ongoing!J:J,Achievement_forecast_ongoing!$E:$E,Projections!$E31,Achievement_forecast_ongoing!$F:$F,Projections!$F31,Achievement_forecast_ongoing!$C:$C,Projections!$C31) -> 0 | X31: =SUMIFS(Achievement_forecasts_future!G:G,Achievement_forecasts_future!$B:$B,Projections!$C31,Achievement_forecasts_future!$D:$D,Projections!$E31,Achievement_forecasts_future!$E:$E,Projections!$F31) -> 0 | Y31: =SUMIFS(Achievement_forecasts_future!H:H,Achievement_forecasts_future!$B:$B,Projections!$C31,Achievement_forecasts_future!$D:$D,Projections!$E31,Achievement_forecasts_future!$E:$E,Projections!$F31) -> 0 | Z31: =SUMIFS(Achievement_forecasts_future!I:I,Achievement_forecasts_future!$B:$B,Projections!$C31,Achievement_forecasts_future!$D:$D,Projections!$E31,Achievement_forecasts_future!$E:$E,Projections!$F31) -> 0 | AA31: =SUMIFS(Achievement_forecasts_future!J:J,Achievement_forecasts_future!$B:$B,Projections!$C31,Achievement_forecasts_future!$D:$D,Projections!$E31,Achievement_forecasts_future!$E:$E,Projections!$F31) -> 0
C32: 6 | D32: All | E32: 2S60 | F32: Less developed | G32: 50 | H32: 0 | I32: 0 | J32: 0 | K32: 0 | L32: 0 | M32: 0 | N32: 0 | O32: 0 | P32: =SUMIFS(Achievement_finalised!G:G,Achievement_finalised!$D:$D,Projections!$E32,Achievement_finalised!$E:$E,Projections!$F32,Achievement_finalised!$B:$B,Projections!$C32) -> 0 | Q32: 0 | R32: 0 | S32: 0 | T32: =SUMIFS(Achievement_forecast_ongoing!G:G,Achievement_forecast_ongoing!$E:$E,Projections!$E32,Achievement_forecast_ongoing!$F:$F,Projections!$F32,Achievement_forecast_ongoing!$C:$C,Projections!$C32) -> 0 | U32: =SUMIFS(Achievement_forecast_ongoing!H:H,Achievement_forecast_ongoing!$E:$E,Projections!$E32,Achievement_forecast_ongoing!$F:$F,Projections!$F32,Achievement_forecast_ongoing!$C:$C,Projections!$C32) -> 0 | V32: =SUMIFS(Achievement_forecast_ongoing!I:I,Achievement_forecast_ongoing!$E:$E,Projections!$E32,Achievement_forecast_ongoing!$F:$F,Projections!$F32,Achievement_forecast_ongoing!$C:$C,Projections!$C32) -> 0 | W32: =SUMIFS(Achievement_forecast_ongoing!J:J,Achievement_forecast_ongoing!$E:$E,Projections!$E32,Achievement_forecast_ongoing!$F:$F,Projections!$F32,Achievement_forecast_ongoing!$C:$C,Projections!$C32) -> 0 | X32: =SUMIFS(Achievement_forecasts_future!G:G,Achievement_forecasts_future!$B:$B,Projections!$C32,Achievement_forecasts_future!$D:$D,Projections!$E32,Achievement_forecasts_future!$E:$E,Projections!$F32) -> 0 | Y32: =SUMIFS(Achievement_forecasts_future!H:H,Achievement_forecasts_future!$B:$B,Projections!$C32,Achievement_forecasts_future!$D:$D,Projections!$E32,Achievement_forecasts_future!$E:$E,Projections!$F32) -> 0 | Z32: =SUMIFS(Achievement_forecasts_future!I:I,Achievement_forecasts_future!$B:$B,Projections!$C32,Achievement_forecasts_future!$D:$D,Projections!$E32,Achievement_forecasts_future!$E:$E,Projections!$F32) -> 0 | AA32: =SUMIFS(Achievement_forecasts_future!J:J,Achievement_forecasts_future!$B:$B,Projections!$C32,Achievement_forecasts_future!$D:$D,Projections!$E32,Achievement_forecasts_future!$E:$E,Projections!$F32) -> 0
C33: 7 | D33: All | E33: F | F33: Less developed | G33: =151309262*G43 -> 731096092.1 | H33: 25.19369649 | I33: 27.13943506 | J33: 32.1436194 | K33: 33.30138162 | L33: 184190130.5 | M33: 198415349.1 | N33: 235000745.3 | O33: 243465099.6 | P33: =SUMIFS(Achievement_finalised!G:G,Achievement_finalised!$D:$D,Projections!$E33,Achievement_finalised!$E:$E,Projections!$F33,Achievement_finalised!$B:$B,Projections!$C33) -> 182598824.7 | Q33: 182598824.7 | R33: 182598824.7 | S33: 182598824.7 | T33: =SUMIFS(Achievement_forecast_ongoing!G:G,Achievement_forecast_ongoing!$E:$E,Projections!$E33,Achievement_forecast_ongoing!$F:$F,Projections!$F33,Achievement_forecast_ongoing!$C:$C,Projections!$C33) -> 0 | U33: =SUMIFS(Achievement_forecast_ongoing!H:H,Achievement_forecast_ongoing!$E:$E,Projections!$E33,Achievement_forecast_ongoing!$F:$F,Projections!$F33,Achievement_forecast_ongoing!$C:$C,Projections!$C33) -> 0 | V33: =SUMIFS(Achievement_forecast_ongoing!I:I,Achievement_forecast_ongoing!$E:$E,Projections!$E33,Achievement_forecast_ongoing!$F:$F,Projections!$F33,Achievement_forecast_ongoing!$C:$C,Projections!$C33) -> 0 | W33: =SUMIFS(Achievement_forecast_ongoing!J:J,Achievement_forecast_ongoing!$E:$E,Projections!$E33,Achievement_forecast_ongoing!$F:$F,Projections!$F33,Achievement_forecast_ongoing!$C:$C,Projections!$C33) -> 0 | X33: =SUMIFS(Achievement_forecasts_future!G:G,Achievement_forecasts_future!$B:$B,Projections!$C33,Achievement_forecasts_future!$D:$D,Projections!$E33,Achievement_forecasts_future!$E:$E,Projections!$F33) -> 1591305.828 | Y33: =SUMIFS(Achievement_forecasts_future!H:H,Achievement_forecasts_future!$B:$B,Projections!$C33,Achievement_forecasts_future!$D:$D,Projections!$E33,Achievement_forecasts_future!$E:$E,Projections!$F33) -> 15816524.42 | Z33: =SUMIFS(Achievement_forecasts_future!I:I,Achievement_forecasts_future!$B:$B,Projections!$C33,Achievement_forecasts_future!$D:$D,Projections!$E33,Achievement_forecasts_future!$E:$E,Projections!$F33) -> 52401920.59 | AA33: =SUMIFS(Achievement_forecasts_future!J:J,Achievement_forecasts_future!$B:$B,Projections!$C33,Achievement_forecasts_future!$D:$D,Projections!$E33,Achievement_forecasts_future!$E:$E,Projections!$F33) -> 60866274.9
C34: 7 | D34: All | E34: F | F34: More developed | G34: =117647060*G43 -> 568447064.5 | H34: =L34/$G34*100 -> 0 | I34: =M34/$G34*100 -> 0 | J34: =N34/$G34*100 -> 0 | K34: =O34/$G34*100 -> 0 | L34: =P34+T34+X34 -> 0 | M34: =Q34+U34+Y34 -> 0 | N34: =R34+V34+Z34 -> 0 | O34: =S34+W34+AA34 -> 0 | P34: =SUMIFS(Achievement_finalised!G:G,Achievement_finalised!$D:$D,Projections!$E34,Achievement_finalised!$E:$E,Projections!$F34,Achievement_finalised!$B:$B,Projections!$C34) -> 0 | Q34: 0 | R34: 0 | S34: 0 | T34: =SUMIFS(Achievement_forecast_ongoing!G:G,Achievement_forecast_ongoing!$E:$E,Projections!$E34,Achievement_forecast_ongoing!$F:$F,Projections!$F34,Achievement_forecast_ongoing!$C:$C,Projections!$C34) -> 0 | U34: =SUMIFS(Achievement_forecast_ongoing!H:H,Achievement_forecast_ongoing!$E:$E,Projections!$E34,Achievement_forecast_ongoing!$F:$F,Projections!$F34,Achievement_forecast_ongoing!$C:$C,Projections!$C34) -> 0 | V34: =SUMIFS(Achievement_forecast_ongoing!I:I,Achievement_forecast_ongoing!$E:$E,Projections!$E34,Achievement_forecast_ongoing!$F:$F,Projections!$F34,Achievement_forecast_ongoing!$C:$C,Projections!$C34) -> 0 | W34: =SUMIFS(Achievement_forecast_ongoing!J:J,Achievement_forecast_ongoing!$E:$E,Projections!$E34,Achievement_forecast_ongoing!$F:$F,Projections!$F34,Achievement_forecast_ongoing!$C:$C,Projections!$C34) -> 0 | X34: =SUMIFS(Achievement_forecasts_future!G:G,Achievement_forecasts_future!$B:$B,Projections!$C34,Achievement_forecasts_future!$D:$D,Projections!$E34,Achievement_forecasts_future!$E:$E,Projections!$F34) -> 0 | Y34: =SUMIFS(Achievement_forecasts_future!H:H,Achievement_forecasts_future!$B:$B,Projections!$C34,Achievement_forecasts_future!$D:$D,Projections!$E34,Achievement_forecasts_future!$E:$E,Projections!$F34) -> 0 | Z34: =SUMIFS(Achievement_forecasts_future!I:I,Achievement_forecasts_future!$B:$B,Projections!$C34,Achievement_forecasts_future!$D:$D,Projections!$E34,Achievement_forecasts_future!$E:$E,Projections!$F34) -> 0 | AA34: =SUMIFS(Achievement_forecasts_future!J:J,Achievement_forecasts_future!$B:$B,Projections!$C34,Achievement_forecasts_future!$D:$D,Projections!$E34,Achievement_forecasts_future!$E:$E,Projections!$F34) -> 0
C35: 7 | D35: All | E35: 2S62 | F35: Less developed | G35: 210 | H35: 19.67238095 | I35: 19.67238095 | J35: 19.67238095 | K35: 26.22984127 | L35: 41.312 | M35: 41.312 | N35: 41.312 | O35: 55.08266667 | P35: =SUMIFS(Achievement_finalised!G:G,Achievement_finalised!$D:$D,Projections!$E35,Achievement_finalised!$E:$E,Projections!$F35,Achievement_finalised!$B:$B,Projections!$C35) -> 41.312 | Q35: 41.312 | R35: 41.312 | S35: 41.312 | T35: =SUMIFS(Achievement_forecast_ongoing!G:G,Achievement_forecast_ongoing!$E:$E,Projections!$E35,Achievement_forecast_ongoing!$F:$F,Projections!$F35,Achievement_forecast_ongoing!$C:$C,Projections!$C35) -> 0 | U35: =SUMIFS(Achievement_forecast_ongoing!H:H,Achievement_forecast_ongoing!$E:$E,Projections!$E35,Achievement_forecast_ongoing!$F:$F,Projections!$F35,Achievement_forecast_ongoing!$C:$C,Projections!$C35) -> 0 | V35: =SUMIFS(Achievement_forecast_ongoing!I:I,Achievement_forecast_ongoing!$E:$E,Projections!$E35,Achievement_forecast_ongoing!$F:$F,Projections!$F35,Achievement_forecast_ongoing!$C:$C,Projections!$C35) -> 0 | W35: =SUMIFS(Achievement_forecast_ongoing!J:J,Achievement_forecast_ongoing!$E:$E,Projections!$E35,Achievement_forecast_ongoing!$F:$F,Projections!$F35,Achievement_forecast_ongoing!$C:$C,Projections!$C35) -> 0 | X35: =SUMIFS(Achievement_forecasts_future!G:G,Achievement_forecasts_future!$B:$B,Projections!$C35,Achievement_forecasts_future!$D:$D,Projections!$E35,Achievement_forecasts_future!$E:$E,Projections!$F35) -> 0 | Y35: =SUMIFS(Achievement_forecasts_future!H:H,Achievement_forecasts_future!$B:$B,Projections!$C35,Achievement_forecasts_future!$D:$D,Projections!$E35,Achievement_forecasts_future!$E:$E,Projections!$F35) -> 0 | Z35: =SUMIFS(Achievement_forecasts_future!I:I,Achievement_forecasts_future!$B:$B,Projections!$C35,Achievement_forecasts_future!$D:$D,Projections!$E35,Achievement_forecasts_future!$E:$E,Projections!$F35) -> 0 | AA35: =SUMIFS(Achievement_forecasts_future!J:J,Achievement_forecasts_future!$B:$B,Projections!$C35,Achievement_forecasts_future!$D:$D,Projections!$E35,Achievement_forecasts_future!$E:$E,Projections!$F35) -> 13.77066667
C36: 7 | D36: All | E36: 2S62 | F36: More developed | G36: 200 | H36: 0 | I36: 0 | J36: 0 | K36: 0 | L36: 0 | M36: 0 | N36: 0 | O36: 0 | P36: =SUMIFS(Achievement_finalised!G:G,Achievement_finalised!$D:$D,Projections!$E36,Achievement_finalised!$E:$E,Projections!$F36,Achievement_finalised!$B:$B,Projections!$C36) -> 0 | Q36: 0 | R36: 0 | S36: 0 | T36: =SUMIFS(Achievement_forecast_ongoing!G:G,Achievement_forecast_ongoing!$E:$E,Projections!$E36,Achievement_forecast_ongoing!$F:$F,Projections!$F36,Achievement_forecast_ongoing!$C:$C,Projections!$C36) -> 0 | U36: =SUMIFS(Achievement_forecast_ongoing!H:H,Achievement_forecast_ongoing!$E:$E,Projections!$E36,Achievement_forecast_ongoing!$F:$F,Projections!$F36,Achievement_forecast_ongoing!$C:$C,Projections!$C36) -> 0 | V36: =SUMIFS(Achievement_forecast_ongoing!I:I,Achievement_forecast_ongoing!$E:$E,Projections!$E36,Achievement_forecast_ongoing!$F:$F,Projections!$F36,Achievement_forecast_ongoing!$C:$C,Projections!$C36) -> 0 | W36: =SUMIFS(Achievement_forecast_ongoing!J:J,Achievement_forecast_ongoing!$E:$E,Projections!$E36,Achievement_forecast_ongoing!$F:$F,Projections!$F36,Achievement_forecast_ongoing!$C:$C,Projections!$C36) -> 0 | X36: =SUMIFS(Achievement_forecasts_future!G:G,Achievement_forecasts_future!$B:$B,Projections!$C36,Achievement_forecasts_future!$D:$D,Projections!$E36,Achievement_forecasts_future!$E:$E,Projections!$F36) -> 0 | Y36: =SUMIFS(Achievement_forecasts_future!H:H,Achievement_forecasts_future!$B:$B,Projections!$C36,Achievement_forecasts_future!$D:$D,Projections!$E36,Achievement_forecasts_future!$E:$E,Projections!$F36) -> 0 | Z36: =SUMIFS(Achievement_forecasts_future!I:I,Achievement_forecasts_future!$B:$B,Projections!$C36,Achievement_forecasts_future!$D:$D,Projections!$E36,Achievement_forecasts_future!$E:$E,Projections!$F36) -> 0 | AA36: =SUMIFS(Achievement_forecasts_future!J:J,Achievement_forecasts_future!$B:$B,Projections!$C36,Achievement_forecasts_future!$D:$D,Projections!$E36,Achievement_forecasts_future!$E:$E,Projections!$F36) -> 0
C37: 7 | D37: All | E37: 2S64 | F37: All | G37: 200 | H37: 0 | I37: 0 | J37: 0 | K37: 0 | L37: 0 | M37: 0 | N37: 0 | O37: 0 | P37: =SUMIFS(Achievement_finalised!G:G,Achievement_finalised!$D:$D,Projections!$E37,Achievement_finalised!$E:$E,Projections!$F37,Achievement_finalised!$B:$B,Projections!$C37) -> 0 | Q37: 0 | R37: 0 | S37: 0 | T37: =SUMIFS(Achievement_forecast_ongoing!G:G,Achievement_forecast_ongoing!$E:$E,Projections!$E37,Achievement_forecast_ongoing!$F:$F,Projections!$F37,Achievement_forecast_ongoing!$C:$C,Projections!$C37) -> 0 | U37: =SUMIFS(Achievement_forecast_ongoing!H:H,Achievement_forecast_ongoing!$E:$E,Projections!$E37,Achievement_forecast_ongoing!$F:$F,Projections!$F37,Achievement_forecast_ongoing!$C:$C,Projections!$C37) -> 0 | V37: =SUMIFS(Achievement_forecast_ongoing!I:I,Achievement_forecast_ongoing!$E:$E,Projections!$E37,Achievement_forecast_ongoing!$F:$F,Projections!$F37,Achievement_forecast_ongoing!$C:$C,Projections!$C37) -> 0 | W37: =SUMIFS(Achievement_forecast_ongoing!J:J,Achievement_forecast_ongoing!$E:$E,Projections!$E37,Achievement_forecast_ongoing!$F:$F,Projections!$F37,Achievement_forecast_ongoing!$C:$C,Projections!$C37) -> 0 | X37: =SUMIFS(Achievement_forecasts_future!G:G,Achievement_forecasts_future!$B:$B,Projections!$C37,Achievement_forecasts_future!$D:$D,Projections!$E37,Achievement_forecasts_future!$E:$E,Projections!$F37) -> 0 | Y37: =SUMIFS(Achievement_forecasts_future!H:H,Achievement_forecasts_future!$B:$B,Projections!$C37,Achievement_forecasts_future!$D:$D,Projections!$E37,Achievement_forecasts_future!$E:$E,Projections!$F37) -> 0 | Z37: =SUMIFS(Achievement_forecasts_future!I:I,Achievement_forecasts_future!$B:$B,Projections!$C37,Achievement_forecasts_future!$D:$D,Projections!$E37,Achievement_forecasts_future!$E:$E,Projections!$F37) -> 0 | AA37: =SUMIFS(Achievement_forecasts_future!J:J,Achievement_forecasts_future!$B:$B,Projections!$C37,Achievement_forecasts_future!$D:$D,Projections!$E37,Achievement_forecasts_future!$E:$E,Projections!$F37) -> 0
C38: 8 | D38: All | E38: F | F38: Less developed | G38: =192876470*G43 -> 931940527.7 | H38: =L38/$G38*100 -> 0 | I38: 0 | J38: 0 | K38: 0 | L38: =P38+T38+X38 -> 0 | M38: 0 | N38: 0 | O38: 0 | P38: =SUMIFS(Achievement_finalised!G:G,Achievement_finalised!$D:$D,Projections!$E38,Achievement_finalised!$E:$E,Projections!$F38,Achievement_finalised!$B:$B,Projections!$C38) -> 0 | Q38: 0 | R38: 0 | S38: 0 | T38: =SUMIFS(Achievement_forecast_ongoing!G:G,Achievement_forecast_ongoing!$E:$E,Projections!$E38,Achievement_forecast_ongoing!$F:$F,Projections!$F38,Achievement_forecast_ongoing!$C:$C,Projections!$C38) -> 0 | U38: =SUMIFS(Achievement_forecast_ongoing!H:H,Achievement_forecast_ongoing!$E:$E,Projections!$E38,Achievement_forecast_ongoing!$F:$F,Projections!$F38,Achievement_forecast_ongoing!$C:$C,Projections!$C38) -> 0 | V38: =SUMIFS(Achievement_forecast_ongoing!I:I,Achievement_forecast_ongoing!$E:$E,Projections!$E38,Achievement_forecast_ongoing!$F:$F,Projections!$F38,Achievement_forecast_ongoing!$C:$C,Projections!$C38) -> 0 | W38: =SUMIFS(Achievement_forecast_ongoing!J:J,Achievement_forecast_ongoing!$E:$E,Projections!$E38,Achievement_forecast_ongoing!$F:$F,Projections!$F38,Achievement_forecast_ongoing!$C:$C,Projections!$C38) -> 0 | X38: =SUMIFS(Achievement_forecasts_future!G:G,Achievement_forecasts_future!$B:$B,Projections!$C38,Achievement_forecasts_future!$D:$D,Projections!$E38,Achievement_forecasts_future!$E:$E,Projections!$F38) -> 0 | Y38: =SUMIFS(Achievement_forecasts_future!H:H,Achievement_forecasts_future!$B:$B,Projections!$C38,Achievement_forecasts_future!$D:$D,Projections!$E38,Achievement_forecasts_future!$E:$E,Projections!$F38) -> 0 | Z38: =SUMIFS(Achievement_forecasts_future!I:I,Achievement_forecasts_future!$B:$B,Projections!$C38,Achievement_forecasts_future!$D:$D,Projections!$E38,Achievement_forecasts_future!$E:$E,Projections!$F38) -> 0 | AA38: =SUMIFS(Achievement_forecasts_future!J:J,Achievement_forecasts_future!$B:$B,Projections!$C38,Achievement_forecasts_future!$D:$D,Projections!$E38,Achievement_forecasts_future!$E:$E,Projections!$F38) -> 0
C39: 8 | D39: All | E39: 2S68 | F39: Less developed | G39: 160 | H39: 0 | I39: 0 | J39: 0 | K39: 0 | L39: 0 | M39: 0 | N39: 0 | O39: 0 | P39: =SUMIFS(Achievement_finalised!G:G,Achievement_finalised!$D:$D,Projections!$E39,Achievement_finalised!$E:$E,Projections!$F39,Achievement_finalised!$B:$B,Projections!$C39) -> 0 | Q39: 0 | R39: 0 | S39: 0 | T39: =SUMIFS(Achievement_forecast_ongoing!G:G,Achievement_forecast_ongoing!$E:$E,Projections!$E39,Achievement_forecast_ongoing!$F:$F,Projections!$F39,Achievement_forecast_ongoing!$C:$C,Projections!$C39) -> 0 | U39: =SUMIFS(Achievement_forecast_ongoing!H:H,Achievement_forecast_ongoing!$E:$E,Projections!$E39,Achievement_forecast_ongoing!$F:$F,Projections!$F39,Achievement_forecast_ongoing!$C:$C,Projections!$C39) -> 0 | V39: =SUMIFS(Achievement_forecast_ongoing!I:I,Achievement_forecast_ongoing!$E:$E,Projections!$E39,Achievement_forecast_ongoing!$F:$F,Projections!$F39,Achievement_forecast_ongoing!$C:$C,Projections!$C39) -> 0 | W39: =SUMIFS(Achievement_forecast_ongoing!J:J,Achievement_forecast_ongoing!$E:$E,Projections!$E39,Achievement_forecast_ongoing!$F:$F,Projections!$F39,Achievement_forecast_ongoing!$C:$C,Projections!$C39) -> 0 | X39: =SUMIFS(Achievement_forecasts_future!G:G,Achievement_forecasts_future!$B:$B,Projections!$C39,Achievement_forecasts_future!$D:$D,Projections!$E39,Achievement_forecasts_future!$E:$E,Projections!$F39) -> 0 | Y39: =SUMIFS(Achievement_forecasts_future!H:H,Achievement_forecasts_future!$B:$B,Projections!$C39,Achievement_forecasts_future!$D:$D,Projections!$E39,Achievement_forecasts_future!$E:$E,Projections!$F39) -> 0 | Z39: =SUMIFS(Achievement_forecasts_future!I:I,Achievement_forecasts_future!$B:$B,Projections!$C39,Achievement_forecasts_future!$D:$D,Projections!$E39,Achievement_forecasts_future!$E:$E,Projections!$F39) -> 0 | AA39: =SUMIFS(Achievement_forecasts_future!J:J,Achievement_forecasts_future!$B:$B,Projections!$C39,Achievement_forecasts_future!$D:$D,Projections!$E39,Achievement_forecasts_future!$E:$E,Projections!$F39) -> 0
C40: 8 | D40: All | E40: 2S69 | F40: Less developed | G40: 160 | H40: 0 | I40: 0 | J40: 0 | K40: 0 | L40: 0 | M40: 0 | N40: 0 | O40: 0 | P40: =SUMIFS(Achievement_finalised!G:G,Achievement_finalised!$D:$D,Projections!$E40,Achievement_finalised!$E:$E,Projections!$F40,Achievement_finalised!$B:$B,Projections!$C40) -> 0 | Q40: 0 | R40: 0 | S40: 0 | T40: =SUMIFS(Achievement_forecast_ongoing!G:G,Achievement_forecast_ongoing!$E:$E,Projections!$E40,Achievement_forecast_ongoing!$F:$F,Projections!$F40,Achievement_forecast_ongoing!$C:$C,Projections!$C40) -> 0 | U40: =SUMIFS(Achievement_forecast_ongoing!H:H,Achievement_forecast_ongoing!$E:$E,Projections!$E40,Achievement_forecast_ongoing!$F:$F,Projections!$F40,Achievement_forecast_ongoing!$C:$C,Projections!$C40) -> 0 | V40: =SUMIFS(Achievement_forecast_ongoing!I:I,Achievement_forecast_ongoing!$E:$E,Projections!$E40,Achievement_forecast_ongoing!$F:$F,Projections!$F40,Achievement_forecast_ongoing!$C:$C,Projections!$C40) -> 0 | W40: =SUMIFS(Achievement_forecast_ongoing!J:J,Achievement_forecast_ongoing!$E:$E,Projections!$E40,Achievement_forecast_ongoing!$F:$F,Projections!$F40,Achievement_forecast_ongoing!$C:$C,Projections!$C40) -> 0 | X40: =SUMIFS(Achievement_forecasts_future!G:G,Achievement_forecasts_future!$B:$B,Projections!$C40,Achievement_forecasts_future!$D:$D,Projections!$E40,Achievement_forecasts_future!$E:$E,Projections!$F40) -> 0 | Y40: =SUMIFS(Achievement_forecasts_future!H:H,Achievement_forecasts_future!$B:$B,Projections!$C40,Achievement_forecasts_future!$D:$D,Projections!$E40,Achievement_forecasts_future!$E:$E,Projections!$F40) -> 0 | Z40: =SUMIFS(Achievement_forecasts_future!I:I,Achievement_forecasts_future!$B:$B,Projections!$C40,Achievement_forecasts_future!$D:$D,Projections!$E40,Achievement_forecasts_future!$E:$E,Projections!$F40) -> 0 | AA40: =SUMIFS(Achievement_forecasts_future!J:J,Achievement_forecasts_future!$B:$B,Projections!$C40,Achievement_forecasts_future!$D:$D,Projections!$E40,Achievement_forecasts_future!$E:$E,Projections!$F40) -> 0
G43: 4.8318

Sheet Achievement_finalised
B1: Date of extraction | D1: 2020-08-21
B2: Characteristics
B3: PA | C3: PI | D3: Indicator | E3: Region | F3: Type | G3: Cumulative achievement
B4: 1 | C4: (i) | D4: CO12a | E4: All | F4: Physical | G4: No finalised projects
B5: 1 | C5: (ii) | D5: CO12a | E5: All | F5: Physical | G5: No finalised projects
B6: 1 | C6: (i) | D6: CO13a | E6: All | F6: Physical | G6: No finalised projects
B7: 1 | C7: (ii) | D7: CO13a | E7: All | F7: Physical | G7: No finalised projects
B8: 1 | C8: (i) | D8: F | E8: All | F8: Financial | G8: 4927875
B9: 1 | C9: (ii) | D9: F | E9: All | F9: Financial | G9: 104653030
B10: 1 | C10: (i) | D10: 2S10 | E10: All | F10: Physical | G10: No finalised projects
B11: 1 | C11: (ii) | D11: 2S10 | E11: All | F11: Physical | G11: No finalised projects
B12: 1 | C12: (i) | D12: 2S9 | E12: All | F12: Physical | G12: No finalised projects
B13: 1 | C13: (ii) | D13: 2S9 | E13: All | F13: Physical | G13: No finalised projects
B14: 2 | C14: (a) | D14: CO13a | E14: Less developed | F14: Physical | G14: 4.924
B15: 2 | C15: (b) | D15: CO13a | E15: Less developed | F15: Physical | G15: No finalised projects
B16: 2 | C16: (c) | D16: CO13a | E16: Less developed | F16: Physical | G16: No finalised projects
B17: 2 | C17: (d) | D17: CO13a | E17: Less developed | F17: Physical | G17: No finalised projects
B18: 2 | C18: (a) | D18: F | E18: Less developed | F18: Financial | G18: 61360772.75
B19: 2 | C19: (b) | D19: F | E19: Less developed | F19: Financial | G19: 14548.83
B20: 2 | C20: (c) | D20: F | E20: Less developed | F20: Financial | G20: 98550067.15
B21: 2 | C21: (d) | D21: F | E21: Less developed | F21: Financial | G21: 34800992.69
B22: 2 | C22: (a) | D22: 2S9 | E22: Less developed | F22: Physical | G22: No finalised projects
B23: 2 | C23: (b) | D23: 2S9 | E23: Less developed | F23: Physical | G23: No finalised projects
B24: 2 | C24: (c) | D24: 2S9 | E24: Less developed | F24: Physical | G24: No finalised projects
B25: 2 | C25: (d) | D25: 2S9 | E25: Less developed | F25: Physical | G25: No finalised projects
B26: 3 | C26: (i) | D26: CO17 | E26: All | F26: Physical | G26: 88025
B27: 3 | C27: (i) | D27: CO18 | E27: All | F27: Physical | G27: No finalised projects
B28: 3 | C28: (i) | D28: CO19 | E28: All | F28: Physical | G28: No finalised projects
B29: 3 | C29: (i) | D29: F | E29: All | F29: Financial | G29: 385356904.9
B30: 3 | C30: (i) | D30: 2S34 | E30: All | F30: Physical | G30: No finalised projects
B31: 3 | C31: (i) | D31: 2S35 | E31: All | F31: Physical | G31: No finalised projects
B32: 3 | C32: (ii) | D32: CO17 | E32: All | F32: Physical | G32: No finalised projects
B33: 3 | C33: (ii) | D33: CO18 | E33: All | F33: Physical | G33: 212393
B34: 3 | C34: (ii) | D34: CO19 | E34: All | F34: Physical | G34: 281100
B35: 3 | C35: (ii) | D35: F | E35: All | F35: Financial | G35: 748036557.5
B36: 3 | C36: (ii) | D36: 2S34 | E36: All | F36: Physical | G36: No finalised projects
B37: 3 | C37: (ii) | D37: 2S35 | E37: All | F37: Physical | G37: No finalised projects
B38: 4 | C38: 0 | D38: CO23 | E38: Less developed | F38: Physical | G38: 0
B39: 4 | C39: 0 | D39: F | E39: Less developed | F39: Financial | G39: 83421106.67
B40: 4 | C40: 0 | D40: 2S45 | E40: Less developed | F40: Physical | G40: No finalised projects
B41: 4 | C41: 0 | D41: 2S46 | E41: Less developed | F41: Physical | G41: No finalised projects
B42: 4 | C42: 0 | D42: 2S38 | E42: Less developed | F42: Physical | G42: 0
B43: 5 | C43: (a) | D43: CO20 | E43: All | F43: Physical | G43: No finalised projects
B44: 5 | C44: (a) | D44: F | E44: All | F44: Financial | G44: 3102434.8
B45: 5 | C45: (a) | D45: 2S51 | E45: All | F45: Physical | G45: No finalised projects
B46: 5 | C46: (a) | D46: 2S52 | E46: All | F46: Physical | G46: No finalised projects
B47: 5 | C47: (a) | D47: 2S48 | E47: All | F47: Physical | G47: No finalised projects
B48: 5 | C48: (b) | D48: CO20 | E48: All | F48: Physical | G48: No finalised projects
B49: 5 | C49: (b) | D49: F | E49: All | F49: Financial | G49: 0
B50: 5 | C50: (b) | D50: 2S51 | E50: All | F50: Physical | G50: No finalised projects
B51: 5 | C51: (b) | D51: 2S52 | E51: All | F51: Physical | G51: No finalised projects
B52: 5 | C52: (b) | D52: 2S48 | E52: All | F52: Physical | G52: No finalised projects
B53: 6 | C53: 0 | D53: CO30 | E53: Less developed | F53: Physical | G53: No finalised projects
B54: 6 | C54: 0 | D54: F | E54: Less developed | F54: Financial | G54: 8661840.375
B55: 6 | C55: 0 | D55: S58 | E55: Less developed | F55: Physical | G55: No finalised projects
B56: 6 | C56: 0 | D56: 2S59 | E56: Less developed | F56: Physical | G56: No finalised projects
B57: 6 | C57: 0 | D57: 2S60 | E57: Less developed | F57: Physical | G57: No finalised projects
B58: 7 | C58: 0 | D58: F | E58: Less developed | F58: Financial | G58: 182598824.7
B59: 7 | C59: 0 | D59: F | E59: More developed | F59: Financial | G59: 0
B60: 7 | C60: 0 | D60: 2S62 | E60: Less developed | F60: Physical | G60: 41.312
B61: 7 | C61: 0 | D61: 2S62 | E61: More developed | F61: Physical | G61: 0
B62: 7 | C62: 0 | D62: 2S64 | E62: All | F62: Physical | G62: No finalised projects
B63: 8 | C63: 0 | D63: F | E63: Less developed | F63: Financial | G63: 0
B64: 8 | C64: 0 | D64: 2S68 | E64: Less developed | F64: Physical | G64: No finalised projects
B65: 8 | C65: 0 | D65: 2S69 | E65: Less developed | F65: Physical | G65: No finalised projects

Sheet Achievement_to_date_ongoing
C2: Characteristics | K2: Expected achievement | M2: % complete by the end of year
B3: SMIS CODE | C3: PA | D3: PI | E3: Indicator | F3: Region | G3: Type | H3: Value | I3: Start date | J3: End date | K3: Expected | M3: 2020 | N3: 2021 | O3: 2022 | P3: 2023
B4: 117677 | C4: 1 | D4: (i) | E4: CO12a | F4: All | G4: Physical | H4: 0 | I4: 2013-12-13 | J4: 2023-03-01 | K4: 26.04822131 | M4: =IF($J4<DATE(M$3,12,31),1, IF($G4="Physical",0, OFFSET(Project_characteristics!$C$1, SUMIFS(Positions_disbursement!$C$1:$C$14,Positions_disbursement!$B$1:$B$14,Achievement_to_date_ongoing!$D4,Positions_disbursement!$A$1:$A$14,Achievement_to_date_ongoing!$C4), MAX(0,M$3-YEAR($I4)))/100)) -> 0 | N4: =IF($J4<DATE(N$3,12,31),1, IF($G4="Physical",0, OFFSET(Project_characteristics!$C$1, SUMIFS(Positions_disbursement!$C$1:$C$14,Positions_disbursement!$B$1:$B$14,Achievement_to_date_ongoing!$D4,Positions_disbursement!$A$1:$A$14,Achievement_to_date_ongoing!$C4), MAX(0,N$3-YEAR($I4)))/100)) -> 0 | O4: =IF($J4<DATE(O$3,12,31),1, IF($G4="Physical",0, OFFSET(Project_characteristics!$C$1, SUMIFS(Positions_disbursement!$C$1:$C$14,Positions_disbursement!$B$1:$B$14,Achievement_to_date_ongoing!$D4,Positions_disbursement!$A$1:$A$14,Achievement_to_date_ongoing!$C4), MAX(0,O$3-YEAR($I4)))/100)) -> 0 | P4: =IF($J4<DATE(P$3,12,31),1, IF($G4="Physical",0, OFFSET(Project_characteristics!$C$1, SUMIFS(Positions_disbursement!$C$1:$C$14,Positions_disbursement!$B$1:$B$14,Achievement_to_date_ongoing!$D4,Positions_disbursement!$A$1:$A$14,Achievement_to_date_ongoing!$C4), MAX(0,P$3-YEAR($I4)))/100)) -> 1
B5: 110923 | C5: 1 | D5: (i) | E5: CO12a | F5: All | G5: Physical | H5: 2.554 | I5: 2008-05-18 | J5: 2022-05-17 | K5: 2.915598035 | M5: =IF($J5<DATE(M$3,12,31),1, IF($G5="Physical",0, OFFSET(Project_characteristics!$C$1, SUMIFS(Positions_disbursement!$C$1:$C$14,Positions_disbursement!$B$1:$B$14,Achievement_to_date_ongoing!$D5,Positions_disbursement!$A$1:$A$14,Achievement_to_date_ongoing!$C5), MAX(0,M$3-YEAR($I5)))/100)) -> 0 | N5: =IF($J5<DATE(N$3,12,31),1, IF($G5="Physical",0, OFFSET(Project_characteristics!$C$1, SUMIFS(Positions_disbursement!$C$1:$C$14,Positions_disbursement!$B$1:$B$14,Achievement_to_date_ongoing!$D5,Positions_disbursement!$A$1:$A$14,Achievement_to_date_ongoing!$C5), MAX(0,N$3-YEAR($I5)))/100)) -> 0 | O5: =IF($J5<DATE(O$3,12,31),1, IF($G5="Physical",0, OFFSET(Project_characteristics!$C$1, SUMIFS(Positions_disbursement!$C$1:$C$14,Positions_disbursement!$B$1:$B$14,Achievement_to_date_ongoing!$D5,Positions_disbursement!$A$1:$A$14,Achievement_to_date_ongoing!$C5), MAX(0,O$3-YEAR($I5)))/100)) -> 1 | P5: =IF($J5<DATE(P$3,12,31),1, IF($G5="Physical",0, OFFSET(Project_characteristics!$C$1, SUMIFS(Positions_disbursement!$C$1:$C$14,Positions_disbursement!$B$1:$B$14,Achievement_to_date_ongoing!$D5,Positions_disbursement!$A$1:$A$14,Achievement_to_date_ongoing!$C5), MAX(0,P$3-YEAR($I5)))/100)) -> 1
B6: 111298 | C6: 1 | D6: (i) | E6: CO12a | F6: All | G6: Physical | H6: 53.8 | I6: 2011-12-20 | J6: 2022-12-31 | K6: 68.44338491 | M6: =IF($J6<DATE(M$3,12,31),1, IF($G6="Physical",0, OFFSET(Project_characteristics!$C$1, SUMIFS(Positions_disbursement!$C$1:$C$14,Positions_disbursement!$B$1:$B$14,Achievement_to_date_ongoing!$D6,Positions_disbursement!$A$1:$A$14,Achievement_to_date_ongoing!$C6), MAX(0,M$3-YEAR($I6)))/100)) -> 0 | N6: =IF($J6<DATE(N$3,12,31),1, IF($G6="Physical",0, OFFSET(Project_characteristics!$C$1, SUMIFS(Positions_disbursement!$C$1:$C$14,Positions_disbursement!$B$1:$B$14,Achievement_to_date_ongoing!$D6,Positions_disbursement!$A$1:$A$14,Achievement_to_date_ongoing!$C6), MAX(0,N$3-YEAR($I6)))/100)) -> 0 | O6: =IF($J6<DATE(O$3,12,31),1, IF($G6="Physical",0, OFFSET(Project_characteristics!$C$1, SUMIFS(Positions_disbursement!$C$1:$C$14,Positions_disbursement!$B$1:$B$14,Achievement_to_date_ongoing!$D6,Positions_disbursement!$A$1:$A$14,Achievement_to_date_ongoing!$C6), MAX(0,O$3-YEAR($I6)))/100)) -> 0 | P6: =IF($J6<DATE(P$3,12,31),1, IF($G6="Physical",0, OFFSET(Project_characteristics!$C$1, SUMIFS(Positions_disbursement!$C$1:$C$14,Positions_disbursement!$B$1:$B$14,Achievement_to_date_ongoing!$D6,Positions_disbursement!$A$1:$A$14,Achievement_to_date_ongoing!$C6), MAX(0,P$3-YEAR($I6)))/100)) -> 1
B7: 110706 | C7: 1 | D7: (i) | E7: CO12a | F7: All | G7: Physical | H7: 61.959 | I7: 2012-03-14 | J7: 2022-10-23 | K7: 77.90107884 | M7: =IF($J7<DATE(M$3,12,31),1, IF($G7="Physical",0, OFFSET(Project_characteristics!$C$1, SUMIFS(Positions_disbursement!$C$1:$C$14,Positions_disbursement!$B$1:$B$14,Achievement_to_date_ongoing!$D7,Positions_disbursement!$A$1:$A$14,Achievement_to_date_ongoing!$C7), MAX(0,M$3-YEAR($I7)))/100)) -> 0 | N7: =IF($J7<DATE(N$3,12,31),1, IF($G7="Physical",0, OFFSET(Project_characteristics!$C$1, SUMIFS(Positions_disbursement!$C$1:$C$14,Positions_disbursement!$B$1:$B$14,Achievement_to_date_ongoing!$D7,Positions_disbursement!$A$1:$A$14,Achievement_to_date_ongoing!$C7), MAX(0,N$3-YEAR($I7)))/100)) -> 0 | O7: =IF($J7<DATE(O$3,12,31),1, IF($G7="Physical",0, OFFSET(Project_characteristics!$C$1, SUMIFS(Positions_disbursement!$C$1:$C$14,Positions_disbursement!$B$1:$B$14,Achievement_to_date_ongoing!$D7,Positions_disbursement!$A$1:$A$14,Achievement_to_date_ongoing!$C7), MAX(0,O$3-YEAR($I7)))/100)) -> 1 | P7: =IF($J7<DATE(P$3,12,31),1, IF($G7="Physical",0, OFFSET(Project_characteristics!$C$1, SUMIFS(Positions_disbursement!$C$1:$C$14,Positions_disbursement!$B$1:$B$14,Achievement_to_date_ongoing!$D7,Positions_disbursement!$A$1:$A$14,Achievement_to_date_ongoing!$C7), MAX(0,P$3-YEAR($I7)))/100)) -> 1
B8: 110647 | C8: 1 | D8: (i) | E8: CO13a | F8: All | G8: Physical | H8: 0 | I8: 2017-07-01 | J8: 2020-12-31 | K8: 0 | M8: =IF($J8<DATE(M$3,12,31),1, IF($G8="Physical",0, OFFSET(Project_characteristics!$C$1, SUMIFS(Positions_disbursement!$C$1:$C$14,Positions_disbursement!$B$1:$B$14,Achievement_to_date_ongoing!$D8,Positions_disbursement!$A$1:$A$14,Achievement_to_date_ongoing!$C8), MAX(0,M$3-YEAR($I8)))/100)) -> 0 | N8: =IF($J8<DATE(N$3,12,31),1, IF($G8="Physical",0, OFFSET(Project_characteristics!$C$1, SUMIFS(Positions_disbursement!$C$1:$C$14,Positions_disbursement!$B$1:$B$14,Achievement_to_date_ongoing!$D8,Positions_disbursement!$A$1:$A$14,Achievement_to_date_ongoing!$C8), MAX(0,N$3-YEAR($I8)))/100)) -> 1 | O8: =IF($J8<DATE(O$3,12,31),1, IF($G8="Physical",0, OFFSET(Project_characteristics!$C$1, SUMIFS(Positions_disbursement!$C$1:$C$14,Positions_disbursement!$B$1:$B$14,Achievement_to_date_ongoing!$D8,Positions_disbursement!$A$1:$A$14,Achievement_to_date_ongoing!$C8), MAX(0,O$3-YEAR($I8)))/100)) -> 1 | P8: =IF($J8<DATE(P$3,12,31),1, IF($G8="Physical",0, OFFSET(Project_characteristics!$C$1, SUMIFS(Positions_disbursement!$C$1:$C$14,Positions_disbursement!$B$1:$B$14,Achievement_to_date_ongoing!$D8,Positions_disbursement!$A$1:$A$14,Achievement_to_date_ongoing!$C8), MAX(0,P$3-YEAR($I8)))/100)) -> 1
B9: 120234 | C9: 1 | D9: (i) | E9: CO13a | F9: All | G9: Physical | H9: 0 | I9: 2014-01-01 | J9: 2023-12-31 | K9: 17.01336804 | M9: =IF($J9<DATE(M$3,12,31),1, IF($G9="Physical",0, OFFSET(Project_characteristics!$C$1, SUMIFS(Positions_disbursement!$C$1:$C$14,Positions_disbursement!$B$1:$B$14,Achievement_to_date_ongoing!$D9,Positions_disbursement!$A$1:$A$14,Achievement_to_date_ongoing!$C9), MAX(0,M$3-YEAR($I9)))/100)) -> 0 | N9: =IF($J9<DATE(N$3,12,31),1, IF($G9="Physical",0, OFFSET(Project_characteristics!$C$1, SUMIFS(Positions_disbursement!$C$1:$C$14,Positions_disbursement!$B$1:$B$14,Achievement_to_date_ongoing!$D9,Positions_disbursement!$A$1:$A$14,Achievement_to_date_ongoing!$C9), MAX(0,N$3-YEAR($I9)))/100)) -> 0 | O9: =IF($J9<DATE(O$3,12,31),1, IF($G9="Physical",0, OFFSET(Project_characteristics!$C$1, SUMIFS(Positions_disbursement!$C$1:$C$14,Positions_disbursement!$B$1:$B$14,Achievement_to_date_ongoing!$D9,Positions_disbursement!$A$1:$A$14,Achievement_to_date_ongoing!$C9), MAX(0,O$3-YEAR($I9)))/100)) -> 0 | P9: =IF($J9<DATE(P$3,12,31),1, IF($G9="Physical",0, OFFSET(Project_characteristics!$C$1, SUMIFS(Positions_disbursement!$C$1:$C$14,Positions_disbursement!$B$1:$B$14,Achievement_to_date_ongoing!$D9,Positions_disbursement!$A$1:$A$14,Achievement_to_date_ongoing!$C9), MAX(0,P$3-YEAR($I9)))/100)) -> 0
B10: 115748 | C10: 1 | D10: (i) | E10: CO13a | F10: All | G10: Physical | H10: 13.705 | I10: 2014-01-01 | J10: 2021-12-30 | K10: 16.50932343 | M10: =IF($J10<DATE(M$3,12,31),1, IF($G10="Physical",0, OFFSET(Project_characteristics!$C$1, SUMIFS(Positions_disbursement!$C$1:$C$14,Positions_disbursement!$B$1:$B$14,Achievement_to_date_ongoing!$D10,Positions_disbursement!$A$1:$A$14,Achievement_to_date_ongoing!$C10), MAX(0,M$3-YEAR($I10)))/100)) -> 0 | N10: =IF($J10<DATE(N$3,12,31),1, IF($G10="Physical",0, OFFSET(Project_characteristics!$C$1, SUMIFS(Positions_disbursement!$C$1:$C$14,Positions_disbursement!$B$1:$B$14,Achievement_to_date_ongoing!$D10,Positions_disbursement!$A$1:$A$14,Achievement_to_date_ongoing!$C10), MAX(0,N$3-YEAR($I10)))/100)) -> 1 | O10: =IF($J10<DATE(O$3,12,31),1, IF($G10="Physical",0, OFFSET(Project_characteristics!$C$1, SUMIFS(Positions_disbursement!$C$1:$C$14,Positions_disbursement!$B$1:$B$14,Achievement_to_date_ongoing!$D10,Positions_disbursement!$A$1:$A$14,Achievement_to_date_ongoing!$C10), MAX(0,O$3-YEAR($I10)))/100)) -> 1 | P10: =IF($J10<DATE(P$3,12,31),1, IF($G10="Physical",0, OFFSET(Project_characteristics!$C$1, SUMIFS(Positions_disbursement!$C$1:$C$14,Positions_disbursement!$B$1:$B$14,Achievement_to_date_ongoing!$D10,Positions_disbursement!$A$1:$A$14,Achievement_to_date_ongoing!$C10), MAX(0,P$3-YEAR($I10)))/100)) -> 1
B11: 128749 | C11: 1 | D11: (i) | E11: CO13a | F11: All | G11: Physical | H11: 0 | I11: 2014-01-01 | J11: 2023-12-31 | K11: 9.861376267 | M11: =IF($J11<DATE(M$3,12,31),1, IF($G11="Physical",0, OFFSET(Project_characteristics!$C$1, SUMIFS(Positions_disbursement!$C$1:$C$14,Positions_disbursement!$B$1:$B$14,Achievement_to_date_ongoing!$D11,Positions_disbursement!$A$1:$A$14,Achievement_to_date_ongoing!$C11), MAX(0,M$3-YEAR($I11)))/100)) -> 0 | N11: =IF($J11<DATE(N$3,12,31),1, IF($G11="Physical",0, OFFSET(Project_characteristics!$C$1, SUMIFS(Positions_disbursement!$C$1:$C$14,Positions_disbursement!$B$1:$B$14,Achievement_to_date_ongoing!$D11,Positions_disbursement!$A$1:$A$14,Achievement_to_date_ongoing!$C11), MAX(0,N$3-YEAR($I11)))/100)) -> 0 | O11: =IF($J11<DATE(O$3,12,31),1, IF($G11="Physical",0, OFFSET(Project_characteristics!$C$1, SUMIFS(Positions_disbursement!$C$1:$C$14,Positions_disbursement!$B$1:$B$14,Achievement_to_date_ongoing!$D11,Positions_disbursement!$A$1:$A$14,Achievement_to_date_ongoing!$C11), MAX(0,O$3-YEAR($I11)))/100)) -> 0 | P11: =IF($J11<DATE(P$3,12,31),1, IF($G11="Physical",0, OFFSET(Project_characteristics!$C$1, SUMIFS(Positions_disbursement!$C$1:$C$14,Positions_disbursement!$B$1:$B$14,Achievement_to_date_ongoing!$D11,Positions_disbursement!$A$1:$A$14,Achievement_to_date_ongoing!$C11), MAX(0,P$3-YEAR($I11)))/100)) -> 0
B12: 120235 | C12: 1 | D12: (i) | E12: CO13a | F12: All | G12: Physical | H12: 0 | I12: 2012-01-09 | J12: 2023-12-31 | K12: 5.697725119 | M12: =IF($J12<DATE(M$3,12,31),1, IF($G12="Physical",0, OFFSET(Project_characteristics!$C$1, SUMIFS(Positions_disbursement!$C$1:$C$14,Positions_disbursement!$B$1:$B$14,Achievement_to_date_ongoing!$D12,Positions_disbursement!$A$1:$A$14,Achievement_to_date_ongoing!$C12), MAX(0,M$3-YEAR($I12)))/100)) -> 0 | N12: =IF($J12<DATE(N$3,12,31),1, IF($G12="Physical",0, OFFSET(Project_characteristics!$C$1, SUMIFS(Positions_disbursement!$C$1:$C$14,Positions_disbursement!$B$1:$B$14,Achievement_to_date_ongoing!$D12,Positions_disbursement!$A$1:$A$14,Achievement_to_date_ongoing!$C12), MAX(0,N$3-YEAR($I12)))/100)) -> 0 | O12: =IF($J12<DATE(O$3,12,31),1, IF($G12="Physical",0, OFFSET(Project_characteristics!$C$1, SUMIFS(Positions_disbursement!$C$1:$C$14,Positions_disbursement!$B$1:$B$14,Achievement_to_date_ongoing!$D12,Positions_disbursement!$A$1:$A$14,Achievement_to_date_ongoing!$C12), MAX(0,O$3-YEAR($I12)))/100)) -> 0 | P12: =IF($J12<DATE(P$3,12,31),1, IF($G12="Physical",0, OFFSET(Project_characteristics!$C$1, SUMIFS(Positions_disbursement!$C$1:$C$14,Positions_disbursement!$B$1:$B$14,Achievement_to_date_ongoing!$D12,Positions_disbursement!$A$1:$A$14,Achievement_to_date_ongoing!$C12), MAX(0,P$3-YEAR($I12)))/100)) -> 0
B13: 110562 | C13: 1 | D13: (i) | E13: CO13a | F13: All | G13: Physical | H13: 37.728 | I13: 2014-01-01 | J13: 2021-03-01 | K13: 40.71635644 | M13: =IF($J13<DATE(M$3,12,31),1, IF($G13="Physical",0, OFFSET(Project_characteristics!$C$1, SUMIFS(Positions_disbursement!$C$1:$C$14,Positions_disbursement!$B$1:$B$14,Achievement_to_date_ongoing!$D13,Positions_disbursement!$A$1:$A$14,Achievement_to_date_ongoing!$C13), MAX(0,M$3-YEAR($I13)))/100)) -> 0 | N13: =IF($J13<DATE(N$3,12,31),1, IF($G13="Physical",0, OFFSET(Project_characteristics!$C$1, SUMIFS(Positions_disbursement!$C$1:$C$14,Positions_disbursement!$B$1:$B$14,Achievement_to_date_ongoing!$D13,Positions_disbursement!$A$1:$A$14,Achievement_to_date_ongoing!$C13), MAX(0,N$3-YEAR($I13)))/100)) -> 1 | O13: =IF($J13<DATE(O$3,12,31),1, IF($G13="Physical",0, OFFSET(Project_characteristics!$C$1, SUMIFS(Positions_disbursement!$C$1:$C$14,Positions_disbursement!$B$1:$B$14,Achievement_to_date_ongoing!$D13,Positions_disbursement!$A$1:$A$14,Achievement_to_date_ongoing!$C13), MAX(0,O$3-YEAR($I13)))/100)) -> 1 | P13: =IF($J13<DATE(P$3,12,31),1, IF($G13="Physical",0, OFFSET(Project_characteristics!$C$1, SUMIFS(Positions_disbursement!$C$1:$C$14,Positions_disbursement!$B$1:$B$14,Achievement_to_date_ongoing!$D13,Positions_disbursement!$A$1:$A$14,Achievement_to_date_ongoing!$C13), MAX(0,P$3-YEAR($I13)))/100)) -> 1
B14: 118545 | C14: 1 | D14: (i) | E14: CO13a | F14: All | G14: Physical | H14: 3.325 | I14: 2014-01-01 | J14: 2022-01-04 | K14: 4.012221535 | M14: =IF($J14<DATE(M$3,12,31),1, IF($G14="Physical",0, OFFSET(Project_characteristics!$C$1, SUMIFS(Positions_disbursement!$C$1:$C$14,Positions_disbursement!$B$1:$B$14,Achievement_to_date_ongoing!$D14,Positions_disbursement!$A$1:$A$14,Achievement_to_date_ongoing!$C14), MAX(0,M$3-YEAR($I14)))/100)) -> 0 | N14: =IF($J14<DATE(N$3,12,31),1, IF($G14="Physical",0, OFFSET(Project_characteristics!$C$1, SUMIFS(Positions_disbursement!$C$1:$C$14,Positions_disbursement!$B$1:$B$14,Achievement_to_date_ongoing!$D14,Positions_disbursement!$A$1:$A$14,Achievement_to_date_ongoing!$C14), MAX(0,N$3-YEAR($I14)))/100)) -> 0 | O14: =IF($J14<DATE(O$3,12,31),1, IF($G14="Physical",0, OFFSET(Project_characteristics!$C$1, SUMIFS(Positions_disbursement!$C$1:$C$14,Positions_disbursement!$B$1:$B$14,Achievement_to_date_ongoing!$D14,Positions_disbursement!$A$1:$A$14,Achievement_to_date_ongoing!$C14), MAX(0,O$3-YEAR($I14)))/100)) -> 1 | P14: =IF($J14<DATE(P$3,12,31),1, IF($G14="Physical",0, OFFSET(Project_characteristics!$C$1, SUMIFS(Positions_disbursement!$C$1:$C$14,Positions_disbursement!$B$1:$B$14,Achievement_to_date_ongoing!$D14,Positions_disbursement!$A$1:$A$14,Achievement_to_date_ongoing!$C14), MAX(0,P$3-YEAR($I14)))/100)) -> 1
B15: 119142 | C15: 1 | D15: (i) | E15: CO13a | F15: All | G15: Physical | H15: 0 | I15: 2019-08-01 | J15: 2022-03-31 | K15: 4.745948975 | M15: =IF($J15<DATE(M$3,12,31),1, IF($G15="Physical",0, OFFSET(Project_characteristics!$C$1, SUMIFS(Positions_disbursement!$C$1:$C$14,Positions_disbursement!$B$1:$B$14,Achievement_to_date_ongoing!$D15,Positions_disbursement!$A$1:$A$14,Achievement_to_date_ongoing!$C15), MAX(0,M$3-YEAR($I15)))/100)) -> 0 | N15: =IF($J15<DATE(N$3,12,31),1, IF($G15="Physical",0, OFFSET(Project_characteristics!$C$1, SUMIFS(Positions_disbursement!$C$1:$C$14,Positions_disbursement!$B$1:$B$14,Achievement_to_date_ongoing!$D15,Positions_disbursement!$A$1:$A$14,Achievement_to_date_ongoing!$C15), MAX(0,N$3-YEAR($I15)))/100)) -> 0 | O15: =IF($J15<DATE(O$3,12,31),1, IF($G15="Physical",0, OFFSET(Project_characteristics!$C$1, SUMIFS(Positions_disbursement!$C$1:$C$14,Positions_disbursement!$B$1:$B$14,Achievement_to_date_ongoing!$D15,Positions_disbursement!$A$1:$A$14,Achievement_to_date_ongoing!$C15), MAX(0,O$3-YEAR($I15)))/100)) -> 1 | P15: =IF($J15<DATE(P$3,12,31),1, IF($G15="Physical",0, OFFSET(Project_characteristics!$C$1, SUMIFS(Positions_disbursement!$C$1:$C$14,Positions_disbursement!$B$1:$B$14,Achievement_to_date_ongoing!$D15,Positions_disbursement!$A$1:$A$14,Achievement_to_date_ongoing!$C15), MAX(0,P$3-YEAR($I15)))/100)) -> 1
B16: 116393 | C16: 1 | D16: (i) | E16: CO13a | F16: All | G16: Physical | H16: 0 | I16: 2014-01-01 | J16: 2023-12-31 | K16: 2.150363802 | M16: =IF($J16<DATE(M$3,12,31),1, IF($G16="Physical",0, OFFSET(Project_characteristics!$C$1, SUMIFS(Positions_disbursement!$C$1:$C$14,Positions_disbursement!$B$1:$B$14,Achievement_to_date_ongoing!$D16,Positions_disbursement!$A$1:$A$14,Achievement_to_date_ongoing!$C16), MAX(0,M$3-YEAR($I16)))/100)) -> 0 | N16: =IF($J16<DATE(N$3,12,31),1, IF($G16="Physical",0, OFFSET(Project_characteristics!$C$1, SUMIFS(Positions_disbursement!$C$1:$C$14,Positions_disbursement!$B$1:$B$14,Achievement_to_date_ongoing!$D16,Positions_disbursement!$A$1:$A$14,Achievement_to_date_ongoing!$C16), MAX(0,N$3-YEAR($I16)))/100)) -> 0 | O16: =IF($J16<DATE(O$3,12,31),1, IF($G16="Physical",0, OFFSET(Project_characteristics!$C$1, SUMIFS(Positions_disbursement!$C$1:$C$14,Positions_disbursement!$B$1:$B$14,Achievement_to_date_ongoing!$D16,Positions_disbursement!$A$1:$A$14,Achievement_to_date_ongoing!$C16), MAX(0,O$3-YEAR($I16)))/100)) -> 0 | P16: =IF($J16<DATE(P$3,12,31),1, IF($G16="Physical",0, OFFSET(Project_characteristics!$C$1, SUMIFS(Positions_disbursement!$C$1:$C$14,Positions_disbursement!$B$1:$B$14,Achievement_to_date_ongoing!$D16,Positions_disbursement!$A$1:$A$14,Achievement_to_date_ongoing!$C16), MAX(0,P$3-YEAR($I16)))/100)) -> 0
B17: 110647 | C17: 1 | D17: (i) | E17: F | F17: All | G17: Financial | H17: 0 | I17: 2017-07-01 | J17: 2020-12-31 | K17: 28466493.35 | M17: =IF($J17<DATE(M$3,12,31),1, IF($G17="Physical",0, OFFSET(Project_characteristics!$C$1, SUMIFS(Positions_disbursement!$C$1:$C$14,Positions_disbursement!$B$1:$B$14,Achievement_to_date_ongoing!$D17,Positions_disbursement!$A$1:$A$14,Achievement_to_date_ongoing!$C17), MAX(0,M$3-YEAR($I17)))/100)) -> 0.350585032 | N17: =IF($J17<DATE(N$3,12,31),1, IF($G17="Physical",0, OFFSET(Project_characteristics!$C$1, SUMIFS(Positions_disbursement!$C$1:$C$14,Positions_disbursement!$B$1:$B$14,Achievement_to_date_ongoing!$D17,Positions_disbursement!$A$1:$A$14,Achievement_to_date_ongoing!$C17), MAX(0,N$3-YEAR($I17)))/100)) -> 1 | O17: =IF($J17<DATE(O$3,12,31),1, IF($G17="Physical",0, OFFSET(Project_characteristics!$C$1, SUMIFS(Positions_disbursement!$C$1:$C$14,Positions_disbursement!$B$1:$B$14,Achievement_to_date_ongoing!$D17,Positions_disbursement!$A$1:$A$14,Achievement_to_date_ongoing!$C17), MAX(0,O$3-YEAR($I17)))/100)) -> 1 | P17: =IF($J17<DATE(P$3,12,31),1, IF($G17="Physical",0, OFFSET(Project_characteristics!$C$1, SUMIFS(Positions_disbursement!$C$1:$C$14,Positions_disbursement!$B$1:$B$14,Achievement_to_date_ongoing!$D17,Positions_disbursement!$A$1:$A$14,Achievement_to_date_ongoing!$C17), MAX(0,P$3-YEAR($I17)))/100)) -> 1
B18: 120919 | C18: 1 | D18: (i) | E18: F | F18: All | G18: Financial | H18: 25616.32 | I18: 2018-09-01 | J18: 2020-12-31 | K18: 25616.32 | M18: =IF($J18<DATE(M$3,12,31),1, IF($G18="Physical",0, OFFSET(Project_characteristics!$C$1, SUMIFS(Positions_disbursement!$C$1:$C$14,Positions_disbursement!$B$1:$B$14,Achievement_to_date_ongoing!$D18,Positions_disbursement!$A$1:$A$14,Achievement_to_date_ongoing!$C18), MAX(0,M$3-YEAR($I18)))/100)) -> 0.1787148071 | N18: =IF($J18<DATE(N$3,12,31),1, IF($G18="Physical",0, OFFSET(Project_characteristics!$C$1, SUMIFS(Positions_disbursement!$C$1:$C$14,Positions_disbursement!$B$1:$B$14,Achievement_to_date_ongoing!$D18,Positions_disbursement!$A$1:$A$14,Achievement_to_date_ongoing!$C18), MAX(0,N$3-YEAR($I18)))/100)) -> 1 | O18: =IF($J18<DATE(O$3,12,31),1, IF($G18="Physical",0, OFFSET(Project_characteristics!$C$1, SUMIFS(Positions_disbursement!$C$1:$C$14,Positions_disbursement!$B$1:$B$14,Achievement_to_date_ongoing!$D18,Positions_disbursement!$A$1:$A$14,Achievement_to_date_ongoing!$C18), MAX(0,O$3-YEAR($I18)))/100)) -> 1 | P18: =IF($J18<DATE(P$3,12,31),1, IF($G18="Physical",0, OFFSET(Project_characteristics!$C$1, SUMIFS(Positions_disbursement!$C$1:$C$14,Positions_disbursement!$B$1:$B$14,Achievement_to_date_ongoing!$D18,Positions_disbursement!$A$1:$A$14,Achievement_to_date_ongoing!$C18), MAX(0,P$3-YEAR($I18)))/100)) -> 1
B19: 120234 | C19: 1 | D19: (i) | E19: F | F19: All | G19: Financial | H19: 137081722.7 | I19: 2014-01-01 | J19: 2023-12-31 | K19: 2999229715 | M19: =IF($J19<DATE(M$3,12,31),1, IF($G19="Physical",0, OFFSET(Project_characteristics!$C$1, SUMIFS(Positions_disbursement!$C$1:$C$14,Positions_disbursement!$B$1:$B$14,Achievement_to_date_ongoing!$D19,Positions_disbursement!$A$1:$A$14,Achievement_to_date_ongoing!$C19), MAX(0,M$3-YEAR($I19)))/100)) -> 1 | N19: =IF($J19<DATE(N$3,12,31),1, IF($G19="Physical",0, OFFSET(Project_characteristics!$C$1, SUMIFS(Positions_disbursement!$C$1:$C$14,Positions_disbursement!$B$1:$B$14,Achievement_to_date_ongoing!$D19,Positions_disbursement!$A$1:$A$14,Achievement_to_date_ongoing!$C19), MAX(0,N$3-YEAR($I19)))/100)) -> 1 | O19: =IF($J19<DATE(O$3,12,31),1, IF($G19="Physical",0, OFFSET(Project_characteristics!$C$1, SUMIFS(Positions_disbursement!$C$1:$C$14,Positions_disbursement!$B$1:$B$14,Achievement_to_date_ongoing!$D19,Positions_disbursement!$A$1:$A$14,Achievement_to_date_ongoing!$C19), MAX(0,O$3-YEAR($I19)))/100)) -> 1 | P19: =IF($J19<DATE(P$3,12,31),1, IF($G19="Physical",0, OFFSET(Project_characteristics!$C$1, SUMIFS(Positions_disbursement!$C$1:$C$14,Positions_disbursement!$B$1:$B$14,Achievement_to_date_ongoing!$D19,Positions_disbursement!$A$1:$A$14,Achievement_to_date_ongoing!$C19), MAX(0,P$3-YEAR($I19)))/100)) -> 1
B20: 122606 | C20: 1 | D20: (i) | E20: F | F20: All | G20: Financial | H20: 249460.27 | I20: 2015-05-01 | J20: 2020-12-31 | K20: 425881.3094 | M20: =IF($J20<DATE(M$3,12,31),1, IF($G20="Physical",0, OFFSET(Project_characteristics!$C$1, SUMIFS(Positions_disbursement!$C$1:$C$14,Positions_disbursement!$B$1:$B$14,Achievement_to_date_ongoing!$D20,Positions_disbursement!$A$1:$A$14,Achievement_to_date_ongoing!$C20), MAX(0,M$3-YEAR($I20)))/100)) -> 1 | N20: =IF($J20<DATE(N$3,12,31),1, IF($G20="Physical",0, OFFSET(Project_characteristics!$C$1, SUMIFS(Positions_disbursement!$C$1:$C$14,Positions_disbursement!$B$1:$B$14,Achievement_to_date_ongoing!$D20,Positions_disbursement!$A$1:$A$14,Achievement_to_date_ongoing!$C20), MAX(0,N$3-YEAR($I20)))/100)) -> 1 | O20: =IF($J20<DATE(O$3,12,31),1, IF($G20="Physical",0, OFFSET(Project_characteristics!$C$1, SUMIFS(Positions_disbursement!$C$1:$C$14,Positions_disbursement!$B$1:$B$14,Achievement_to_date_ongoing!$D20,Positions_disbursement!$A$1:$A$14,Achievement_to_date_ongoing!$C20), MAX(0,O$3-YEAR($I20)))/100)) -> 1 | P20: =IF($J20<DATE(P$3,12,31),1, IF($G20="Physical",0, OFFSET(Project_characteristics!$C$1, SUMIFS(Positions_disbursement!$C$1:$C$14,Positions_disbursement!$B$1:$B$14,Achievement_to_date_ongoing!$D20,Positions_disbursement!$A$1:$A$14,Achievement_to_date_ongoing!$C20), MAX(0,P$3-YEAR($I20)))/100)) -> 1
B21: 121106 | C21: 1 | D21: (i) | E21: F | F21: All | G21: Financial | H21: 247038782.5 | I21: 2016-07-01 | J21: 2021-06-30 | K21: 247038782.5 | M21: =IF($J21<DATE(M$3,12,31),1, IF($G21="Physical",0, OFFSET(Project_characteristics!$C$1, SUMIFS(Positions_disbursement!$C$1:$C$14,Positions_disbursement!$B$1:$B$14,Achievement_to_date_ongoing!$D21,Positions_disbursement!$A$1:$A$14,Achievement_to_date_ongoing!$C21), MAX(0,M$3-YEAR($I21)))/100)) -> 0.6877430394 | N21: =IF($J21<DATE(N$3,12,31),1, IF($G21="Physical",0, OFFSET(Project_characteristics!$C$1, SUMIFS(Positions_disbursement!$C$1:$C$14,Positions_disbursement!$B$1:$B$14,Achievement_to_date_ongoing!$D21,Positions_disbursement!$A$1:$A$14,Achievement_to_date_ongoing!$C21), MAX(0,N$3-YEAR($I21)))/100)) -> 1 | O21: =IF($J21<DATE(O$3,12,31),1, IF($G21="Physical",0, OFFSET(Project_characteristics!$C$1, SUMIFS(Positions_disbursement!$C$1:$C$14,Positions_disbursement!$B$1:$B$14,Achievement_to_date_ongoing!$D21,Positions_disbursement!$A$1:$A$14,Achievement_to_date_ongoing!$C21), MAX(0,O$3-YEAR($I21)))/100)) -> 1 | P21: =IF($J21<DATE(P$3,12,31),1, IF($G21="Physical",0, OFFSET(Project_characteristics!$C$1, SUMIFS(Positions_disbursement!$C$1:$C$14,Positions_disbursement!$B$1:$B$14,Achievement_to_date_ongoing!$D21,Positions_disbursement!$A$1:$A$14,Achievement_to_date_ongoing!$C21), MAX(0,P$3-YEAR($I21)))/100)) -> 1
B22: 118697 | C22: 1 | D22: (i) | E22: F | F22: All | G22: Financial | H22: 2178232.81 | I22: 2019-02-28 | J22: 2021-01-31 | K22: 9546055.279 | M22: =IF($J22<DATE(M$3,12,31),1, IF($G22="Physical",0, OFFSET(Project_characteristics!$C$1, SUMIFS(Positions_disbursement!$C$1:$C$14,Positions_disbursement!$B$1:$B$14,Achievement_to_date_ongoing!$D22,Positions_disbursement!$A$1:$A$14,Achievement_to_date_ongoing!$C22), MAX(0,M$3-YEAR($I22)))/100)) -> 0.09110195637 | N22: =IF($J22<DATE(N$3,12,31),1, IF($G22="Physical",0, OFFSET(Project_characteristics!$C$1, SUMIFS(Positions_disbursement!$C$1:$C$14,Positions_disbursement!$B$1:$B$14,Achievement_to_date_ongoing!$D22,Positions_disbursement!$A$1:$A$14,Achievement_to_date_ongoing!$C22), MAX(0,N$3-YEAR($I22)))/100)) -> 1 | O22: =IF($J22<DATE(O$3,12,31),1, IF($G22="Physical",0, OFFSET(Project_characteristics!$C$1, SUMIFS(Positions_disbursement!$C$1:$C$14,Positions_disbursement!$B$1:$B$14,Achievement_to_date_ongoing!$D22,Positions_disbursement!$A$1:$A$14,Achievement_to_date_ongoing!$C22), MAX(0,O$3-YEAR($I22)))/100)) -> 1 | P22: =IF($J22<DATE(P$3,12,31),1, IF($G22="Physical",0, OFFSET(Project_characteristics!$C$1, SUMIFS(Positions_disbursement!$C$1:$C$14,Positions_disbursement!$B$1:$B$14,Achievement_to_date_ongoing!$D22,Positions_disbursement!$A$1:$A$14,Achievement_to_date_ongoing!$C22), MAX(0,P$3-YEAR($I22)))/100)) -> 1
B23: 115748 | C23: 1 | D23: (i) | E23: F | F23: All | G23: Financial | H23: 678509779.2 | I23: 2014-01-01 | J23: 2021-12-30 | K23: 843655857.3 | M23: =IF($J23<DATE(M$3,12,31),1, IF($G23="Physical",0, OFFSET(Project_characteristics!$C$1, SUMIFS(Positions_disbursement!$C$1:$C$14,Positions_disbursement!$B$1:$B$14,Achievement_to_date_ongoing!$D23,Positions_disbursement!$A$1:$A$14,Achievement_to_date_ongoing!$C23), MAX(0,M$3-YEAR($I23)))/100)) -> 1 | N23: =IF($J23<DATE(N$3,12,31),1, IF($G23="Physical",0, OFFSET(Project_characteristics!$C$1, SUMIFS(Positions_disbursement!$C$1:$C$14,Positions_disbursement!$B$1:$B$14,Achievement_to_date_ongoing!$D23,Positions_disbursement!$A$1:$A$14,Achievement_to_date_ongoing!$C23), MAX(0,N$3-YEAR($I23)))/100)) -> 1 | O23: =IF($J23<DATE(O$3,12,31),1, IF($G23="Physical",0, OFFSET(Project_characteristics!$C$1, SUMIFS(Positions_disbursement!$C$1:$C$14,Positions_disbursement!$B$1:$B$14,Achievement_to_date_ongoing!$D23,Positions_disbursement!$A$1:$A$14,Achievement_to_date_ongoing!$C23), MAX(0,O$3-YEAR($I23)))/100)) -> 1 | P23: =IF($J23<DATE(P$3,12,31),1, IF($G23="Physical",0, OFFSET(Project_characteristics!$C$1, SUMIFS(Positions_disbursement!$C$1:$C$14,Positions_disbursement!$B$1:$B$14,Achievement_to_date_ongoing!$D23,Positions_disbursement!$A$1:$A$14,Achievement_to_date_ongoing!$C23), MAX(0,P$3-YEAR($I23)))/100)) -> 1
B24: 128749 | C24: 1 | D24: (i) | E24: F | F24: All | G24: Financial | H24: 31071930.11 | I24: 2014-01-01 | J24: 2023-12-31 | K24: 2721689070 | M24: =IF($J24<DATE(M$3,12,31),1, IF($G24="Physical",0, OFFSET(Project_characteristics!$C$1, SUMIFS(Positions_disbursement!$C$1:$C$14,Positions_disbursement!$B$1:$B$14,Achievement_to_date_ongoing!$D24,Positions_disbursement!$A$1:$A$14,Achievement_to_date_ongoing!$C24), MAX(0,M$3-YEAR($I24)))/100)) -> 1 | N24: =IF($J24<DATE(N$3,12,31),1, IF($G24="Physical",0, OFFSET(Project_characteristics!$C$1, SUMIFS(Positions_disbursement!$C$1:$C$14,Positions_disbursement!$B$1:$B$14,Achievement_to_date_ongoing!$D24,Positions_disbursement!$A$1:$A$14,Achievement_to_date_ongoing!$C24), MAX(0,N$3-YEAR($I24)))/100)) -> 1 | O24: =IF($J24<DATE(O$3,12,31),1, IF($G24="Physical",0, OFFSET(Project_characteristics!$C$1, SUMIFS(Positions_disbursement!$C$1:$C$14,Positions_disbursement!$B$1:$B$14,Achievement_to_date_ongoing!$D24,Positions_disbursement!$A$1:$A$14,Achievement_to_date_ongoing!$C24), MAX(0,O$3-YEAR($I24)))/100)) -> 1 | P24: =IF($J24<DATE(P$3,12,31),1, IF($G24="Physical",0, OFFSET(Project_characteristics!$C$1, SUMIFS(Positions_disbursement!$C$1:$C$14,Positions_disbursement!$B$1:$B$14,Achievement_to_date_ongoing!$D24,Positions_disbursement!$A$1:$A$14,Achievement_to_date_ongoing!$C24), MAX(0,P$3-YEAR($I24)))/100)) -> 1
B25: 120235 | C25: 1 | D25: (i) | E25: F | F25: All | G25: Financial | H25: 294201862.4 | I25: 2012-01-09 | J25: 2023-12-31 | K25: 452255901.1 | M25: =IF($J25<DATE(M$3,12,31),1, IF($G25="Physical",0, OFFSET(Project_characteristics!$C$1, SUMIFS(Positions_disbursement!$C$1:$C$14,Positions_disbursement!$B$1:$B$14,Achievement_to_date_ongoing!$D25,Positions_disbursement!$A$1:$A$14,Achievement_to_date_ongoing!$C25), MAX(0,M$3-YEAR($I25)))/100)) -> 1 | N25: =IF($J25<DATE(N$3,12,31),1, IF($G25="Physical",0, OFFSET(Project_characteristics!$C$1, SUMIFS(Positions_disbursement!$C$1:$C$14,Positions_disbursement!$B$1:$B$14,Achievement_to_date_ongoing!$D25,Positions_disbursement!$A$1:$A$14,Achievement_to_date_ongoing!$C25), MAX(0,N$3-YEAR($I25)))/100)) -> 1 | O25: =IF($J25<DATE(O$3,12,31),1, IF($G25="Physical",0, OFFSET(Project_characteristics!$C$1, SUMIFS(Positions_disbursement!$C$1:$C$14,Positions_disbursement!$B$1:$B$14,Achievement_to_date_ongoing!$D25,Positions_disbursement!$A$1:$A$14,Achievement_to_date_ongoing!$C25), MAX(0,O$3-YEAR($I25)))/100)) -> 0 | P25: =IF($J25<DATE(P$3,12,31),1, IF($G25="Physical",0, OFFSET(Project_characteristics!$C$1, SUMIFS(Positions_disbursement!$C$1:$C$14,Positions_disbursement!$B$1:$B$14,Achievement_to_date_ongoing!$D25,Positions_disbursement!$A$1:$A$14,Achievement_to_date_ongoing!$C25), MAX(0,P$3-YEAR($I25)))/100)) -> 0
B26: 121779 | C26: 1 | D26: (i) | E26: F | F26: All | G26: Financial | H26: 122628.53 | I26: 2017-08-01 | J26: 2023-12-31 | K26: 175235062 | M26: =IF($J26<DATE(M$3,12,31),1, IF($G26="Physical",0, OFFSET(Project_characteristics!$C$1, SUMIFS(Positions_disbursement!$C$1:$C$14,Positions_disbursement!$B$1:$B$14,Achievement_to_date_ongoing!$D26,Positions_disbursement!$A$1:$A$14,Achievement_to_date_ongoing!$C26), MAX(0,M$3-YEAR($I26)))/100)) -> 0.350585032 | N26: =IF($J26<DATE(N$3,12,31),1, IF($G26="Physical",0, OFFSET(Project_characteristics!$C$1, SUMIFS(Positions_disbursement!$C$1:$C$14,Positions_disbursement!$B$1:$B$14,Achievement_to_date_ongoing!$D26,Positions_disbursement!$A$1:$A$14,Achievement_to_date_ongoing!$C26), MAX(0,N$3-YEAR($I26)))/100)) -> 0.6877430394 | O26: =IF($J26<DATE(O$3,12,31),1, IF($G26="Physical",0, OFFSET(Project_characteristics!$C$1, SUMIFS(Positions_disbursement!$C$1:$C$14,Positions_disbursement!$B$1:$B$14,Achievement_to_date_ongoing!$D26,Positions_disbursement!$A$1:$A$14,Achievement_to_date_ongoing!$C26), MAX(0,O$3-YEAR($I26)))/100)) -> 1 | P26: =IF($J26<DATE(P$3,12,31),1, IF($G26="Physical",0, OFFSET(Project_characteristics!$C$1, SUMIFS(Positions_disbursement!$C$1:$C$14,Positions_disbursement!$B$1:$B$14,Achievement_to_date_ongoing!$D26,Positions_disbursement!$A$1:$A$14,Achievement_to_date_ongoing!$C26), MAX(0,P$3-YEAR($I26)))/100)) -> 1
B27: 110562 | C27: 1 | D27: (i) | E27: F | F27: All | G27: Financial | H27: 648002791.2 | I27: 2014-01-01 | J27: 2021-03-01 | K27: 1108933038 | M27: =IF($J27<DATE(M$3,12,31),1, IF($G27="Physical",0, OFFSET(Project_characteristics!$C$1, SUMIFS(Positions_disbursement!$C$1:$C$14,Positions_disbursement!$B$1:$B$14,Achievement_to_date_ongoing!$D27,Positions_disbursement!$A$1:$A$14,Achievement_to_date_ongoing!$C27), MAX(0,M$3-YEAR($I27)))/100)) -> 1 | N27: =IF($J27<DATE(N$3,12,31),1, IF($G27="Physical",0, OFFSET(Project_characteristics!$C$1, SUMIFS(Positions_disbursement!$C$1:$C$14,Positions_disbursement!$B$1:$B$14,Achievement_to_date_ongoing!$D27,Positions_disbursement!$A$1:$A$14,Achievement_to_date_ongoing!$C27), MAX(0,N$3-YEAR($I27)))/100)) -> 1 | O27: =IF($J27<DATE(O$3,12,31),1, IF($G27="Physical",0, OFFSET(Project_characteristics!$C$1, SUMIFS(Positions_disbursement!$C$1:$C$14,Positions_disbursement!$B$1:$B$14,Achievement_to_date_ongoing!$D27,Positions_disbursement!$A$1:$A$14,Achievement_to_date_ongoing!$C27), MAX(0,O$3-YEAR($I27)))/100)) -> 1 | P27: =IF($J27<DATE(P$3,12,31),1, IF($G27="Physical",0, OFFSET(Project_characteristics!$C$1, SUMIFS(Positions_disbursement!$C$1:$C$14,Positions_disbursement!$B$1:$B$14,Achievement_to_date_ongoing!$D27,Positions_disbursement!$A$1:$A$14,Achievement_to_date_ongoing!$C27), MAX(0,P$3-YEAR($I27)))/100)) -> 1
B28: 117677 | C28: 1 | D28: (i) | E28: F | F28: All | G28: Financial | H28: 2303912331 | I28: 2013-12-13 | J28: 2023-03-01 | K28: 4467039450 | M28: =IF($J28<DATE(M$3,12,31),1, IF($G28="Physical",0, OFFSET(Project_characteristics!$C$1, SUMIFS(Positions_disbursement!$C$1:$C$14,Positions_disbursement!$B$1:$B$14,Achievement_to_date_ongoing!$D28,Positions_disbursement!$A$1:$A$14,Achievement_to_date_ongoing!$C28), MAX(0,M$3-YEAR($I28)))/100)) -> 1 | N28: =IF($J28<DATE(N$3,12,31),1, IF($G28="Physical",0, OFFSET(Project_characteristics!$C$1, SUMIFS(Positions_disbursement!$C$1:$C$14,Positions_disbursement!$B$1:$B$14,Achievement_to_date_ongoing!$D28,Positions_disbursement!$A$1:$A$14,Achievement_to_date_ongoing!$C28), MAX(0,N$3-YEAR($I28)))/100)) -> 1 | O28: =IF($J28<DATE(O$3,12,31),1, IF($G28="Physical",0, OFFSET(Project_characteristics!$C$1, SUMIFS(Positions_disbursement!$C$1:$C$14,Positions_disbursement!$B$1:$B$14,Achievement_to_date_ongoing!$D28,Positions_disbursement!$A$1:$A$14,Achievement_to_date_ongoing!$C28), MAX(0,O$3-YEAR($I28)))/100)) -> 1 | P28: =IF($J28<DATE(P$3,12,31),1, IF($G28="Physical",0, OFFSET(Project_characteristics!$C$1, SUMIFS(Positions_disbursement!$C$1:$C$14,Positions_disbursement!$B$1:$B$14,Achievement_to_date_ongoing!$D28,Positions_disbursement!$A$1:$A$14,Achievement_to_date_ongoing!$C28), MAX(0,P$3-YEAR($I28)))/100)) -> 1
B29: 118545 | C29: 1 | D29: (i) | E29: F | F29: All | G29: Financial | H29: 90807345.11 | I29: 2014-01-01 | J29: 2022-01-04 | K29: 90807345.11 | M29: =IF($J29<DATE(M$3,12,31),1, IF($G29="Physical",0, OFFSET(Project_characteristics!$C$1, SUMIFS(Positions_disbursement!$C$1:$C$14,Positions_disbursement!$B$1:$B$14,Achievement_to_date_ongoing!$D29,Positions_disbursement!$A$1:$A$14,Achievement_to_date_ongoing!$C29), MAX(0,M$3-YEAR($I29)))/100)) -> 1 | N29: =IF($J29<DATE(N$3,12,31),1, IF($G29="Physical",0, OFFSET(Project_characteristics!$C$1, SUMIFS(Positions_disbursement!$C$1:$C$14,Positions_disbursement!$B$1:$B$14,Achievement_to_date_ongoing!$D29,Positions_disbursement!$A$1:$A$14,Achievement_to_date_ongoing!$C29), MAX(0,N$3-YEAR($I29)))/100)) -> 1 | O29: =IF($J29<DATE(O$3,12,31),1, IF($G29="Physical",0, OFFSET(Project_characteristics!$C$1, SUMIFS(Positions_disbursement!$C$1:$C$14,Positions_disbursement!$B$1:$B$14,Achievement_to_date_ongoing!$D29,Positions_disbursement!$A$1:$A$14,Achievement_to_date_ongoing!$C29), MAX(0,O$3-YEAR($I29)))/100)) -> 1 | P29: =IF($J29<DATE(P$3,12,31),1, IF($G29="Physical",0, OFFSET(Project_characteristics!$C$1, SUMIFS(Positions_disbursement!$C$1:$C$14,Positions_disbursement!$B$1:$B$14,Achievement_to_date_ongoing!$D29,Positions_disbursement!$A$1:$A$14,Achievement_to_date_ongoing!$C29), MAX(0,P$3-YEAR($I29)))/100)) -> 1
B30: 110923 | C30: 1 | D30: (i) | E30: F | F30: All | G30: Financial | H30: 40409576.29 | I30: 2008-05-18 | J30: 2022-05-17 | K30: 40409576.29 | M30: =IF($J30<DATE(M$3,12,31),1, IF($G30="Physical",0, OFFSET(Project_characteristics!$C$1, SUMIFS(Positions_disbursement!$C$1:$C$14,Positions_disbursement!$B$1:$B$14,Achievement_to_date_ongoing!$D30,Positions_disbursement!$A$1:$A$14,Achievement_to_date_ongoing!$C30), MAX(0,M$3-YEAR($I30)))/100)) -> 0 | N30: =IF($J30<DATE(N$3,12,31),1, IF($G30="Physical",0, OFFSET(Project_characteristics!$C$1, SUMIFS(Positions_disbursement!$C$1:$C$14,Positions_disbursement!$B$1:$B$14,Achievement_to_date_ongoing!$D30,Positions_disbursement!$A$1:$A$14,Achievement_to_date_ongoing!$C30), MAX(0,N$3-YEAR($I30)))/100)) -> 0 | O30: =IF($J30<DATE(O$3,12,31),1, IF($G30="Physical",0, OFFSET(Project_characteristics!$C$1, SUMIFS(Positions_disbursement!$C$1:$C$14,Positions_disbursement!$B$1:$B$14,Achievement_to_date_ongoing!$D30,Positions_disbursement!$A$1:$A$14,Achievement_to_date_ongoing!$C30), MAX(0,O$3-YEAR($I30)))/100)) -> 1 | P30: =IF($J30<DATE(P$3,12,31),1, IF($G30="Physical",0, OFFSET(Project_characteristics!$C$1, SUMIFS(Positions_disbursement!$C$1:$C$14,Positions_disbursement!$B$1:$B$14,Achievement_to_date_ongoing!$D30,Positions_disbursement!$A$1:$A$14,Achievement_to_date_ongoing!$C30), MAX(0,P$3-YEAR($I30)))/100)) -> 1
B31: 127920 | C31: 1 | D31: (i) | E31: F | F31: All | G31: Financial | H31: 1494330.24 | I31: 2019-06-03 | J31: 2021-04-30 | K31: 10673026.8 | M31: =IF($J31<DATE(M$3,12,31),1, IF($G31="Physical",0, OFFSET(Project_characteristics!$C$1, SUMIFS(Positions_disbursement!$C$1:$C$14,Positions_disbursement!$B$1:$B$14,Achievement_to_date_ongoing!$D31,Positions_disbursement!$A$1:$A$14,Achievement_to_date_ongoing!$C31), MAX(0,M$3-YEAR($I31)))/100)) -> 0.09110195637 | N31: =IF($J31<DATE(N$3,12,31),1, IF($G31="Physical",0, OFFSET(Project_characteristics!$C$1, SUMIFS(Positions_disbursement!$C$1:$C$14,Positions_disbursement!$B$1:$B$14,Achievement_to_date_ongoing!$D31,Positions_disbursement!$A$1:$A$14,Achievement_to_date_ongoing!$C31), MAX(0,N$3-YEAR($I31)))/100)) -> 1 | O31: =IF($J31<DATE(O$3,12,31),1, IF($G31="Physical",0, OFFSET(Project_characteristics!$C$1, SUMIFS(Positions_disbursement!$C$1:$C$14,Positions_disbursement!$B$1:$B$14,Achievement_to_date_ongoing!$D31,Positions_disbursement!$A$1:$A$14,Achievement_to_date_ongoing!$C31), MAX(0,O$3-YEAR($I31)))/100)) -> 1 | P31: =IF($J31<DATE(P$3,12,31),1, IF($G31="Physical",0, OFFSET(Project_characteristics!$C$1, SUMIFS(Positions_disbursement!$C$1:$C$14,Positions_disbursement!$B$1:$B$14,Achievement_to_date_ongoing!$D31,Positions_disbursement!$A$1:$A$14,Achievement_to_date_ongoing!$C31), MAX(0,P$3-YEAR($I31)))/100)) -> 1
B32: 121499 | C32: 1 | D32: (i) | E32: F | F32: All | G32: Financial | H32: 67491326.97 | I32: 2018-09-01 | J32: 2023-09-30 | K32: 104274892.5 | M32: =IF($J32<DATE(M$3,12,31),1, IF($G32="Physical",0, OFFSET(Project_characteristics!$C$1, SUMIFS(Positions_disbursement!$C$1:$C$14,Positions_disbursement!$B$1:$B$14,Achievement_to_date_ongoing!$D32,Positions_disbursement!$A$1:$A$14,Achievement_to_date_ongoing!$C32), MAX(0,M$3-YEAR($I32)))/100)) -> 0.1787148071 | N32: =IF($J32<DATE(N$3,12,31),1, IF($G32="Physical",0, OFFSET(Project_characteristics!$C$1, SUMIFS(Positions_disbursement!$C$1:$C$14,Positions_disbursement!$B$1:$B$14,Achievement_to_date_ongoing!$D32,Positions_disbursement!$A$1:$A$14,Achievement_to_date_ongoing!$C32), MAX(0,N$3-YEAR($I32)))/100)) -> 0.350585032 | O32: =IF($J32<DATE(O$3,12,31),1, IF($G32="Physical",0, OFFSET(Project_characteristics!$C$1, SUMIFS(Positions_disbursement!$C$1:$C$14,Positions_disbursement!$B$1:$B$14,Achievement_to_date_ongoing!$D32,Positions_disbursement!$A$1:$A$14,Achievement_to_date_ongoing!$C32), MAX(0,O$3-YEAR($I32)))/100)) -> 0.6877430394 | P32: =IF($J32<DATE(P$3,12,31),1, IF($G32="Physical",0, OFFSET(Project_characteristics!$C$1, SUMIFS(Positions_disbursement!$C$1:$C$14,Positions_disbursement!$B$1:$B$14,Achievement_to_date_ongoing!$D32,Positions_disbursement!$A$1:$A$14,Achievement_to_date_ongoing!$C32), MAX(0,P$3-YEAR($I32)))/100)) -> 1
B33: 111298 | C33: 1 | D33: (i) | E33: F | F33: All | G33: Financial | H33: 605664270.2 | I33: 2011-12-20 | J33: 2022-12-31 | K33: 640753262.1 | M33: =IF($J33<DATE(M$3,12,31),1, IF($G33="Physical",0, OFFSET(Project_characteristics!$C$1, SUMIFS(Positions_disbursement!$C$1:$C$14,Positions_disbursement!$B$1:$B$14,Achievement_to_date_ongoing!$D33,Positions_disbursement!$A$1:$A$14,Achievement_to_date_ongoing!$C33), MAX(0,M$3-YEAR($I33)))/100)) -> 1 | N33: =IF($J33<DATE(N$3,12,31),1, IF($G33="Physical",0, OFFSET(Project_characteristics!$C$1, SUMIFS(Positions_disbursement!$C$1:$C$14,Positions_disbursement!$B$1:$B$14,Achievement_to_date_ongoing!$D33,Positions_disbursement!$A$1:$A$14,Achievement_to_date_ongoing!$C33), MAX(0,N$3-YEAR($I33)))/100)) -> 0 | O33: =IF($J33<DATE(O$3,12,31),1, IF($G33="Physical",0, OFFSET(Project_characteristics!$C$1, SUMIFS(Positions_disbursement!$C$1:$C$14,Positions_disbursement!$B$1:$B$14,Achievement_to_date_ongoing!$D33,Positions_disbursement!$A$1:$A$14,Achievement_to_date_ongoing!$C33), MAX(0,O$3-YEAR($I33)))/100)) -> 0 | P33: =IF($J33<DATE(P$3,12,31),1, IF($G33="Physical",0, OFFSET(Project_characteristics!$C$1, SUMIFS(Positions_disbursement!$C$1:$C$14,Positions_disbursement!$B$1:$B$14,Achievement_to_date_ongoing!$D33,Positions_disbursement!$A$1:$A$14,Achievement_to_date_ongoing!$C33), MAX(0,P$3-YEAR($I33)))/100)) -> 1
B34: 110706 | C34: 1 | D34: (i) | E34: F | F34: All | G34: Financial | H34: 501180037 | I34: 2012-03-14 | J34: 2022-10-23 | K34: 664787461.9 | M34: =IF($J34<DATE(M$3,12,31),1, IF($G34="Physical",0, OFFSET(Project_characteristics!$C$1, SUMIFS(Positions_disbursement!$C$1:$C$14,Positions_disbursement!$B$1:$B$14,Achievement_to_date_ongoing!$D34,Positions_disbursement!$A$1:$A$14,Achievement_to_date_ongoing!$C34), MAX(0,M$3-YEAR($I34)))/100)) -> 1 | N34: =IF($J34<DATE(N$3,12,31),1, IF($G34="Physical",0, OFFSET(Project_characteristics!$C$1, SUMIFS(Positions_disbursement!$C$1:$C$14,Positions_disbursement!$B$1:$B$14,Achievement_to_date_ongoing!$D34,Positions_disbursement!$A$1:$A$14,Achievement_to_date_ongoing!$C34), MAX(0,N$3-YEAR($I34)))/100)) -> 1 | O34: =IF($J34<DATE(O$3,12,31),1, IF($G34="Physical",0, OFFSET(Project_characteristics!$C$1, SUMIFS(Positions_disbursement!$C$1:$C$14,Positions_disbursement!$B$1:$B$14,Achievement_to_date_ongoing!$D34,Positions_disbursement!$A$1:$A$14,Achievement_to_date_ongoing!$C34), MAX(0,O$3-YEAR($I34)))/100)) -> 1 | P34: =IF($J34<DATE(P$3,12,31),1, IF($G34="Physical",0, OFFSET(Project_characteristics!$C$1, SUMIFS(Positions_disbursement!$C$1:$C$14,Positions_disbursement!$B$1:$B$14,Achievement_to_date_ongoing!$D34,Positions_disbursement!$A$1:$A$14,Achievement_to_date_ongoing!$C34), MAX(0,P$3-YEAR($I34)))/100)) -> 1
B35: 119142 | C35: 1 | D35: (i) | E35: F | F35: All | G35: Financial | H35: 57106411.44 | I35: 2019-08-01 | J35: 2022-03-31 | K35: 183392097 | M35: =IF($J35<DATE(M$3,12,31),1, IF($G35="Physical",0, OFFSET(Project_characteristics!$C$1, SUMIFS(Positions_disbursement!$C$1:$C$14,Positions_disbursement!$B$1:$B$14,Achievement_to_date_ongoing!$D35,Positions_disbursement!$A$1:$A$14,Achievement_to_date_ongoing!$C35), MAX(0,M$3-YEAR($I35)))/100)) -> 0.09110195637 | N35: =IF($J35<DATE(N$3,12,31),1, IF($G35="Physical",0, OFFSET(Project_characteristics!$C$1, SUMIFS(Positions_disbursement!$C$1:$C$14,Positions_disbursement!$B$1:$B$14,Achievement_to_date_ongoing!$D35,Positions_disbursement!$A$1:$A$14,Achievement_to_date_ongoing!$C35), MAX(0,N$3-YEAR($I35)))/100)) -> 0.1787148071 | O35: =IF($J35<DATE(O$3,12,31),1, IF($G35="Physical",0, OFFSET(Project_characteristics!$C$1, SUMIFS(Positions_disbursement!$C$1:$C$14,Positions_disbursement!$B$1:$B$14,Achievement_to_date_ongoing!$D35,Positions_disbursement!$A$1:$A$14,Achievement_to_date_ongoing!$C35), MAX(0,O$3-YEAR($I35)))/100)) -> 1 | P35: =IF($J35<DATE(P$3,12,31),1, IF($G35="Physical",0, OFFSET(Project_characteristics!$C$1, SUMIFS(Positions_disbursement!$C$1:$C$14,Positions_disbursement!$B$1:$B$14,Achievement_to_date_ongoing!$D35,Positions_disbursement!$A$1:$A$14,Achievement_to_date_ongoing!$C35), MAX(0,P$3-YEAR($I35)))/100)) -> 1
B36: 121588 | C36: 1 | D36: (i) | E36: F | F36: All | G36: Financial | H36: 7860240.02 | I36: 2018-06-25 | J36: 2021-06-24 | K36: 10608536.45 | M36: =IF($J36<DATE(M$3,12,31),1, IF($G36="Physical",0, OFFSET(Project_characteristics!$C$1, SUMIFS(Positions_disbursement!$C$1:$C$14,Positions_disbursement!$B$1:$B$14,Achievement_to_date_ongoing!$D36,Positions_disbursement!$A$1:$A$14,Achievement_to_date_ongoing!$C36), MAX(0,M$3-YEAR($I36)))/100)) -> 0.1787148071 | N36: =IF($J36<DATE(N$3,12,31),1, IF($G36="Physical",0, OFFSET(Project_characteristics!$C$1, SUMIFS(Positions_disbursement!$C$1:$C$14,Positions_disbursement!$B$1:$B$14,Achievement_to_date_ongoing!$D36,Positions_disbursement!$A$1:$A$14,Achievement_to_date_ongoing!$C36), MAX(0,N$3-YEAR($I36)))/100)) -> 1 | O36: =IF($J36<DATE(O$3,12,31),1, IF($G36="Physical",0, OFFSET(Project_characteristics!$C$1, SUMIFS(Positions_disbursement!$C$1:$C$14,Positions_disbursement!$B$1:$B$14,Achievement_to_date_ongoing!$D36,Positions_disbursement!$A$1:$A$14,Achievement_to_date_ongoing!$C36), MAX(0,O$3-YEAR($I36)))/100)) -> 1 | P36: =IF($J36<DATE(P$3,12,31),1, IF($G36="Physical",0, OFFSET(Project_characteristics!$C$1, SUMIFS(Positions_disbursement!$C$1:$C$14,Positions_disbursement!$B$1:$B$14,Achievement_to_date_ongoing!$D36,Positions_disbursement!$A$1:$A$14,Achievement_to_date_ongoing!$C36), MAX(0,P$3-YEAR($I36)))/100)) -> 1
B37: 116393 | C37: 1 | D37: (i) | E37: F | F37: All | G37: Financial | H37: 28266284.09 | I37: 2014-01-01 | J37: 2023-12-31 | K37: 173183570.4 | M37: =IF($J37<DATE(M$3,12,31),1, IF($G37="Physical",0, OFFSET(Project_characteristics!$C$1, SUMIFS(Positions_disbursement!$C$1:$C$14,Positions_disbursement!$B$1:$B$14,Achievement_to_date_ongoing!$D37,Positions_disbursement!$A$1:$A$14,Achievement_to_date_ongoing!$C37), MAX(0,M$3-YEAR($I37)))/100)) -> 1 | N37: =IF($J37<DATE(N$3,12,31),1, IF($G37="Physical",0, OFFSET(Project_characteristics!$C$1, SUMIFS(Positions_disbursement!$C$1:$C$14,Positions_disbursement!$B$1:$B$14,Achievement_to_date_ongoing!$D37,Positions_disbursement!$A$1:$A$14,Achievement_to_date_ongoing!$C37), MAX(0,N$3-YEAR($I37)))/100)) -> 1 | O37: =IF($J37<DATE(O$3,12,31),1, IF($G37="Physical",0, OFFSET(Project_characteristics!$C$1, SUMIFS(Positions_disbursement!$C$1:$C$14,Positions_disbursement!$B$1:$B$14,Achievement_to_date_ongoing!$D37,Positions_disbursement!$A$1:$A$14,Achievement_to_date_ongoing!$C37), MAX(0,O$3-YEAR($I37)))/100)) -> 1 | P37: =IF($J37<DATE(P$3,12,31),1, IF($G37="Physical",0, OFFSET(Project_characteristics!$C$1, SUMIFS(Positions_disbursement!$C$1:$C$14,Positions_disbursement!$B$1:$B$14,Achievement_to_date_ongoing!$D37,Positions_disbursement!$A$1:$A$14,Achievement_to_date_ongoing!$C37), MAX(0,P$3-YEAR($I37)))/100)) -> 1
B38: 111687 | C38: 1 | D38: (ii) | E38: F | F38: All | G38: Financial | H38: 730449228.9 | I38: 2016-01-01 | J38: 2022-12-31 | K38: 825162617.8 | M38: =IF($J38<DATE(M$3,12,31),1, IF($G38="Physical",0, OFFSET(Project_characteristics!$C$1, SUMIFS(Positions_disbursement!$C$1:$C$14,Positions_disbursement!$B$1:$B$14,Achievement_to_date_ongoing!$D38,Positions_disbursement!$A$1:$A$14,Achievement_to_date_ongoing!$C38), MAX(0,M$3-YEAR($I38)))/100)) -> 0.5292057401 | N38: =IF($J38<DATE(N$3,12,31),1, IF($G38="Physical",0, OFFSET(Project_characteristics!$C$1, SUMIFS(Positions_disbursement!$C$1:$C$14,Positions_disbursement!$B$1:$B$14,Achievement_to_date_ongoing!$D38,Positions_disbursement!$A$1:$A$14,Achievement_to_date_ongoing!$C38), MAX(0,N$3-YEAR($I38)))/100)) -> 1 | O38: =IF($J38<DATE(O$3,12,31),1, IF($G38="Physical",0, OFFSET(Project_characteristics!$C$1, SUMIFS(Positions_disbursement!$C$1:$C$14,Positions_disbursement!$B$1:$B$14,Achievement_to_date_ongoing!$D38,Positions_disbursement!$A$1:$A$14,Achievement_to_date_ongoing!$C38), MAX(0,O$3-YEAR($I38)))/100)) -> 1 | P38: =IF($J38<DATE(P$3,12,31),1, IF($G38="Physical",0, OFFSET(Project_characteristics!$C$1, SUMIFS(Positions_disbursement!$C$1:$C$14,Positions_disbursement!$B$1:$B$14,Achievement_to_date_ongoing!$D38,Positions_disbursement!$A$1:$A$14,Achievement_to_date_ongoing!$C38), MAX(0,P$3-YEAR($I38)))/100)) -> 1
B39: 111325 | C39: 1 | D39: (ii) | E39: F | F39: All | G39: Financial | H39: 93758349.97 | I39: 2016-01-01 | J39: 2023-03-07 | K39: 112054567.1 | M39: =IF($J39<DATE(M$3,12,31),1, IF($G39="Physical",0, OFFSET(Project_characteristics!$C$1, SUMIFS(Positions_disbursement!$C$1:$C$14,Positions_disbursement!$B$1:$B$14,Achievement_to_date_ongoing!$D39,Positions_disbursement!$A$1:$A$14,Achievement_to_date_ongoing!$C39), MAX(0,M$3-YEAR($I39)))/100)) -> 0.5292057401 | N39: =IF($J39<DATE(N$3,12,31),1, IF($G39="Physical",0, OFFSET(Project_characteristics!$C$1, SUMIFS(Positions_disbursement!$C$1:$C$14,Positions_disbursement!$B$1:$B$14,Achievement_to_date_ongoing!$D39,Positions_disbursement!$A$1:$A$14,Achievement_to_date_ongoing!$C39), MAX(0,N$3-YEAR($I39)))/100)) -> 1 | O39: =IF($J39<DATE(O$3,12,31),1, IF($G39="Physical",0, OFFSET(Project_characteristics!$C$1, SUMIFS(Positions_disbursement!$C$1:$C$14,Positions_disbursement!$B$1:$B$14,Achievement_to_date_ongoing!$D39,Positions_disbursement!$A$1:$A$14,Achievement_to_date_ongoing!$C39), MAX(0,O$3-YEAR($I39)))/100)) -> 1 | P39: =IF($J39<DATE(P$3,12,31),1, IF($G39="Physical",0, OFFSET(Project_characteristics!$C$1, SUMIFS(Positions_disbursement!$C$1:$C$14,Positions_disbursement!$B$1:$B$14,Achievement_to_date_ongoing!$D39,Positions_disbursement!$A$1:$A$14,Achievement_to_date_ongoing!$C39), MAX(0,P$3-YEAR($I39)))/100)) -> 1
B40: 111879 | C40: 1 | D40: (ii) | E40: F | F40: All | G40: Financial | H40: 12266750.64 | I40: 2016-01-01 | J40: 2021-03-04 | K40: 12266750.64 | M40: =IF($J40<DATE(M$3,12,31),1, IF($G40="Physical",0, OFFSET(Project_characteristics!$C$1, SUMIFS(Positions_disbursement!$C$1:$C$14,Positions_disbursement!$B$1:$B$14,Achievement_to_date_ongoing!$D40,Positions_disbursement!$A$1:$A$14,Achievement_to_date_ongoing!$C40), MAX(0,M$3-YEAR($I40)))/100)) -> 0.5292057401 | N40: =IF($J40<DATE(N$3,12,31),1, IF($G40="Physical",0, OFFSET(Project_characteristics!$C$1, SUMIFS(Positions_disbursement!$C$1:$C$14,Positions_disbursement!$B$1:$B$14,Achievement_to_date_ongoing!$D40,Positions_disbursement!$A$1:$A$14,Achievement_to_date_ongoing!$C40), MAX(0,N$3-YEAR($I40)))/100)) -> 1 | O40: =IF($J40<DATE(O$3,12,31),1, IF($G40="Physical",0, OFFSET(Project_characteristics!$C$1, SUMIFS(Positions_disbursement!$C$1:$C$14,Positions_disbursement!$B$1:$B$14,Achievement_to_date_ongoing!$D40,Positions_disbursement!$A$1:$A$14,Achievement_to_date_ongoing!$C40), MAX(0,O$3-YEAR($I40)))/100)) -> 1 | P40: =IF($J40<DATE(P$3,12,31),1, IF($G40="Physical",0, OFFSET(Project_characteristics!$C$1, SUMIFS(Positions_disbursement!$C$1:$C$14,Positions_disbursement!$B$1:$B$14,Achievement_to_date_ongoing!$D40,Positions_disbursement!$A$1:$A$14,Achievement_to_date_ongoing!$C40), MAX(0,P$3-YEAR($I40)))/100)) -> 1
B41: 111429 | C41: 2 | D41: (a) | E41: CO13a | F41: Less developed | G41: Physical | H41: 0 | I41: 2014-01-01 | J41: 2020-09-01 | K41: 3.687393599 | M41: =IF($J41<DATE(M$3,12,31),1, IF($G41="Physical",0, OFFSET(Project_characteristics!$C$1, SUMIFS(Positions_disbursement!$C$1:$C$14,Positions_disbursement!$B$1:$B$14,Achievement_to_date_ongoing!$D41,Positions_disbursement!$A$1:$A$14,Achievement_to_date_ongoing!$C41), MAX(0,M$3-YEAR($I41)))/100)) -> 1 | N41: =IF($J41<DATE(N$3,12,31),1, IF($G41="Physical",0, OFFSET(Project_characteristics!$C$1, SUMIFS(Positions_disbursement!$C$1:$C$14,Positions_disbursement!$B$1:$B$14,Achievement_to_date_ongoing!$D41,Positions_disbursement!$A$1:$A$14,Achievement_to_date_ongoing!$C41), MAX(0,N$3-YEAR($I41)))/100)) -> 1 | O41: =IF($J41<DATE(O$3,12,31),1, IF($G41="Physical",0, OFFSET(Project_characteristics!$C$1, SUMIFS(Positions_disbursement!$C$1:$C$14,Positions_disbursement!$B$1:$B$14,Achievement_to_date_ongoing!$D41,Positions_disbursement!$A$1:$A$14,Achievement_to_date_ongoing!$C41), MAX(0,O$3-YEAR($I41)))/100)) -> 1 | P41: =IF($J41<DATE(P$3,12,31),1, IF($G41="Physical",0, OFFSET(Project_characteristics!$C$1, SUMIFS(Positions_disbursement!$C$1:$C$14,Positions_disbursement!$B$1:$B$14,Achievement_to_date_ongoing!$D41,Positions_disbursement!$A$1:$A$14,Achievement_to_date_ongoing!$C41), MAX(0,P$3-YEAR($I41)))/100)) -> 1
B42: 110595 | C42: 2 | D42: (a) | E42: CO13a | F42: Less developed | G42: Physical | H42: 10.345 | I42: 2014-01-01 | J42: 2021-06-30 | K42: 11.68080239 | M42: =IF($J42<DATE(M$3,12,31),1, IF($G42="Physical",0, OFFSET(Project_characteristics!$C$1, SUMIFS(Positions_disbursement!$C$1:$C$14,Positions_disbursement!$B$1:$B$14,Achievement_to_date_ongoing!$D42,Positions_disbursement!$A$1:$A$14,Achievement_to_date_ongoing!$C42), MAX(0,M$3-YEAR($I42)))/100)) -> 0 | N42: =IF($J42<DATE(N$3,12,31),1, IF($G42="Physical",0, OFFSET(Project_characteristics!$C$1, SUMIFS(Positions_disbursement!$C$1:$C$14,Positions_disbursement!$B$1:$B$14,Achievement_to_date_ongoing!$D42,Positions_disbursement!$A$1:$A$14,Achievement_to_date_ongoing!$C42), MAX(0,N$3-YEAR($I42)))/100)) -> 1 | O42: =IF($J42<DATE(O$3,12,31),1, IF($G42="Physical",0, OFFSET(Project_characteristics!$C$1, SUMIFS(Positions_disbursement!$C$1:$C$14,Positions_disbursement!$B$1:$B$14,Achievement_to_date_ongoing!$D42,Positions_disbursement!$A$1:$A$14,Achievement_to_date_ongoing!$C42), MAX(0,O$3-YEAR($I42)))/100)) -> 1 | P42: =IF($J42<DATE(P$3,12,31),1, IF($G42="Physical",0, OFFSET(Project_characteristics!$C$1, SUMIFS(Positions_disbursement!$C$1:$C$14,Positions_disbursement!$B$1:$B$14,Achievement_to_date_ongoing!$D42,Positions_disbursement!$A$1:$A$14,Achievement_to_date_ongoing!$C42), MAX(0,P$3-YEAR($I42)))/100)) -> 1
B43: 110638 | C43: 2 | D43: (a) | E43: CO13a | F43: Less developed | G43: Physical | H43: 46.605 | I43: 2017-07-31 | J43: 2020-12-31 | K43: 52.11248433 | M43: =IF($J43<DATE(M$3,12,31),1, IF($G43="Physical",0, OFFSET(Project_characteristics!$C$1, SUMIFS(Positions_disbursement!$C$1:$C$14,Positions_disbursement!$B$1:$B$14,Achievement_to_date_ongoing!$D43,Positions_disbursement!$A$1:$A$14,Achievement_to_date_ongoing!$C43), MAX(0,M$3-YEAR($I43)))/100)) -> 0 | N43: =IF($J43<DATE(N$3,12,31),1, IF($G43="Physical",0, OFFSET(Project_characteristics!$C$1, SUMIFS(Positions_disbursement!$C$1:$C$14,Positions_disbursement!$B$1:$B$14,Achievement_to_date_ongoing!$D43,Positions_disbursement!$A$1:$A$14,Achievement_to_date_ongoing!$C43), MAX(0,N$3-YEAR($I43)))/100)) -> 1 | O43: =IF($J43<DATE(O$3,12,31),1, IF($G43="Physical",0, OFFSET(Project_characteristics!$C$1, SUMIFS(Positions_disbursement!$C$1:$C$14,Positions_disbursement!$B$1:$B$14,Achievement_to_date_ongoing!$D43,Positions_disbursement!$A$1:$A$14,Achievement_to_date_ongoing!$C43), MAX(0,O$3-YEAR($I43)))/100)) -> 1 | P43: =IF($J43<DATE(P$3,12,31),1, IF($G43="Physical",0, OFFSET(Project_characteristics!$C$1, SUMIFS(Positions_disbursement!$C$1:$C$14,Positions_disbursement!$B$1:$B$14,Achievement_to_date_ongoing!$D43,Positions_disbursement!$A$1:$A$14,Achievement_to_date_ongoing!$C43), MAX(0,P$3-YEAR($I43)))/100)) -> 1
B44: 111085 | C44: 2 | D44: (a) | E44: CO13a | F44: Less developed | G44: Physical | H44: 0 | I44: 2017-07-01 | J44: 2023-12-31 | K44: 8.869326987 | M44: =IF($J44<DATE(M$3,12,31),1, IF($G44="Physical",0, OFFSET(Project_characteristics!$C$1, SUMIFS(Positions_disbursement!$C$1:$C$14,Positions_disbursement!$B$1:$B$14,Achievement_to_date_ongoing!$D44,Positions_disbursement!$A$1:$A$14,Achievement_to_date_ongoing!$C44), MAX(0,M$3-YEAR($I44)))/100)) -> 0 | N44: =IF($J44<DATE(N$3,12,31),1, IF($G44="Physical",0, OFFSET(Project_characteristics!$C$1, SUMIFS(Positions_disbursement!$C$1:$C$14,Positions_disbursement!$B$1:$B$14,Achievement_to_date_ongoing!$D44,Positions_disbursement!$A$1:$A$14,Achievement_to_date_ongoing!$C44), MAX(0,N$3-YEAR($I44)))/100)) -> 0 | O44: =IF($J44<DATE(O$3,12,31),1, IF($G44="Physical",0, OFFSET(Project_characteristics!$C$1, SUMIFS(Positions_disbursement!$C$1:$C$14,Positions_disbursement!$B$1:$B$14,Achievement_to_date_ongoing!$D44,Positions_disbursement!$A$1:$A$14,Achievement_to_date_ongoing!$C44), MAX(0,O$3-YEAR($I44)))/100)) -> 0 | P44: =IF($J44<DATE(P$3,12,31),1, IF($G44="Physical",0, OFFSET(Project_characteristics!$C$1, SUMIFS(Positions_disbursement!$C$1:$C$14,Positions_disbursement!$B$1:$B$14,Achievement_to_date_ongoing!$D44,Positions_disbursement!$A$1:$A$14,Achievement_to_date_ongoing!$C44), MAX(0,P$3-YEAR($I44)))/100)) -> 0
B45: 111951 | C45: 2 | D45: (a) | E45: CO13a | F45: Less developed | G45: Physical | H45: 0 | I45: 2008-01-30 | J45: 2021-01-31 | K45: 2.152211194 | M45: =IF($J45<DATE(M$3,12,31),1, IF($G45="Physical",0, OFFSET(Project_characteristics!$C$1, SUMIFS(Positions_disbursement!$C$1:$C$14,Positions_disbursement!$B$1:$B$14,Achievement_to_date_ongoing!$D45,Positions_disbursement!$A$1:$A$14,Achievement_to_date_ongoing!$C45), MAX(0,M$3-YEAR($I45)))/100)) -> 0 | N45: =IF($J45<DATE(N$3,12,31),1, IF($G45="Physical",0, OFFSET(Project_characteristics!$C$1, SUMIFS(Positions_disbursement!$C$1:$C$14,Positions_disbursement!$B$1:$B$14,Achievement_to_date_ongoing!$D45,Positions_disbursement!$A$1:$A$14,Achievement_to_date_ongoing!$C45), MAX(0,N$3-YEAR($I45)))/100)) -> 1 | O45: =IF($J45<DATE(O$3,12,31),1, IF($G45="Physical",0, OFFSET(Project_characteristics!$C$1, SUMIFS(Positions_disbursement!$C$1:$C$14,Positions_disbursement!$B$1:$B$14,Achievement_to_date_ongoing!$D45,Positions_disbursement!$A$1:$A$14,Achievement_to_date_ongoing!$C45), MAX(0,O$3-YEAR($I45)))/100)) -> 1 | P45: =IF($J45<DATE(P$3,12,31),1, IF($G45="Physical",0, OFFSET(Project_characteristics!$C$1, SUMIFS(Positions_disbursement!$C$1:$C$14,Positions_disbursement!$B$1:$B$14,Achievement_to_date_ongoing!$D45,Positions_disbursement!$A$1:$A$14,Achievement_to_date_ongoing!$C45), MAX(0,P$3-YEAR($I45)))/100)) -> 1
B46: 117854 | C46: 2 | D46: (a) | E46: CO13a | F46: Less developed | G46: Physical | H46: 0 | I46: 2014-01-01 | J46: 2020-12-31 | K46: 3.609803152 | M46: =IF($J46<DATE(M$3,12,31),1, IF($G46="Physical",0, OFFSET(Project_characteristics!$C$1, SUMIFS(Positions_disbursement!$C$1:$C$14,Positions_disbursement!$B$1:$B$14,Achievement_to_date_ongoing!$D46,Positions_disbursement!$A$1:$A$14,Achievement_to_date_ongoing!$C46), MAX(0,M$3-YEAR($I46)))/100)) -> 0 | N46: =IF($J46<DATE(N$3,12,31),1, IF($G46="Physical",0, OFFSET(Project_characteristics!$C$1, SUMIFS(Positions_disbursement!$C$1:$C$14,Positions_disbursement!$B$1:$B$14,Achievement_to_date_ongoing!$D46,Positions_disbursement!$A$1:$A$14,Achievement_to_date_ongoing!$C46), MAX(0,N$3-YEAR($I46)))/100)) -> 1 | O46: =IF($J46<DATE(O$3,12,31),1, IF($G46="Physical",0, OFFSET(Project_characteristics!$C$1, SUMIFS(Positions_disbursement!$C$1:$C$14,Positions_disbursement!$B$1:$B$14,Achievement_to_date_ongoing!$D46,Positions_disbursement!$A$1:$A$14,Achievement_to_date_ongoing!$C46), MAX(0,O$3-YEAR($I46)))/100)) -> 1 | P46: =IF($J46<DATE(P$3,12,31),1, IF($G46="Physical",0, OFFSET(Project_characteristics!$C$1, SUMIFS(Positions_disbursement!$C$1:$C$14,Positions_disbursement!$B$1:$B$14,Achievement_to_date_ongoing!$D46,Positions_disbursement!$A$1:$A$14,Achievement_to_date_ongoing!$C46), MAX(0,P$3-YEAR($I46)))/100)) -> 1
B47: 118450 | C47: 2 | D47: (a) | E47: CO13a | F47: Less developed | G47: Physical | H47: 9.653 | I47: 2014-01-01 | J47: 2023-12-31 | K47: 14.53923391 | M47: =IF($J47<DATE(M$3,12,31),1, IF($G47="Physical",0, OFFSET(Project_characteristics!$C$1, SUMIFS(Positions_disbursement!$C$1:$C$14,Positions_disbursement!$B$1:$B$14,Achievement_to_date_ongoing!$D47,Positions_disbursement!$A$1:$A$14,Achievement_to_date_ongoing!$C47), MAX(0,M$3-YEAR($I47)))/100)) -> 0 | N47: =IF($J47<DATE(N$3,12,31),1, IF($G47="Physical",0, OFFSET(Project_characteristics!$C$1, SUMIFS(Positions_disbursement!$C$1:$C$14,Positions_disbursement!$B$1:$B$14,Achievement_to_date_ongoing!$D47,Positions_disbursement!$A$1:$A$14,Achievement_to_date_ongoing!$C47), MAX(0,N$3-YEAR($I47)))/100)) -> 0 | O47: =IF($J47<DATE(O$3,12,31),1, IF($G47="Physical",0, OFFSET(Project_characteristics!$C$1, SUMIFS(Positions_disbursement!$C$1:$C$14,Positions_disbursement!$B$1:$B$14,Achievement_to_date_ongoing!$D47,Positions_disbursement!$A$1:$A$14,Achievement_to_date_ongoing!$C47), MAX(0,O$3-YEAR($I47)))/100)) -> 0 | P47: =IF($J47<DATE(P$3,12,31),1, IF($G47="Physical",0, OFFSET(Project_characteristics!$C$1, SUMIFS(Positions_disbursement!$C$1:$C$14,Positions_disbursement!$B$1:$B$14,Achievement_to_date_ongoing!$D47,Positions_disbursement!$A$1:$A$14,Achievement_to_date_ongoing!$C47), MAX(0,P$3-YEAR($I47)))/100)) -> 0
B48: 123691 | C48: 2 | D48: (a) | E48: CO13a | F48: Less developed | G48: Physical | H48: 0 | I48: 2014-01-01 | J48: 2023-12-31 | K48: 1.8215281 | M48: =IF($J48<DATE(M$3,12,31),1, IF($G48="Physical",0, OFFSET(Project_characteristics!$C$1, SUMIFS(Positions_disbursement!$C$1:$C$14,Positions_disbursement!$B$1:$B$14,Achievement_to_date_ongoing!$D48,Positions_disbursement!$A$1:$A$14,Achievement_to_date_ongoing!$C48), MAX(0,M$3-YEAR($I48)))/100)) -> 0 | N48: =IF($J48<DATE(N$3,12,31),1, IF($G48="Physical",0, OFFSET(Project_characteristics!$C$1, SUMIFS(Positions_disbursement!$C$1:$C$14,Positions_disbursement!$B$1:$B$14,Achievement_to_date_ongoing!$D48,Positions_disbursement!$A$1:$A$14,Achievement_to_date_ongoing!$C48), MAX(0,N$3-YEAR($I48)))/100)) -> 0 | O48: =IF($J48<DATE(O$3,12,31),1, IF($G48="Physical",0, OFFSET(Project_characteristics!$C$1, SUMIFS(Positions_disbursement!$C$1:$C$14,Positions_disbursement!$B$1:$B$14,Achievement_to_date_ongoing!$D48,Positions_disbursement!$A$1:$A$14,Achievement_to_date_ongoing!$C48), MAX(0,O$3-YEAR($I48)))/100)) -> 0 | P48: =IF($J48<DATE(P$3,12,31),1, IF($G48="Physical",0, OFFSET(Project_characteristics!$C$1, SUMIFS(Positions_disbursement!$C$1:$C$14,Positions_disbursement!$B$1:$B$14,Achievement_to_date_ongoing!$D48,Positions_disbursement!$A$1:$A$14,Achievement_to_date_ongoing!$C48), MAX(0,P$3-YEAR($I48)))/100)) -> 0
B49: 117135 | C49: 2 | D49: (a) | E49: CO13a | F49: Less developed | G49: Physical | H49: 0 | I49: 2015-04-27 | J49: 2023-12-31 | K49: 4.334165392 | M49: =IF($J49<DATE(M$3,12,31),1, IF($G49="Physical",0, OFFSET(Project_characteristics!$C$1, SUMIFS(Positions_disbursement!$C$1:$C$14,Positions_disbursement!$B$1:$B$14,Achievement_to_date_ongoing!$D49,Positions_disbursement!$A$1:$A$14,Achievement_to_date_ongoing!$C49), MAX(0,M$3-YEAR($I49)))/100)) -> 0 | N49: =IF($J49<DATE(N$3,12,31),1, IF($G49="Physical",0, OFFSET(Project_characteristics!$C$1, SUMIFS(Positions_disbursement!$C$1:$C$14,Positions_disbursement!$B$1:$B$14,Achievement_to_date_ongoing!$D49,Positions_disbursement!$A$1:$A$14,Achievement_to_date_ongoing!$C49), MAX(0,N$3-YEAR($I49)))/100)) -> 0 | O49: =IF($J49<DATE(O$3,12,31),1, IF($G49="Physical",0, OFFSET(Project_characteristics!$C$1, SUMIFS(Positions_disbursement!$C$1:$C$14,Positions_disbursement!$B$1:$B$14,Achievement_to_date_ongoing!$D49,Positions_disbursement!$A$1:$A$14,Achievement_to_date_ongoing!$C49), MAX(0,O$3-YEAR($I49)))/100)) -> 0 | P49: =IF($J49<DATE(P$3,12,31),1, IF($G49="Physical",0, OFFSET(Project_characteristics!$C$1, SUMIFS(Positions_disbursement!$C$1:$C$14,Positions_disbursement!$B$1:$B$14,Achievement_to_date_ongoing!$D49,Positions_disbursement!$A$1:$A$14,Achievement_to_date_ongoing!$C49), MAX(0,P$3-YEAR($I49)))/100)) -> 0
B50: 110661 | C50: 2 | D50: (a) | E50: CO13a | F50: Less developed | G50: Physical | H50: 67.423 | I50: 2014-01-01 | J50: 2021-06-30 | K50: 76.12902269 | M50: =IF($J50<DATE(M$3,12,31),1, IF($G50="Physical",0, OFFSET(Project_characteristics!$C$1, SUMIFS(Positions_disbursement!$C$1:$C$14,Positions_disbursement!$B$1:$B$14,Achievement_to_date_ongoing!$D50,Positions_disbursement!$A$1:$A$14,Achievement_to_date_ongoing!$C50), MAX(0,M$3-YEAR($I50)))/100)) -> 0 | N50: =IF($J50<DATE(N$3,12,31),1, IF($G50="Physical",0, OFFSET(Project_characteristics!$C$1, SUMIFS(Positions_disbursement!$C$1:$C$14,Positions_disbursement!$B$1:$B$14,Achievement_to_date_ongoing!$D50,Positions_disbursement!$A$1:$A$14,Achievement_to_date_ongoing!$C50), MAX(0,N$3-YEAR($I50)))/100)) -> 1 | O50: =IF($J50<DATE(O$3,12,31),1, IF($G50="Physical",0, OFFSET(Project_characteristics!$C$1, SUMIFS(Positions_disbursement!$C$1:$C$14,Positions_disbursement!$B$1:$B$14,Achievement_to_date_ongoing!$D50,Positions_disbursement!$A$1:$A$14,Achievement_to_date_ongoing!$C50), MAX(0,O$3-YEAR($I50)))/100)) -> 1 | P50: =IF($J50<DATE(P$3,12,31),1, IF($G50="Physical",0, OFFSET(Project_characteristics!$C$1, SUMIFS(Positions_disbursement!$C$1:$C$14,Positions_disbursement!$B$1:$B$14,Achievement_to_date_ongoing!$D50,Positions_disbursement!$A$1:$A$14,Achievement_to_date_ongoing!$C50), MAX(0,P$3-YEAR($I50)))/100)) -> 1
B51: 116018 | C51: 2 | D51: (a) | E51: CO13a | F51: Less developed | G51: Physical | H51: 0 | I51: 2014-05-19 | J51: 2021-11-30 | K51: 18.83969936 | M51: =IF($J51<DATE(M$3,12,31),1, IF($G51="Physical",0, OFFSET(Project_characteristics!$C$1, SUMIFS(Positions_disbursement!$C$1:$C$14,Positions_disbursement!$B$1:$B$14,Achievement_to_date_ongoing!$D51,Positions_disbursement!$A$1:$A$14,Achievement_to_date_ongoing!$C51), MAX(0,M$3-YEAR($I51)))/100)) -> 0 | N51: =IF($J51<DATE(N$3,12,31),1, IF($G51="Physical",0, OFFSET(Project_characteristics!$C$1, SUMIFS(Positions_disbursement!$C$1:$C$14,Positions_disbursement!$B$1:$B$14,Achievement_to_date_ongoing!$D51,Positions_disbursement!$A$1:$A$14,Achievement_to_date_ongoing!$C51), MAX(0,N$3-YEAR($I51)))/100)) -> 1 | O51: =IF($J51<DATE(O$3,12,31),1, IF($G51="Physical",0, OFFSET(Project_characteristics!$C$1, SUMIFS(Positions_disbursement!$C$1:$C$14,Positions_disbursement!$B$1:$B$14,Achievement_to_date_ongoing!$D51,Positions_disbursement!$A$1:$A$14,Achievement_to_date_ongoing!$C51), MAX(0,O$3-YEAR($I51)))/100)) -> 1 | P51: =IF($J51<DATE(P$3,12,31),1, IF($G51="Physical",0, OFFSET(Project_characteristics!$C$1, SUMIFS(Positions_disbursement!$C$1:$C$14,Positions_disbursement!$B$1:$B$14,Achievement_to_date_ongoing!$D51,Positions_disbursement!$A$1:$A$14,Achievement_to_date_ongoing!$C51), MAX(0,P$3-YEAR($I51)))/100)) -> 1
B52: 118005 | C52: 2 | D52: (a) | E52: CO13a | F52: Less developed | G52: Physical | H52: 0 | I52: 2014-01-01 | J52: 2023-07-31 | K52: 0.5874705232 | M52: =IF($J52<DATE(M$3,12,31),1, IF($G52="Physical",0, OFFSET(Project_characteristics!$C$1, SUMIFS(Positions_disbursement!$C$1:$C$14,Positions_disbursement!$B$1:$B$14,Achievement_to_date_ongoing!$D52,Positions_disbursement!$A$1:$A$14,Achievement_to_date_ongoing!$C52), MAX(0,M$3-YEAR($I52)))/100)) -> 0 | N52: =IF($J52<DATE(N$3,12,31),1, IF($G52="Physical",0, OFFSET(Project_characteristics!$C$1, SUMIFS(Positions_disbursement!$C$1:$C$14,Positions_disbursement!$B$1:$B$14,Achievement_to_date_ongoing!$D52,Positions_disbursement!$A$1:$A$14,Achievement_to_date_ongoing!$C52), MAX(0,N$3-YEAR($I52)))/100)) -> 0 | O52: =IF($J52<DATE(O$3,12,31),1, IF($G52="Physical",0, OFFSET(Project_characteristics!$C$1, SUMIFS(Positions_disbursement!$C$1:$C$14,Positions_disbursement!$B$1:$B$14,Achievement_to_date_ongoing!$D52,Positions_disbursement!$A$1:$A$14,Achievement_to_date_ongoing!$C52), MAX(0,O$3-YEAR($I52)))/100)) -> 0 | P52: =IF($J52<DATE(P$3,12,31),1, IF($G52="Physical",0, OFFSET(Project_characteristics!$C$1, SUMIFS(Positions_disbursement!$C$1:$C$14,Positions_disbursement!$B$1:$B$14,Achievement_to_date_ongoing!$D52,Positions_disbursement!$A$1:$A$14,Achievement_to_date_ongoing!$C52), MAX(0,P$3-YEAR($I52)))/100)) -> 1
B53: 119143 | C53: 2 | D53: (a) | E53: CO13a | F53: Less developed | G53: Physical | H53: 0 | I53: 2017-10-01 | J53: 2023-12-31 | K53: 2.083857705 | M53: =IF($J53<DATE(M$3,12,31),1, IF($G53="Physical",0, OFFSET(Project_characteristics!$C$1, SUMIFS(Positions_disbursement!$C$1:$C$14,Positions_disbursement!$B$1:$B$14,Achievement_to_date_ongoing!$D53,Positions_disbursement!$A$1:$A$14,Achievement_to_date_ongoing!$C53), MAX(0,M$3-YEAR($I53)))/100)) -> 0 | N53: =IF($J53<DATE(N$3,12,31),1, IF($G53="Physical",0, OFFSET(Project_characteristics!$C$1, SUMIFS(Positions_disbursement!$C$1:$C$14,Positions_disbursement!$B$1:$B$14,Achievement_to_date_ongoing!$D53,Positions_disbursement!$A$1:$A$14,Achievement_to_date_ongoing!$C53), MAX(0,N$3-YEAR($I53)))/100)) -> 0 | O53: =IF($J53<DATE(O$3,12,31),1, IF($G53="Physical",0, OFFSET(Project_characteristics!$C$1, SUMIFS(Positions_disbursement!$C$1:$C$14,Positions_disbursement!$B$1:$B$14,Achievement_to_date_ongoing!$D53,Positions_disbursement!$A$1:$A$14,Achievement_to_date_ongoing!$C53), MAX(0,O$3-YEAR($I53)))/100)) -> 0 | P53: =IF($J53<DATE(P$3,12,31),1, IF($G53="Physical",0, OFFSET(Project_characteristics!$C$1, SUMIFS(Positions_disbursement!$C$1:$C$14,Positions_disbursement!$B$1:$B$14,Achievement_to_date_ongoing!$D53,Positions_disbursement!$A$1:$A$14,Achievement_to_date_ongoing!$C53), MAX(0,P$3-YEAR($I53)))/100)) -> 0
B54: 121490 | C54: 2 | D54: (a) | E54: CO13a | F54: Less developed | G54: Physical | H54: 0 | I54: 2014-01-01 | J54: 2022-12-31 | K54: 1.283013454 | M54: =IF($J54<DATE(M$3,12,31),1, IF($G54="Physical",0, OFFSET(Project_characteristics!$C$1, SUMIFS(Positions_disbursement!$C$1:$C$14,Positions_disbursement!$B$1:$B$14,Achievement_to_date_ongoing!$D54,Positions_disbursement!$A$1:$A$14,Achievement_to_date_ongoing!$C54), MAX(0,M$3-YEAR($I54)))/100)) -> 0 | N54: =IF($J54<DATE(N$3,12,31),1, IF($G54="Physical",0, OFFSET(Project_characteristics!$C$1, SUMIFS(Positions_disbursement!$C$1:$C$14,Positions_disbursement!$B$1:$B$14,Achievement_to_date_ongoing!$D54,Positions_disbursement!$A$1:$A$14,Achievement_to_date_ongoing!$C54), MAX(0,N$3-YEAR($I54)))/100)) -> 0 | O54: =IF($J54<DATE(O$3,12,31),1, IF($G54="Physical",0, OFFSET(Project_characteristics!$C$1, SUMIFS(Positions_disbursement!$C$1:$C$14,Positions_disbursement!$B$1:$B$14,Achievement_to_date_ongoing!$D54,Positions_disbursement!$A$1:$A$14,Achievement_to_date_ongoing!$C54), MAX(0,O$3-YEAR($I54)))/100)) -> 0 | P54: =IF($J54<DATE(P$3,12,31),1, IF($G54="Physical",0, OFFSET(Project_characteristics!$C$1, SUMIFS(Positions_disbursement!$C$1:$C$14,Positions_disbursement!$B$1:$B$14,Achievement_to_date_ongoing!$D54,Positions_disbursement!$A$1:$A$14,Achievement_to_date_ongoing!$C54), MAX(0,P$3-YEAR($I54)))/100)) -> 1
B55: 118317 | C55: 2 | D55: (a) | E55: CO13a | F55: Less developed | G55: Physical | H55: 28.75 | I55: 2014-01-01 | J55: 2023-11-30 | K55: 42.93523102 | M55: =IF($J55<DATE(M$3,12,31),1, IF($G55="Physical",0, OFFSET(Project_characteristics!$C$1, SUMIFS(Positions_disbursement!$C$1:$C$14,Positions_disbursement!$B$1:$B$14,Achievement_to_date_ongoing!$D55,Positions_disbursement!$A$1:$A$14,Achievement_to_date_ongoing!$C55), MAX(0,M$3-YEAR($I55)))/100)) -> 0 | N55: =IF($J55<DATE(N$3,12,31),1, IF($G55="Physical",0, OFFSET(Project_characteristics!$C$1, SUMIFS(Positions_disbursement!$C$1:$C$14,Positions_disbursement!$B$1:$B$14,Achievement_to_date_ongoing!$D55,Positions_disbursement!$A$1:$A$14,Achievement_to_date_ongoing!$C55), MAX(0,N$3-YEAR($I55)))/100)) -> 0 | O55: =IF($J55<DATE(O$3,12,31),1, IF($G55="Physical",0, OFFSET(Project_characteristics!$C$1, SUMIFS(Positions_disbursement!$C$1:$C$14,Positions_disbursement!$B$1:$B$14,Achievement_to_date_ongoing!$D55,Positions_disbursement!$A$1:$A$14,Achievement_to_date_ongoing!$C55), MAX(0,O$3-YEAR($I55)))/100)) -> 0 | P55: =IF($J55<DATE(P$3,12,31),1, IF($G55="Physical",0, OFFSET(Project_characteristics!$C$1, SUMIFS(Positions_disbursement!$C$1:$C$14,Positions_disbursement!$B$1:$B$14,Achievement_to_date_ongoing!$D55,Positions_disbursement!$A$1:$A$14,Achievement_to_date_ongoing!$C55), MAX(0,P$3-YEAR($I55)))/100)) -> 1
B56: 129377 | C56: 2 | D56: (a) | E56: CO13a | F56: Less developed | G56: Physical | H56: 0 | I56: 2018-12-20 | J56: 2023-12-31 | K56: 0.9883544966 | M56: =IF($J56<DATE(M$3,12,31),1, IF($G56="Physical",0, OFFSET(Project_characteristics!$C$1, SUMIFS(Positions_disbursement!$C$1:$C$14,Positions_disbursement!$B$1:$B$14,Achievement_to_date_ongoing!$D56,Positions_disbursement!$A$1:$A$14,Achievement_to_date_ongoing!$C56), MAX(0,M$3-YEAR($I56)))/100)) -> 0 | N56: =IF($J56<DATE(N$3,12,31),1, IF($G56="Physical",0, OFFSET(Project_characteristics!$C$1, SUMIFS(Positions_disbursement!$C$1:$C$14,Positions_disbursement!$B$1:$B$14,Achievement_to_date_ongoing!$D56,Positions_disbursement!$A$1:$A$14,Achievement_to_date_ongoing!$C56), MAX(0,N$3-YEAR($I56)))/100)) -> 0 | O56: =IF($J56<DATE(O$3,12,31),1, IF($G56="Physical",0, OFFSET(Project_characteristics!$C$1, SUMIFS(Positions_disbursement!$C$1:$C$14,Positions_disbursement!$B$1:$B$14,Achievement_to_date_ongoing!$D56,Positions_disbursement!$A$1:$A$14,Achievement_to_date_ongoing!$C56), MAX(0,O$3-YEAR($I56)))/100)) -> 0 | P56: =IF($J56<DATE(P$3,12,31),1, IF($G56="Physical",0, OFFSET(Project_characteristics!$C$1, SUMIFS(Positions_disbursement!$C$1:$C$14,Positions_disbursement!$B$1:$B$14,Achievement_to_date_ongoing!$D56,Positions_disbursement!$A$1:$A$14,Achievement_to_date_ongoing!$C56), MAX(0,P$3-YEAR($I56)))/100)) -> 0
B57: 111428 | C57: 2 | D57: (a) | E57: F | F57: Less developed | G57: Financial | H57: 12988894.09 | I57: 2017-07-31 | J57: 2020-08-31 | K57: 15281051.87 | M57: =IF($J57<DATE(M$3,12,31),1, IF($G57="Physical",0, OFFSET(Project_characteristics!$C$1, SUMIFS(Positions_disbursement!$C$1:$C$14,Positions_disbursement!$B$1:$B$14,Achievement_to_date_ongoing!$D57,Positions_disbursement!$A$1:$A$14,Achievement_to_date_ongoing!$C57), MAX(0,M$3-YEAR($I57)))/100)) -> 1 | N57: =IF($J57<DATE(N$3,12,31),1, IF($G57="Physical",0, OFFSET(Project_characteristics!$C$1, SUMIFS(Positions_disbursement!$C$1:$C$14,Positions_disbursement!$B$1:$B$14,Achievement_to_date_ongoing!$D57,Positions_disbursement!$A$1:$A$14,Achievement_to_date_ongoing!$C57), MAX(0,N$3-YEAR($I57)))/100)) -> 1 | O57: =IF($J57<DATE(O$3,12,31),1, IF($G57="Physical",0, OFFSET(Project_characteristics!$C$1, SUMIFS(Positions_disbursement!$C$1:$C$14,Positions_disbursement!$B$1:$B$14,Achievement_to_date_ongoing!$D57,Positions_disbursement!$A$1:$A$14,Achievement_to_date_ongoing!$C57), MAX(0,O$3-YEAR($I57)))/100)) -> 1 | P57: =IF($J57<DATE(P$3,12,31),1, IF($G57="Physical",0, OFFSET(Project_characteristics!$C$1, SUMIFS(Positions_disbursement!$C$1:$C$14,Positions_disbursement!$B$1:$B$14,Achievement_to_date_ongoing!$D57,Positions_disbursement!$A$1:$A$14,Achievement_to_date_ongoing!$C57), MAX(0,P$3-YEAR($I57)))/100)) -> 1
B58: 111429 | C58: 2 | D58: (a) | E58: F | F58: Less developed | G58: Financial | H58: 24586545.14 | I58: 2014-01-01 | J58: 2020-09-01 | K58: 89249869.04 | M58: =IF($J58<DATE(M$3,12,31),1, IF($G58="Physical",0, OFFSET(Project_characteristics!$C$1, SUMIFS(Positions_disbursement!$C$1:$C$14,Positions_disbursement!$B$1:$B$14,Achievement_to_date_ongoing!$D58,Positions_disbursement!$A$1:$A$14,Achievement_to_date_ongoing!$C58), MAX(0,M$3-YEAR($I58)))/100)) -> 1 | N58: =IF($J58<DATE(N$3,12,31),1, IF($G58="Physical",0, OFFSET(Project_characteristics!$C$1, SUMIFS(Positions_disbursement!$C$1:$C$14,Positions_disbursement!$B$1:$B$14,Achievement_to_date_ongoing!$D58,Positions_disbursement!$A$1:$A$14,Achievement_to_date_ongoing!$C58), MAX(0,N$3-YEAR($I58)))/100)) -> 1 | O58: =IF($J58<DATE(O$3,12,31),1, IF($G58="Physical",0, OFFSET(Project_characteristics!$C$1, SUMIFS(Positions_disbursement!$C$1:$C$14,Positions_disbursement!$B$1:$B$14,Achievement_to_date_ongoing!$D58,Positions_disbursement!$A$1:$A$14,Achievement_to_date_ongoing!$C58), MAX(0,O$3-YEAR($I58)))/100)) -> 1 | P58: =IF($J58<DATE(P$3,12,31),1, IF($G58="Physical",0, OFFSET(Project_characteristics!$C$1, SUMIFS(Positions_disbursement!$C$1:$C$14,Positions_disbursement!$B$1:$B$14,Achievement_to_date_ongoing!$D58,Positions_disbursement!$A$1:$A$14,Achievement_to_date_ongoing!$C58), MAX(0,P$3-YEAR($I58)))/100)) -> 1
B59: 128039 | C59: 2 | D59: (a) | E59: F | F59: Less developed | G59: Financial | H59: 1503533.53 | I59: 2015-05-11 | J59: 2021-06-30 | K59: 9632032.861 | M59: =IF($J59<DATE(M$3,12,31),1, IF($G59="Physical",0, OFFSET(Project_characteristics!$C$1, SUMIFS(Positions_disbursement!$C$1:$C$14,Positions_disbursement!$B$1:$B$14,Achievement_to_date_ongoing!$D59,Positions_disbursement!$A$1:$A$14,Achievement_to_date_ongoing!$C59), MAX(0,M$3-YEAR($I59)))/100)) -> 1 | N59: =IF($J59<DATE(N$3,12,31),1, IF($G59="Physical",0, OFFSET(Project_characteristics!$C$1, SUMIFS(Positions_disbursement!$C$1:$C$14,Positions_disbursement!$B$1:$B$14,Achievement_to_date_ongoing!$D59,Positions_disbursement!$A$1:$A$14,Achievement_to_date_ongoing!$C59), MAX(0,N$3-YEAR($I59)))/100)) -> 1 | O59: =IF($J59<DATE(O$3,12,31),1, IF($G59="Physical",0, OFFSET(Project_characteristics!$C$1, SUMIFS(Positions_disbursement!$C$1:$C$14,Positions_disbursement!$B$1:$B$14,Achievement_to_date_ongoing!$D59,Positions_disbursement!$A$1:$A$14,Achievement_to_date_ongoing!$C59), MAX(0,O$3-YEAR($I59)))/100)) -> 1 | P59: =IF($J59<DATE(P$3,12,31),1, IF($G59="Physical",0, OFFSET(Project_characteristics!$C$1, SUMIFS(Positions_disbursement!$C$1:$C$14,Positions_disbursement!$B$1:$B$14,Achievement_to_date_ongoing!$D59,Positions_disbursement!$A$1:$A$14,Achievement_to_date_ongoing!$C59), MAX(0,P$3-YEAR($I59)))/100)) -> 1
B60: 110595 | C60: 2 | D60: (a) | E60: F | F60: Less developed | G60: Financial | H60: 16329922.5 | I60: 2014-01-01 | J60: 2021-06-30 | K60: 16329922.5 | M60: =IF($J60<DATE(M$3,12,31),1, IF($G60="Physical",0, OFFSET(Project_characteristics!$C$1, SUMIFS(Positions_disbursement!$C$1:$C$14,Positions_disbursement!$B$1:$B$14,Achievement_to_date_ongoing!$D60,Positions_disbursement!$A$1:$A$14,Achievement_to_date_ongoing!$C60), MAX(0,M$3-YEAR($I60)))/100)) -> 1 | N60: =IF($J60<DATE(N$3,12,31),1, IF($G60="Physical",0, OFFSET(Project_characteristics!$C$1, SUMIFS(Positions_disbursement!$C$1:$C$14,Positions_disbursement!$B$1:$B$14,Achievement_to_date_ongoing!$D60,Positions_disbursement!$A$1:$A$14,Achievement_to_date_ongoing!$C60), MAX(0,N$3-YEAR($I60)))/100)) -> 1 | O60: =IF($J60<DATE(O$3,12,31),1, IF($G60="Physical",0, OFFSET(Project_characteristics!$C$1, SUMIFS(Positions_disbursement!$C$1:$C$14,Positions_disbursement!$B$1:$B$14,Achievement_to_date_ongoing!$D60,Positions_disbursement!$A$1:$A$14,Achievement_to_date_ongoing!$C60), MAX(0,O$3-YEAR($I60)))/100)) -> 1 | P60: =IF($J60<DATE(P$3,12,31),1, IF($G60="Physical",0, OFFSET(Project_characteristics!$C$1, SUMIFS(Positions_disbursement!$C$1:$C$14,Positions_disbursement!$B$1:$B$14,Achievement_to_date_ongoing!$D60,Positions_disbursement!$A$1:$A$14,Achievement_to_date_ongoing!$C60), MAX(0,P$3-YEAR($I60)))/100)) -> 1
B61: 110638 | C61: 2 | D61: (a) | E61: F | F61: Less developed | G61: Financial | H61: 30198169.9 | I61: 2017-07-31 | J61: 2020-12-31 | K61: 46808277.97 | M61: =IF($J61<DATE(M$3,12,31),1, IF($G61="Physical",0, OFFSET(Project_characteristics!$C$1, SUMIFS(Positions_disbursement!$C$1:$C$14,Positions_disbursement!$B$1:$B$14,Achievement_to_date_ongoing!$D61,Positions_disbursement!$A$1:$A$14,Achievement_to_date_ongoing!$C61), MAX(0,M$3-YEAR($I61)))/100)) -> 0.3377038335 | N61: =IF($J61<DATE(N$3,12,31),1, IF($G61="Physical",0, OFFSET(Project_characteristics!$C$1, SUMIFS(Positions_disbursement!$C$1:$C$14,Positions_disbursement!$B$1:$B$14,Achievement_to_date_ongoing!$D61,Positions_disbursement!$A$1:$A$14,Achievement_to_date_ongoing!$C61), MAX(0,N$3-YEAR($I61)))/100)) -> 1 | O61: =IF($J61<DATE(O$3,12,31),1, IF($G61="Physical",0, OFFSET(Project_characteristics!$C$1, SUMIFS(Positions_disbursement!$C$1:$C$14,Positions_disbursement!$B$1:$B$14,Achievement_to_date_ongoing!$D61,Positions_disbursement!$A$1:$A$14,Achievement_to_date_ongoing!$C61), MAX(0,O$3-YEAR($I61)))/100)) -> 1 | P61: =IF($J61<DATE(P$3,12,31),1, IF($G61="Physical",0, OFFSET(Project_characteristics!$C$1, SUMIFS(Positions_disbursement!$C$1:$C$14,Positions_disbursement!$B$1:$B$14,Achievement_to_date_ongoing!$D61,Positions_disbursement!$A$1:$A$14,Achievement_to_date_ongoing!$C61), MAX(0,P$3-YEAR($I61)))/100)) -> 1
B62: 111085 | C62: 2 | D62: (a) | E62: F | F62: Less developed | G62: Financial | H62: 233192.18 | I62: 2017-07-01 | J62: 2023-12-31 | K62: 185990181.3 | M62: =IF($J62<DATE(M$3,12,31),1, IF($G62="Physical",0, OFFSET(Project_characteristics!$C$1, SUMIFS(Positions_disbursement!$C$1:$C$14,Positions_disbursement!$B$1:$B$14,Achievement_to_date_ongoing!$D62,Positions_disbursement!$A$1:$A$14,Achievement_to_date_ongoing!$C62), MAX(0,M$3-YEAR($I62)))/100)) -> 0.3377038335 | N62: =IF($J62<DATE(N$3,12,31),1, IF($G62="Physical",0, OFFSET(Project_characteristics!$C$1, SUMIFS(Positions_disbursement!$C$1:$C$14,Positions_disbursement!$B$1:$B$14,Achievement_to_date_ongoing!$D62,Positions_disbursement!$A$1:$A$14,Achievement_to_date_ongoing!$C62), MAX(0,N$3-YEAR($I62)))/100)) -> 0.6624739783 | O62: =IF($J62<DATE(O$3,12,31),1, IF($G62="Physical",0, OFFSET(Project_characteristics!$C$1, SUMIFS(Positions_disbursement!$C$1:$C$14,Positions_disbursement!$B$1:$B$14,Achievement_to_date_ongoing!$D62,Positions_disbursement!$A$1:$A$14,Achievement_to_date_ongoing!$C62), MAX(0,O$3-YEAR($I62)))/100)) -> 1 | P62: =IF($J62<DATE(P$3,12,31),1, IF($G62="Physical",0, OFFSET(Project_characteristics!$C$1, SUMIFS(Positions_disbursement!$C$1:$C$14,Positions_disbursement!$B$1:$B$14,Achievement_to_date_ongoing!$D62,Positions_disbursement!$A$1:$A$14,Achievement_to_date_ongoing!$C62), MAX(0,P$3-YEAR($I62)))/100)) -> 1
B63: 111951 | C63: 2 | D63: (a) | E63: F | F63: Less developed | G63: Financial | H63: 36232046.51 | I63: 2008-01-30 | J63: 2021-01-31 | K63: 44359992.41 | M63: =IF($J63<DATE(M$3,12,31),1, IF($G63="Physical",0, OFFSET(Project_characteristics!$C$1, SUMIFS(Positions_disbursement!$C$1:$C$14,Positions_disbursement!$B$1:$B$14,Achievement_to_date_ongoing!$D63,Positions_disbursement!$A$1:$A$14,Achievement_to_date_ongoing!$C63), MAX(0,M$3-YEAR($I63)))/100)) -> 0 | N63: =IF($J63<DATE(N$3,12,31),1, IF($G63="Physical",0, OFFSET(Project_characteristics!$C$1, SUMIFS(Positions_disbursement!$C$1:$C$14,Positions_disbursement!$B$1:$B$14,Achievement_to_date_ongoing!$D63,Positions_disbursement!$A$1:$A$14,Achievement_to_date_ongoing!$C63), MAX(0,N$3-YEAR($I63)))/100)) -> 1 | O63: =IF($J63<DATE(O$3,12,31),1, IF($G63="Physical",0, OFFSET(Project_characteristics!$C$1, SUMIFS(Positions_disbursement!$C$1:$C$14,Positions_disbursement!$B$1:$B$14,Achievement_to_date_ongoing!$D63,Positions_disbursement!$A$1:$A$14,Achievement_to_date_ongoing!$C63), MAX(0,O$3-YEAR($I63)))/100)) -> 1 | P63: =IF($J63<DATE(P$3,12,31),1, IF($G63="Physical",0, OFFSET(Project_characteristics!$C$1, SUMIFS(Positions_disbursement!$C$1:$C$14,Positions_disbursement!$B$1:$B$14,Achievement_to_date_ongoing!$D63,Positions_disbursement!$A$1:$A$14,Achievement_to_date_ongoing!$C63), MAX(0,P$3-YEAR($I63)))/100)) -> 1
B64: 117854 | C64: 2 | D64: (a) | E64: F | F64: Less developed | G64: Financial | H64: 132564800.8 | I64: 2014-01-01 | J64: 2020-12-31 | K64: 196085284.2 | M64: =IF($J64<DATE(M$3,12,31),1, IF($G64="Physical",0, OFFSET(Project_characteristics!$C$1, SUMIFS(Positions_disbursement!$C$1:$C$14,Positions_disbursement!$B$1:$B$14,Achievement_to_date_ongoing!$D64,Positions_disbursement!$A$1:$A$14,Achievement_to_date_ongoing!$C64), MAX(0,M$3-YEAR($I64)))/100)) -> 1 | N64: =IF($J64<DATE(N$3,12,31),1, IF($G64="Physical",0, OFFSET(Project_characteristics!$C$1, SUMIFS(Positions_disbursement!$C$1:$C$14,Positions_disbursement!$B$1:$B$14,Achievement_to_date_ongoing!$D64,Positions_disbursement!$A$1:$A$14,Achievement_to_date_ongoing!$C64), MAX(0,N$3-YEAR($I64)))/100)) -> 1 | O64: =IF($J64<DATE(O$3,12,31),1, IF($G64="Physical",0, OFFSET(Project_characteristics!$C$1, SUMIFS(Positions_disbursement!$C$1:$C$14,Positions_disbursement!$B$1:$B$14,Achievement_to_date_ongoing!$D64,Positions_disbursement!$A$1:$A$14,Achievement_to_date_ongoing!$C64), MAX(0,O$3-YEAR($I64)))/100)) -> 1 | P64: =IF($J64<DATE(P$3,12,31),1, IF($G64="Physical",0, OFFSET(Project_characteristics!$C$1, SUMIFS(Positions_disbursement!$C$1:$C$14,Positions_disbursement!$B$1:$B$14,Achievement_to_date_ongoing!$D64,Positions_disbursement!$A$1:$A$14,Achievement_to_date_ongoing!$C64), MAX(0,P$3-YEAR($I64)))/100)) -> 1
B65: 118450 | C65: 2 | D65: (a) | E65: F | F65: Less developed | G65: Financial | H65: 205263303.1 | I65: 2014-01-01 | J65: 2023-12-31 | K65: 205263303.1 | M65: =IF($J65<DATE(M$3,12,31),1, IF($G65="Physical",0, OFFSET(Project_characteristics!$C$1, SUMIFS(Positions_disbursement!$C$1:$C$14,Positions_disbursement!$B$1:$B$14,Achievement_to_date_ongoing!$D65,Positions_disbursement!$A$1:$A$14,Achievement_to_date_ongoing!$C65), MAX(0,M$3-YEAR($I65)))/100)) -> 1 | N65: =IF($J65<DATE(N$3,12,31),1, IF($G65="Physical",0, OFFSET(Project_characteristics!$C$1, SUMIFS(Positions_disbursement!$C$1:$C$14,Positions_disbursement!$B$1:$B$14,Achievement_to_date_ongoing!$D65,Positions_disbursement!$A$1:$A$14,Achievement_to_date_ongoing!$C65), MAX(0,N$3-YEAR($I65)))/100)) -> 1 | O65: =IF($J65<DATE(O$3,12,31),1, IF($G65="Physical",0, OFFSET(Project_characteristics!$C$1, SUMIFS(Positions_disbursement!$C$1:$C$14,Positions_disbursement!$B$1:$B$14,Achievement_to_date_ongoing!$D65,Positions_disbursement!$A$1:$A$14,Achievement_to_date_ongoing!$C65), MAX(0,O$3-YEAR($I65)))/100)) -> 1 | P65: =IF($J65<DATE(P$3,12,31),1, IF($G65="Physical",0, OFFSET(Project_characteristics!$C$1, SUMIFS(Positions_disbursement!$C$1:$C$14,Positions_disbursement!$B$1:$B$14,Achievement_to_date_ongoing!$D65,Positions_disbursement!$A$1:$A$14,Achievement_to_date_ongoing!$C65), MAX(0,P$3-YEAR($I65)))/100)) -> 1
B66: 123691 | C66: 2 | D66: (a) | E66: F | F66: Less developed | G66: Financial | H66: 42078503.66 | I66: 2014-01-01 | J66: 2023-12-31 | K66: 89432124.64 | M66: =IF($J66<DATE(M$3,12,31),1, IF($G66="Physical",0, OFFSET(Project_characteristics!$C$1, SUMIFS(Positions_disbursement!$C$1:$C$14,Positions_disbursement!$B$1:$B$14,Achievement_to_date_ongoing!$D66,Positions_disbursement!$A$1:$A$14,Achievement_to_date_ongoing!$C66), MAX(0,M$3-YEAR($I66)))/100)) -> 1 | N66: =IF($J66<DATE(N$3,12,31),1, IF($G66="Physical",0, OFFSET(Project_characteristics!$C$1, SUMIFS(Positions_disbursement!$C$1:$C$14,Positions_disbursement!$B$1:$B$14,Achievement_to_date_ongoing!$D66,Positions_disbursement!$A$1:$A$14,Achievement_to_date_ongoing!$C66), MAX(0,N$3-YEAR($I66)))/100)) -> 1 | O66: =IF($J66<DATE(O$3,12,31),1, IF($G66="Physical",0, OFFSET(Project_characteristics!$C$1, SUMIFS(Positions_disbursement!$C$1:$C$14,Positions_disbursement!$B$1:$B$14,Achievement_to_date_ongoing!$D66,Positions_disbursement!$A$1:$A$14,Achievement_to_date_ongoing!$C66), MAX(0,O$3-YEAR($I66)))/100)) -> 1 | P66: =IF($J66<DATE(P$3,12,31),1, IF($G66="Physical",0, OFFSET(Project_characteristics!$C$1, SUMIFS(Positions_disbursement!$C$1:$C$14,Positions_disbursement!$B$1:$B$14,Achievement_to_date_ongoing!$D66,Positions_disbursement!$A$1:$A$14,Achievement_to_date_ongoing!$C66), MAX(0,P$3-YEAR($I66)))/100)) -> 1
B67: 117135 | C67: 2 | D67: (a) | E67: F | F67: Less developed | G67: Financial | H67: 368207751.4 | I67: 2015-04-27 | J67: 2023-12-31 | K67: 1144598320 | M67: =IF($J67<DATE(M$3,12,31),1, IF($G67="Physical",0, OFFSET(Project_characteristics!$C$1, SUMIFS(Positions_disbursement!$C$1:$C$14,Positions_disbursement!$B$1:$B$14,Achievement_to_date_ongoing!$D67,Positions_disbursement!$A$1:$A$14,Achievement_to_date_ongoing!$C67), MAX(0,M$3-YEAR($I67)))/100)) -> 1 | N67: =IF($J67<DATE(N$3,12,31),1, IF($G67="Physical",0, OFFSET(Project_characteristics!$C$1, SUMIFS(Positions_disbursement!$C$1:$C$14,Positions_disbursement!$B$1:$B$14,Achievement_to_date_ongoing!$D67,Positions_disbursement!$A$1:$A$14,Achievement_to_date_ongoing!$C67), MAX(0,N$3-YEAR($I67)))/100)) -> 1 | O67: =IF($J67<DATE(O$3,12,31),1, IF($G67="Physical",0, OFFSET(Project_characteristics!$C$1, SUMIFS(Positions_disbursement!$C$1:$C$14,Positions_disbursement!$B$1:$B$14,Achievement_to_date_ongoing!$D67,Positions_disbursement!$A$1:$A$14,Achievement_to_date_ongoing!$C67), MAX(0,O$3-YEAR($I67)))/100)) -> 1 | P67: =IF($J67<DATE(P$3,12,31),1, IF($G67="Physical",0, OFFSET(Project_characteristics!$C$1, SUMIFS(Positions_disbursement!$C$1:$C$14,Positions_disbursement!$B$1:$B$14,Achievement_to_date_ongoing!$D67,Positions_disbursement!$A$1:$A$14,Achievement_to_date_ongoing!$C67), MAX(0,P$3-YEAR($I67)))/100)) -> 1
B68: 110661 | C68: 2 | D68: (a) | E68: F | F68: Less developed | G68: Financial | H68: 36226112.56 | I68: 2014-01-01 | J68: 2021-06-30 | K68: 53899892.28 | M68: =IF($J68<DATE(M$3,12,31),1, IF($G68="Physical",0, OFFSET(Project_characteristics!$C$1, SUMIFS(Positions_disbursement!$C$1:$C$14,Positions_disbursement!$B$1:$B$14,Achievement_to_date_ongoing!$D68,Positions_disbursement!$A$1:$A$14,Achievement_to_date_ongoing!$C68), MAX(0,M$3-YEAR($I68)))/100)) -> 1 | N68: =IF($J68<DATE(N$3,12,31),1, IF($G68="Physical",0, OFFSET(Project_characteristics!$C$1, SUMIFS(Positions_disbursement!$C$1:$C$14,Positions_disbursement!$B$1:$B$14,Achievement_to_date_ongoing!$D68,Positions_disbursement!$A$1:$A$14,Achievement_to_date_ongoing!$C68), MAX(0,N$3-YEAR($I68)))/100)) -> 1 | O68: =IF($J68<DATE(O$3,12,31),1, IF($G68="Physical",0, OFFSET(Project_characteristics!$C$1, SUMIFS(Positions_disbursement!$C$1:$C$14,Positions_disbursement!$B$1:$B$14,Achievement_to_date_ongoing!$D68,Positions_disbursement!$A$1:$A$14,Achievement_to_date_ongoing!$C68), MAX(0,O$3-YEAR($I68)))/100)) -> 1 | P68: =IF($J68<DATE(P$3,12,31),1, IF($G68="Physical",0, OFFSET(Project_characteristics!$C$1, SUMIFS(Positions_disbursement!$C$1:$C$14,Positions_disbursement!$B$1:$B$14,Achievement_to_date_ongoing!$D68,Positions_disbursement!$A$1:$A$14,Achievement_to_date_ongoing!$C68), MAX(0,P$3-YEAR($I68)))/100)) -> 1
B69: 116018 | C69: 2 | D69: (a) | E69: F | F69: Less developed | G69: Financial | H69: 36220437.65 | I69: 2014-05-19 | J69: 2021-11-30 | K69: 187318854.8 | M69: =IF($J69<DATE(M$3,12,31),1, IF($G69="Physical",0, OFFSET(Project_characteristics!$C$1, SUMIFS(Positions_disbursement!$C$1:$C$14,Positions_disbursement!$B$1:$B$14,Achievement_to_date_ongoing!$D69,Positions_disbursement!$A$1:$A$14,Achievement_to_date_ongoing!$C69), MAX(0,M$3-YEAR($I69)))/100)) -> 1 | N69: =IF($J69<DATE(N$3,12,31),1, IF($G69="Physical",0, OFFSET(Project_characteristics!$C$1, SUMIFS(Positions_disbursement!$C$1:$C$14,Positions_disbursement!$B$1:$B$14,Achievement_to_date_ongoing!$D69,Positions_disbursement!$A$1:$A$14,Achievement_to_date_ongoing!$C69), MAX(0,N$3-YEAR($I69)))/100)) -> 1 | O69: =IF($J69<DATE(O$3,12,31),1, IF($G69="Physical",0, OFFSET(Project_characteristics!$C$1, SUMIFS(Positions_disbursement!$C$1:$C$14,Positions_disbursement!$B$1:$B$14,Achievement_to_date_ongoing!$D69,Positions_disbursement!$A$1:$A$14,Achievement_to_date_ongoing!$C69), MAX(0,O$3-YEAR($I69)))/100)) -> 1 | P69: =IF($J69<DATE(P$3,12,31),1, IF($G69="Physical",0, OFFSET(Project_characteristics!$C$1, SUMIFS(Positions_disbursement!$C$1:$C$14,Positions_disbursement!$B$1:$B$14,Achievement_to_date_ongoing!$D69,Positions_disbursement!$A$1:$A$14,Achievement_to_date_ongoing!$C69), MAX(0,P$3-YEAR($I69)))/100)) -> 1
B70: 118005 | C70: 2 | D70: (a) | E70: F | F70: Less developed | G70: Financial | H70: 8875182.17 | I70: 2014-01-01 | J70: 2023-07-31 | K70: 32706573.25 | M70: =IF($J70<DATE(M$3,12,31),1, IF($G70="Physical",0, OFFSET(Project_characteristics!$C$1, SUMIFS(Positions_disbursement!$C$1:$C$14,Positions_disbursement!$B$1:$B$14,Achievement_to_date_ongoing!$D70,Positions_disbursement!$A$1:$A$14,Achievement_to_date_ongoing!$C70), MAX(0,M$3-YEAR($I70)))/100)) -> 1 | N70: =IF($J70<DATE(N$3,12,31),1, IF($G70="Physical",0, OFFSET(Project_characteristics!$C$1, SUMIFS(Positions_disbursement!$C$1:$C$14,Positions_disbursement!$B$1:$B$14,Achievement_to_date_ongoing!$D70,Positions_disbursement!$A$1:$A$14,Achievement_to_date_ongoing!$C70), MAX(0,N$3-YEAR($I70)))/100)) -> 1 | O70: =IF($J70<DATE(O$3,12,31),1, IF($G70="Physical",0, OFFSET(Project_characteristics!$C$1, SUMIFS(Positions_disbursement!$C$1:$C$14,Positions_disbursement!$B$1:$B$14,Achievement_to_date_ongoing!$D70,Positions_disbursement!$A$1:$A$14,Achievement_to_date_ongoing!$C70), MAX(0,O$3-YEAR($I70)))/100)) -> 1 | P70: =IF($J70<DATE(P$3,12,31),1, IF($G70="Physical",0, OFFSET(Project_characteristics!$C$1, SUMIFS(Positions_disbursement!$C$1:$C$14,Positions_disbursement!$B$1:$B$14,Achievement_to_date_ongoing!$D70,Positions_disbursement!$A$1:$A$14,Achievement_to_date_ongoing!$C70), MAX(0,P$3-YEAR($I70)))/100)) -> 1
B71: 119143 | C71: 2 | D71: (a) | E71: F | F71: Less developed | G71: Financial | H71: 2039093.28 | I71: 2017-10-01 | J71: 2023-12-31 | K71: 90645827.62 | M71: =IF($J71<DATE(M$3,12,31),1, IF($G71="Physical",0, OFFSET(Project_characteristics!$C$1, SUMIFS(Positions_disbursement!$C$1:$C$14,Positions_disbursement!$B$1:$B$14,Achievement_to_date_ongoing!$D71,Positions_disbursement!$A$1:$A$14,Achievement_to_date_ongoing!$C71), MAX(0,M$3-YEAR($I71)))/100)) -> 0.3377038335 | N71: =IF($J71<DATE(N$3,12,31),1, IF($G71="Physical",0, OFFSET(Project_characteristics!$C$1, SUMIFS(Positions_disbursement!$C$1:$C$14,Positions_disbursement!$B$1:$B$14,Achievement_to_date_ongoing!$D71,Positions_disbursement!$A$1:$A$14,Achievement_to_date_ongoing!$C71), MAX(0,N$3-YEAR($I71)))/100)) -> 0.6624739783 | O71: =IF($J71<DATE(O$3,12,31),1, IF($G71="Physical",0, OFFSET(Project_characteristics!$C$1, SUMIFS(Positions_disbursement!$C$1:$C$14,Positions_disbursement!$B$1:$B$14,Achievement_to_date_ongoing!$D71,Positions_disbursement!$A$1:$A$14,Achievement_to_date_ongoing!$C71), MAX(0,O$3-YEAR($I71)))/100)) -> 1 | P71: =IF($J71<DATE(P$3,12,31),1, IF($G71="Physical",0, OFFSET(Project_characteristics!$C$1, SUMIFS(Positions_disbursement!$C$1:$C$14,Positions_disbursement!$B$1:$B$14,Achievement_to_date_ongoing!$D71,Positions_disbursement!$A$1:$A$14,Achievement_to_date_ongoing!$C71), MAX(0,P$3-YEAR($I71)))/100)) -> 1
B72: 121490 | C72: 2 | D72: (a) | E72: F | F72: Less developed | G72: Financial | H72: 14911341.05 | I72: 2014-01-01 | J72: 2022-12-31 | K72: 35409232.79 | M72: =IF($J72<DATE(M$3,12,31),1, IF($G72="Physical",0, OFFSET(Project_characteristics!$C$1, SUMIFS(Positions_disbursement!$C$1:$C$14,Positions_disbursement!$B$1:$B$14,Achievement_to_date_ongoing!$D72,Positions_disbursement!$A$1:$A$14,Achievement_to_date_ongoing!$C72), MAX(0,M$3-YEAR($I72)))/100)) -> 1 | N72: =IF($J72<DATE(N$3,12,31),1, IF($G72="Physical",0, OFFSET(Project_characteristics!$C$1, SUMIFS(Positions_disbursement!$C$1:$C$14,Positions_disbursement!$B$1:$B$14,Achievement_to_date_ongoing!$D72,Positions_disbursement!$A$1:$A$14,Achievement_to_date_ongoing!$C72), MAX(0,N$3-YEAR($I72)))/100)) -> 1 | O72: =IF($J72<DATE(O$3,12,31),1, IF($G72="Physical",0, OFFSET(Project_characteristics!$C$1, SUMIFS(Positions_disbursement!$C$1:$C$14,Positions_disbursement!$B$1:$B$14,Achievement_to_date_ongoing!$D72,Positions_disbursement!$A$1:$A$14,Achievement_to_date_ongoing!$C72), MAX(0,O$3-YEAR($I72)))/100)) -> 1 | P72: =IF($J72<DATE(P$3,12,31),1, IF($G72="Physical",0, OFFSET(Project_characteristics!$C$1, SUMIFS(Positions_disbursement!$C$1:$C$14,Positions_disbursement!$B$1:$B$14,Achievement_to_date_ongoing!$D72,Positions_disbursement!$A$1:$A$14,Achievement_to_date_ongoing!$C72), MAX(0,P$3-YEAR($I72)))/100)) -> 1
B73: 118317 | C73: 2 | D73: (a) | E73: F | F73: Less developed | G73: Financial | H73: 784768671.7 | I73: 2014-01-01 | J73: 2023-11-30 | K73: 912415407 | M73: =IF($J73<DATE(M$3,12,31),1, IF($G73="Physical",0, OFFSET(Project_characteristics!$C$1, SUMIFS(Positions_disbursement!$C$1:$C$14,Positions_disbursement!$B$1:$B$14,Achievement_to_date_ongoing!$D73,Positions_disbursement!$A$1:$A$14,Achievement_to_date_ongoing!$C73), MAX(0,M$3-YEAR($I73)))/100)) -> 1 | N73: =IF($J73<DATE(N$3,12,31),1, IF($G73="Physical",0, OFFSET(Project_characteristics!$C$1, SUMIFS(Positions_disbursement!$C$1:$C$14,Positions_disbursement!$B$1:$B$14,Achievement_to_date_ongoing!$D73,Positions_disbursement!$A$1:$A$14,Achievement_to_date_ongoing!$C73), MAX(0,N$3-YEAR($I73)))/100)) -> 1 | O73: =IF($J73<DATE(O$3,12,31),1, IF($G73="Physical",0, OFFSET(Project_characteristics!$C$1, SUMIFS(Positions_disbursement!$C$1:$C$14,Positions_disbursement!$B$1:$B$14,Achievement_to_date_ongoing!$D73,Positions_disbursement!$A$1:$A$14,Achievement_to_date_ongoing!$C73), MAX(0,O$3-YEAR($I73)))/100)) -> 1 | P73: =IF($J73<DATE(P$3,12,31),1, IF($G73="Physical",0, OFFSET(Project_characteristics!$C$1, SUMIFS(Positions_disbursement!$C$1:$C$14,Positions_disbursement!$B$1:$B$14,Achievement_to_date_ongoing!$D73,Positions_disbursement!$A$1:$A$14,Achievement_to_date_ongoing!$C73), MAX(0,P$3-YEAR($I73)))/100)) -> 1
B74: 129377 | C74: 2 | D74: (a) | E74: F | F74: Less developed | G74: Financial | H74: 57209910.28 | I74: 2018-12-20 | J74: 2023-12-31 | K74: 93363339.97 | M74: =IF($J74<DATE(M$3,12,31),1, IF($G74="Physical",0, OFFSET(Project_characteristics!$C$1, SUMIFS(Positions_disbursement!$C$1:$C$14,Positions_disbursement!$B$1:$B$14,Achievement_to_date_ongoing!$D74,Positions_disbursement!$A$1:$A$14,Achievement_to_date_ongoing!$C74), MAX(0,M$3-YEAR($I74)))/100)) -> 0.172148466 | N74: =IF($J74<DATE(N$3,12,31),1, IF($G74="Physical",0, OFFSET(Project_characteristics!$C$1, SUMIFS(Positions_disbursement!$C$1:$C$14,Positions_disbursement!$B$1:$B$14,Achievement_to_date_ongoing!$D74,Positions_disbursement!$A$1:$A$14,Achievement_to_date_ongoing!$C74), MAX(0,N$3-YEAR($I74)))/100)) -> 0.3377038335 | O74: =IF($J74<DATE(O$3,12,31),1, IF($G74="Physical",0, OFFSET(Project_characteristics!$C$1, SUMIFS(Positions_disbursement!$C$1:$C$14,Positions_disbursement!$B$1:$B$14,Achievement_to_date_ongoing!$D74,Positions_disbursement!$A$1:$A$14,Achievement_to_date_ongoing!$C74), MAX(0,O$3-YEAR($I74)))/100)) -> 0.6624739783 | P74: =IF($J74<DATE(P$3,12,31),1, IF($G74="Physical",0, OFFSET(Project_characteristics!$C$1, SUMIFS(Positions_disbursement!$C$1:$C$14,Positions_disbursement!$B$1:$B$14,Achievement_to_date_ongoing!$D74,Positions_disbursement!$A$1:$A$14,Achievement_to_date_ongoing!$C74), MAX(0,P$3-YEAR($I74)))/100)) -> 1
B75: 119822 | C75: 2 | D75: (a) | E75: F | F75: Less developed | G75: Financial | H75: 725805.6 | I75: 2018-05-21 | J75: 2021-06-30 | K75: 725805.6 | M75: =IF($J75<DATE(M$3,12,31),1, IF($G75="Physical",0, OFFSET(Project_characteristics!$C$1, SUMIFS(Positions_disbursement!$C$1:$C$14,Positions_disbursement!$B$1:$B$14,Achievement_to_date_ongoing!$D75,Positions_disbursement!$A$1:$A$14,Achievement_to_date_ongoing!$C75), MAX(0,M$3-YEAR($I75)))/100)) -> 0.172148466 | N75: =IF($J75<DATE(N$3,12,31),1, IF($G75="Physical",0, OFFSET(Project_characteristics!$C$1, SUMIFS(Positions_disbursement!$C$1:$C$14,Positions_disbursement!$B$1:$B$14,Achievement_to_date_ongoing!$D75,Positions_disbursement!$A$1:$A$14,Achievement_to_date_ongoing!$C75), MAX(0,N$3-YEAR($I75)))/100)) -> 1 | O75: =IF($J75<DATE(O$3,12,31),1, IF($G75="Physical",0, OFFSET(Project_characteristics!$C$1, SUMIFS(Positions_disbursement!$C$1:$C$14,Positions_disbursement!$B$1:$B$14,Achievement_to_date_ongoing!$D75,Positions_disbursement!$A$1:$A$14,Achievement_to_date_ongoing!$C75), MAX(0,O$3-YEAR($I75)))/100)) -> 1 | P75: =IF($J75<DATE(P$3,12,31),1, IF($G75="Physical",0, OFFSET(Project_characteristics!$C$1, SUMIFS(Positions_disbursement!$C$1:$C$14,Positions_disbursement!$B$1:$B$14,Achievement_to_date_ongoing!$D75,Positions_disbursement!$A$1:$A$14,Achievement_to_date_ongoing!$C75), MAX(0,P$3-YEAR($I75)))/100)) -> 1
B76: 112112 | C76: 2 | D76: (b) | E76: F | F76: Less developed | G76: Financial | H76: 174822019.1 | I76: 2014-01-01 | J76: 2020-12-31 | K76: 262190005 | M76: =IF($J76<DATE(M$3,12,31),1, IF($G76="Physical",0, OFFSET(Project_characteristics!$C$1, SUMIFS(Positions_disbursement!$C$1:$C$14,Positions_disbursement!$B$1:$B$14,Achievement_to_date_ongoing!$D76,Positions_disbursement!$A$1:$A$14,Achievement_to_date_ongoing!$C76), MAX(0,M$3-YEAR($I76)))/100)) -> 1 | N76: =IF($J76<DATE(N$3,12,31),1, IF($G76="Physical",0, OFFSET(Project_characteristics!$C$1, SUMIFS(Positions_disbursement!$C$1:$C$14,Positions_disbursement!$B$1:$B$14,Achievement_to_date_ongoing!$D76,Positions_disbursement!$A$1:$A$14,Achievement_to_date_ongoing!$C76), MAX(0,N$3-YEAR($I76)))/100)) -> 1 | O76: =IF($J76<DATE(O$3,12,31),1, IF($G76="Physical",0, OFFSET(Project_characteristics!$C$1, SUMIFS(Positions_disbursement!$C$1:$C$14,Positions_disbursement!$B$1:$B$14,Achievement_to_date_ongoing!$D76,Positions_disbursement!$A$1:$A$14,Achievement_to_date_ongoing!$C76), MAX(0,O$3-YEAR($I76)))/100)) -> 1 | P76: =IF($J76<DATE(P$3,12,31),1, IF($G76="Physical",0, OFFSET(Project_characteristics!$C$1, SUMIFS(Positions_disbursement!$C$1:$C$14,Positions_disbursement!$B$1:$B$14,Achievement_to_date_ongoing!$D76,Positions_disbursement!$A$1:$A$14,Achievement_to_date_ongoing!$C76), MAX(0,P$3-YEAR($I76)))/100)) -> 1
B77: 121316 | C77: 2 | D77: (b) | E77: F | F77: Less developed | G77: Financial | H77: 531334.55 | I77: 2015-04-01 | J77: 2021-12-31 | K77: 704023.862 | M77: =IF($J77<DATE(M$3,12,31),1, IF($G77="Physical",0, OFFSET(Project_characteristics!$C$1, SUMIFS(Positions_disbursement!$C$1:$C$14,Positions_disbursement!$B$1:$B$14,Achievement_to_date_ongoing!$D77,Positions_disbursement!$A$1:$A$14,Achievement_to_date_ongoing!$C77), MAX(0,M$3-YEAR($I77)))/100)) -> 1 | N77: =IF($J77<DATE(N$3,12,31),1, IF($G77="Physical",0, OFFSET(Project_characteristics!$C$1, SUMIFS(Positions_disbursement!$C$1:$C$14,Positions_disbursement!$B$1:$B$14,Achievement_to_date_ongoing!$D77,Positions_disbursement!$A$1:$A$14,Achievement_to_date_ongoing!$C77), MAX(0,N$3-YEAR($I77)))/100)) -> 1 | O77: =IF($J77<DATE(O$3,12,31),1, IF($G77="Physical",0, OFFSET(Project_characteristics!$C$1, SUMIFS(Positions_disbursement!$C$1:$C$14,Positions_disbursement!$B$1:$B$14,Achievement_to_date_ongoing!$D77,Positions_disbursement!$A$1:$A$14,Achievement_to_date_ongoing!$C77), MAX(0,O$3-YEAR($I77)))/100)) -> 1 | P77: =IF($J77<DATE(P$3,12,31),1, IF($G77="Physical",0, OFFSET(Project_characteristics!$C$1, SUMIFS(Positions_disbursement!$C$1:$C$14,Positions_disbursement!$B$1:$B$14,Achievement_to_date_ongoing!$D77,Positions_disbursement!$A$1:$A$14,Achievement_to_date_ongoing!$C77), MAX(0,P$3-YEAR($I77)))/100)) -> 1
B78: 115371 | C78: 2 | D78: (b) | E78: F | F78: Less developed | G78: Financial | H78: 64786.68 | I78: 2014-01-01 | J78: 2020-12-31 | K78: 25309185.38 | M78: =IF($J78<DATE(M$3,12,31),1, IF($G78="Physical",0, OFFSET(Project_characteristics!$C$1, SUMIFS(Positions_disbursement!$C$1:$C$14,Positions_disbursement!$B$1:$B$14,Achievement_to_date_ongoing!$D78,Positions_disbursement!$A$1:$A$14,Achievement_to_date_ongoing!$C78), MAX(0,M$3-YEAR($I78)))/100)) -> 1 | N78: =IF($J78<DATE(N$3,12,31),1, IF($G78="Physical",0, OFFSET(Project_characteristics!$C$1, SUMIFS(Positions_disbursement!$C$1:$C$14,Positions_disbursement!$B$1:$B$14,Achievement_to_date_ongoing!$D78,Positions_disbursement!$A$1:$A$14,Achievement_to_date_ongoing!$C78), MAX(0,N$3-YEAR($I78)))/100)) -> 1 | O78: =IF($J78<DATE(O$3,12,31),1, IF($G78="Physical",0, OFFSET(Project_characteristics!$C$1, SUMIFS(Positions_disbursement!$C$1:$C$14,Positions_disbursement!$B$1:$B$14,Achievement_to_date_ongoing!$D78,Positions_disbursement!$A$1:$A$14,Achievement_to_date_ongoing!$C78), MAX(0,O$3-YEAR($I78)))/100)) -> 1 | P78: =IF($J78<DATE(P$3,12,31),1, IF($G78="Physical",0, OFFSET(Project_characteristics!$C$1, SUMIFS(Positions_disbursement!$C$1:$C$14,Positions_disbursement!$B$1:$B$14,Achievement_to_date_ongoing!$D78,Positions_disbursement!$A$1:$A$14,Achievement_to_date_ongoing!$C78), MAX(0,P$3-YEAR($I78)))/100)) -> 1
B79: 117897 | C79: 2 | D79: (b) | E79: F | F79: Less developed | G79: Financial | H79: 2719743.37 | I79: 2009-09-26 | J79: 2021-06-30 | K79: 169165446.8 | M79: =IF($J79<DATE(M$3,12,31),1, IF($G79="Physical",0, OFFSET(Project_characteristics!$C$1, SUMIFS(Positions_disbursement!$C$1:$C$14,Positions_disbursement!$B$1:$B$14,Achievement_to_date_ongoing!$D79,Positions_disbursement!$A$1:$A$14,Achievement_to_date_ongoing!$C79), MAX(0,M$3-YEAR($I79)))/100)) -> 0 | N79: =IF($J79<DATE(N$3,12,31),1, IF($G79="Physical",0, OFFSET(Project_characteristics!$C$1, SUMIFS(Positions_disbursement!$C$1:$C$14,Positions_disbursement!$B$1:$B$14,Achievement_to_date_ongoing!$D79,Positions_disbursement!$A$1:$A$14,Achievement_to_date_ongoing!$C79), MAX(0,N$3-YEAR($I79)))/100)) -> 1 | O79: =IF($J79<DATE(O$3,12,31),1, IF($G79="Physical",0, OFFSET(Project_characteristics!$C$1, SUMIFS(Positions_disbursement!$C$1:$C$14,Positions_disbursement!$B$1:$B$14,Achievement_to_date_ongoing!$D79,Positions_disbursement!$A$1:$A$14,Achievement_to_date_ongoing!$C79), MAX(0,O$3-YEAR($I79)))/100)) -> 1 | P79: =IF($J79<DATE(P$3,12,31),1, IF($G79="Physical",0, OFFSET(Project_characteristics!$C$1, SUMIFS(Positions_disbursement!$C$1:$C$14,Positions_disbursement!$B$1:$B$14,Achievement_to_date_ongoing!$D79,Positions_disbursement!$A$1:$A$14,Achievement_to_date_ongoing!$C79), MAX(0,P$3-YEAR($I79)))/100)) -> 1
B80: 131317 | C80: 2 | D80: (c) | E80: F | F80: Less developed | G80: Financial | H80: 3346493.248 | I80: 2018-11-05 | J80: 2020-08-31 | K80: 3937050.88 | M80: =IF($J80<DATE(M$3,12,31),1, IF($G80="Physical",0, OFFSET(Project_characteristics!$C$1, SUMIFS(Positions_disbursement!$C$1:$C$14,Positions_disbursement!$B$1:$B$14,Achievement_to_date_ongoing!$D80,Positions_disbursement!$A$1:$A$14,Achievement_to_date_ongoing!$C80), MAX(0,M$3-YEAR($I80)))/100)) -> 1 | N80: =IF($J80<DATE(N$3,12,31),1, IF($G80="Physical",0, OFFSET(Project_characteristics!$C$1, SUMIFS(Positions_disbursement!$C$1:$C$14,Positions_disbursement!$B$1:$B$14,Achievement_to_date_ongoing!$D80,Positions_disbursement!$A$1:$A$14,Achievement_to_date_ongoing!$C80), MAX(0,N$3-YEAR($I80)))/100)) -> 1 | O80: =IF($J80<DATE(O$3,12,31),1, IF($G80="Physical",0, OFFSET(Project_characteristics!$C$1, SUMIFS(Positions_disbursement!$C$1:$C$14,Positions_disbursement!$B$1:$B$14,Achievement_to_date_ongoing!$D80,Positions_disbursement!$A$1:$A$14,Achievement_to_date_ongoing!$C80), MAX(0,O$3-YEAR($I80)))/100)) -> 1 | P80: =IF($J80<DATE(P$3,12,31),1, IF($G80="Physical",0, OFFSET(Project_characteristics!$C$1, SUMIFS(Positions_disbursement!$C$1:$C$14,Positions_disbursement!$B$1:$B$14,Achievement_to_date_ongoing!$D80,Positions_disbursement!$A$1:$A$14,Achievement_to_date_ongoing!$C80), MAX(0,P$3-YEAR($I80)))/100)) -> 1
B81: 118184 | C81: 2 | D81: (c) | E81: F | F81: Less developed | G81: Financial | H81: 40948205.7 | I81: 2014-01-01 | J81: 2021-10-30 | K81: 48174359.65 | M81: =IF($J81<DATE(M$3,12,31),1, IF($G81="Physical",0, OFFSET(Project_characteristics!$C$1, SUMIFS(Positions_disbursement!$C$1:$C$14,Positions_disbursement!$B$1:$B$14,Achievement_to_date_ongoing!$D81,Positions_disbursement!$A$1:$A$14,Achievement_to_date_ongoing!$C81), MAX(0,M$3-YEAR($I81)))/100)) -> 1 | N81: =IF($J81<DATE(N$3,12,31),1, IF($G81="Physical",0, OFFSET(Project_characteristics!$C$1, SUMIFS(Positions_disbursement!$C$1:$C$14,Positions_disbursement!$B$1:$B$14,Achievement_to_date_ongoing!$D81,Positions_disbursement!$A$1:$A$14,Achievement_to_date_ongoing!$C81), MAX(0,N$3-YEAR($I81)))/100)) -> 1 | O81: =IF($J81<DATE(O$3,12,31),1, IF($G81="Physical",0, OFFSET(Project_characteristics!$C$1, SUMIFS(Positions_disbursement!$C$1:$C$14,Positions_disbursement!$B$1:$B$14,Achievement_to_date_ongoing!$D81,Positions_disbursement!$A$1:$A$14,Achievement_to_date_ongoing!$C81), MAX(0,O$3-YEAR($I81)))/100)) -> 1 | P81: =IF($J81<DATE(P$3,12,31),1, IF($G81="Physical",0, OFFSET(Project_characteristics!$C$1, SUMIFS(Positions_disbursement!$C$1:$C$14,Positions_disbursement!$B$1:$B$14,Achievement_to_date_ongoing!$D81,Positions_disbursement!$A$1:$A$14,Achievement_to_date_ongoing!$C81), MAX(0,P$3-YEAR($I81)))/100)) -> 1
B82: 129636 | C82: 2 | D82: (c) | E82: F | F82: Less developed | G82: Financial | H82: 5971229.436 | I82: 2017-09-01 | J82: 2022-12-31 | K82: 77957948.77 | M82: =IF($J82<DATE(M$3,12,31),1, IF($G82="Physical",0, OFFSET(Project_characteristics!$C$1, SUMIFS(Positions_disbursement!$C$1:$C$14,Positions_disbursement!$B$1:$B$14,Achievement_to_date_ongoing!$D82,Positions_disbursement!$A$1:$A$14,Achievement_to_date_ongoing!$C82), MAX(0,M$3-YEAR($I82)))/100)) -> 0.7139759505 | N82: =IF($J82<DATE(N$3,12,31),1, IF($G82="Physical",0, OFFSET(Project_characteristics!$C$1, SUMIFS(Positions_disbursement!$C$1:$C$14,Positions_disbursement!$B$1:$B$14,Achievement_to_date_ongoing!$D82,Positions_disbursement!$A$1:$A$14,Achievement_to_date_ongoing!$C82), MAX(0,N$3-YEAR($I82)))/100)) -> 1 | O82: =IF($J82<DATE(O$3,12,31),1, IF($G82="Physical",0, OFFSET(Project_characteristics!$C$1, SUMIFS(Positions_disbursement!$C$1:$C$14,Positions_disbursement!$B$1:$B$14,Achievement_to_date_ongoing!$D82,Positions_disbursement!$A$1:$A$14,Achievement_to_date_ongoing!$C82), MAX(0,O$3-YEAR($I82)))/100)) -> 1 | P82: =IF($J82<DATE(P$3,12,31),1, IF($G82="Physical",0, OFFSET(Project_characteristics!$C$1, SUMIFS(Positions_disbursement!$C$1:$C$14,Positions_disbursement!$B$1:$B$14,Achievement_to_date_ongoing!$D82,Positions_disbursement!$A$1:$A$14,Achievement_to_date_ongoing!$C82), MAX(0,P$3-YEAR($I82)))/100)) -> 1
B83: 123542 | C83: 2 | D83: (c) | E83: F | F83: Less developed | G83: Financial | H83: 7494322.76 | I83: 2017-11-29 | J83: 2023-12-31 | K83: 34064667.34 | M83: =IF($J83<DATE(M$3,12,31),1, IF($G83="Physical",0, OFFSET(Project_characteristics!$C$1, SUMIFS(Positions_disbursement!$C$1:$C$14,Positions_disbursement!$B$1:$B$14,Achievement_to_date_ongoing!$D83,Positions_disbursement!$A$1:$A$14,Achievement_to_date_ongoing!$C83), MAX(0,M$3-YEAR($I83)))/100)) -> 0.7139759505 | N83: =IF($J83<DATE(N$3,12,31),1, IF($G83="Physical",0, OFFSET(Project_characteristics!$C$1, SUMIFS(Positions_disbursement!$C$1:$C$14,Positions_disbursement!$B$1:$B$14,Achievement_to_date_ongoing!$D83,Positions_disbursement!$A$1:$A$14,Achievement_to_date_ongoing!$C83), MAX(0,N$3-YEAR($I83)))/100)) -> 1 | O83: =IF($J83<DATE(O$3,12,31),1, IF($G83="Physical",0, OFFSET(Project_characteristics!$C$1, SUMIFS(Positions_disbursement!$C$1:$C$14,Positions_disbursement!$B$1:$B$14,Achievement_to_date_ongoing!$D83,Positions_disbursement!$A$1:$A$14,Achievement_to_date_ongoing!$C83), MAX(0,O$3-YEAR($I83)))/100)) -> 1 | P83: =IF($J83<DATE(P$3,12,31),1, IF($G83="Physical",0, OFFSET(Project_characteristics!$C$1, SUMIFS(Positions_disbursement!$C$1:$C$14,Positions_disbursement!$B$1:$B$14,Achievement_to_date_ongoing!$D83,Positions_disbursement!$A$1:$A$14,Achievement_to_date_ongoing!$C83), MAX(0,P$3-YEAR($I83)))/100)) -> 1
B84: 125198 | C84: 2 | D84: (c) | E84: F | F84: Less developed | G84: Financial | H84: 102816.4965 | I84: 2017-11-01 | J84: 2021-05-31 | K84: 13888950.11 | M84: =IF($J84<DATE(M$3,12,31),1, IF($G84="Physical",0, OFFSET(Project_characteristics!$C$1, SUMIFS(Positions_disbursement!$C$1:$C$14,Positions_disbursement!$B$1:$B$14,Achievement_to_date_ongoing!$D84,Positions_disbursement!$A$1:$A$14,Achievement_to_date_ongoing!$C84), MAX(0,M$3-YEAR($I84)))/100)) -> 0.7139759505 | N84: =IF($J84<DATE(N$3,12,31),1, IF($G84="Physical",0, OFFSET(Project_characteristics!$C$1, SUMIFS(Positions_disbursement!$C$1:$C$14,Positions_disbursement!$B$1:$B$14,Achievement_to_date_ongoing!$D84,Positions_disbursement!$A$1:$A$14,Achievement_to_date_ongoing!$C84), MAX(0,N$3-YEAR($I84)))/100)) -> 1 | O84: =IF($J84<DATE(O$3,12,31),1, IF($G84="Physical",0, OFFSET(Project_characteristics!$C$1, SUMIFS(Positions_disbursement!$C$1:$C$14,Positions_disbursement!$B$1:$B$14,Achievement_to_date_ongoing!$D84,Positions_disbursement!$A$1:$A$14,Achievement_to_date_ongoing!$C84), MAX(0,O$3-YEAR($I84)))/100)) -> 1 | P84: =IF($J84<DATE(P$3,12,31),1, IF($G84="Physical",0, OFFSET(Project_characteristics!$C$1, SUMIFS(Positions_disbursement!$C$1:$C$14,Positions_disbursement!$B$1:$B$14,Achievement_to_date_ongoing!$D84,Positions_disbursement!$A$1:$A$14,Achievement_to_date_ongoing!$C84), MAX(0,P$3-YEAR($I84)))/100)) -> 1
B85: 125945 | C85: 2 | D85: (c) | E85: F | F85: Less developed | G85: Financial | H85: 1416325.32 | I85: 2014-01-01 | J85: 2021-07-06 | K85: 92981187.81 | M85: =IF($J85<DATE(M$3,12,31),1, IF($G85="Physical",0, OFFSET(Project_characteristics!$C$1, SUMIFS(Positions_disbursement!$C$1:$C$14,Positions_disbursement!$B$1:$B$14,Achievement_to_date_ongoing!$D85,Positions_disbursement!$A$1:$A$14,Achievement_to_date_ongoing!$C85), MAX(0,M$3-YEAR($I85)))/100)) -> 1 | N85: =IF($J85<DATE(N$3,12,31),1, IF($G85="Physical",0, OFFSET(Project_characteristics!$C$1, SUMIFS(Positions_disbursement!$C$1:$C$14,Positions_disbursement!$B$1:$B$14,Achievement_to_date_ongoing!$D85,Positions_disbursement!$A$1:$A$14,Achievement_to_date_ongoing!$C85), MAX(0,N$3-YEAR($I85)))/100)) -> 1 | O85: =IF($J85<DATE(O$3,12,31),1, IF($G85="Physical",0, OFFSET(Project_characteristics!$C$1, SUMIFS(Positions_disbursement!$C$1:$C$14,Positions_disbursement!$B$1:$B$14,Achievement_to_date_ongoing!$D85,Positions_disbursement!$A$1:$A$14,Achievement_to_date_ongoing!$C85), MAX(0,O$3-YEAR($I85)))/100)) -> 1 | P85: =IF($J85<DATE(P$3,12,31),1, IF($G85="Physical",0, OFFSET(Project_characteristics!$C$1, SUMIFS(Positions_disbursement!$C$1:$C$14,Positions_disbursement!$B$1:$B$14,Achievement_to_date_ongoing!$D85,Positions_disbursement!$A$1:$A$14,Achievement_to_date_ongoing!$C85), MAX(0,P$3-YEAR($I85)))/100)) -> 1
B86: 122664 | C86: 2 | D86: (c) | E86: F | F86: Less developed | G86: Financial | H86: 21400210.49 | I86: 2017-07-31 | J86: 2020-09-30 | K86: 62353106.44 | M86: =IF($J86<DATE(M$3,12,31),1, IF($G86="Physical",0, OFFSET(Project_characteristics!$C$1, SUMIFS(Positions_disbursement!$C$1:$C$14,Positions_disbursement!$B$1:$B$14,Achievement_to_date_ongoing!$D86,Positions_disbursement!$A$1:$A$14,Achievement_to_date_ongoing!$C86), MAX(0,M$3-YEAR($I86)))/100)) -> 1 | N86: =IF($J86<DATE(N$3,12,31),1, IF($G86="Physical",0, OFFSET(Project_characteristics!$C$1, SUMIFS(Positions_disbursement!$C$1:$C$14,Positions_disbursement!$B$1:$B$14,Achievement_to_date_ongoing!$D86,Positions_disbursement!$A$1:$A$14,Achievement_to_date_ongoing!$C86), MAX(0,N$3-YEAR($I86)))/100)) -> 1 | O86: =IF($J86<DATE(O$3,12,31),1, IF($G86="Physical",0, OFFSET(Project_characteristics!$C$1, SUMIFS(Positions_disbursement!$C$1:$C$14,Positions_disbursement!$B$1:$B$14,Achievement_to_date_ongoing!$D86,Positions_disbursement!$A$1:$A$14,Achievement_to_date_ongoing!$C86), MAX(0,O$3-YEAR($I86)))/100)) -> 1 | P86: =IF($J86<DATE(P$3,12,31),1, IF($G86="Physical",0, OFFSET(Project_characteristics!$C$1, SUMIFS(Positions_disbursement!$C$1:$C$14,Positions_disbursement!$B$1:$B$14,Achievement_to_date_ongoing!$D86,Positions_disbursement!$A$1:$A$14,Achievement_to_date_ongoing!$C86), MAX(0,P$3-YEAR($I86)))/100)) -> 1
B87: 103839 | C87: 2 | D87: (c) | E87: F | F87: Less developed | G87: Financial | H87: 19565270.28 | I87: 2016-01-01 | J87: 2020-12-31 | K87: 19565270.28 | M87: =IF($J87<DATE(M$3,12,31),1, IF($G87="Physical",0, OFFSET(Project_characteristics!$C$1, SUMIFS(Positions_disbursement!$C$1:$C$14,Positions_disbursement!$B$1:$B$14,Achievement_to_date_ongoing!$D87,Positions_disbursement!$A$1:$A$14,Achievement_to_date_ongoing!$C87), MAX(0,M$3-YEAR($I87)))/100)) -> 1 | N87: =IF($J87<DATE(N$3,12,31),1, IF($G87="Physical",0, OFFSET(Project_characteristics!$C$1, SUMIFS(Positions_disbursement!$C$1:$C$14,Positions_disbursement!$B$1:$B$14,Achievement_to_date_ongoing!$D87,Positions_disbursement!$A$1:$A$14,Achievement_to_date_ongoing!$C87), MAX(0,N$3-YEAR($I87)))/100)) -> 1 | O87: =IF($J87<DATE(O$3,12,31),1, IF($G87="Physical",0, OFFSET(Project_characteristics!$C$1, SUMIFS(Positions_disbursement!$C$1:$C$14,Positions_disbursement!$B$1:$B$14,Achievement_to_date_ongoing!$D87,Positions_disbursement!$A$1:$A$14,Achievement_to_date_ongoing!$C87), MAX(0,O$3-YEAR($I87)))/100)) -> 1 | P87: =IF($J87<DATE(P$3,12,31),1, IF($G87="Physical",0, OFFSET(Project_characteristics!$C$1, SUMIFS(Positions_disbursement!$C$1:$C$14,Positions_disbursement!$B$1:$B$14,Achievement_to_date_ongoing!$D87,Positions_disbursement!$A$1:$A$14,Achievement_to_date_ongoing!$C87), MAX(0,P$3-YEAR($I87)))/100)) -> 1
B88: 132564 | C88: 2 | D88: (d) | E88: F | F88: Less developed | G88: Financial | H88: 29473098.56 | I88: 2009-04-28 | J88: 2021-09-30 | K88: 29473098.56 | M88: =IF($J88<DATE(M$3,12,31),1, IF($G88="Physical",0, OFFSET(Project_characteristics!$C$1, SUMIFS(Positions_disbursement!$C$1:$C$14,Positions_disbursement!$B$1:$B$14,Achievement_to_date_ongoing!$D88,Positions_disbursement!$A$1:$A$14,Achievement_to_date_ongoing!$C88), MAX(0,M$3-YEAR($I88)))/100)) -> 0 | N88: =IF($J88<DATE(N$3,12,31),1, IF($G88="Physical",0, OFFSET(Project_characteristics!$C$1, SUMIFS(Positions_disbursement!$C$1:$C$14,Positions_disbursement!$B$1:$B$14,Achievement_to_date_ongoing!$D88,Positions_disbursement!$A$1:$A$14,Achievement_to_date_ongoing!$C88), MAX(0,N$3-YEAR($I88)))/100)) -> 1 | O88: =IF($J88<DATE(O$3,12,31),1, IF($G88="Physical",0, OFFSET(Project_characteristics!$C$1, SUMIFS(Positions_disbursement!$C$1:$C$14,Positions_disbursement!$B$1:$B$14,Achievement_to_date_ongoing!$D88,Positions_disbursement!$A$1:$A$14,Achievement_to_date_ongoing!$C88), MAX(0,O$3-YEAR($I88)))/100)) -> 1 | P88: =IF($J88<DATE(P$3,12,31),1, IF($G88="Physical",0, OFFSET(Project_characteristics!$C$1, SUMIFS(Positions_disbursement!$C$1:$C$14,Positions_disbursement!$B$1:$B$14,Achievement_to_date_ongoing!$D88,Positions_disbursement!$A$1:$A$14,Achievement_to_date_ongoing!$C88), MAX(0,P$3-YEAR($I88)))/100)) -> 1
B89: 111698 | C89: 2 | D89: (d) | E89: F | F89: Less developed | G89: Financial | H89: 6719393.77 | I89: 2008-05-18 | J89: 2021-06-28 | K89: 6719393.77 | M89: =IF($J89<DATE(M$3,12,31),1, IF($G89="Physical",0, OFFSET(Project_characteristics!$C$1, SUMIFS(Positions_disbursement!$C$1:$C$14,Positions_disbursement!$B$1:$B$14,Achievement_to_date_ongoing!$D89,Positions_disbursement!$A$1:$A$14,Achievement_to_date_ongoing!$C89), MAX(0,M$3-YEAR($I89)))/100)) -> 0 | N89: =IF($J89<DATE(N$3,12,31),1, IF($G89="Physical",0, OFFSET(Project_characteristics!$C$1, SUMIFS(Positions_disbursement!$C$1:$C$14,Positions_disbursement!$B$1:$B$14,Achievement_to_date_ongoing!$D89,Positions_disbursement!$A$1:$A$14,Achievement_to_date_ongoing!$C89), MAX(0,N$3-YEAR($I89)))/100)) -> 1 | O89: =IF($J89<DATE(O$3,12,31),1, IF($G89="Physical",0, OFFSET(Project_characteristics!$C$1, SUMIFS(Positions_disbursement!$C$1:$C$14,Positions_disbursement!$B$1:$B$14,Achievement_to_date_ongoing!$D89,Positions_disbursement!$A$1:$A$14,Achievement_to_date_ongoing!$C89), MAX(0,O$3-YEAR($I89)))/100)) -> 1 | P89: =IF($J89<DATE(P$3,12,31),1, IF($G89="Physical",0, OFFSET(Project_characteristics!$C$1, SUMIFS(Positions_disbursement!$C$1:$C$14,Positions_disbursement!$B$1:$B$14,Achievement_to_date_ongoing!$D89,Positions_disbursement!$A$1:$A$14,Achievement_to_date_ongoing!$C89), MAX(0,P$3-YEAR($I89)))/100)) -> 1
B90: 114234 | C90: 2 | D90: (d) | E90: F | F90: Less developed | G90: Financial | H90: 15134048.54 | I90: 2008-05-18 | J90: 2020-10-30 | K90: 17861265.19 | M90: =IF($J90<DATE(M$3,12,31),1, IF($G90="Physical",0, OFFSET(Project_characteristics!$C$1, SUMIFS(Positions_disbursement!$C$1:$C$14,Positions_disbursement!$B$1:$B$14,Achievement_to_date_ongoing!$D90,Positions_disbursement!$A$1:$A$14,Achievement_to_date_ongoing!$C90), MAX(0,M$3-YEAR($I90)))/100)) -> 1 | N90: =IF($J90<DATE(N$3,12,31),1, IF($G90="Physical",0, OFFSET(Project_characteristics!$C$1, SUMIFS(Positions_disbursement!$C$1:$C$14,Positions_disbursement!$B$1:$B$14,Achievement_to_date_ongoing!$D90,Positions_disbursement!$A$1:$A$14,Achievement_to_date_ongoing!$C90), MAX(0,N$3-YEAR($I90)))/100)) -> 1 | O90: =IF($J90<DATE(O$3,12,31),1, IF($G90="Physical",0, OFFSET(Project_characteristics!$C$1, SUMIFS(Positions_disbursement!$C$1:$C$14,Positions_disbursement!$B$1:$B$14,Achievement_to_date_ongoing!$D90,Positions_disbursement!$A$1:$A$14,Achievement_to_date_ongoing!$C90), MAX(0,O$3-YEAR($I90)))/100)) -> 1 | P90: =IF($J90<DATE(P$3,12,31),1, IF($G90="Physical",0, OFFSET(Project_characteristics!$C$1, SUMIFS(Positions_disbursement!$C$1:$C$14,Positions_disbursement!$B$1:$B$14,Achievement_to_date_ongoing!$D90,Positions_disbursement!$A$1:$A$14,Achievement_to_date_ongoing!$C90), MAX(0,P$3-YEAR($I90)))/100)) -> 1
B91: 106394 | C91: 3 | D91: (i) | E91: CO17 | F91: All | G91: Physical | H91: 0 | I91: 2015-07-01 | J91: 2020-12-31 | K91: 37797.63178 | M91: =IF($J91<DATE(M$3,12,31),1, IF($G91="Physical",0, OFFSET(Project_characteristics!$C$1, SUMIFS(Positions_disbursement!$C$1:$C$14,Positions_disbursement!$B$1:$B$14,Achievement_to_date_ongoing!$D91,Positions_disbursement!$A$1:$A$14,Achievement_to_date_ongoing!$C91), MAX(0,M$3-YEAR($I91)))/100)) -> 0 | N91: =IF($J91<DATE(N$3,12,31),1, IF($G91="Physical",0, OFFSET(Project_characteristics!$C$1, SUMIFS(Positions_disbursement!$C$1:$C$14,Positions_disbursement!$B$1:$B$14,Achievement_to_date_ongoing!$D91,Positions_disbursement!$A$1:$A$14,Achievement_to_date_ongoing!$C91), MAX(0,N$3-YEAR($I91)))/100)) -> 1 | O91: =IF($J91<DATE(O$3,12,31),1, IF($G91="Physical",0, OFFSET(Project_characteristics!$C$1, SUMIFS(Positions_disbursement!$C$1:$C$14,Positions_disbursement!$B$1:$B$14,Achievement_to_date_ongoing!$D91,Positions_disbursement!$A$1:$A$14,Achievement_to_date_ongoing!$C91), MAX(0,O$3-YEAR($I91)))/100)) -> 1 | P91: =IF($J91<DATE(P$3,12,31),1, IF($G91="Physical",0, OFFSET(Project_characteristics!$C$1, SUMIFS(Positions_disbursement!$C$1:$C$14,Positions_disbursement!$B$1:$B$14,Achievement_to_date_ongoing!$D91,Positions_disbursement!$A$1:$A$14,Achievement_to_date_ongoing!$C91), MAX(0,P$3-YEAR($I91)))/100)) -> 1
B92: 101692 | C92: 3 | D92: (i) | E92: CO17 | F92: All | G92: Physical | H92: 0 | I92: 2016-01-01 | J92: 2022-12-31 | K92: 55070.74307 | M92: =IF($J92<DATE(M$3,12,31),1, IF($G92="Physical",0, OFFSET(Project_characteristics!$C$1, SUMIFS(Positions_disbursement!$C$1:$C$14,Positions_disbursement!$B$1:$B$14,Achievement_to_date_ongoing!$D92,Positions_disbursement!$A$1:$A$14,Achievement_to_date_ongoing!$C92), MAX(0,M$3-YEAR($I92)))/100)) -> 0 | N92: =IF($J92<DATE(N$3,12,31),1, IF($G92="Physical",0, OFFSET(Project_characteristics!$C$1, SUMIFS(Positions_disbursement!$C$1:$C$14,Positions_disbursement!$B$1:$B$14,Achievement_to_date_ongoing!$D92,Positions_disbursement!$A$1:$A$14,Achievement_to_date_ongoing!$C92), MAX(0,N$3-YEAR($I92)))/100)) -> 0 | O92: =IF($J92<DATE(O$3,12,31),1, IF($G92="Physical",0, OFFSET(Project_characteristics!$C$1, SUMIFS(Positions_disbursement!$C$1:$C$14,Positions_disbursement!$B$1:$B$14,Achievement_to_date_ongoing!$D92,Positions_disbursement!$A$1:$A$14,Achievement_to_date_ongoing!$C92), MAX(0,O$3-YEAR($I92)))/100)) -> 0 | P92: =IF($J92<DATE(P$3,12,31),1, IF($G92="Physical",0, OFFSET(Project_characteristics!$C$1, SUMIFS(Positions_disbursement!$C$1:$C$14,Positions_disbursement!$B$1:$B$14,Achievement_to_date_ongoing!$D92,Positions_disbursement!$A$1:$A$14,Achievement_to_date_ongoing!$C92), MAX(0,P$3-YEAR($I92)))/100)) -> 1
B93: 110880 | C93: 3 | D93: (i) | E93: CO17 | F93: All | G93: Physical | H93: 0 | I93: 2014-06-30 | J93: 2020-12-31 | K93: 32883.57017 | M93: =IF($J93<DATE(M$3,12,31),1, IF($G93="Physical",0, OFFSET(Project_characteristics!$C$1, SUMIFS(Positions_disbursement!$C$1:$C$14,Positions_disbursement!$B$1:$B$14,Achievement_to_date_ongoing!$D93,Positions_disbursement!$A$1:$A$14,Achievement_to_date_ongoing!$C93), MAX(0,M$3-YEAR($I93)))/100)) -> 0 | N93: =IF($J93<DATE(N$3,12,31),1, IF($G93="Physical",0, OFFSET(Project_characteristics!$C$1, SUMIFS(Positions_disbursement!$C$1:$C$14,Positions_disbursement!$B$1:$B$14,Achievement_to_date_ongoing!$D93,Positions_disbursement!$A$1:$A$14,Achievement_to_date_ongoing!$C93), MAX(0,N$3-YEAR($I93)))/100)) -> 1 | O93: =IF($J93<DATE(O$3,12,31),1, IF($G93="Physical",0, OFFSET(Project_characteristics!$C$1, SUMIFS(Positions_disbursement!$C$1:$C$14,Positions_disbursement!$B$1:$B$14,Achievement_to_date_ongoing!$D93,Positions_disbursement!$A$1:$A$14,Achievement_to_date_ongoing!$C93), MAX(0,O$3-YEAR($I93)))/100)) -> 1 | P93: =IF($J93<DATE(P$3,12,31),1, IF($G93="Physical",0, OFFSET(Project_characteristics!$C$1, SUMIFS(Positions_disbursement!$C$1:$C$14,Positions_disbursement!$B$1:$B$14,Achievement_to_date_ongoing!$D93,Positions_disbursement!$A$1:$A$14,Achievement_to_date_ongoing!$C93), MAX(0,P$3-YEAR($I93)))/100)) -> 1
B94: 106554 | C94: 3 | D94: (i) | E94: CO17 | F94: All | G94: Physical | H94: 0 | I94: 2014-01-01 | J94: 2020-08-30 | K94: 14871.50224 | M94: =IF($J94<DATE(M$3,12,31),1, IF($G94="Physical",0, OFFSET(Project_characteristics!$C$1, SUMIFS(Positions_disbursement!$C$1:$C$14,Positions_disbursement!$B$1:$B$14,Achievement_to_date_ongoing!$D94,Positions_disbursement!$A$1:$A$14,Achievement_to_date_ongoing!$C94), MAX(0,M$3-YEAR($I94)))/100)) -> 1 | N94: =IF($J94<DATE(N$3,12,31),1, IF($G94="Physical",0, OFFSET(Project_characteristics!$C$1, SUMIFS(Positions_disbursement!$C$1:$C$14,Positions_disbursement!$B$1:$B$14,Achievement_to_date_ongoing!$D94,Positions_disbursement!$A$1:$A$14,Achievement_to_date_ongoing!$C94), MAX(0,N$3-YEAR($I94)))/100)) -> 1 | O94: =IF($J94<DATE(O$3,12,31),1, IF($G94="Physical",0, OFFSET(Project_characteristics!$C$1, SUMIFS(Positions_disbursement!$C$1:$C$14,Positions_disbursement!$B$1:$B$14,Achievement_to_date_ongoing!$D94,Positions_disbursement!$A$1:$A$14,Achievement_to_date_ongoing!$C94), MAX(0,O$3-YEAR($I94)))/100)) -> 1 | P94: =IF($J94<DATE(P$3,12,31),1, IF($G94="Physical",0, OFFSET(Project_characteristics!$C$1, SUMIFS(Positions_disbursement!$C$1:$C$14,Positions_disbursement!$B$1:$B$14,Achievement_to_date_ongoing!$D94,Positions_disbursement!$A$1:$A$14,Achievement_to_date_ongoing!$C94), MAX(0,P$3-YEAR($I94)))/100)) -> 1
B95: 106400 | C95: 3 | D95: (i) | E95: F | F95: All | G95: Financial | H95: 5886482.99 | I95: 2014-01-01 | J95: 2021-12-31 | K95: 11271860.18 | M95: =IF($J95<DATE(M$3,12,31),1, IF($G95="Physical",0, OFFSET(Project_characteristics!$C$1, SUMIFS(Positions_disbursement!$C$1:$C$14,Positions_disbursement!$B$1:$B$14,Achievement_to_date_ongoing!$D95,Positions_disbursement!$A$1:$A$14,Achievement_to_date_ongoing!$C95), MAX(0,M$3-YEAR($I95)))/100)) -> 1 | N95: =IF($J95<DATE(N$3,12,31),1, IF($G95="Physical",0, OFFSET(Project_characteristics!$C$1, SUMIFS(Positions_disbursement!$C$1:$C$14,Positions_disbursement!$B$1:$B$14,Achievement_to_date_ongoing!$D95,Positions_disbursement!$A$1:$A$14,Achievement_to_date_ongoing!$C95), MAX(0,N$3-YEAR($I95)))/100)) -> 1 | O95: =IF($J95<DATE(O$3,12,31),1, IF($G95="Physical",0, OFFSET(Project_characteristics!$C$1, SUMIFS(Positions_disbursement!$C$1:$C$14,Positions_disbursement!$B$1:$B$14,Achievement_to_date_ongoing!$D95,Positions_disbursement!$A$1:$A$14,Achievement_to_date_ongoing!$C95), MAX(0,O$3-YEAR($I95)))/100)) -> 1 | P95: =IF($J95<DATE(P$3,12,31),1, IF($G95="Physical",0, OFFSET(Project_characteristics!$C$1, SUMIFS(Positions_disbursement!$C$1:$C$14,Positions_disbursement!$B$1:$B$14,Achievement_to_date_ongoing!$D95,Positions_disbursement!$A$1:$A$14,Achievement_to_date_ongoing!$C95), MAX(0,P$3-YEAR($I95)))/100)) -> 1
B96: 106394 | C96: 3 | D96: (i) | E96: F | F96: All | G96: Financial | H96: 78994406.84 | I96: 2015-07-01 | J96: 2020-12-31 | K96: 78994406.84 | M96: =IF($J96<DATE(M$3,12,31),1, IF($G96="Physical",0, OFFSET(Project_characteristics!$C$1, SUMIFS(Positions_disbursement!$C$1:$C$14,Positions_disbursement!$B$1:$B$14,Achievement_to_date_ongoing!$D96,Positions_disbursement!$A$1:$A$14,Achievement_to_date_ongoing!$C96), MAX(0,M$3-YEAR($I96)))/100)) -> 1 | N96: =IF($J96<DATE(N$3,12,31),1, IF($G96="Physical",0, OFFSET(Project_characteristics!$C$1, SUMIFS(Positions_disbursement!$C$1:$C$14,Positions_disbursement!$B$1:$B$14,Achievement_to_date_ongoing!$D96,Positions_disbursement!$A$1:$A$14,Achievement_to_date_ongoing!$C96), MAX(0,N$3-YEAR($I96)))/100)) -> 1 | O96: =IF($J96<DATE(O$3,12,31),1, IF($G96="Physical",0, OFFSET(Project_characteristics!$C$1, SUMIFS(Positions_disbursement!$C$1:$C$14,Positions_disbursement!$B$1:$B$14,Achievement_to_date_ongoing!$D96,Positions_disbursement!$A$1:$A$14,Achievement_to_date_ongoing!$C96), MAX(0,O$3-YEAR($I96)))/100)) -> 1 | P96: =IF($J96<DATE(P$3,12,31),1, IF($G96="Physical",0, OFFSET(Project_characteristics!$C$1, SUMIFS(Positions_disbursement!$C$1:$C$14,Positions_disbursement!$B$1:$B$14,Achievement_to_date_ongoing!$D96,Positions_disbursement!$A$1:$A$14,Achievement_to_date_ongoing!$C96), MAX(0,P$3-YEAR($I96)))/100)) -> 1
B97: 108911 | C97: 3 | D97: (i) | E97: F | F97: All | G97: Financial | H97: 4803114.63 | I97: 2014-01-01 | J97: 2023-07-01 | K97: 9948058.722 | M97: =IF($J97<DATE(M$3,12,31),1, IF($G97="Physical",0, OFFSET(Project_characteristics!$C$1, SUMIFS(Positions_disbursement!$C$1:$C$14,Positions_disbursement!$B$1:$B$14,Achievement_to_date_ongoing!$D97,Positions_disbursement!$A$1:$A$14,Achievement_to_date_ongoing!$C97), MAX(0,M$3-YEAR($I97)))/100)) -> 1 | N97: =IF($J97<DATE(N$3,12,31),1, IF($G97="Physical",0, OFFSET(Project_characteristics!$C$1, SUMIFS(Positions_disbursement!$C$1:$C$14,Positions_disbursement!$B$1:$B$14,Achievement_to_date_ongoing!$D97,Positions_disbursement!$A$1:$A$14,Achievement_to_date_ongoing!$C97), MAX(0,N$3-YEAR($I97)))/100)) -> 1 | O97: =IF($J97<DATE(O$3,12,31),1, IF($G97="Physical",0, OFFSET(Project_characteristics!$C$1, SUMIFS(Positions_disbursement!$C$1:$C$14,Positions_disbursement!$B$1:$B$14,Achievement_to_date_ongoing!$D97,Positions_disbursement!$A$1:$A$14,Achievement_to_date_ongoing!$C97), MAX(0,O$3-YEAR($I97)))/100)) -> 1 | P97: =IF($J97<DATE(P$3,12,31),1, IF($G97="Physical",0, OFFSET(Project_characteristics!$C$1, SUMIFS(Positions_disbursement!$C$1:$C$14,Positions_disbursement!$B$1:$B$14,Achievement_to_date_ongoing!$D97,Positions_disbursement!$A$1:$A$14,Achievement_to_date_ongoing!$C97), MAX(0,P$3-YEAR($I97)))/100)) -> 1
B98: 106647 | C98: 3 | D98: (i) | E98: F | F98: All | G98: Financial | H98: 17936096.15 | I98: 2016-08-01 | J98: 2020-11-30 | K98: 17936096.15 | M98: =IF($J98<DATE(M$3,12,31),1, IF($G98="Physical",0, OFFSET(Project_characteristics!$C$1, SUMIFS(Positions_disbursement!$C$1:$C$14,Positions_disbursement!$B$1:$B$14,Achievement_to_date_ongoing!$D98,Positions_disbursement!$A$1:$A$14,Achievement_to_date_ongoing!$C98), MAX(0,M$3-YEAR($I98)))/100)) -> 1 | N98: =IF($J98<DATE(N$3,12,31),1, IF($G98="Physical",0, OFFSET(Project_characteristics!$C$1, SUMIFS(Positions_disbursement!$C$1:$C$14,Positions_disbursement!$B$1:$B$14,Achievement_to_date_ongoing!$D98,Positions_disbursement!$A$1:$A$14,Achievement_to_date_ongoing!$C98), MAX(0,N$3-YEAR($I98)))/100)) -> 1 | O98: =IF($J98<DATE(O$3,12,31),1, IF($G98="Physical",0, OFFSET(Project_characteristics!$C$1, SUMIFS(Positions_disbursement!$C$1:$C$14,Positions_disbursement!$B$1:$B$14,Achievement_to_date_ongoing!$D98,Positions_disbursement!$A$1:$A$14,Achievement_to_date_ongoing!$C98), MAX(0,O$3-YEAR($I98)))/100)) -> 1 | P98: =IF($J98<DATE(P$3,12,31),1, IF($G98="Physical",0, OFFSET(Project_characteristics!$C$1, SUMIFS(Positions_disbursement!$C$1:$C$14,Positions_disbursement!$B$1:$B$14,Achievement_to_date_ongoing!$D98,Positions_disbursement!$A$1:$A$14,Achievement_to_date_ongoing!$C98), MAX(0,P$3-YEAR($I98)))/100)) -> 1
B99: 101692 | C99: 3 | D99: (i) | E99: F | F99: All | G99: Financial | H99: 75806569.4 | I99: 2016-01-01 | J99: 2022-12-31 | K99: 75806569.4 | M99: =IF($J99<DATE(M$3,12,31),1, IF($G99="Physical",0, OFFSET(Project_characteristics!$C$1, SUMIFS(Positions_disbursement!$C$1:$C$14,Positions_disbursement!$B$1:$B$14,Achievement_to_date_ongoing!$D99,Positions_disbursement!$A$1:$A$14,Achievement_to_date_ongoing!$C99), MAX(0,M$3-YEAR($I99)))/100)) -> 0.7694817828 | N99: =IF($J99<DATE(N$3,12,31),1, IF($G99="Physical",0, OFFSET(Project_characteristics!$C$1, SUMIFS(Positions_disbursement!$C$1:$C$14,Positions_disbursement!$B$1:$B$14,Achievement_to_date_ongoing!$D99,Positions_disbursement!$A$1:$A$14,Achievement_to_date_ongoing!$C99), MAX(0,N$3-YEAR($I99)))/100)) -> 1 | O99: =IF($J99<DATE(O$3,12,31),1, IF($G99="Physical",0, OFFSET(Project_characteristics!$C$1, SUMIFS(Positions_disbursement!$C$1:$C$14,Positions_disbursement!$B$1:$B$14,Achievement_to_date_ongoing!$D99,Positions_disbursement!$A$1:$A$14,Achievement_to_date_ongoing!$C99), MAX(0,O$3-YEAR($I99)))/100)) -> 1 | P99: =IF($J99<DATE(P$3,12,31),1, IF($G99="Physical",0, OFFSET(Project_characteristics!$C$1, SUMIFS(Positions_disbursement!$C$1:$C$14,Positions_disbursement!$B$1:$B$14,Achievement_to_date_ongoing!$D99,Positions_disbursement!$A$1:$A$14,Achievement_to_date_ongoing!$C99), MAX(0,P$3-YEAR($I99)))/100)) -> 1
B100: 110880 | C100: 3 | D100: (i) | E100: F | F100: All | G100: Financial | H100: 41762915.89 | I100: 2014-06-30 | J100: 2020-12-31 | K100: 41762915.89 | M100: =IF($J100<DATE(M$3,12,31),1, IF($G100="Physical",0, OFFSET(Project_characteristics!$C$1, SUMIFS(Positions_disbursement!$C$1:$C$14,Positions_disbursement!$B$1:$B$14,Achievement_to_date_ongoing!$D100,Positions_disbursement!$A$1:$A$14,Achievement_to_date_ongoing!$C100), MAX(0,M$3-YEAR($I100)))/100)) -> 1 | N100: =IF($J100<DATE(N$3,12,31),1, IF($G100="Physical",0, OFFSET(Project_characteristics!$C$1, SUMIFS(Positions_disbursement!$C$1:$C$14,Positions_disbursement!$B$1:$B$14,Achievement_to_date_ongoing!$D100,Positions_disbursement!$A$1:$A$14,Achievement_to_date_ongoing!$C100), MAX(0,N$3-YEAR($I100)))/100)) -> 1 | O100: =IF($J100<DATE(O$3,12,31),1, IF($G100="Physical",0, OFFSET(Project_characteristics!$C$1, SUMIFS(Positions_disbursement!$C$1:$C$14,Positions_disbursement!$B$1:$B$14,Achievement_to_date_ongoing!$D100,Positions_disbursement!$A$1:$A$14,Achievement_to_date_ongoing!$C100), MAX(0,O$3-YEAR($I100)))/100)) -> 1 | P100: =IF($J100<DATE(P$3,12,31),1, IF($G100="Physical",0, OFFSET(Project_characteristics!$C$1, SUMIFS(Positions_disbursement!$C$1:$C$14,Positions_disbursement!$B$1:$B$14,Achievement_to_date_ongoing!$D100,Positions_disbursement!$A$1:$A$14,Achievement_to_date_ongoing!$C100), MAX(0,P$3-YEAR($I100)))/100)) -> 1
B101: 106554 | C101: 3 | D101: (i) | E101: F | F101: All | G101: Financial | H101: 70639652.81 | I101: 2014-01-01 | J101: 2020-08-30 | K101: 70639652.81 | M101: =IF($J101<DATE(M$3,12,31),1, IF($G101="Physical",0, OFFSET(Project_characteristics!$C$1, SUMIFS(Positions_disbursement!$C$1:$C$14,Positions_disbursement!$B$1:$B$14,Achievement_to_date_ongoing!$D101,Positions_disbursement!$A$1:$A$14,Achievement_to_date_ongoing!$C101), MAX(0,M$3-YEAR($I101)))/100)) -> 1 | N101: =IF($J101<DATE(N$3,12,31),1, IF($G101="Physical",0, OFFSET(Project_characteristics!$C$1, SUMIFS(Positions_disbursement!$C$1:$C$14,Positions_disbursement!$B$1:$B$14,Achievement_to_date_ongoing!$D101,Positions_disbursement!$A$1:$A$14,Achievement_to_date_ongoing!$C101), MAX(0,N$3-YEAR($I101)))/100)) -> 1 | O101: =IF($J101<DATE(O$3,12,31),1, IF($G101="Physical",0, OFFSET(Project_characteristics!$C$1, SUMIFS(Positions_disbursement!$C$1:$C$14,Positions_disbursement!$B$1:$B$14,Achievement_to_date_ongoing!$D101,Positions_disbursement!$A$1:$A$14,Achievement_to_date_ongoing!$C101), MAX(0,O$3-YEAR($I101)))/100)) -> 1 | P101: =IF($J101<DATE(P$3,12,31),1, IF($G101="Physical",0, OFFSET(Project_characteristics!$C$1, SUMIFS(Positions_disbursement!$C$1:$C$14,Positions_disbursement!$B$1:$B$14,Achievement_to_date_ongoing!$D101,Positions_disbursement!$A$1:$A$14,Achievement_to_date_ongoing!$C101), MAX(0,P$3-YEAR($I101)))/100)) -> 1
B102: 108858 | C102: 3 | D102: (ii) | E102: CO18 | F102: All | G102: Physical | H102: 0 | I102: 2015-04-03 | J102: 2023-12-31 | K102: 44224.52235 | M102: =IF($J102<DATE(M$3,12,31),1, IF($G102="Physical",0, OFFSET(Project_characteristics!$C$1, SUMIFS(Positions_disbursement!$C$1:$C$14,Positions_disbursement!$B$1:$B$14,Achievement_to_date_ongoing!$D102,Positions_disbursement!$A$1:$A$14,Achievement_to_date_ongoing!$C102), MAX(0,M$3-YEAR($I102)))/100)) -> 0 | N102: =IF($J102<DATE(N$3,12,31),1, IF($G102="Physical",0, OFFSET(Project_characteristics!$C$1, SUMIFS(Positions_disbursement!$C$1:$C$14,Positions_disbursement!$B$1:$B$14,Achievement_to_date_ongoing!$D102,Positions_disbursement!$A$1:$A$14,Achievement_to_date_ongoing!$C102), MAX(0,N$3-YEAR($I102)))/100)) -> 0 | O102: =IF($J102<DATE(O$3,12,31),1, IF($G102="Physical",0, OFFSET(Project_characteristics!$C$1, SUMIFS(Positions_disbursement!$C$1:$C$14,Positions_disbursement!$B$1:$B$14,Achievement_to_date_ongoing!$D102,Positions_disbursement!$A$1:$A$14,Achievement_to_date_ongoing!$C102), MAX(0,O$3-YEAR($I102)))/100)) -> 0 | P102: =IF($J102<DATE(P$3,12,31),1, IF($G102="Physical",0, OFFSET(Project_characteristics!$C$1, SUMIFS(Positions_disbursement!$C$1:$C$14,Positions_disbursement!$B$1:$B$14,Achievement_to_date_ongoing!$D102,Positions_disbursement!$A$1:$A$14,Achievement_to_date_ongoing!$C102), MAX(0,P$3-YEAR($I102)))/100)) -> 0
B103: 107453 | C103: 3 | D103: (ii) | E103: CO18 | F103: All | G103: Physical | H103: 0 | I103: 2016-02-01 | J103: 2021-12-31 | K103: 20773.17939 | M103: =IF($J103<DATE(M$3,12,31),1, IF($G103="Physical",0, OFFSET(Project_characteristics!$C$1, SUMIFS(Positions_disbursement!$C$1:$C$14,Positions_disbursement!$B$1:$B$14,Achievement_to_date_ongoing!$D103,Positions_disbursement!$A$1:$A$14,Achievement_to_date_ongoing!$C103), MAX(0,M$3-YEAR($I103)))/100)) -> 0 | N103: =IF($J103<DATE(N$3,12,31),1, IF($G103="Physical",0, OFFSET(Project_characteristics!$C$1, SUMIFS(Positions_disbursement!$C$1:$C$14,Positions_disbursement!$B$1:$B$14,Achievement_to_date_ongoing!$D103,Positions_disbursement!$A$1:$A$14,Achievement_to_date_ongoing!$C103), MAX(0,N$3-YEAR($I103)))/100)) -> 0 | O103: =IF($J103<DATE(O$3,12,31),1, IF($G103="Physical",0, OFFSET(Project_characteristics!$C$1, SUMIFS(Positions_disbursement!$C$1:$C$14,Positions_disbursement!$B$1:$B$14,Achievement_to_date_ongoing!$D103,Positions_disbursement!$A$1:$A$14,Achievement_to_date_ongoing!$C103), MAX(0,O$3-YEAR($I103)))/100)) -> 1 | P103: =IF($J103<DATE(P$3,12,31),1, IF($G103="Physical",0, OFFSET(Project_characteristics!$C$1, SUMIFS(Positions_disbursement!$C$1:$C$14,Positions_disbursement!$B$1:$B$14,Achievement_to_date_ongoing!$D103,Positions_disbursement!$A$1:$A$14,Achievement_to_date_ongoing!$C103), MAX(0,P$3-YEAR($I103)))/100)) -> 1
B104: 105537 | C104: 3 | D104: (ii) | E104: CO18 | F104: All | G104: Physical | H104: 0 | I104: 2015-01-01 | J104: 2020-12-31 | K104: 879.9126107 | M104: =IF($J104<DATE(M$3,12,31),1, IF($G104="Physical",0, OFFSET(Project_characteristics!$C$1, SUMIFS(Positions_disbursement!$C$1:$C$14,Positions_disbursement!$B$1:$B$14,Achievement_to_date_ongoing!$D104,Positions_disbursement!$A$1:$A$14,Achievement_to_date_ongoing!$C104), MAX(0,M$3-YEAR($I104)))/100)) -> 0 | N104: =IF($J104<DATE(N$3,12,31),1, IF($G104="Physical",0, OFFSET(Project_characteristics!$C$1, SUMIFS(Positions_disbursement!$C$1:$C$14,Positions_disbursement!$B$1:$B$14,Achievement_to_date_ongoing!$D104,Positions_disbursement!$A$1:$A$14,Achievement_to_date_ongoing!$C104), MAX(0,N$3-YEAR($I104)))/100)) -> 1 | O104: =IF($J104<DATE(O$3,12,31),1, IF($G104="Physical",0, OFFSET(Project_characteristics!$C$1, SUMIFS(Positions_disbursement!$C$1:$C$14,Positions_disbursement!$B$1:$B$14,Achievement_to_date_ongoing!$D104,Positions_disbursement!$A$1:$A$14,Achievement_to_date_ongoing!$C104), MAX(0,O$3-YEAR($I104)))/100)) -> 1 | P104: =IF($J104<DATE(P$3,12,31),1, IF($G104="Physical",0, OFFSET(Project_characteristics!$C$1, SUMIFS(Positions_disbursement!$C$1:$C$14,Positions_disbursement!$B$1:$B$14,Achievement_to_date_ongoing!$D104,Positions_disbursement!$A$1:$A$14,Achievement_to_date_ongoing!$C104), MAX(0,P$3-YEAR($I104)))/100)) -> 1
B105: 104855 | C105: 3 | D105: (ii) | E105: CO18 | F105: All | G105: Physical | H105: 0 | I105: 2016-10-15 | J105: 2021-10-28 | K105: 24773.70586 | M105: =IF($J105<DATE(M$3,12,31),1, IF($G105="Physical",0, OFFSET(Project_characteristics!$C$1, SUMIFS(Positions_disbursement!$C$1:$C$14,Positions_disbursement!$B$1:$B$14,Achievement_to_date_ongoing!$D105,Positions_disbursement!$A$1:$A$14,Achievement_to_date_ongoing!$C105), MAX(0,M$3-YEAR($I105)))/100)) -> 0 | N105: =IF($J105<DATE(N$3,12,31),1, IF($G105="Physical",0, OFFSET(Project_characteristics!$C$1, SUMIFS(Positions_disbursement!$C$1:$C$14,Positions_disbursement!$B$1:$B$14,Achievement_to_date_ongoing!$D105,Positions_disbursement!$A$1:$A$14,Achievement_to_date_ongoing!$C105), MAX(0,N$3-YEAR($I105)))/100)) -> 1 | O105: =IF($J105<DATE(O$3,12,31),1, IF($G105="Physical",0, OFFSET(Project_characteristics!$C$1, SUMIFS(Positions_disbursement!$C$1:$C$14,Positions_disbursement!$B$1:$B$14,Achievement_to_date_ongoing!$D105,Positions_disbursement!$A$1:$A$14,Achievement_to_date_ongoing!$C105), MAX(0,O$3-YEAR($I105)))/100)) -> 1 | P105: =IF($J105<DATE(P$3,12,31),1, IF($G105="Physical",0, OFFSET(Project_characteristics!$C$1, SUMIFS(Positions_disbursement!$C$1:$C$14,Positions_disbursement!$B$1:$B$14,Achievement_to_date_ongoing!$D105,Positions_disbursement!$A$1:$A$14,Achievement_to_date_ongoing!$C105), MAX(0,P$3-YEAR($I105)))/100)) -> 1
B106: 108100 | C106: 3 | D106: (ii) | E106: CO18 | F106: All | G106: Physical | H106: 0 | I106: 2014-09-01 | J106: 2023-12-31 | K106: 20233.92579 | M106: =IF($J106<DATE(M$3,12,31),1, IF($G106="Physical",0, OFFSET(Project_characteristics!$C$1, SUMIFS(Positions_disbursement!$C$1:$C$14,Positions_disbursement!$B$1:$B$14,Achievement_to_date_ongoing!$D106,Positions_disbursement!$A$1:$A$14,Achievement_to_date_ongoing!$C106), MAX(0,M$3-YEAR($I106)))/100)) -> 0 | N106: =IF($J106<DATE(N$3,12,31),1, IF($G106="Physical",0, OFFSET(Project_characteristics!$C$1, SUMIFS(Positions_disbursement!$C$1:$C$14,Positions_disbursement!$B$1:$B$14,Achievement_to_date_ongoing!$D106,Positions_disbursement!$A$1:$A$14,Achievement_to_date_ongoing!$C106), MAX(0,N$3-YEAR($I106)))/100)) -> 0 | O106: =IF($J106<DATE(O$3,12,31),1, IF($G106="Physical",0, OFFSET(Project_characteristics!$C$1, SUMIFS(Positions_disbursement!$C$1:$C$14,Positions_disbursement!$B$1:$B$14,Achievement_to_date_ongoing!$D106,Positions_disbursement!$A$1:$A$14,Achievement_to_date_ongoing!$C106), MAX(0,O$3-YEAR($I106)))/100)) -> 0 | P106: =IF($J106<DATE(P$3,12,31),1, IF($G106="Physical",0, OFFSET(Project_characteristics!$C$1, SUMIFS(Positions_disbursement!$C$1:$C$14,Positions_disbursement!$B$1:$B$14,Achievement_to_date_ongoing!$D106,Positions_disbursement!$A$1:$A$14,Achievement_to_date_ongoing!$C106), MAX(0,P$3-YEAR($I106)))/100)) -> 0
B107: 105422 | C107: 3 | D107: (ii) | E107: CO18 | F107: All | G107: Physical | H107: 36 | I107: 2014-01-01 | J107: 2021-01-31 | K107: 38.42079208 | M107: =IF($J107<DATE(M$3,12,31),1, IF($G107="Physical",0, OFFSET(Project_characteristics!$C$1, SUMIFS(Positions_disbursement!$C$1:$C$14,Positions_disbursement!$B$1:$B$14,Achievement_to_date_ongoing!$D107,Positions_disbursement!$A$1:$A$14,Achievement_to_date_ongoing!$C107), MAX(0,M$3-YEAR($I107)))/100)) -> 0 | N107: =IF($J107<DATE(N$3,12,31),1, IF($G107="Physical",0, OFFSET(Project_characteristics!$C$1, SUMIFS(Positions_disbursement!$C$1:$C$14,Positions_disbursement!$B$1:$B$14,Achievement_to_date_ongoing!$D107,Positions_disbursement!$A$1:$A$14,Achievement_to_date_ongoing!$C107), MAX(0,N$3-YEAR($I107)))/100)) -> 1 | O107: =IF($J107<DATE(O$3,12,31),1, IF($G107="Physical",0, OFFSET(Project_characteristics!$C$1, SUMIFS(Positions_disbursement!$C$1:$C$14,Positions_disbursement!$B$1:$B$14,Achievement_to_date_ongoing!$D107,Positions_disbursement!$A$1:$A$14,Achievement_to_date_ongoing!$C107), MAX(0,O$3-YEAR($I107)))/100)) -> 1 | P107: =IF($J107<DATE(P$3,12,31),1, IF($G107="Physical",0, OFFSET(Project_characteristics!$C$1, SUMIFS(Positions_disbursement!$C$1:$C$14,Positions_disbursement!$B$1:$B$14,Achievement_to_date_ongoing!$D107,Positions_disbursement!$A$1:$A$14,Achievement_to_date_ongoing!$C107), MAX(0,P$3-YEAR($I107)))/100)) -> 1
B108: 118679 | C108: 3 | D108: (ii) | E108: CO18 | F108: All | G108: Physical | H108: 0 | I108: 2014-10-14 | J108: 2020-12-31 | K108: 3060.019417 | M108: =IF($J108<DATE(M$3,12,31),1, IF($G108="Physical",0, OFFSET(Project_characteristics!$C$1, SUMIFS(Positions_disbursement!$C$1:$C$14,Positions_disbursement!$B$1:$B$14,Achievement_to_date_ongoing!$D108,Positions_disbursement!$A$1:$A$14,Achievement_to_date_ongoing!$C108), MAX(0,M$3-YEAR($I108)))/100)) -> 0 | N108: =IF($J108<DATE(N$3,12,31),1, IF($G108="Physical",0, OFFSET(Project_characteristics!$C$1, SUMIFS(Positions_disbursement!$C$1:$C$14,Positions_disbursement!$B$1:$B$14,Achievement_to_date_ongoing!$D108,Positions_disbursement!$A$1:$A$14,Achievement_to_date_ongoing!$C108), MAX(0,N$3-YEAR($I108)))/100)) -> 1 | O108: =IF($J108<DATE(O$3,12,31),1, IF($G108="Physical",0, OFFSET(Project_characteristics!$C$1, SUMIFS(Positions_disbursement!$C$1:$C$14,Positions_disbursement!$B$1:$B$14,Achievement_to_date_ongoing!$D108,Positions_disbursement!$A$1:$A$14,Achievement_to_date_ongoing!$C108), MAX(0,O$3-YEAR($I108)))/100)) -> 1 | P108: =IF($J108<DATE(P$3,12,31),1, IF($G108="Physical",0, OFFSET(Project_characteristics!$C$1, SUMIFS(Positions_disbursement!$C$1:$C$14,Positions_disbursement!$B$1:$B$14,Achievement_to_date_ongoing!$D108,Positions_disbursement!$A$1:$A$14,Achievement_to_date_ongoing!$C108), MAX(0,P$3-YEAR($I108)))/100)) -> 1
B109: 108771 | C109: 3 | D109: (ii) | E109: CO18 | F109: All | G109: Physical | H109: 0 | I109: 2016-07-01 | J109: 2021-03-31 | K109: 2579.697606 | M109: =IF($J109<DATE(M$3,12,31),1, IF($G109="Physical",0, OFFSET(Project_characteristics!$C$1, SUMIFS(Positions_disbursement!$C$1:$C$14,Positions_disbursement!$B$1:$B$14,Achievement_to_date_ongoing!$D109,Positions_disbursement!$A$1:$A$14,Achievement_to_date_ongoing!$C109), MAX(0,M$3-YEAR($I109)))/100)) -> 0 | N109: =IF($J109<DATE(N$3,12,31),1, IF($G109="Physical",0, OFFSET(Project_characteristics!$C$1, SUMIFS(Positions_disbursement!$C$1:$C$14,Positions_disbursement!$B$1:$B$14,Achievement_to_date_ongoing!$D109,Positions_disbursement!$A$1:$A$14,Achievement_to_date_ongoing!$C109), MAX(0,N$3-YEAR($I109)))/100)) -> 1 | O109: =IF($J109<DATE(O$3,12,31),1, IF($G109="Physical",0, OFFSET(Project_characteristics!$C$1, SUMIFS(Positions_disbursement!$C$1:$C$14,Positions_disbursement!$B$1:$B$14,Achievement_to_date_ongoing!$D109,Positions_disbursement!$A$1:$A$14,Achievement_to_date_ongoing!$C109), MAX(0,O$3-YEAR($I109)))/100)) -> 1 | P109: =IF($J109<DATE(P$3,12,31),1, IF($G109="Physical",0, OFFSET(Project_characteristics!$C$1, SUMIFS(Positions_disbursement!$C$1:$C$14,Positions_disbursement!$B$1:$B$14,Achievement_to_date_ongoing!$D109,Positions_disbursement!$A$1:$A$14,Achievement_to_date_ongoing!$C109), MAX(0,P$3-YEAR($I109)))/100)) -> 1
B110: 126408 | C110: 3 | D110: (ii) | E110: CO18 | F110: All | G110: Physical | H110: 0 | I110: 2019-02-27 | J110: 2023-12-31 | K110: 50282.30409 | M110: =IF($J110<DATE(M$3,12,31),1, IF($G110="Physical",0, OFFSET(Project_characteristics!$C$1, SUMIFS(Positions_disbursement!$C$1:$C$14,Positions_disbursement!$B$1:$B$14,Achievement_to_date_ongoing!$D110,Positions_disbursement!$A$1:$A$14,Achievement_to_date_ongoing!$C110), MAX(0,M$3-YEAR($I110)))/100)) -> 0 | N110: =IF($J110<DATE(N$3,12,31),1, IF($G110="Physical",0, OFFSET(Project_characteristics!$C$1, SUMIFS(Positions_disbursement!$C$1:$C$14,Positions_disbursement!$B$1:$B$14,Achievement_to_date_ongoing!$D110,Positions_disbursement!$A$1:$A$14,Achievement_to_date_ongoing!$C110), MAX(0,N$3-YEAR($I110)))/100)) -> 0 | O110: =IF($J110<DATE(O$3,12,31),1, IF($G110="Physical",0, OFFSET(Project_characteristics!$C$1, SUMIFS(Positions_disbursement!$C$1:$C$14,Positions_disbursement!$B$1:$B$14,Achievement_to_date_ongoing!$D110,Positions_disbursement!$A$1:$A$14,Achievement_to_date_ongoing!$C110), MAX(0,O$3-YEAR($I110)))/100)) -> 0 | P110: =IF($J110<DATE(P$3,12,31),1, IF($G110="Physical",0, OFFSET(Project_characteristics!$C$1, SUMIFS(Positions_disbursement!$C$1:$C$14,Positions_disbursement!$B$1:$B$14,Achievement_to_date_ongoing!$D110,Positions_disbursement!$A$1:$A$14,Achievement_to_date_ongoing!$C110), MAX(0,P$3-YEAR($I110)))/100)) -> 0
B111: 110838 | C111: 3 | D111: (ii) | E111: CO18 | F111: All | G111: Physical | H111: 0 | I111: 2018-01-01 | J111: 2022-12-31 | K111: 12277.39498 | M111: =IF($J111<DATE(M$3,12,31),1, IF($G111="Physical",0, OFFSET(Project_characteristics!$C$1, SUMIFS(Positions_disbursement!$C$1:$C$14,Positions_disbursement!$B$1:$B$14,Achievement_to_date_ongoing!$D111,Positions_disbursement!$A$1:$A$14,Achievement_to_date_ongoing!$C111), MAX(0,M$3-YEAR($I111)))/100)) -> 0 | N111: =IF($J111<DATE(N$3,12,31),1, IF($G111="Physical",0, OFFSET(Project_characteristics!$C$1, SUMIFS(Positions_disbursement!$C$1:$C$14,Positions_disbursement!$B$1:$B$14,Achievement_to_date_ongoing!$D111,Positions_disbursement!$A$1:$A$14,Achievement_to_date_ongoing!$C111), MAX(0,N$3-YEAR($I111)))/100)) -> 0 | O111: =IF($J111<DATE(O$3,12,31),1, IF($G111="Physical",0, OFFSET(Project_characteristics!$C$1, SUMIFS(Positions_disbursement!$C$1:$C$14,Positions_disbursement!$B$1:$B$14,Achievement_to_date_ongoing!$D111,Positions_disbursement!$A$1:$A$14,Achievement_to_date_ongoing!$C111), MAX(0,O$3-YEAR($I111)))/100)) -> 0 | P111: =IF($J111<DATE(P$3,12,31),1, IF($G111="Physical",0, OFFSET(Project_characteristics!$C$1, SUMIFS(Positions_disbursement!$C$1:$C$14,Positions_disbursement!$B$1:$B$14,Achievement_to_date_ongoing!$D111,Positions_disbursement!$A$1:$A$14,Achievement_to_date_ongoing!$C111), MAX(0,P$3-YEAR($I111)))/100)) -> 1
B112: 108495 | C112: 3 | D112: (ii) | E112: CO18 | F112: All | G112: Physical | H112: 0 | I112: 2015-04-01 | J112: 2023-12-31 | K112: 23955.31139 | M112: =IF($J112<DATE(M$3,12,31),1, IF($G112="Physical",0, OFFSET(Project_characteristics!$C$1, SUMIFS(Positions_disbursement!$C$1:$C$14,Positions_disbursement!$B$1:$B$14,Achievement_to_date_ongoing!$D112,Positions_disbursement!$A$1:$A$14,Achievement_to_date_ongoing!$C112), MAX(0,M$3-YEAR($I112)))/100)) -> 0 | N112: =IF($J112<DATE(N$3,12,31),1, IF($G112="Physical",0, OFFSET(Project_characteristics!$C$1, SUMIFS(Positions_disbursement!$C$1:$C$14,Positions_disbursement!$B$1:$B$14,Achievement_to_date_ongoing!$D112,Positions_disbursement!$A$1:$A$14,Achievement_to_date_ongoing!$C112), MAX(0,N$3-YEAR($I112)))/100)) -> 0 | O112: =IF($J112<DATE(O$3,12,31),1, IF($G112="Physical",0, OFFSET(Project_characteristics!$C$1, SUMIFS(Positions_disbursement!$C$1:$C$14,Positions_disbursement!$B$1:$B$14,Achievement_to_date_ongoing!$D112,Positions_disbursement!$A$1:$A$14,Achievement_to_date_ongoing!$C112), MAX(0,O$3-YEAR($I112)))/100)) -> 0 | P112: =IF($J112<DATE(P$3,12,31),1, IF($G112="Physical",0, OFFSET(Project_characteristics!$C$1, SUMIFS(Positions_disbursement!$C$1:$C$14,Positions_disbursement!$B$1:$B$14,Achievement_to_date_ongoing!$D112,Positions_disbursement!$A$1:$A$14,Achievement_to_date_ongoing!$C112), MAX(0,P$3-YEAR($I112)))/100)) -> 0
B113: 115525 | C113: 3 | D113: (ii) | E113: CO18 | F113: All | G113: Physical | H113: 0 | I113: 2015-03-01 | J113: 2023-12-31 | K113: 57059.27537 | M113: =IF($J113<DATE(M$3,12,31),1, IF($G113="Physical",0, OFFSET(Project_characteristics!$C$1, SUMIFS(Positions_disbursement!$C$1:$C$14,Positions_disbursement!$B$1:$B$14,Achievement_to_date_ongoing!$D113,Positions_disbursement!$A$1:$A$14,Achievement_to_date_ongoing!$C113), MAX(0,M$3-YEAR($I113)))/100)) -> 0 | N113: =IF($J113<DATE(N$3,12,31),1, IF($G113="Physical",0, OFFSET(Project_characteristics!$C$1, SUMIFS(Positions_disbursement!$C$1:$C$14,Positions_disbursement!$B$1:$B$14,Achievement_to_date_ongoing!$D113,Positions_disbursement!$A$1:$A$14,Achievement_to_date_ongoing!$C113), MAX(0,N$3-YEAR($I113)))/100)) -> 0 | O113: =IF($J113<DATE(O$3,12,31),1, IF($G113="Physical",0, OFFSET(Project_characteristics!$C$1, SUMIFS(Positions_disbursement!$C$1:$C$14,Positions_disbursement!$B$1:$B$14,Achievement_to_date_ongoing!$D113,Positions_disbursement!$A$1:$A$14,Achievement_to_date_ongoing!$C113), MAX(0,O$3-YEAR($I113)))/100)) -> 0 | P113: =IF($J113<DATE(P$3,12,31),1, IF($G113="Physical",0, OFFSET(Project_characteristics!$C$1, SUMIFS(Positions_disbursement!$C$1:$C$14,Positions_disbursement!$B$1:$B$14,Achievement_to_date_ongoing!$D113,Positions_disbursement!$A$1:$A$14,Achievement_to_date_ongoing!$C113), MAX(0,P$3-YEAR($I113)))/100)) -> 0
B114: 106974 | C114: 3 | D114: (ii) | E114: CO18 | F114: All | G114: Physical | H114: 0 | I114: 2015-09-01 | J114: 2022-12-31 | K114: 9343.182928 | M114: =IF($J114<DATE(M$3,12,31),1, IF($G114="Physical",0, OFFSET(Project_characteristics!$C$1, SUMIFS(Positions_disbursement!$C$1:$C$14,Positions_disbursement!$B$1:$B$14,Achievement_to_date_ongoing!$D114,Positions_disbursement!$A$1:$A$14,Achievement_to_date_ongoing!$C114), MAX(0,M$3-YEAR($I114)))/100)) -> 0 | N114: =IF($J114<DATE(N$3,12,31),1, IF($G114="Physical",0, OFFSET(Project_characteristics!$C$1, SUMIFS(Positions_disbursement!$C$1:$C$14,Positions_disbursement!$B$1:$B$14,Achievement_to_date_ongoing!$D114,Positions_disbursement!$A$1:$A$14,Achievement_to_date_ongoing!$C114), MAX(0,N$3-YEAR($I114)))/100)) -> 0 | O114: =IF($J114<DATE(O$3,12,31),1, IF($G114="Physical",0, OFFSET(Project_characteristics!$C$1, SUMIFS(Positions_disbursement!$C$1:$C$14,Positions_disbursement!$B$1:$B$14,Achievement_to_date_ongoing!$D114,Positions_disbursement!$A$1:$A$14,Achievement_to_date_ongoing!$C114), MAX(0,O$3-YEAR($I114)))/100)) -> 0 | P114: =IF($J114<DATE(P$3,12,31),1, IF($G114="Physical",0, OFFSET(Project_characteristics!$C$1, SUMIFS(Positions_disbursement!$C$1:$C$14,Positions_disbursement!$B$1:$B$14,Achievement_to_date_ongoing!$D114,Positions_disbursement!$A$1:$A$14,Achievement_to_date_ongoing!$C114), MAX(0,P$3-YEAR($I114)))/100)) -> 1
B115: 110847 | C115: 3 | D115: (ii) | E115: CO18 | F115: All | G115: Physical | H115: 0 | I115: 2015-08-01 | J115: 2023-12-31 | K115: 19673.61192 | M115: =IF($J115<DATE(M$3,12,31),1, IF($G115="Physical",0, OFFSET(Project_characteristics!$C$1, SUMIFS(Positions_disbursement!$C$1:$C$14,Positions_disbursement!$B$1:$B$14,Achievement_to_date_ongoing!$D115,Positions_disbursement!$A$1:$A$14,Achievement_to_date_ongoing!$C115), MAX(0,M$3-YEAR($I115)))/100)) -> 0 | N115: =IF($J115<DATE(N$3,12,31),1, IF($G115="Physical",0, OFFSET(Project_characteristics!$C$1, SUMIFS(Positions_disbursement!$C$1:$C$14,Positions_disbursement!$B$1:$B$14,Achievement_to_date_ongoing!$D115,Positions_disbursement!$A$1:$A$14,Achievement_to_date_ongoing!$C115), MAX(0,N$3-YEAR($I115)))/100)) -> 0 | O115: =IF($J115<DATE(O$3,12,31),1, IF($G115="Physical",0, OFFSET(Project_characteristics!$C$1, SUMIFS(Positions_disbursement!$C$1:$C$14,Positions_disbursement!$B$1:$B$14,Achievement_to_date_ongoing!$D115,Positions_disbursement!$A$1:$A$14,Achievement_to_date_ongoing!$C115), MAX(0,O$3-YEAR($I115)))/100)) -> 0 | P115: =IF($J115<DATE(P$3,12,31),1, IF($G115="Physical",0, OFFSET(Project_characteristics!$C$1, SUMIFS(Positions_disbursement!$C$1:$C$14,Positions_disbursement!$B$1:$B$14,Achievement_to_date_ongoing!$D115,Positions_disbursement!$A$1:$A$14,Achievement_to_date_ongoing!$C115), MAX(0,P$3-YEAR($I115)))/100)) -> 0
B116: 103967 | C116: 3 | D116: (ii) | E116: CO18 | F116: All | G116: Physical | H116: 0 | I116: 2015-04-01 | J116: 2023-12-31 | K116: 6518.890677 | M116: =IF($J116<DATE(M$3,12,31),1, IF($G116="Physical",0, OFFSET(Project_characteristics!$C$1, SUMIFS(Positions_disbursement!$C$1:$C$14,Positions_disbursement!$B$1:$B$14,Achievement_to_date_ongoing!$D116,Positions_disbursement!$A$1:$A$14,Achievement_to_date_ongoing!$C116), MAX(0,M$3-YEAR($I116)))/100)) -> 0 | N116: =IF($J116<DATE(N$3,12,31),1, IF($G116="Physical",0, OFFSET(Project_characteristics!$C$1, SUMIFS(Positions_disbursement!$C$1:$C$14,Positions_disbursement!$B$1:$B$14,Achievement_to_date_ongoing!$D116,Positions_disbursement!$A$1:$A$14,Achievement_to_date_ongoing!$C116), MAX(0,N$3-YEAR($I116)))/100)) -> 0 | O116: =IF($J116<DATE(O$3,12,31),1, IF($G116="Physical",0, OFFSET(Project_characteristics!$C$1, SUMIFS(Positions_disbursement!$C$1:$C$14,Positions_disbursement!$B$1:$B$14,Achievement_to_date_ongoing!$D116,Positions_disbursement!$A$1:$A$14,Achievement_to_date_ongoing!$C116), MAX(0,O$3-YEAR($I116)))/100)) -> 0 | P116: =IF($J116<DATE(P$3,12,31),1, IF($G116="Physical",0, OFFSET(Project_characteristics!$C$1, SUMIFS(Positions_disbursement!$C$1:$C$14,Positions_disbursement!$B$1:$B$14,Achievement_to_date_ongoing!$D116,Positions_disbursement!$A$1:$A$14,Achievement_to_date_ongoing!$C116), MAX(0,P$3-YEAR($I116)))/100)) -> 0
B117: 108858 | C117: 3 | D117: (ii) | E117: CO19 | F117: All | G117: Physical | H117: 0 | I117: 2015-04-03 | J117: 2023-12-31 | K117: 13201.64499 | M117: =IF($J117<DATE(M$3,12,31),1, IF($G117="Physical",0, OFFSET(Project_characteristics!$C$1, SUMIFS(Positions_disbursement!$C$1:$C$14,Positions_disbursement!$B$1:$B$14,Achievement_to_date_ongoing!$D117,Positions_disbursement!$A$1:$A$14,Achievement_to_date_ongoing!$C117), MAX(0,M$3-YEAR($I117)))/100)) -> 0 | N117: =IF($J117<DATE(N$3,12,31),1, IF($G117="Physical",0, OFFSET(Project_characteristics!$C$1, SUMIFS(Positions_disbursement!$C$1:$C$14,Positions_disbursement!$B$1:$B$14,Achievement_to_date_ongoing!$D117,Positions_disbursement!$A$1:$A$14,Achievement_to_date_ongoing!$C117), MAX(0,N$3-YEAR($I117)))/100)) -> 0 | O117: =IF($J117<DATE(O$3,12,31),1, IF($G117="Physical",0, OFFSET(Project_characteristics!$C$1, SUMIFS(Positions_disbursement!$C$1:$C$14,Positions_disbursement!$B$1:$B$14,Achievement_to_date_ongoing!$D117,Positions_disbursement!$A$1:$A$14,Achievement_to_date_ongoing!$C117), MAX(0,O$3-YEAR($I117)))/100)) -> 0 | P117: =IF($J117<DATE(P$3,12,31),1, IF($G117="Physical",0, OFFSET(Project_characteristics!$C$1, SUMIFS(Positions_disbursement!$C$1:$C$14,Positions_disbursement!$B$1:$B$14,Achievement_to_date_ongoing!$D117,Positions_disbursement!$A$1:$A$14,Achievement_to_date_ongoing!$C117), MAX(0,P$3-YEAR($I117)))/100)) -> 0
B118: 107453 | C118: 3 | D118: (ii) | E118: CO19 | F118: All | G118: Physical | H118: 0 | I118: 2016-02-01 | J118: 2021-12-31 | K118: 24016.09057 | M118: =IF($J118<DATE(M$3,12,31),1, IF($G118="Physical",0, OFFSET(Project_characteristics!$C$1, SUMIFS(Positions_disbursement!$C$1:$C$14,Positions_disbursement!$B$1:$B$14,Achievement_to_date_ongoing!$D118,Positions_disbursement!$A$1:$A$14,Achievement_to_date_ongoing!$C118), MAX(0,M$3-YEAR($I118)))/100)) -> 0 | N118: =IF($J118<DATE(N$3,12,31),1, IF($G118="Physical",0, OFFSET(Project_characteristics!$C$1, SUMIFS(Positions_disbursement!$C$1:$C$14,Positions_disbursement!$B$1:$B$14,Achievement_to_date_ongoing!$D118,Positions_disbursement!$A$1:$A$14,Achievement_to_date_ongoing!$C118), MAX(0,N$3-YEAR($I118)))/100)) -> 0 | O118: =IF($J118<DATE(O$3,12,31),1, IF($G118="Physical",0, OFFSET(Project_characteristics!$C$1, SUMIFS(Positions_disbursement!$C$1:$C$14,Positions_disbursement!$B$1:$B$14,Achievement_to_date_ongoing!$D118,Positions_disbursement!$A$1:$A$14,Achievement_to_date_ongoing!$C118), MAX(0,O$3-YEAR($I118)))/100)) -> 1 | P118: =IF($J118<DATE(P$3,12,31),1, IF($G118="Physical",0, OFFSET(Project_characteristics!$C$1, SUMIFS(Positions_disbursement!$C$1:$C$14,Positions_disbursement!$B$1:$B$14,Achievement_to_date_ongoing!$D118,Positions_disbursement!$A$1:$A$14,Achievement_to_date_ongoing!$C118), MAX(0,P$3-YEAR($I118)))/100)) -> 1
B119: 105537 | C119: 3 | D119: (ii) | E119: CO19 | F119: All | G119: Physical | H119: 0 | I119: 2015-01-01 | J119: 2020-12-31 | K119: 147.7913266 | M119: =IF($J119<DATE(M$3,12,31),1, IF($G119="Physical",0, OFFSET(Project_characteristics!$C$1, SUMIFS(Positions_disbursement!$C$1:$C$14,Positions_disbursement!$B$1:$B$14,Achievement_to_date_ongoing!$D119,Positions_disbursement!$A$1:$A$14,Achievement_to_date_ongoing!$C119), MAX(0,M$3-YEAR($I119)))/100)) -> 0 | N119: =IF($J119<DATE(N$3,12,31),1, IF($G119="Physical",0, OFFSET(Project_characteristics!$C$1, SUMIFS(Positions_disbursement!$C$1:$C$14,Positions_disbursement!$B$1:$B$14,Achievement_to_date_ongoing!$D119,Positions_disbursement!$A$1:$A$14,Achievement_to_date_ongoing!$C119), MAX(0,N$3-YEAR($I119)))/100)) -> 1 | O119: =IF($J119<DATE(O$3,12,31),1, IF($G119="Physical",0, OFFSET(Project_characteristics!$C$1, SUMIFS(Positions_disbursement!$C$1:$C$14,Positions_disbursement!$B$1:$B$14,Achievement_to_date_ongoing!$D119,Positions_disbursement!$A$1:$A$14,Achievement_to_date_ongoing!$C119), MAX(0,O$3-YEAR($I119)))/100)) -> 1 | P119: =IF($J119<DATE(P$3,12,31),1, IF($G119="Physical",0, OFFSET(Project_characteristics!$C$1, SUMIFS(Positions_disbursement!$C$1:$C$14,Positions_disbursement!$B$1:$B$14,Achievement_to_date_ongoing!$D119,Positions_disbursement!$A$1:$A$14,Achievement_to_date_ongoing!$C119), MAX(0,P$3-YEAR($I119)))/100)) -> 1
B120: 104855 | C120: 3 | D120: (ii) | E120: CO19 | F120: All | G120: Physical | H120: 0 | I120: 2016-10-15 | J120: 2021-10-28 | K120: 30961.17449 | M120: =IF($J120<DATE(M$3,12,31),1, IF($G120="Physical",0, OFFSET(Project_characteristics!$C$1, SUMIFS(Positions_disbursement!$C$1:$C$14,Positions_disbursement!$B$1:$B$14,Achievement_to_date_ongoing!$D120,Positions_disbursement!$A$1:$A$14,Achievement_to_date_ongoing!$C120), MAX(0,M$3-YEAR($I120)))/100)) -> 0 | N120: =IF($J120<DATE(N$3,12,31),1, IF($G120="Physical",0, OFFSET(Project_characteristics!$C$1, SUMIFS(Positions_disbursement!$C$1:$C$14,Positions_disbursement!$B$1:$B$14,Achievement_to_date_ongoing!$D120,Positions_disbursement!$A$1:$A$14,Achievement_to_date_ongoing!$C120), MAX(0,N$3-YEAR($I120)))/100)) -> 1 | O120: =IF($J120<DATE(O$3,12,31),1, IF($G120="Physical",0, OFFSET(Project_characteristics!$C$1, SUMIFS(Positions_disbursement!$C$1:$C$14,Positions_disbursement!$B$1:$B$14,Achievement_to_date_ongoing!$D120,Positions_disbursement!$A$1:$A$14,Achievement_to_date_ongoing!$C120), MAX(0,O$3-YEAR($I120)))/100)) -> 1 | P120: =IF($J120<DATE(P$3,12,31),1, IF($G120="Physical",0, OFFSET(Project_characteristics!$C$1, SUMIFS(Positions_disbursement!$C$1:$C$14,Positions_disbursement!$B$1:$B$14,Achievement_to_date_ongoing!$D120,Positions_disbursement!$A$1:$A$14,Achievement_to_date_ongoing!$C120), MAX(0,P$3-YEAR($I120)))/100)) -> 1
B121: 108100 | C121: 3 | D121: (ii) | E121: CO19 | F121: All | G121: Physical | H121: 0 | I121: 2014-09-01 | J121: 2023-12-31 | K121: 21681.91131 | M121: =IF($J121<DATE(M$3,12,31),1, IF($G121="Physical",0, OFFSET(Project_characteristics!$C$1, SUMIFS(Positions_disbursement!$C$1:$C$14,Positions_disbursement!$B$1:$B$14,Achievement_to_date_ongoing!$D121,Positions_disbursement!$A$1:$A$14,Achievement_to_date_ongoing!$C121), MAX(0,M$3-YEAR($I121)))/100)) -> 0 | N121: =IF($J121<DATE(N$3,12,31),1, IF($G121="Physical",0, OFFSET(Project_characteristics!$C$1, SUMIFS(Positions_disbursement!$C$1:$C$14,Positions_disbursement!$B$1:$B$14,Achievement_to_date_ongoing!$D121,Positions_disbursement!$A$1:$A$14,Achievement_to_date_ongoing!$C121), MAX(0,N$3-YEAR($I121)))/100)) -> 0 | O121: =IF($J121<DATE(O$3,12,31),1, IF($G121="Physical",0, OFFSET(Project_characteristics!$C$1, SUMIFS(Positions_disbursement!$C$1:$C$14,Positions_disbursement!$B$1:$B$14,Achievement_to_date_ongoing!$D121,Positions_disbursement!$A$1:$A$14,Achievement_to_date_ongoing!$C121), MAX(0,O$3-YEAR($I121)))/100)) -> 0 | P121: =IF($J121<DATE(P$3,12,31),1, IF($G121="Physical",0, OFFSET(Project_characteristics!$C$1, SUMIFS(Positions_disbursement!$C$1:$C$14,Positions_disbursement!$B$1:$B$14,Achievement_to_date_ongoing!$D121,Positions_disbursement!$A$1:$A$14,Achievement_to_date_ongoing!$C121), MAX(0,P$3-YEAR($I121)))/100)) -> 0
B122: 105422 | C122: 3 | D122: (ii) | E122: CO19 | F122: All | G122: Physical | H122: 1859 | I122: 2014-01-01 | J122: 2021-01-31 | K122: 1984.007013 | M122: =IF($J122<DATE(M$3,12,31),1, IF($G122="Physical",0, OFFSET(Project_characteristics!$C$1, SUMIFS(Positions_disbursement!$C$1:$C$14,Positions_disbursement!$B$1:$B$14,Achievement_to_date_ongoing!$D122,Positions_disbursement!$A$1:$A$14,Achievement_to_date_ongoing!$C122), MAX(0,M$3-YEAR($I122)))/100)) -> 0 | N122: =IF($J122<DATE(N$3,12,31),1, IF($G122="Physical",0, OFFSET(Project_characteristics!$C$1, SUMIFS(Positions_disbursement!$C$1:$C$14,Positions_disbursement!$B$1:$B$14,Achievement_to_date_ongoing!$D122,Positions_disbursement!$A$1:$A$14,Achievement_to_date_ongoing!$C122), MAX(0,N$3-YEAR($I122)))/100)) -> 1 | O122: =IF($J122<DATE(O$3,12,31),1, IF($G122="Physical",0, OFFSET(Project_characteristics!$C$1, SUMIFS(Positions_disbursement!$C$1:$C$14,Positions_disbursement!$B$1:$B$14,Achievement_to_date_ongoing!$D122,Positions_disbursement!$A$1:$A$14,Achievement_to_date_ongoing!$C122), MAX(0,O$3-YEAR($I122)))/100)) -> 1 | P122: =IF($J122<DATE(P$3,12,31),1, IF($G122="Physical",0, OFFSET(Project_characteristics!$C$1, SUMIFS(Positions_disbursement!$C$1:$C$14,Positions_disbursement!$B$1:$B$14,Achievement_to_date_ongoing!$D122,Positions_disbursement!$A$1:$A$14,Achievement_to_date_ongoing!$C122), MAX(0,P$3-YEAR($I122)))/100)) -> 1
B123: 118679 | C123: 3 | D123: (ii) | E123: CO19 | F123: All | G123: Physical | H123: 0 | I123: 2014-10-14 | J123: 2020-12-31 | K123: 3169.569738 | M123: =IF($J123<DATE(M$3,12,31),1, IF($G123="Physical",0, OFFSET(Project_characteristics!$C$1, SUMIFS(Positions_disbursement!$C$1:$C$14,Positions_disbursement!$B$1:$B$14,Achievement_to_date_ongoing!$D123,Positions_disbursement!$A$1:$A$14,Achievement_to_date_ongoing!$C123), MAX(0,M$3-YEAR($I123)))/100)) -> 0 | N123: =IF($J123<DATE(N$3,12,31),1, IF($G123="Physical",0, OFFSET(Project_characteristics!$C$1, SUMIFS(Positions_disbursement!$C$1:$C$14,Positions_disbursement!$B$1:$B$14,Achievement_to_date_ongoing!$D123,Positions_disbursement!$A$1:$A$14,Achievement_to_date_ongoing!$C123), MAX(0,N$3-YEAR($I123)))/100)) -> 1 | O123: =IF($J123<DATE(O$3,12,31),1, IF($G123="Physical",0, OFFSET(Project_characteristics!$C$1, SUMIFS(Positions_disbursement!$C$1:$C$14,Positions_disbursement!$B$1:$B$14,Achievement_to_date_ongoing!$D123,Positions_disbursement!$A$1:$A$14,Achievement_to_date_ongoing!$C123), MAX(0,O$3-YEAR($I123)))/100)) -> 1 | P123: =IF($J123<DATE(P$3,12,31),1, IF($G123="Physical",0, OFFSET(Project_characteristics!$C$1, SUMIFS(Positions_disbursement!$C$1:$C$14,Positions_disbursement!$B$1:$B$14,Achievement_to_date_ongoing!$D123,Positions_disbursement!$A$1:$A$14,Achievement_to_date_ongoing!$C123), MAX(0,P$3-YEAR($I123)))/100)) -> 1
B124: 108771 | C124: 3 | D124: (ii) | E124: CO19 | F124: All | G124: Physical | H124: 0 | I124: 2016-07-01 | J124: 2021-03-31 | K124: 2544.042948 | M124: =IF($J124<DATE(M$3,12,31),1, IF($G124="Physical",0, OFFSET(Project_characteristics!$C$1, SUMIFS(Positions_disbursement!$C$1:$C$14,Positions_disbursement!$B$1:$B$14,Achievement_to_date_ongoing!$D124,Positions_disbursement!$A$1:$A$14,Achievement_to_date_ongoing!$C124), MAX(0,M$3-YEAR($I124)))/100)) -> 0 | N124: =IF($J124<DATE(N$3,12,31),1, IF($G124="Physical",0, OFFSET(Project_characteristics!$C$1, SUMIFS(Positions_disbursement!$C$1:$C$14,Positions_disbursement!$B$1:$B$14,Achievement_to_date_ongoing!$D124,Positions_disbursement!$A$1:$A$14,Achievement_to_date_ongoing!$C124), MAX(0,N$3-YEAR($I124)))/100)) -> 1 | O124: =IF($J124<DATE(O$3,12,31),1, IF($G124="Physical",0, OFFSET(Project_characteristics!$C$1, SUMIFS(Positions_disbursement!$C$1:$C$14,Positions_disbursement!$B$1:$B$14,Achievement_to_date_ongoing!$D124,Positions_disbursement!$A$1:$A$14,Achievement_to_date_ongoing!$C124), MAX(0,O$3-YEAR($I124)))/100)) -> 1 | P124: =IF($J124<DATE(P$3,12,31),1, IF($G124="Physical",0, OFFSET(Project_characteristics!$C$1, SUMIFS(Positions_disbursement!$C$1:$C$14,Positions_disbursement!$B$1:$B$14,Achievement_to_date_ongoing!$D124,Positions_disbursement!$A$1:$A$14,Achievement_to_date_ongoing!$C124), MAX(0,P$3-YEAR($I124)))/100)) -> 1
B125: 126408 | C125: 3 | D125: (ii) | E125: CO19 | F125: All | G125: Physical | H125: 0 | I125: 2019-02-27 | J125: 2023-12-31 | K125: 20533.75744 | M125: =IF($J125<DATE(M$3,12,31),1, IF($G125="Physical",0, OFFSET(Project_characteristics!$C$1, SUMIFS(Positions_disbursement!$C$1:$C$14,Positions_disbursement!$B$1:$B$14,Achievement_to_date_ongoing!$D125,Positions_disbursement!$A$1:$A$14,Achievement_to_date_ongoing!$C125), MAX(0,M$3-YEAR($I125)))/100)) -> 0 | N125: =IF($J125<DATE(N$3,12,31),1, IF($G125="Physical",0, OFFSET(Project_characteristics!$C$1, SUMIFS(Positions_disbursement!$C$1:$C$14,Positions_disbursement!$B$1:$B$14,Achievement_to_date_ongoing!$D125,Positions_disbursement!$A$1:$A$14,Achievement_to_date_ongoing!$C125), MAX(0,N$3-YEAR($I125)))/100)) -> 0 | O125: =IF($J125<DATE(O$3,12,31),1, IF($G125="Physical",0, OFFSET(Project_characteristics!$C$1, SUMIFS(Positions_disbursement!$C$1:$C$14,Positions_disbursement!$B$1:$B$14,Achievement_to_date_ongoing!$D125,Positions_disbursement!$A$1:$A$14,Achievement_to_date_ongoing!$C125), MAX(0,O$3-YEAR($I125)))/100)) -> 0 | P125: =IF($J125<DATE(P$3,12,31),1, IF($G125="Physical",0, OFFSET(Project_characteristics!$C$1, SUMIFS(Positions_disbursement!$C$1:$C$14,Positions_disbursement!$B$1:$B$14,Achievement_to_date_ongoing!$D125,Positions_disbursement!$A$1:$A$14,Achievement_to_date_ongoing!$C125), MAX(0,P$3-YEAR($I125)))/100)) -> 0
B126: 110838 | C126: 3 | D126: (ii) | E126: CO19 | F126: All | G126: Physical | H126: 0 | I126: 2018-01-01 | J126: 2022-12-31 | K126: 10611.04777 | M126: =IF($J126<DATE(M$3,12,31),1, IF($G126="Physical",0, OFFSET(Project_characteristics!$C$1, SUMIFS(Positions_disbursement!$C$1:$C$14,Positions_disbursement!$B$1:$B$14,Achievement_to_date_ongoing!$D126,Positions_disbursement!$A$1:$A$14,Achievement_to_date_ongoing!$C126), MAX(0,M$3-YEAR($I126)))/100)) -> 0 | N126: =IF($J126<DATE(N$3,12,31),1, IF($G126="Physical",0, OFFSET(Project_characteristics!$C$1, SUMIFS(Positions_disbursement!$C$1:$C$14,Positions_disbursement!$B$1:$B$14,Achievement_to_date_ongoing!$D126,Positions_disbursement!$A$1:$A$14,Achievement_to_date_ongoing!$C126), MAX(0,N$3-YEAR($I126)))/100)) -> 0 | O126: =IF($J126<DATE(O$3,12,31),1, IF($G126="Physical",0, OFFSET(Project_characteristics!$C$1, SUMIFS(Positions_disbursement!$C$1:$C$14,Positions_disbursement!$B$1:$B$14,Achievement_to_date_ongoing!$D126,Positions_disbursement!$A$1:$A$14,Achievement_to_date_ongoing!$C126), MAX(0,O$3-YEAR($I126)))/100)) -> 0 | P126: =IF($J126<DATE(P$3,12,31),1, IF($G126="Physical",0, OFFSET(Project_characteristics!$C$1, SUMIFS(Positions_disbursement!$C$1:$C$14,Positions_disbursement!$B$1:$B$14,Achievement_to_date_ongoing!$D126,Positions_disbursement!$A$1:$A$14,Achievement_to_date_ongoing!$C126), MAX(0,P$3-YEAR($I126)))/100)) -> 1
B127: 108495 | C127: 3 | D127: (ii) | E127: CO19 | F127: All | G127: Physical | H127: 0 | I127: 2015-04-01 | J127: 2023-12-31 | K127: 8173.229839 | M127: =IF($J127<DATE(M$3,12,31),1, IF($G127="Physical",0, OFFSET(Project_characteristics!$C$1, SUMIFS(Positions_disbursement!$C$1:$C$14,Positions_disbursement!$B$1:$B$14,Achievement_to_date_ongoing!$D127,Positions_disbursement!$A$1:$A$14,Achievement_to_date_ongoing!$C127), MAX(0,M$3-YEAR($I127)))/100)) -> 0 | N127: =IF($J127<DATE(N$3,12,31),1, IF($G127="Physical",0, OFFSET(Project_characteristics!$C$1, SUMIFS(Positions_disbursement!$C$1:$C$14,Positions_disbursement!$B$1:$B$14,Achievement_to_date_ongoing!$D127,Positions_disbursement!$A$1:$A$14,Achievement_to_date_ongoing!$C127), MAX(0,N$3-YEAR($I127)))/100)) -> 0 | O127: =IF($J127<DATE(O$3,12,31),1, IF($G127="Physical",0, OFFSET(Project_characteristics!$C$1, SUMIFS(Positions_disbursement!$C$1:$C$14,Positions_disbursement!$B$1:$B$14,Achievement_to_date_ongoing!$D127,Positions_disbursement!$A$1:$A$14,Achievement_to_date_ongoing!$C127), MAX(0,O$3-YEAR($I127)))/100)) -> 0 | P127: =IF($J127<DATE(P$3,12,31),1, IF($G127="Physical",0, OFFSET(Project_characteristics!$C$1, SUMIFS(Positions_disbursement!$C$1:$C$14,Positions_disbursement!$B$1:$B$14,Achievement_to_date_ongoing!$D127,Positions_disbursement!$A$1:$A$14,Achievement_to_date_ongoing!$C127), MAX(0,P$3-YEAR($I127)))/100)) -> 0
B128: 115525 | C128: 3 | D128: (ii) | E128: CO19 | F128: All | G128: Physical | H128: 0 | I128: 2015-03-01 | J128: 2023-12-31 | K128: 31457.01439 | M128: =IF($J128<DATE(M$3,12,31),1, IF($G128="Physical",0, OFFSET(Project_characteristics!$C$1, SUMIFS(Positions_disbursement!$C$1:$C$14,Positions_disbursement!$B$1:$B$14,Achievement_to_date_ongoing!$D128,Positions_disbursement!$A$1:$A$14,Achievement_to_date_ongoing!$C128), MAX(0,M$3-YEAR($I128)))/100)) -> 0 | N128: =IF($J128<DATE(N$3,12,31),1, IF($G128="Physical",0, OFFSET(Project_characteristics!$C$1, SUMIFS(Positions_disbursement!$C$1:$C$14,Positions_disbursement!$B$1:$B$14,Achievement_to_date_ongoing!$D128,Positions_disbursement!$A$1:$A$14,Achievement_to_date_ongoing!$C128), MAX(0,N$3-YEAR($I128)))/100)) -> 0 | O128: =IF($J128<DATE(O$3,12,31),1, IF($G128="Physical",0, OFFSET(Project_characteristics!$C$1, SUMIFS(Positions_disbursement!$C$1:$C$14,Positions_disbursement!$B$1:$B$14,Achievement_to_date_ongoing!$D128,Positions_disbursement!$A$1:$A$14,Achievement_to_date_ongoing!$C128), MAX(0,O$3-YEAR($I128)))/100)) -> 0 | P128: =IF($J128<DATE(P$3,12,31),1, IF($G128="Physical",0, OFFSET(Project_characteristics!$C$1, SUMIFS(Positions_disbursement!$C$1:$C$14,Positions_disbursement!$B$1:$B$14,Achievement_to_date_ongoing!$D128,Positions_disbursement!$A$1:$A$14,Achievement_to_date_ongoing!$C128), MAX(0,P$3-YEAR($I128)))/100)) -> 0
B129: 106974 | C129: 3 | D129: (ii) | E129: CO19 | F129: All | G129: Physical | H129: 0 | I129: 2015-09-01 | J129: 2022-12-31 | K129: 25220.40514 | M129: =IF($J129<DATE(M$3,12,31),1, IF($G129="Physical",0, OFFSET(Project_characteristics!$C$1, SUMIFS(Positions_disbursement!$C$1:$C$14,Positions_disbursement!$B$1:$B$14,Achievement_to_date_ongoing!$D129,Positions_disbursement!$A$1:$A$14,Achievement_to_date_ongoing!$C129), MAX(0,M$3-YEAR($I129)))/100)) -> 0 | N129: =IF($J129<DATE(N$3,12,31),1, IF($G129="Physical",0, OFFSET(Project_characteristics!$C$1, SUMIFS(Positions_disbursement!$C$1:$C$14,Positions_disbursement!$B$1:$B$14,Achievement_to_date_ongoing!$D129,Positions_disbursement!$A$1:$A$14,Achievement_to_date_ongoing!$C129), MAX(0,N$3-YEAR($I129)))/100)) -> 0 | O129: =IF($J129<DATE(O$3,12,31),1, IF($G129="Physical",0, OFFSET(Project_characteristics!$C$1, SUMIFS(Positions_disbursement!$C$1:$C$14,Positions_disbursement!$B$1:$B$14,Achievement_to_date_ongoing!$D129,Positions_disbursement!$A$1:$A$14,Achievement_to_date_ongoing!$C129), MAX(0,O$3-YEAR($I129)))/100)) -> 0 | P129: =IF($J129<DATE(P$3,12,31),1, IF($G129="Physical",0, OFFSET(Project_characteristics!$C$1, SUMIFS(Positions_disbursement!$C$1:$C$14,Positions_disbursement!$B$1:$B$14,Achievement_to_date_ongoing!$D129,Positions_disbursement!$A$1:$A$14,Achievement_to_date_ongoing!$C129), MAX(0,P$3-YEAR($I129)))/100)) -> 1
B130: 110847 | C130: 3 | D130: (ii) | E130: CO19 | F130: All | G130: Physical | H130: 0 | I130: 2015-08-01 | J130: 2023-12-31 | K130: 4294.815951 | M130: =IF($J130<DATE(M$3,12,31),1, IF($G130="Physical",0, OFFSET(Project_characteristics!$C$1, SUMIFS(Positions_disbursement!$C$1:$C$14,Positions_disbursement!$B$1:$B$14,Achievement_to_date_ongoing!$D130,Positions_disbursement!$A$1:$A$14,Achievement_to_date_ongoing!$C130), MAX(0,M$3-YEAR($I130)))/100)) -> 0 | N130: =IF($J130<DATE(N$3,12,31),1, IF($G130="Physical",0, OFFSET(Project_characteristics!$C$1, SUMIFS(Positions_disbursement!$C$1:$C$14,Positions_disbursement!$B$1:$B$14,Achievement_to_date_ongoing!$D130,Positions_disbursement!$A$1:$A$14,Achievement_to_date_ongoing!$C130), MAX(0,N$3-YEAR($I130)))/100)) -> 0 | O130: =IF($J130<DATE(O$3,12,31),1, IF($G130="Physical",0, OFFSET(Project_characteristics!$C$1, SUMIFS(Positions_disbursement!$C$1:$C$14,Positions_disbursement!$B$1:$B$14,Achievement_to_date_ongoing!$D130,Positions_disbursement!$A$1:$A$14,Achievement_to_date_ongoing!$C130), MAX(0,O$3-YEAR($I130)))/100)) -> 0 | P130: =IF($J130<DATE(P$3,12,31),1, IF($G130="Physical",0, OFFSET(Project_characteristics!$C$1, SUMIFS(Positions_disbursement!$C$1:$C$14,Positions_disbursement!$B$1:$B$14,Achievement_to_date_ongoing!$D130,Positions_disbursement!$A$1:$A$14,Achievement_to_date_ongoing!$C130), MAX(0,P$3-YEAR($I130)))/100)) -> 0
B131: 103967 | C131: 3 | D131: (ii) | E131: CO19 | F131: All | G131: Physical | H131: 0 | I131: 2015-04-01 | J131: 2023-12-31 | K131: 9979.23985 | M131: =IF($J131<DATE(M$3,12,31),1, IF($G131="Physical",0, OFFSET(Project_characteristics!$C$1, SUMIFS(Positions_disbursement!$C$1:$C$14,Positions_disbursement!$B$1:$B$14,Achievement_to_date_ongoing!$D131,Positions_disbursement!$A$1:$A$14,Achievement_to_date_ongoing!$C131), MAX(0,M$3-YEAR($I131)))/100)) -> 0 | N131: =IF($J131<DATE(N$3,12,31),1, IF($G131="Physical",0, OFFSET(Project_characteristics!$C$1, SUMIFS(Positions_disbursement!$C$1:$C$14,Positions_disbursement!$B$1:$B$14,Achievement_to_date_ongoing!$D131,Positions_disbursement!$A$1:$A$14,Achievement_to_date_ongoing!$C131), MAX(0,N$3-YEAR($I131)))/100)) -> 0 | O131: =IF($J131<DATE(O$3,12,31),1, IF($G131="Physical",0, OFFSET(Project_characteristics!$C$1, SUMIFS(Positions_disbursement!$C$1:$C$14,Positions_disbursement!$B$1:$B$14,Achievement_to_date_ongoing!$D131,Positions_disbursement!$A$1:$A$14,Achievement_to_date_ongoing!$C131), MAX(0,O$3-YEAR($I131)))/100)) -> 0 | P131: =IF($J131<DATE(P$3,12,31),1, IF($G131="Physical",0, OFFSET(Project_characteristics!$C$1, SUMIFS(Positions_disbursement!$C$1:$C$14,Positions_disbursement!$B$1:$B$14,Achievement_to_date_ongoing!$D131,Positions_disbursement!$A$1:$A$14,Achievement_to_date_ongoing!$C131), MAX(0,P$3-YEAR($I131)))/100)) -> 0
B132: 106397 | C132: 3 | D132: (ii) | E132: F | F132: All | G132: Financial | H132: 720926.31 | I132: 2017-09-04 | J132: 2022-03-04 | K132: 4584691.208 | M132: =IF($J132<DATE(M$3,12,31),1, IF($G132="Physical",0, OFFSET(Project_characteristics!$C$1, SUMIFS(Positions_disbursement!$C$1:$C$14,Positions_disbursement!$B$1:$B$14,Achievement_to_date_ongoing!$D132,Positions_disbursement!$A$1:$A$14,Achievement_to_date_ongoing!$C132), MAX(0,M$3-YEAR($I132)))/100)) -> 0.5493914873 | N132: =IF($J132<DATE(N$3,12,31),1, IF($G132="Physical",0, OFFSET(Project_characteristics!$C$1, SUMIFS(Positions_disbursement!$C$1:$C$14,Positions_disbursement!$B$1:$B$14,Achievement_to_date_ongoing!$D132,Positions_disbursement!$A$1:$A$14,Achievement_to_date_ongoing!$C132), MAX(0,N$3-YEAR($I132)))/100)) -> 1 | O132: =IF($J132<DATE(O$3,12,31),1, IF($G132="Physical",0, OFFSET(Project_characteristics!$C$1, SUMIFS(Positions_disbursement!$C$1:$C$14,Positions_disbursement!$B$1:$B$14,Achievement_to_date_ongoing!$D132,Positions_disbursement!$A$1:$A$14,Achievement_to_date_ongoing!$C132), MAX(0,O$3-YEAR($I132)))/100)) -> 1 | P132: =IF($J132<DATE(P$3,12,31),1, IF($G132="Physical",0, OFFSET(Project_characteristics!$C$1, SUMIFS(Positions_disbursement!$C$1:$C$14,Positions_disbursement!$B$1:$B$14,Achievement_to_date_ongoing!$D132,Positions_disbursement!$A$1:$A$14,Achievement_to_date_ongoing!$C132), MAX(0,P$3-YEAR($I132)))/100)) -> 1
B133: 108339 | C133: 3 | D133: (ii) | E133: F | F133: All | G133: Financial | H133: 5496976.96 | I133: 2016-04-01 | J133: 2020-10-31 | K133: 5826287.044 | M133: =IF($J133<DATE(M$3,12,31),1, IF($G133="Physical",0, OFFSET(Project_characteristics!$C$1, SUMIFS(Positions_disbursement!$C$1:$C$14,Positions_disbursement!$B$1:$B$14,Achievement_to_date_ongoing!$D133,Positions_disbursement!$A$1:$A$14,Achievement_to_date_ongoing!$C133), MAX(0,M$3-YEAR($I133)))/100)) -> 1 | N133: =IF($J133<DATE(N$3,12,31),1, IF($G133="Physical",0, OFFSET(Project_characteristics!$C$1, SUMIFS(Positions_disbursement!$C$1:$C$14,Positions_disbursement!$B$1:$B$14,Achievement_to_date_ongoing!$D133,Positions_disbursement!$A$1:$A$14,Achievement_to_date_ongoing!$C133), MAX(0,N$3-YEAR($I133)))/100)) -> 1 | O133: =IF($J133<DATE(O$3,12,31),1, IF($G133="Physical",0, OFFSET(Project_characteristics!$C$1, SUMIFS(Positions_disbursement!$C$1:$C$14,Positions_disbursement!$B$1:$B$14,Achievement_to_date_ongoing!$D133,Positions_disbursement!$A$1:$A$14,Achievement_to_date_ongoing!$C133), MAX(0,O$3-YEAR($I133)))/100)) -> 1 | P133: =IF($J133<DATE(P$3,12,31),1, IF($G133="Physical",0, OFFSET(Project_characteristics!$C$1, SUMIFS(Positions_disbursement!$C$1:$C$14,Positions_disbursement!$B$1:$B$14,Achievement_to_date_ongoing!$D133,Positions_disbursement!$A$1:$A$14,Achievement_to_date_ongoing!$C133), MAX(0,P$3-YEAR($I133)))/100)) -> 1
B134: 107170 | C134: 3 | D134: (ii) | E134: F | F134: All | G134: Financial | H134: 2983709.78 | I134: 2017-05-02 | J134: 2020-12-31 | K134: 4732192.942 | M134: =IF($J134<DATE(M$3,12,31),1, IF($G134="Physical",0, OFFSET(Project_characteristics!$C$1, SUMIFS(Positions_disbursement!$C$1:$C$14,Positions_disbursement!$B$1:$B$14,Achievement_to_date_ongoing!$D134,Positions_disbursement!$A$1:$A$14,Achievement_to_date_ongoing!$C134), MAX(0,M$3-YEAR($I134)))/100)) -> 0.5493914873 | N134: =IF($J134<DATE(N$3,12,31),1, IF($G134="Physical",0, OFFSET(Project_characteristics!$C$1, SUMIFS(Positions_disbursement!$C$1:$C$14,Positions_disbursement!$B$1:$B$14,Achievement_to_date_ongoing!$D134,Positions_disbursement!$A$1:$A$14,Achievement_to_date_ongoing!$C134), MAX(0,N$3-YEAR($I134)))/100)) -> 1 | O134: =IF($J134<DATE(O$3,12,31),1, IF($G134="Physical",0, OFFSET(Project_characteristics!$C$1, SUMIFS(Positions_disbursement!$C$1:$C$14,Positions_disbursement!$B$1:$B$14,Achievement_to_date_ongoing!$D134,Positions_disbursement!$A$1:$A$14,Achievement_to_date_ongoing!$C134), MAX(0,O$3-YEAR($I134)))/100)) -> 1 | P134: =IF($J134<DATE(P$3,12,31),1, IF($G134="Physical",0, OFFSET(Project_characteristics!$C$1, SUMIFS(Positions_disbursement!$C$1:$C$14,Positions_disbursement!$B$1:$B$14,Achievement_to_date_ongoing!$D134,Positions_disbursement!$A$1:$A$14,Achievement_to_date_ongoing!$C134), MAX(0,P$3-YEAR($I134)))/100)) -> 1
B135: 106130 | C135: 3 | D135: (ii) | E135: F | F135: All | G135: Financial | H135: 67212779.12 | I135: 2015-02-01 | J135: 2021-06-30 | K135: 67212779.12 | M135: =IF($J135<DATE(M$3,12,31),1, IF($G135="Physical",0, OFFSET(Project_characteristics!$C$1, SUMIFS(Positions_disbursement!$C$1:$C$14,Positions_disbursement!$B$1:$B$14,Achievement_to_date_ongoing!$D135,Positions_disbursement!$A$1:$A$14,Achievement_to_date_ongoing!$C135), MAX(0,M$3-YEAR($I135)))/100)) -> 1 | N135: =IF($J135<DATE(N$3,12,31),1, IF($G135="Physical",0, OFFSET(Project_characteristics!$C$1, SUMIFS(Positions_disbursement!$C$1:$C$14,Positions_disbursement!$B$1:$B$14,Achievement_to_date_ongoing!$D135,Positions_disbursement!$A$1:$A$14,Achievement_to_date_ongoing!$C135), MAX(0,N$3-YEAR($I135)))/100)) -> 1 | O135: =IF($J135<DATE(O$3,12,31),1, IF($G135="Physical",0, OFFSET(Project_characteristics!$C$1, SUMIFS(Positions_disbursement!$C$1:$C$14,Positions_disbursement!$B$1:$B$14,Achievement_to_date_ongoing!$D135,Positions_disbursement!$A$1:$A$14,Achievement_to_date_ongoing!$C135), MAX(0,O$3-YEAR($I135)))/100)) -> 1 | P135: =IF($J135<DATE(P$3,12,31),1, IF($G135="Physical",0, OFFSET(Project_characteristics!$C$1, SUMIFS(Positions_disbursement!$C$1:$C$14,Positions_disbursement!$B$1:$B$14,Achievement_to_date_ongoing!$D135,Positions_disbursement!$A$1:$A$14,Achievement_to_date_ongoing!$C135), MAX(0,P$3-YEAR($I135)))/100)) -> 1
B136: 106373 | C136: 3 | D136: (ii) | E136: F | F136: All | G136: Financial | H136: 45784897.56 | I136: 2008-08-10 | J136: 2023-06-30 | K136: 51270817.25 | M136: =IF($J136<DATE(M$3,12,31),1, IF($G136="Physical",0, OFFSET(Project_characteristics!$C$1, SUMIFS(Positions_disbursement!$C$1:$C$14,Positions_disbursement!$B$1:$B$14,Achievement_to_date_ongoing!$D136,Positions_disbursement!$A$1:$A$14,Achievement_to_date_ongoing!$C136), MAX(0,M$3-YEAR($I136)))/100)) -> 0 | N136: =IF($J136<DATE(N$3,12,31),1, IF($G136="Physical",0, OFFSET(Project_characteristics!$C$1, SUMIFS(Positions_disbursement!$C$1:$C$14,Positions_disbursement!$B$1:$B$14,Achievement_to_date_ongoing!$D136,Positions_disbursement!$A$1:$A$14,Achievement_to_date_ongoing!$C136), MAX(0,N$3-YEAR($I136)))/100)) -> 0 | O136: =IF($J136<DATE(O$3,12,31),1, IF($G136="Physical",0, OFFSET(Project_characteristics!$C$1, SUMIFS(Positions_disbursement!$C$1:$C$14,Positions_disbursement!$B$1:$B$14,Achievement_to_date_ongoing!$D136,Positions_disbursement!$A$1:$A$14,Achievement_to_date_ongoing!$C136), MAX(0,O$3-YEAR($I136)))/100)) -> 0 | P136: =IF($J136<DATE(P$3,12,31),1, IF($G136="Physical",0, OFFSET(Project_characteristics!$C$1, SUMIFS(Positions_disbursement!$C$1:$C$14,Positions_disbursement!$B$1:$B$14,Achievement_to_date_ongoing!$D136,Positions_disbursement!$A$1:$A$14,Achievement_to_date_ongoing!$C136), MAX(0,P$3-YEAR($I136)))/100)) -> 1
B137: 106556 | C137: 3 | D137: (ii) | E137: F | F137: All | G137: Financial | H137: 8402849.23 | I137: 2015-03-01 | J137: 2020-12-31 | K137: 8402849.23 | M137: =IF($J137<DATE(M$3,12,31),1, IF($G137="Physical",0, OFFSET(Project_characteristics!$C$1, SUMIFS(Positions_disbursement!$C$1:$C$14,Positions_disbursement!$B$1:$B$14,Achievement_to_date_ongoing!$D137,Positions_disbursement!$A$1:$A$14,Achievement_to_date_ongoing!$C137), MAX(0,M$3-YEAR($I137)))/100)) -> 1 | N137: =IF($J137<DATE(N$3,12,31),1, IF($G137="Physical",0, OFFSET(Project_characteristics!$C$1, SUMIFS(Positions_disbursement!$C$1:$C$14,Positions_disbursement!$B$1:$B$14,Achievement_to_date_ongoing!$D137,Positions_disbursement!$A$1:$A$14,Achievement_to_date_ongoing!$C137), MAX(0,N$3-YEAR($I137)))/100)) -> 1 | O137: =IF($J137<DATE(O$3,12,31),1, IF($G137="Physical",0, OFFSET(Project_characteristics!$C$1, SUMIFS(Positions_disbursement!$C$1:$C$14,Positions_disbursement!$B$1:$B$14,Achievement_to_date_ongoing!$D137,Positions_disbursement!$A$1:$A$14,Achievement_to_date_ongoing!$C137), MAX(0,O$3-YEAR($I137)))/100)) -> 1 | P137: =IF($J137<DATE(P$3,12,31),1, IF($G137="Physical",0, OFFSET(Project_characteristics!$C$1, SUMIFS(Positions_disbursement!$C$1:$C$14,Positions_disbursement!$B$1:$B$14,Achievement_to_date_ongoing!$D137,Positions_disbursement!$A$1:$A$14,Achievement_to_date_ongoing!$C137), MAX(0,P$3-YEAR($I137)))/100)) -> 1
B138: 112718 | C138: 3 | D138: (ii) | E138: F | F138: All | G138: Financial | H138: 1457319.7 | I138: 2014-10-14 | J138: 2020-12-27 | K138: 1457319.7 | M138: =IF($J138<DATE(M$3,12,31),1, IF($G138="Physical",0, OFFSET(Project_characteristics!$C$1, SUMIFS(Positions_disbursement!$C$1:$C$14,Positions_disbursement!$B$1:$B$14,Achievement_to_date_ongoing!$D138,Positions_disbursement!$A$1:$A$14,Achievement_to_date_ongoing!$C138), MAX(0,M$3-YEAR($I138)))/100)) -> 1 | N138: =IF($J138<DATE(N$3,12,31),1, IF($G138="Physical",0, OFFSET(Project_characteristics!$C$1, SUMIFS(Positions_disbursement!$C$1:$C$14,Positions_disbursement!$B$1:$B$14,Achievement_to_date_ongoing!$D138,Positions_disbursement!$A$1:$A$14,Achievement_to_date_ongoing!$C138), MAX(0,N$3-YEAR($I138)))/100)) -> 1 | O138: =IF($J138<DATE(O$3,12,31),1, IF($G138="Physical",0, OFFSET(Project_characteristics!$C$1, SUMIFS(Positions_disbursement!$C$1:$C$14,Positions_disbursement!$B$1:$B$14,Achievement_to_date_ongoing!$D138,Positions_disbursement!$A$1:$A$14,Achievement_to_date_ongoing!$C138), MAX(0,O$3-YEAR($I138)))/100)) -> 1 | P138: =IF($J138<DATE(P$3,12,31),1, IF($G138="Physical",0, OFFSET(Project_characteristics!$C$1, SUMIFS(Positions_disbursement!$C$1:$C$14,Positions_disbursement!$B$1:$B$14,Achievement_to_date_ongoing!$D138,Positions_disbursement!$A$1:$A$14,Achievement_to_date_ongoing!$C138), MAX(0,P$3-YEAR($I138)))/100)) -> 1
B139: 106161 | C139: 3 | D139: (ii) | E139: F | F139: All | G139: Financial | H139: 11350314.43 | I139: 2016-04-15 | J139: 2020-12-31 | K139: 11350314.43 | M139: =IF($J139<DATE(M$3,12,31),1, IF($G139="Physical",0, OFFSET(Project_characteristics!$C$1, SUMIFS(Positions_disbursement!$C$1:$C$14,Positions_disbursement!$B$1:$B$14,Achievement_to_date_ongoing!$D139,Positions_disbursement!$A$1:$A$14,Achievement_to_date_ongoing!$C139), MAX(0,M$3-YEAR($I139)))/100)) -> 1 | N139: =IF($J139<DATE(N$3,12,31),1, IF($G139="Physical",0, OFFSET(Project_characteristics!$C$1, SUMIFS(Positions_disbursement!$C$1:$C$14,Positions_disbursement!$B$1:$B$14,Achievement_to_date_ongoing!$D139,Positions_disbursement!$A$1:$A$14,Achievement_to_date_ongoing!$C139), MAX(0,N$3-YEAR($I139)))/100)) -> 1 | O139: =IF($J139<DATE(O$3,12,31),1, IF($G139="Physical",0, OFFSET(Project_characteristics!$C$1, SUMIFS(Positions_disbursement!$C$1:$C$14,Positions_disbursement!$B$1:$B$14,Achievement_to_date_ongoing!$D139,Positions_disbursement!$A$1:$A$14,Achievement_to_date_ongoing!$C139), MAX(0,O$3-YEAR($I139)))/100)) -> 1 | P139: =IF($J139<DATE(P$3,12,31),1, IF($G139="Physical",0, OFFSET(Project_characteristics!$C$1, SUMIFS(Positions_disbursement!$C$1:$C$14,Positions_disbursement!$B$1:$B$14,Achievement_to_date_ongoing!$D139,Positions_disbursement!$A$1:$A$14,Achievement_to_date_ongoing!$C139), MAX(0,P$3-YEAR($I139)))/100)) -> 1
B140: 106707 | C140: 3 | D140: (ii) | E140: F | F140: All | G140: Financial | H140: 4976393.4 | I140: 2016-04-14 | J140: 2022-01-15 | K140: 5287848.914 | M140: =IF($J140<DATE(M$3,12,31),1, IF($G140="Physical",0, OFFSET(Project_characteristics!$C$1, SUMIFS(Positions_disbursement!$C$1:$C$14,Positions_disbursement!$B$1:$B$14,Achievement_to_date_ongoing!$D140,Positions_disbursement!$A$1:$A$14,Achievement_to_date_ongoing!$C140), MAX(0,M$3-YEAR($I140)))/100)) -> 1 | N140: =IF($J140<DATE(N$3,12,31),1, IF($G140="Physical",0, OFFSET(Project_characteristics!$C$1, SUMIFS(Positions_disbursement!$C$1:$C$14,Positions_disbursement!$B$1:$B$14,Achievement_to_date_ongoing!$D140,Positions_disbursement!$A$1:$A$14,Achievement_to_date_ongoing!$C140), MAX(0,N$3-YEAR($I140)))/100)) -> 1 | O140: =IF($J140<DATE(O$3,12,31),1, IF($G140="Physical",0, OFFSET(Project_characteristics!$C$1, SUMIFS(Positions_disbursement!$C$1:$C$14,Positions_disbursement!$B$1:$B$14,Achievement_to_date_ongoing!$D140,Positions_disbursement!$A$1:$A$14,Achievement_to_date_ongoing!$C140), MAX(0,O$3-YEAR($I140)))/100)) -> 1 | P140: =IF($J140<DATE(P$3,12,31),1, IF($G140="Physical",0, OFFSET(Project_characteristics!$C$1, SUMIFS(Positions_disbursement!$C$1:$C$14,Positions_disbursement!$B$1:$B$14,Achievement_to_date_ongoing!$D140,Positions_disbursement!$A$1:$A$14,Achievement_to_date_ongoing!$C140), MAX(0,P$3-YEAR($I140)))/100)) -> 1
B141: 102541 | C141: 3 | D141: (ii) | E141: F | F141: All | G141: Financial | H141: 5899153.65 | I141: 2019-06-21 | J141: 2021-09-30 | K141: 6239067.119 | M141: =IF($J141<DATE(M$3,12,31),1, IF($G141="Physical",0, OFFSET(Project_characteristics!$C$1, SUMIFS(Positions_disbursement!$C$1:$C$14,Positions_disbursement!$B$1:$B$14,Achievement_to_date_ongoing!$D141,Positions_disbursement!$A$1:$A$14,Achievement_to_date_ongoing!$C141), MAX(0,M$3-YEAR($I141)))/100)) -> 0.1140438791 | N141: =IF($J141<DATE(N$3,12,31),1, IF($G141="Physical",0, OFFSET(Project_characteristics!$C$1, SUMIFS(Positions_disbursement!$C$1:$C$14,Positions_disbursement!$B$1:$B$14,Achievement_to_date_ongoing!$D141,Positions_disbursement!$A$1:$A$14,Achievement_to_date_ongoing!$C141), MAX(0,N$3-YEAR($I141)))/100)) -> 1 | O141: =IF($J141<DATE(O$3,12,31),1, IF($G141="Physical",0, OFFSET(Project_characteristics!$C$1, SUMIFS(Positions_disbursement!$C$1:$C$14,Positions_disbursement!$B$1:$B$14,Achievement_to_date_ongoing!$D141,Positions_disbursement!$A$1:$A$14,Achievement_to_date_ongoing!$C141), MAX(0,O$3-YEAR($I141)))/100)) -> 1 | P141: =IF($J141<DATE(P$3,12,31),1, IF($G141="Physical",0, OFFSET(Project_characteristics!$C$1, SUMIFS(Positions_disbursement!$C$1:$C$14,Positions_disbursement!$B$1:$B$14,Achievement_to_date_ongoing!$D141,Positions_disbursement!$A$1:$A$14,Achievement_to_date_ongoing!$C141), MAX(0,P$3-YEAR($I141)))/100)) -> 1
B142: 107537 | C142: 3 | D142: (ii) | E142: F | F142: All | G142: Financial | H142: 3368628.51 | I142: 2017-09-18 | J142: 2021-07-18 | K142: 5316536.586 | M142: =IF($J142<DATE(M$3,12,31),1, IF($G142="Physical",0, OFFSET(Project_characteristics!$C$1, SUMIFS(Positions_disbursement!$C$1:$C$14,Positions_disbursement!$B$1:$B$14,Achievement_to_date_ongoing!$D142,Positions_disbursement!$A$1:$A$14,Achievement_to_date_ongoing!$C142), MAX(0,M$3-YEAR($I142)))/100)) -> 0.5493914873 | N142: =IF($J142<DATE(N$3,12,31),1, IF($G142="Physical",0, OFFSET(Project_characteristics!$C$1, SUMIFS(Positions_disbursement!$C$1:$C$14,Positions_disbursement!$B$1:$B$14,Achievement_to_date_ongoing!$D142,Positions_disbursement!$A$1:$A$14,Achievement_to_date_ongoing!$C142), MAX(0,N$3-YEAR($I142)))/100)) -> 1 | O142: =IF($J142<DATE(O$3,12,31),1, IF($G142="Physical",0, OFFSET(Project_characteristics!$C$1, SUMIFS(Positions_disbursement!$C$1:$C$14,Positions_disbursement!$B$1:$B$14,Achievement_to_date_ongoing!$D142,Positions_disbursement!$A$1:$A$14,Achievement_to_date_ongoing!$C142), MAX(0,O$3-YEAR($I142)))/100)) -> 1 | P142: =IF($J142<DATE(P$3,12,31),1, IF($G142="Physical",0, OFFSET(Project_characteristics!$C$1, SUMIFS(Positions_disbursement!$C$1:$C$14,Positions_disbursement!$B$1:$B$14,Achievement_to_date_ongoing!$D142,Positions_disbursement!$A$1:$A$14,Achievement_to_date_ongoing!$C142), MAX(0,P$3-YEAR($I142)))/100)) -> 1
B143: 101584 | C143: 3 | D143: (ii) | E143: F | F143: All | G143: Financial | H143: 4873079.63 | I143: 2015-06-23 | J143: 2021-12-22 | K143: 5980186.382 | M143: =IF($J143<DATE(M$3,12,31),1, IF($G143="Physical",0, OFFSET(Project_characteristics!$C$1, SUMIFS(Positions_disbursement!$C$1:$C$14,Positions_disbursement!$B$1:$B$14,Achievement_to_date_ongoing!$D143,Positions_disbursement!$A$1:$A$14,Achievement_to_date_ongoing!$C143), MAX(0,M$3-YEAR($I143)))/100)) -> 1 | N143: =IF($J143<DATE(N$3,12,31),1, IF($G143="Physical",0, OFFSET(Project_characteristics!$C$1, SUMIFS(Positions_disbursement!$C$1:$C$14,Positions_disbursement!$B$1:$B$14,Achievement_to_date_ongoing!$D143,Positions_disbursement!$A$1:$A$14,Achievement_to_date_ongoing!$C143), MAX(0,N$3-YEAR($I143)))/100)) -> 1 | O143: =IF($J143<DATE(O$3,12,31),1, IF($G143="Physical",0, OFFSET(Project_characteristics!$C$1, SUMIFS(Positions_disbursement!$C$1:$C$14,Positions_disbursement!$B$1:$B$14,Achievement_to_date_ongoing!$D143,Positions_disbursement!$A$1:$A$14,Achievement_to_date_ongoing!$C143), MAX(0,O$3-YEAR($I143)))/100)) -> 1 | P143: =IF($J143<DATE(P$3,12,31),1, IF($G143="Physical",0, OFFSET(Project_characteristics!$C$1, SUMIFS(Positions_disbursement!$C$1:$C$14,Positions_disbursement!$B$1:$B$14,Achievement_to_date_ongoing!$D143,Positions_disbursement!$A$1:$A$14,Achievement_to_date_ongoing!$C143), MAX(0,P$3-YEAR($I143)))/100)) -> 1
B144: 102415 | C144: 3 | D144: (ii) | E144: F | F144: All | G144: Financial | H144: 5166604.75 | I144: 2016-08-29 | J144: 2023-12-31 | K144: 5166604.75 | M144: =IF($J144<DATE(M$3,12,31),1, IF($G144="Physical",0, OFFSET(Project_characteristics!$C$1, SUMIFS(Positions_disbursement!$C$1:$C$14,Positions_disbursement!$B$1:$B$14,Achievement_to_date_ongoing!$D144,Positions_disbursement!$A$1:$A$14,Achievement_to_date_ongoing!$C144), MAX(0,M$3-YEAR($I144)))/100)) -> 1 | N144: =IF($J144<DATE(N$3,12,31),1, IF($G144="Physical",0, OFFSET(Project_characteristics!$C$1, SUMIFS(Positions_disbursement!$C$1:$C$14,Positions_disbursement!$B$1:$B$14,Achievement_to_date_ongoing!$D144,Positions_disbursement!$A$1:$A$14,Achievement_to_date_ongoing!$C144), MAX(0,N$3-YEAR($I144)))/100)) -> 1 | O144: =IF($J144<DATE(O$3,12,31),1, IF($G144="Physical",0, OFFSET(Project_characteristics!$C$1, SUMIFS(Positions_disbursement!$C$1:$C$14,Positions_disbursement!$B$1:$B$14,Achievement_to_date_ongoing!$D144,Positions_disbursement!$A$1:$A$14,Achievement_to_date_ongoing!$C144), MAX(0,O$3-YEAR($I144)))/100)) -> 1 | P144: =IF($J144<DATE(P$3,12,31),1, IF($G144="Physical",0, OFFSET(Project_characteristics!$C$1, SUMIFS(Positions_disbursement!$C$1:$C$14,Positions_disbursement!$B$1:$B$14,Achievement_to_date_ongoing!$D144,Positions_disbursement!$A$1:$A$14,Achievement_to_date_ongoing!$C144), MAX(0,P$3-YEAR($I144)))/100)) -> 1
B145: 105504 | C145: 3 | D145: (ii) | E145: F | F145: All | G145: Financial | H145: 3332506.33 | I145: 2016-01-01 | J145: 2021-06-30 | K145: 3466821.388 | M145: =IF($J145<DATE(M$3,12,31),1, IF($G145="Physical",0, OFFSET(Project_characteristics!$C$1, SUMIFS(Positions_disbursement!$C$1:$C$14,Positions_disbursement!$B$1:$B$14,Achievement_to_date_ongoing!$D145,Positions_disbursement!$A$1:$A$14,Achievement_to_date_ongoing!$C145), MAX(0,M$3-YEAR($I145)))/100)) -> 1 | N145: =IF($J145<DATE(N$3,12,31),1, IF($G145="Physical",0, OFFSET(Project_characteristics!$C$1, SUMIFS(Positions_disbursement!$C$1:$C$14,Positions_disbursement!$B$1:$B$14,Achievement_to_date_ongoing!$D145,Positions_disbursement!$A$1:$A$14,Achievement_to_date_ongoing!$C145), MAX(0,N$3-YEAR($I145)))/100)) -> 1 | O145: =IF($J145<DATE(O$3,12,31),1, IF($G145="Physical",0, OFFSET(Project_characteristics!$C$1, SUMIFS(Positions_disbursement!$C$1:$C$14,Positions_disbursement!$B$1:$B$14,Achievement_to_date_ongoing!$D145,Positions_disbursement!$A$1:$A$14,Achievement_to_date_ongoing!$C145), MAX(0,O$3-YEAR($I145)))/100)) -> 1 | P145: =IF($J145<DATE(P$3,12,31),1, IF($G145="Physical",0, OFFSET(Project_characteristics!$C$1, SUMIFS(Positions_disbursement!$C$1:$C$14,Positions_disbursement!$B$1:$B$14,Achievement_to_date_ongoing!$D145,Positions_disbursement!$A$1:$A$14,Achievement_to_date_ongoing!$C145), MAX(0,P$3-YEAR($I145)))/100)) -> 1
B146: 102578 | C146: 3 | D146: (ii) | E146: F | F146: All | G146: Financial | H146: 703876.65 | I146: 2017-05-01 | J146: 2020-12-31 | K146: 3220175.093 | M146: =IF($J146<DATE(M$3,12,31),1, IF($G146="Physical",0, OFFSET(Project_characteristics!$C$1, SUMIFS(Positions_disbursement!$C$1:$C$14,Positions_disbursement!$B$1:$B$14,Achievement_to_date_ongoing!$D146,Positions_disbursement!$A$1:$A$14,Achievement_to_date_ongoing!$C146), MAX(0,M$3-YEAR($I146)))/100)) -> 0.5493914873 | N146: =IF($J146<DATE(N$3,12,31),1, IF($G146="Physical",0, OFFSET(Project_characteristics!$C$1, SUMIFS(Positions_disbursement!$C$1:$C$14,Positions_disbursement!$B$1:$B$14,Achievement_to_date_ongoing!$D146,Positions_disbursement!$A$1:$A$14,Achievement_to_date_ongoing!$C146), MAX(0,N$3-YEAR($I146)))/100)) -> 1 | O146: =IF($J146<DATE(O$3,12,31),1, IF($G146="Physical",0, OFFSET(Project_characteristics!$C$1, SUMIFS(Positions_disbursement!$C$1:$C$14,Positions_disbursement!$B$1:$B$14,Achievement_to_date_ongoing!$D146,Positions_disbursement!$A$1:$A$14,Achievement_to_date_ongoing!$C146), MAX(0,O$3-YEAR($I146)))/100)) -> 1 | P146: =IF($J146<DATE(P$3,12,31),1, IF($G146="Physical",0, OFFSET(Project_characteristics!$C$1, SUMIFS(Positions_disbursement!$C$1:$C$14,Positions_disbursement!$B$1:$B$14,Achievement_to_date_ongoing!$D146,Positions_disbursement!$A$1:$A$14,Achievement_to_date_ongoing!$C146), MAX(0,P$3-YEAR($I146)))/100)) -> 1
B147: 105621 | C147: 3 | D147: (ii) | E147: F | F147: All | G147: Financial | H147: 11031705.38 | I147: 2016-12-01 | J147: 2021-03-31 | K147: 11031705.38 | M147: =IF($J147<DATE(M$3,12,31),1, IF($G147="Physical",0, OFFSET(Project_characteristics!$C$1, SUMIFS(Positions_disbursement!$C$1:$C$14,Positions_disbursement!$B$1:$B$14,Achievement_to_date_ongoing!$D147,Positions_disbursement!$A$1:$A$14,Achievement_to_date_ongoing!$C147), MAX(0,M$3-YEAR($I147)))/100)) -> 1 | N147: =IF($J147<DATE(N$3,12,31),1, IF($G147="Physical",0, OFFSET(Project_characteristics!$C$1, SUMIFS(Positions_disbursement!$C$1:$C$14,Positions_disbursement!$B$1:$B$14,Achievement_to_date_ongoing!$D147,Positions_disbursement!$A$1:$A$14,Achievement_to_date_ongoing!$C147), MAX(0,N$3-YEAR($I147)))/100)) -> 1 | O147: =IF($J147<DATE(O$3,12,31),1, IF($G147="Physical",0, OFFSET(Project_characteristics!$C$1, SUMIFS(Positions_disbursement!$C$1:$C$14,Positions_disbursement!$B$1:$B$14,Achievement_to_date_ongoing!$D147,Positions_disbursement!$A$1:$A$14,Achievement_to_date_ongoing!$C147), MAX(0,O$3-YEAR($I147)))/100)) -> 1 | P147: =IF($J147<DATE(P$3,12,31),1, IF($G147="Physical",0, OFFSET(Project_characteristics!$C$1, SUMIFS(Positions_disbursement!$C$1:$C$14,Positions_disbursement!$B$1:$B$14,Achievement_to_date_ongoing!$D147,Positions_disbursement!$A$1:$A$14,Achievement_to_date_ongoing!$C147), MAX(0,P$3-YEAR($I147)))/100)) -> 1
B148: 108929 | C148: 3 | D148: (ii) | E148: F | F148: All | G148: Financial | H148: 785427.39 | I148: 2018-05-15 | J148: 2023-01-15 | K148: 11773240.36 | M148: =IF($J148<DATE(M$3,12,31),1, IF($G148="Physical",0, OFFSET(Project_characteristics!$C$1, SUMIFS(Positions_disbursement!$C$1:$C$14,Positions_disbursement!$B$1:$B$14,Achievement_to_date_ongoing!$D148,Positions_disbursement!$A$1:$A$14,Achievement_to_date_ongoing!$C148), MAX(0,M$3-YEAR($I148)))/100)) -> 0.2503092814 | N148: =IF($J148<DATE(N$3,12,31),1, IF($G148="Physical",0, OFFSET(Project_characteristics!$C$1, SUMIFS(Positions_disbursement!$C$1:$C$14,Positions_disbursement!$B$1:$B$14,Achievement_to_date_ongoing!$D148,Positions_disbursement!$A$1:$A$14,Achievement_to_date_ongoing!$C148), MAX(0,N$3-YEAR($I148)))/100)) -> 0.5493914873 | O148: =IF($J148<DATE(O$3,12,31),1, IF($G148="Physical",0, OFFSET(Project_characteristics!$C$1, SUMIFS(Positions_disbursement!$C$1:$C$14,Positions_disbursement!$B$1:$B$14,Achievement_to_date_ongoing!$D148,Positions_disbursement!$A$1:$A$14,Achievement_to_date_ongoing!$C148), MAX(0,O$3-YEAR($I148)))/100)) -> 1 | P148: =IF($J148<DATE(P$3,12,31),1, IF($G148="Physical",0, OFFSET(Project_characteristics!$C$1, SUMIFS(Positions_disbursement!$C$1:$C$14,Positions_disbursement!$B$1:$B$14,Achievement_to_date_ongoing!$D148,Positions_disbursement!$A$1:$A$14,Achievement_to_date_ongoing!$C148), MAX(0,P$3-YEAR($I148)))/100)) -> 1
B149: 106938 | C149: 3 | D149: (ii) | E149: F | F149: All | G149: Financial | H149: 3640230 | I149: 2017-06-15 | J149: 2021-09-30 | K149: 12783777.24 | M149: =IF($J149<DATE(M$3,12,31),1, IF($G149="Physical",0, OFFSET(Project_characteristics!$C$1, SUMIFS(Positions_disbursement!$C$1:$C$14,Positions_disbursement!$B$1:$B$14,Achievement_to_date_ongoing!$D149,Positions_disbursement!$A$1:$A$14,Achievement_to_date_ongoing!$C149), MAX(0,M$3-YEAR($I149)))/100)) -> 0.5493914873 | N149: =IF($J149<DATE(N$3,12,31),1, IF($G149="Physical",0, OFFSET(Project_characteristics!$C$1, SUMIFS(Positions_disbursement!$C$1:$C$14,Positions_disbursement!$B$1:$B$14,Achievement_to_date_ongoing!$D149,Positions_disbursement!$A$1:$A$14,Achievement_to_date_ongoing!$C149), MAX(0,N$3-YEAR($I149)))/100)) -> 1 | O149: =IF($J149<DATE(O$3,12,31),1, IF($G149="Physical",0, OFFSET(Project_characteristics!$C$1, SUMIFS(Positions_disbursement!$C$1:$C$14,Positions_disbursement!$B$1:$B$14,Achievement_to_date_ongoing!$D149,Positions_disbursement!$A$1:$A$14,Achievement_to_date_ongoing!$C149), MAX(0,O$3-YEAR($I149)))/100)) -> 1 | P149: =IF($J149<DATE(P$3,12,31),1, IF($G149="Physical",0, OFFSET(Project_characteristics!$C$1, SUMIFS(Positions_disbursement!$C$1:$C$14,Positions_disbursement!$B$1:$B$14,Achievement_to_date_ongoing!$D149,Positions_disbursement!$A$1:$A$14,Achievement_to_date_ongoing!$C149), MAX(0,P$3-YEAR($I149)))/100)) -> 1
B150: 114394 | C150: 3 | D150: (ii) | E150: F | F150: All | G150: Financial | H150: 13552596.37 | I150: 2017-05-31 | J150: 2020-10-31 | K150: 13623451.56 | M150: =IF($J150<DATE(M$3,12,31),1, IF($G150="Physical",0, OFFSET(Project_characteristics!$C$1, SUMIFS(Positions_disbursement!$C$1:$C$14,Positions_disbursement!$B$1:$B$14,Achievement_to_date_ongoing!$D150,Positions_disbursement!$A$1:$A$14,Achievement_to_date_ongoing!$C150), MAX(0,M$3-YEAR($I150)))/100)) -> 1 | N150: =IF($J150<DATE(N$3,12,31),1, IF($G150="Physical",0, OFFSET(Project_characteristics!$C$1, SUMIFS(Positions_disbursement!$C$1:$C$14,Positions_disbursement!$B$1:$B$14,Achievement_to_date_ongoing!$D150,Positions_disbursement!$A$1:$A$14,Achievement_to_date_ongoing!$C150), MAX(0,N$3-YEAR($I150)))/100)) -> 1 | O150: =IF($J150<DATE(O$3,12,31),1, IF($G150="Physical",0, OFFSET(Project_characteristics!$C$1, SUMIFS(Positions_disbursement!$C$1:$C$14,Positions_disbursement!$B$1:$B$14,Achievement_to_date_ongoing!$D150,Positions_disbursement!$A$1:$A$14,Achievement_to_date_ongoing!$C150), MAX(0,O$3-YEAR($I150)))/100)) -> 1 | P150: =IF($J150<DATE(P$3,12,31),1, IF($G150="Physical",0, OFFSET(Project_characteristics!$C$1, SUMIFS(Positions_disbursement!$C$1:$C$14,Positions_disbursement!$B$1:$B$14,Achievement_to_date_ongoing!$D150,Positions_disbursement!$A$1:$A$14,Achievement_to_date_ongoing!$C150), MAX(0,P$3-YEAR($I150)))/100)) -> 1
B151: 129341 | C151: 3 | D151: (ii) | E151: F | F151: All | G151: Financial | H151: 1062044.845 | I151: 2019-09-01 | J151: 2021-04-30 | K151: 8242310.938 | M151: =IF($J151<DATE(M$3,12,31),1, IF($G151="Physical",0, OFFSET(Project_characteristics!$C$1, SUMIFS(Positions_disbursement!$C$1:$C$14,Positions_disbursement!$B$1:$B$14,Achievement_to_date_ongoing!$D151,Positions_disbursement!$A$1:$A$14,Achievement_to_date_ongoing!$C151), MAX(0,M$3-YEAR($I151)))/100)) -> 0.1140438791 | N151: =IF($J151<DATE(N$3,12,31),1, IF($G151="Physical",0, OFFSET(Project_characteristics!$C$1, SUMIFS(Positions_disbursement!$C$1:$C$14,Positions_disbursement!$B$1:$B$14,Achievement_to_date_ongoing!$D151,Positions_disbursement!$A$1:$A$14,Achievement_to_date_ongoing!$C151), MAX(0,N$3-YEAR($I151)))/100)) -> 1 | O151: =IF($J151<DATE(O$3,12,31),1, IF($G151="Physical",0, OFFSET(Project_characteristics!$C$1, SUMIFS(Positions_disbursement!$C$1:$C$14,Positions_disbursement!$B$1:$B$14,Achievement_to_date_ongoing!$D151,Positions_disbursement!$A$1:$A$14,Achievement_to_date_ongoing!$C151), MAX(0,O$3-YEAR($I151)))/100)) -> 1 | P151: =IF($J151<DATE(P$3,12,31),1, IF($G151="Physical",0, OFFSET(Project_characteristics!$C$1, SUMIFS(Positions_disbursement!$C$1:$C$14,Positions_disbursement!$B$1:$B$14,Achievement_to_date_ongoing!$D151,Positions_disbursement!$A$1:$A$14,Achievement_to_date_ongoing!$C151), MAX(0,P$3-YEAR($I151)))/100)) -> 1
B152: 107600 | C152: 3 | D152: (ii) | E152: F | F152: All | G152: Financial | H152: 4228242.69 | I152: 2017-01-01 | J152: 2020-08-31 | K152: 6549953.099 | M152: =IF($J152<DATE(M$3,12,31),1, IF($G152="Physical",0, OFFSET(Project_characteristics!$C$1, SUMIFS(Positions_disbursement!$C$1:$C$14,Positions_disbursement!$B$1:$B$14,Achievement_to_date_ongoing!$D152,Positions_disbursement!$A$1:$A$14,Achievement_to_date_ongoing!$C152), MAX(0,M$3-YEAR($I152)))/100)) -> 1 | N152: =IF($J152<DATE(N$3,12,31),1, IF($G152="Physical",0, OFFSET(Project_characteristics!$C$1, SUMIFS(Positions_disbursement!$C$1:$C$14,Positions_disbursement!$B$1:$B$14,Achievement_to_date_ongoing!$D152,Positions_disbursement!$A$1:$A$14,Achievement_to_date_ongoing!$C152), MAX(0,N$3-YEAR($I152)))/100)) -> 1 | O152: =IF($J152<DATE(O$3,12,31),1, IF($G152="Physical",0, OFFSET(Project_characteristics!$C$1, SUMIFS(Positions_disbursement!$C$1:$C$14,Positions_disbursement!$B$1:$B$14,Achievement_to_date_ongoing!$D152,Positions_disbursement!$A$1:$A$14,Achievement_to_date_ongoing!$C152), MAX(0,O$3-YEAR($I152)))/100)) -> 1 | P152: =IF($J152<DATE(P$3,12,31),1, IF($G152="Physical",0, OFFSET(Project_characteristics!$C$1, SUMIFS(Positions_disbursement!$C$1:$C$14,Positions_disbursement!$B$1:$B$14,Achievement_to_date_ongoing!$D152,Positions_disbursement!$A$1:$A$14,Achievement_to_date_ongoing!$C152), MAX(0,P$3-YEAR($I152)))/100)) -> 1
B153: 114439 | C153: 3 | D153: (ii) | E153: F | F153: All | G153: Financial | H153: 7281252.53 | I153: 2015-09-19 | J153: 2020-12-31 | K153: 7281252.53 | M153: =IF($J153<DATE(M$3,12,31),1, IF($G153="Physical",0, OFFSET(Project_characteristics!$C$1, SUMIFS(Positions_disbursement!$C$1:$C$14,Positions_disbursement!$B$1:$B$14,Achievement_to_date_ongoing!$D153,Positions_disbursement!$A$1:$A$14,Achievement_to_date_ongoing!$C153), MAX(0,M$3-YEAR($I153)))/100)) -> 1 | N153: =IF($J153<DATE(N$3,12,31),1, IF($G153="Physical",0, OFFSET(Project_characteristics!$C$1, SUMIFS(Positions_disbursement!$C$1:$C$14,Positions_disbursement!$B$1:$B$14,Achievement_to_date_ongoing!$D153,Positions_disbursement!$A$1:$A$14,Achievement_to_date_ongoing!$C153), MAX(0,N$3-YEAR($I153)))/100)) -> 1 | O153: =IF($J153<DATE(O$3,12,31),1, IF($G153="Physical",0, OFFSET(Project_characteristics!$C$1, SUMIFS(Positions_disbursement!$C$1:$C$14,Positions_disbursement!$B$1:$B$14,Achievement_to_date_ongoing!$D153,Positions_disbursement!$A$1:$A$14,Achievement_to_date_ongoing!$C153), MAX(0,O$3-YEAR($I153)))/100)) -> 1 | P153: =IF($J153<DATE(P$3,12,31),1, IF($G153="Physical",0, OFFSET(Project_characteristics!$C$1, SUMIFS(Positions_disbursement!$C$1:$C$14,Positions_disbursement!$B$1:$B$14,Achievement_to_date_ongoing!$D153,Positions_disbursement!$A$1:$A$14,Achievement_to_date_ongoing!$C153), MAX(0,P$3-YEAR($I153)))/100)) -> 1
B154: 108858 | C154: 3 | D154: (ii) | E154: F | F154: All | G154: Financial | H154: 14401874.37 | I154: 2015-04-03 | J154: 2023-12-31 | K154: 952139837.4 | M154: =IF($J154<DATE(M$3,12,31),1, IF($G154="Physical",0, OFFSET(Project_characteristics!$C$1, SUMIFS(Positions_disbursement!$C$1:$C$14,Positions_disbursement!$B$1:$B$14,Achievement_to_date_ongoing!$D154,Positions_disbursement!$A$1:$A$14,Achievement_to_date_ongoing!$C154), MAX(0,M$3-YEAR($I154)))/100)) -> 1 | N154: =IF($J154<DATE(N$3,12,31),1, IF($G154="Physical",0, OFFSET(Project_characteristics!$C$1, SUMIFS(Positions_disbursement!$C$1:$C$14,Positions_disbursement!$B$1:$B$14,Achievement_to_date_ongoing!$D154,Positions_disbursement!$A$1:$A$14,Achievement_to_date_ongoing!$C154), MAX(0,N$3-YEAR($I154)))/100)) -> 1 | O154: =IF($J154<DATE(O$3,12,31),1, IF($G154="Physical",0, OFFSET(Project_characteristics!$C$1, SUMIFS(Positions_disbursement!$C$1:$C$14,Positions_disbursement!$B$1:$B$14,Achievement_to_date_ongoing!$D154,Positions_disbursement!$A$1:$A$14,Achievement_to_date_ongoing!$C154), MAX(0,O$3-YEAR($I154)))/100)) -> 1 | P154: =IF($J154<DATE(P$3,12,31),1, IF($G154="Physical",0, OFFSET(Project_characteristics!$C$1, SUMIFS(Positions_disbursement!$C$1:$C$14,Positions_disbursement!$B$1:$B$14,Achievement_to_date_ongoing!$D154,Positions_disbursement!$A$1:$A$14,Achievement_to_date_ongoing!$C154), MAX(0,P$3-YEAR($I154)))/100)) -> 1
B155: 107453 | C155: 3 | D155: (ii) | E155: F | F155: All | G155: Financial | H155: 4637875.39 | I155: 2016-02-01 | J155: 2021-12-31 | K155: 28616406.95 | M155: =IF($J155<DATE(M$3,12,31),1, IF($G155="Physical",0, OFFSET(Project_characteristics!$C$1, SUMIFS(Positions_disbursement!$C$1:$C$14,Positions_disbursement!$B$1:$B$14,Achievement_to_date_ongoing!$D155,Positions_disbursement!$A$1:$A$14,Achievement_to_date_ongoing!$C155), MAX(0,M$3-YEAR($I155)))/100)) -> 1 | N155: =IF($J155<DATE(N$3,12,31),1, IF($G155="Physical",0, OFFSET(Project_characteristics!$C$1, SUMIFS(Positions_disbursement!$C$1:$C$14,Positions_disbursement!$B$1:$B$14,Achievement_to_date_ongoing!$D155,Positions_disbursement!$A$1:$A$14,Achievement_to_date_ongoing!$C155), MAX(0,N$3-YEAR($I155)))/100)) -> 1 | O155: =IF($J155<DATE(O$3,12,31),1, IF($G155="Physical",0, OFFSET(Project_characteristics!$C$1, SUMIFS(Positions_disbursement!$C$1:$C$14,Positions_disbursement!$B$1:$B$14,Achievement_to_date_ongoing!$D155,Positions_disbursement!$A$1:$A$14,Achievement_to_date_ongoing!$C155), MAX(0,O$3-YEAR($I155)))/100)) -> 1 | P155: =IF($J155<DATE(P$3,12,31),1, IF($G155="Physical",0, OFFSET(Project_characteristics!$C$1, SUMIFS(Positions_disbursement!$C$1:$C$14,Positions_disbursement!$B$1:$B$14,Achievement_to_date_ongoing!$D155,Positions_disbursement!$A$1:$A$14,Achievement_to_date_ongoing!$C155), MAX(0,P$3-YEAR($I155)))/100)) -> 1
B156: 105537 | C156: 3 | D156: (ii) | E156: F | F156: All | G156: Financial | H156: 6916594.64 | I156: 2015-01-01 | J156: 2020-12-31 | K156: 22530359.71 | M156: =IF($J156<DATE(M$3,12,31),1, IF($G156="Physical",0, OFFSET(Project_characteristics!$C$1, SUMIFS(Positions_disbursement!$C$1:$C$14,Positions_disbursement!$B$1:$B$14,Achievement_to_date_ongoing!$D156,Positions_disbursement!$A$1:$A$14,Achievement_to_date_ongoing!$C156), MAX(0,M$3-YEAR($I156)))/100)) -> 1 | N156: =IF($J156<DATE(N$3,12,31),1, IF($G156="Physical",0, OFFSET(Project_characteristics!$C$1, SUMIFS(Positions_disbursement!$C$1:$C$14,Positions_disbursement!$B$1:$B$14,Achievement_to_date_ongoing!$D156,Positions_disbursement!$A$1:$A$14,Achievement_to_date_ongoing!$C156), MAX(0,N$3-YEAR($I156)))/100)) -> 1 | O156: =IF($J156<DATE(O$3,12,31),1, IF($G156="Physical",0, OFFSET(Project_characteristics!$C$1, SUMIFS(Positions_disbursement!$C$1:$C$14,Positions_disbursement!$B$1:$B$14,Achievement_to_date_ongoing!$D156,Positions_disbursement!$A$1:$A$14,Achievement_to_date_ongoing!$C156), MAX(0,O$3-YEAR($I156)))/100)) -> 1 | P156: =IF($J156<DATE(P$3,12,31),1, IF($G156="Physical",0, OFFSET(Project_characteristics!$C$1, SUMIFS(Positions_disbursement!$C$1:$C$14,Positions_disbursement!$B$1:$B$14,Achievement_to_date_ongoing!$D156,Positions_disbursement!$A$1:$A$14,Achievement_to_date_ongoing!$C156), MAX(0,P$3-YEAR($I156)))/100)) -> 1
B157: 104740 | C157: 3 | D157: (ii) | E157: F | F157: All | G157: Financial | H157: 28562178.71 | I157: 2015-01-01 | J157: 2022-12-31 | K157: 34517645.68 | M157: =IF($J157<DATE(M$3,12,31),1, IF($G157="Physical",0, OFFSET(Project_characteristics!$C$1, SUMIFS(Positions_disbursement!$C$1:$C$14,Positions_disbursement!$B$1:$B$14,Achievement_to_date_ongoing!$D157,Positions_disbursement!$A$1:$A$14,Achievement_to_date_ongoing!$C157), MAX(0,M$3-YEAR($I157)))/100)) -> 1 | N157: =IF($J157<DATE(N$3,12,31),1, IF($G157="Physical",0, OFFSET(Project_characteristics!$C$1, SUMIFS(Positions_disbursement!$C$1:$C$14,Positions_disbursement!$B$1:$B$14,Achievement_to_date_ongoing!$D157,Positions_disbursement!$A$1:$A$14,Achievement_to_date_ongoing!$C157), MAX(0,N$3-YEAR($I157)))/100)) -> 1 | O157: =IF($J157<DATE(O$3,12,31),1, IF($G157="Physical",0, OFFSET(Project_characteristics!$C$1, SUMIFS(Positions_disbursement!$C$1:$C$14,Positions_disbursement!$B$1:$B$14,Achievement_to_date_ongoing!$D157,Positions_disbursement!$A$1:$A$14,Achievement_to_date_ongoing!$C157), MAX(0,O$3-YEAR($I157)))/100)) -> 1 | P157: =IF($J157<DATE(P$3,12,31),1, IF($G157="Physical",0, OFFSET(Project_characteristics!$C$1, SUMIFS(Positions_disbursement!$C$1:$C$14,Positions_disbursement!$B$1:$B$14,Achievement_to_date_ongoing!$D157,Positions_disbursement!$A$1:$A$14,Achievement_to_date_ongoing!$C157), MAX(0,P$3-YEAR($I157)))/100)) -> 1
B158: 104855 | C158: 3 | D158: (ii) | E158: F | F158: All | G158: Financial | H158: 12355794.87 | I158: 2016-10-15 | J158: 2021-10-28 | K158: 26412046.5 | M158: =IF($J158<DATE(M$3,12,31),1, IF($G158="Physical",0, OFFSET(Project_characteristics!$C$1, SUMIFS(Positions_disbursement!$C$1:$C$14,Positions_disbursement!$B$1:$B$14,Achievement_to_date_ongoing!$D158,Positions_disbursement!$A$1:$A$14,Achievement_to_date_ongoing!$C158), MAX(0,M$3-YEAR($I158)))/100)) -> 1 | N158: =IF($J158<DATE(N$3,12,31),1, IF($G158="Physical",0, OFFSET(Project_characteristics!$C$1, SUMIFS(Positions_disbursement!$C$1:$C$14,Positions_disbursement!$B$1:$B$14,Achievement_to_date_ongoing!$D158,Positions_disbursement!$A$1:$A$14,Achievement_to_date_ongoing!$C158), MAX(0,N$3-YEAR($I158)))/100)) -> 1 | O158: =IF($J158<DATE(O$3,12,31),1, IF($G158="Physical",0, OFFSET(Project_characteristics!$C$1, SUMIFS(Positions_disbursement!$C$1:$C$14,Positions_disbursement!$B$1:$B$14,Achievement_to_date_ongoing!$D158,Positions_disbursement!$A$1:$A$14,Achievement_to_date_ongoing!$C158), MAX(0,O$3-YEAR($I158)))/100)) -> 1 | P158: =IF($J158<DATE(P$3,12,31),1, IF($G158="Physical",0, OFFSET(Project_characteristics!$C$1, SUMIFS(Positions_disbursement!$C$1:$C$14,Positions_disbursement!$B$1:$B$14,Achievement_to_date_ongoing!$D158,Positions_disbursement!$A$1:$A$14,Achievement_to_date_ongoing!$C158), MAX(0,P$3-YEAR($I158)))/100)) -> 1
B159: 108100 | C159: 3 | D159: (ii) | E159: F | F159: All | G159: Financial | H159: 49434916.28 | I159: 2014-09-01 | J159: 2023-12-31 | K159: 203827375.2 | M159: =IF($J159<DATE(M$3,12,31),1, IF($G159="Physical",0, OFFSET(Project_characteristics!$C$1, SUMIFS(Positions_disbursement!$C$1:$C$14,Positions_disbursement!$B$1:$B$14,Achievement_to_date_ongoing!$D159,Positions_disbursement!$A$1:$A$14,Achievement_to_date_ongoing!$C159), MAX(0,M$3-YEAR($I159)))/100)) -> 1 | N159: =IF($J159<DATE(N$3,12,31),1, IF($G159="Physical",0, OFFSET(Project_characteristics!$C$1, SUMIFS(Positions_disbursement!$C$1:$C$14,Positions_disbursement!$B$1:$B$14,Achievement_to_date_ongoing!$D159,Positions_disbursement!$A$1:$A$14,Achievement_to_date_ongoing!$C159), MAX(0,N$3-YEAR($I159)))/100)) -> 1 | O159: =IF($J159<DATE(O$3,12,31),1, IF($G159="Physical",0, OFFSET(Project_characteristics!$C$1, SUMIFS(Positions_disbursement!$C$1:$C$14,Positions_disbursement!$B$1:$B$14,Achievement_to_date_ongoing!$D159,Positions_disbursement!$A$1:$A$14,Achievement_to_date_ongoing!$C159), MAX(0,O$3-YEAR($I159)))/100)) -> 1 | P159: =IF($J159<DATE(P$3,12,31),1, IF($G159="Physical",0, OFFSET(Project_characteristics!$C$1, SUMIFS(Positions_disbursement!$C$1:$C$14,Positions_disbursement!$B$1:$B$14,Achievement_to_date_ongoing!$D159,Positions_disbursement!$A$1:$A$14,Achievement_to_date_ongoing!$C159), MAX(0,P$3-YEAR($I159)))/100)) -> 1
